Workbook

Sheet AER Sheet Heading (hidden)
B1: =IF(dms_MultiYear_ResponseFlag="Yes","REGULATORY REPORTING STATEMENT - HISTORICAL INFORMATION",INDEX(dms_Worksheet_List,MATCH(dms_Model,dms_Model_List))) -> REGULATORY REPORTING STATEMENT
B2: =INDEX(dms_TradingNameFull_List,MATCH(dms_TradingName,dms_TradingName_List)) -> Jemena Electricity
B3: =dms_Header_Span -> 2021-22 to 2025-26
B4: XX
C11: EXPENDITURE
C12: =CONCATENATE("Forecast ($0's, real ",dms_DollarReal,")") -> Forecast ($0's, real June 2021)
C13: =CRCP_y4 -> 2019-20 | D13: =CRCP_y5 -> 2020-21 | E13: =FRCP_y1 -> 2021-22 | F13: =FRCP_y2 -> 2022-23 | G13: =FRCP_y3 -> 2023-24 | H13: =FRCP_y4 -> 2024-25 | I13: =FRCP_y5 -> 2025-26
C42: VOLUMES
C43: 0's
C44: =CRCP_y4 -> 2019-20 | D44: =CRCP_y5 -> 2020-21 | E44: =FRCP_y1 -> 2021-22 | F44: =FRCP_y2 -> 2022-23 | G44: =FRCP_y3 -> 2023-24 | H44: =FRCP_y4 -> 2024-25 | I44: =FRCP_y5 -> 2025-26

Sheet AER CF (hidden)
B1: AER CONDITIONAL FORMATTING
B4: CONDITIONAL FORMATTING MAP
F5: =INDEX(dms_CF_3.6.1, MATCH(dms_TradingName,dms_CF_TradingName))="Y" | G5: =INDEX(dms_CF_3.6.5, MATCH(dms_TradingName,dms_CF_TradingName))="Y" | H5: =INDEX(dms_CF_3.6.6, MATCH(dms_TradingName,dms_CF_TradingName))="Y" | I5: =INDEX(dms_CF_3.6.7.1, MATCH(dms_TradingName,dms_CF_TradingName))="Y" | J5: =INDEX(dms_CF_3.6.7.2, MATCH(dms_TradingName,dms_CF_TradingName))="Y" | K5: =INDEX(dms_CF_3.6.7.3, MATCH(dms_TradingName,dms_CF_TradingName))="Y" | L5: =INDEX(dms_CF_3.6.7.4, MATCH(dms_TradingName,dms_CF_TradingName))="Y" | M5: =INDEX(dms_CF_3.6.8, MATCH(dms_TradingName,dms_CF_TradingName))="Y" | N5: =INDEX(dms_CF_4.1, MATCH(dms_TradingName,dms_CF_TradingName))="Y" | O5: =INDEX(dms_CF_6.6.1, MATCH(dms_TradingName,dms_CF_TradingName))="Y" | P5: =INDEX(dms_CF_6.8, MATCH(dms_TradingName,dms_CF_TradingName))="Y" | Q5: =INDEX(dms_CF_7.12, MATCH(dms_TradingName,dms_CF_TradingName))="Y" | R5: =INDEX(dms_CF_8.1_A, MATCH(dms_TradingName,dms_CF_TradingName))="Y" | S5: =INDEX(dms_CF_8.1_B, MATCH(dms_TradingName,dms_CF_TradingName))="Y" | T5: =INDEX(dms_CF_8.1_Neg, MATCH(dms_TradingName,dms_CF_TradingName))="Y" | U5: =INDEX(dms_CF_4.4.1_Neg, MATCH(dms_TradingName,dms_CF_TradingName))="Y"
B6: dms_CF_TradingName | C6: JurisdictionList | D6: Sector | E6: Segment | F6: dms_CF_3.6.1 | G6: dms_CF_3.6.5 | H6: dms_CF_3.6.6 | I6: dms_CF_3.6.7.1 | J6: dms_CF_3.6.7.2 | K6: dms_CF_3.6.7.3 | L6: dms_CF_3.6.7.4 | M6: dms_CF_3.6.8 | N6: dms_CF_4.1 | O6: dms_CF_6.6.1 | P6: dms_CF_6.8 | Q6: dms_CF_7.12 | R6: dms_CF_8.1_A | S6: dms_CF_8.1_B | T6: dms_CF_8.1_Neg | U6: dms_CF_4.4.1 | V6: dms_CF_MAIFI_flag | W6: Spare1 | X6: Spare2
B7: ActewAGL Distribution | C7: ACT | D7: Electricity | E7: Distribution | G7: Y | I7: Y | J7: Y | K7: N | L7: Y | M7: N | N7: N | O7: N | P7: Y | Q7: Y | R7: N | S7: Y | T7: Y | U7: N | V7: N | W7: N | X7: N
B8: Ausgrid | C8: NSW | D8: Electricity | E8: Distribution | G8: Y | I8: N | J8: N | K8: N | L8: Y | M8: N | N8: N | O8: N | P8: Y | Q8: Y | R8: N | S8: Y | T8: Y | U8: N | V8: N | W8: N | X8: N
B9: AusNet (D) | C9: Vic | D9: Electricity | E9: Distribution | G9: N | I9: N | J9: N | K9: N | L9: N | M9: N | N9: Y | O9: N | P9: Y | Q9: N | R9: N | S9: N | T9: Y | U9: N | V9: N | W9: N | X9: N
B10: AusNet (T) | C10: Vic | D10: Electricity | E10: Transmission | G10: N | I10: N | J10: N | K10: N | L10: N | M10: N | N10: Y | O10: N | P10: Y | Q10: N | R10: N | S10: N | T10: Y | U10: N | V10: N | W10: N | X10: N
B11: CitiPower | C11: Vic | D11: Electricity | E11: Distribution | G11: N | I11: N | J11: N | K11: N | L11: N | M11: N | N11: Y | O11: N | P11: Y | Q11: N | R11: N | S11: N | T11: Y | U11: N | V11: N | W11: N | X11: N
B12: Directlink | C12: Qld | D12: Electricity | E12: Transmission | G12: N | I12: N | J12: N | K12: N | L12: N | M12: N | N12: Y | O12: N | P12: Y | Q12: N | R12: N | S12: Y | T12: Y | U12: N | V12: N | W12: N | X12: N
B13: ElectraNet | C13: SA | D13: Electricity | E13: Transmission | G13: N | I13: N | J13: N | K13: N | L13: N | M13: N | N13: Y | O13: N | P13: Y | Q13: N | R13: N | S13: Y | T13: Y | U13: N | V13: N | W13: N | X13: N
B14: Endeavour Energy | C14: NSW | D14: Electricity | E14: Distribution | G14: Y | I14: N | J14: N | K14: N | L14: Y | M14: N | N14: N | O14: N | P14: Y | Q14: Y | R14: N | S14: Y | T14: Y | U14: Y | V14: N | W14: N | X14: N
B15: Energex | C15: Qld | D15: Electricity | E15: Distribution | G15: Y | I15: N | J15: N | K15: N | L15: N | M15: N | N15: N | O15: N | P15: Y | Q15: Y | R15: N | S15: Y | T15: Y | U15: Y | V15: N | W15: N | X15: N
B16: Ergon Energy | C16: Qld | D16: Electricity | E16: Distribution | G16: Y | I16: N | J16: N | K16: N | L16: N | M16: N | N16: N | O16: N | P16: Y | Q16: Y | R16: N | S16: Y | T16: Y | U16: N | V16: N | W16: N | X16: N
B17: Essential Energy | C17: NSW | D17: Electricity | E17: Distribution | G17: Y | I17: N | J17: N | K17: N | L17: Y | M17: N | N17: N | O17: N | P17: Y | Q17: Y | R17: N | S17: Y | T17: Y | U17: N | V17: N | W17: N | X17: N
B18: Jemena Electricity | C18: Vic | D18: Electricity | E18: Distribution | G18: N | I18: N | J18: N | K18: N | L18: N | M18: N | N18: Y | O18: N | P18: Y | Q18: N | R18: N | S18: N | T18: Y | U18: N | V18: N | W18: N | X18: N
B19: Murraylink | C19: SA | D19: Electricity | E19: Transmission | G19: N | I19: N | J19: N | K19: N | L19: N | M19: N | N19: Y | O19: N | P19: Y | Q19: N | R19: N | S19: Y | T19: Y | U19: N | V19: N | W19: N | X19: N
B20: Power and Water | C20: NT | D20: Electricity | E20: Distribution | G20: N | I20: N | J20: Y | K20: N | L20: N | M20: Y | N20: Y | O20: Y | P20: Y | Q20: Y | R20: N | S20: Y | T20: Y | U20: N | V20: N | W20: N | X20: N
B21: Powercor Australia | C21: Vic | D21: Electricity | E21: Distribution | G21: N | I21: N | J21: N | K21: N | L21: N | M21: N | N21: Y | O21: N | P21: Y | Q21: N | R21: N | S21: N | T21: Y | U21: N | V21: N | W21: N | X21: N
B22: Powerlink | C22: Qld | D22: Electricity | E22: Transmission | G22: N | I22: N | J22: N | K22: N | L22: N | M22: N | N22: Y | O22: N | P22: Y | Q22: N | R22: N | S22: Y | T22: Y | U22: N | V22: N | W22: N | X22: N
B23: SA Power Networks | C23: SA | D23: Electricity | E23: Distribution | G23: Y | I23: N | J23: N | K23: N | L23: N | M23: N | N23: Y | O23: N | P23: Y | Q23: Y | R23: Y | S23: Y | T23: N | U23: N | V23: N | W23: N | X23: N
B24: TasNetworks (D) | C24: Tas | D24: Electricity | E24: Distribution | G24: Y | I24: N | J24: N | K24: N | L24: N | M24: N | N24: N | O24: N | P24: Y | Q24: Y | R24: N | S24: Y | T24: Y | U24: N | V24: N | W24: N | X24: N
B25: TasNetworks (T) | C25: Tas | D25: Electricity | E25: Transmission | G25: N | I25: N | J25: N | K25: N | L25: N | M25: N | N25: Y | O25: N | P25: Y | Q25: N | R25: N | S25: Y | T25: Y | U25: N | V25: N | W25: N | X25: N
B26: TransGrid | C26: NSW | D26: Electricity | E26: Transmission | G26: N | I26: N | J26: N | K26: N | L26: N | M26: N | N26: Y | O26: N | P26: Y | Q26: N | R26: N | S26: Y | T26: Y | U26: N | V26: N | W26: N | X26: N
B27: United Energy | C27: Vic | D27: Electricity | E27: Distribution | G27: N | I27: N | J27: N | K27: N | L27: N | M27: N | N27: Y | O27: N | P27: Y | Q27: N | R27: N | S27: N | T27: Y | U27: N | V27: N | W27: N | X27: N
B30: Confidential
B31: Amended
B33: Worksheet 6.2 STPIS reliability
B34: Formula | F34: Applied to:
B36: =INDEX(dms_CBD_flag,MATCH(dms_TradingName,dms_TradingName_List))="NO" | F36: $D$11,$D$17,$D$23,$D$33,$D$39,$D$45,$D$55,$D$61,$D$67,$D$77,$D$83,$D$89
B37: =INDEX(dms_Urban_flag,MATCH(dms_TradingName,dms_TradingName_List))="NO" | F37: $D$12,$D$18,$D$24,$D$56,$D$62,$D$78,$D$68,$D$84
B38: =INDEX(dms_ShortRural_flag,MATCH(dms_TradingName,dms_TradingName_List))="NO" | F38: $D$13,$D$19,$D$25,$D$57,$D$63,$D$69,$D$79,$D$85
B39: =INDEX(dms_LongRural_flag,MATCH(dms_TradingName,dms_TradingName_List))="NO" | F39: $D$14,$D$20,$D$26,$D$58,$D$64,$D$65,$D$70,$D$71,$D$80,$D$86
B40: =INDEX(dms_FeederType_5_flag,MATCH(dms_TradingName,dms_TradingName_List))="NO" | F40: $D$87,$D$81,$D$71,$D$65,$D$59,$D$49,$D$43,$D$37,$D$21,$D$15
B41: =dms_MAIFI_Flag="No" | F41: $D$55:$D$72
B44: Business & other details
B45: =(INDEX(dms_Model_Span,MATCH(dms_Model,dms_Model_List))>1)
B46: =(INDEX(dms_Model_Span,MATCH(dms_Model,dms_Model_List))=1)
B49: STYLES IN USE
B50: HEADING ONE | C50: dms_1
B51: HEADING TWO | C51: dms_2
B52: HEADING THREE | C52: dms_3
B53: HEADING FOUR | C53: dms_4
B54: HEADING FIVE | C54: dms_5
C55: dms_NUM
C56: dms_NUM%
C57: dms_Row_Locked
C58: dms_Row1
C59: dms_Row2
C60: dms_T1
C61: dms_T2
C62: dms_BH
C63: dms_BY1
C64: dms_BY2
C65: dms_GH
C66: dms_GY1
C67: dms_GY2

Sheet AER NRs (hidden)
B1: AER NAMED RANGES
B3: DROP DOWN SELECTORS USED IN WORKBOOKS
B5: COVER SHEET | C5: dms_DataQuality_List | D5: dms_Confid_status_List
C6: -- select -- | D6: -- select --
C7: Actual | D7: Public
C8: Estimate | D8: Confidential
C9: Consolidated
C12: For all files either AER or business needs to be able to specify the type of submission | D12: For PTRM & RFM templates we must provide a choice in case they change their form of control - otherwise it is drawn from the business specific lookup table above.
C13: dms_SourceList | D13: dms_FormControl_Choices
C14: -- select -- | D14: Revenue cap
C15: After appeal | D15: Revenue yield
C16: Draft decision | D16: Weighted average price cap
C17: Final decision
C18: PTRM update 1
C19: PTRM update 2
C20: PTRM update 3
C21: PTRM update 4
C22: PTRM update 5
C23: PTRM update 6
C24: PTRM update 7
C25: Regulatory proposal
C26: Reporting
C27: Revised regulatory proposal
K30: This is used to create an image to insert on 6.3 STPIS sheet - not for dropdown lists. | N30: GAS
B31: CA & RESET RINS DNSP | C31: dms_DNSP_020301_SubstationType | D31: dms_DNSP_020301_ProjectType | E31: dms_DNSP_020301_ProjectTrigger | F31: dms_DNSP_020302_ProjectType | G31: dms_DNSP_020302_ProjectTrigger | H31: dms_STPIS_Exclusion_List | I31: dms_Reason_Interruption | J31: dms_Reason_Interruption_Detailed | K31: Reason for interruption | N31: dms_N0205_AssetType
C32: Subtransmission substation | D32: New substation establishment | E32: Demand growth | F32: New line on new route - single circuit | G32: Demand growth | H32: Weather | I32: Animal | J32: Animal impact | K32: Animal | L32: Animal impact | N32: Cast Iron
C33: Zone substation | D33: Substation upgrade - capacity | E33: Voltage issues | F33: New line on new route - dual circuit | G33: Voltage issues | H33: Equipment failure | I33: Asset failure | J33: Animal nesting/burrowing, etc and other | L33: Animal nesting/burrowing, etc and other | N33: PVC
C34: Switching station | D34: Substation upgrade - voltage | E34: Reactive power issue | F34: New line on new route - other | G34: Reactive power issue | H34: Operational error | I34: Other | J34: Other | L34: Other | N34: Polyamide
C35: Other | D35: Other | E35: Fault level issues | F35: Line rebuild over existing route - single circuit | G35: Fault level issues | H35: Vegetation | I35: Overloads | J35: LV | K35: Asset failure | L35: LV | N35: High density polyethylene (80)
E36: Safety | F36: Line rebuild over existing route - dual circuit | G36: Net market benefit | H36: Animals | I36: Planned | J36: Distribution substation | L36: Distribution substation | N36: High density polyethylene (100)
E37: Environment | F37: Reconductor - Single circuit | G37: Safety | H37: Third party impacts | I37: Network business | J37: HV | L37: HV | N37: High density polyethylene (250)
E38: Other | F38: Reconductor - Dual circuit | G38: Environment | H38: Transmission failure | I38: Third party | J38: Zone substation | L38: Zone substation | N38: High density polyethylene (575)
F39: Reconductor - Other | G39: Other | H39: Load shedding | I39: Unknown | J39: Subtransmission | L39: Subtransmission | N39: Medium density polyethylene
F40: Line upgrade - raising/retensoring | H40: Inter-distributor connection failure | I40: Vegetation | J40: insert description of 'other' | K40: Other | L40: insert description of 'other' | N40: Unprotected steel
F41: Line upgrade - voltage upgrade | H41: Other | I41: Weather | J41: Network error | K41: Overloads | N41: Protected steel
F42: Line upgrade - capacity | I42: 2 - STPIS Exclusion (3.3)(a) | J42: Switching and protection error | K42: Planned | N42: Other
F43: String spare circuit | I43: 3 - STPIS Exclusion (3.3)(a) | J43: Fire | K43: Network business | L43: Network error
F44: Other | I44: 4 - STPIS Exclusion (3.3)(a) | J44: Other | L44: Switching and protection error
I45: 5 - STPIS Exclusion (3.3)(a) | J45: Dig-in | K45: Third party | L45: Fire
I46: 6 - STPIS Exclusion (3.3)(a) | J46: Unauthorised access | L46: Other
I47: 7 - STPIS Exclusion (3.3)(a) | J47: Vehicle impact | L47: Dig-in
J48: Unknown | L48: Unauthorised access
J49: Blow-in/Fall-in - NSP responsibility | L49: Vehicle impact
J50: Grow-in - NSP responsibility | K50: Unknown | L50: Unknown
J51: Blow-in/Fall-in - Other responsible party | K51: Vegetation | L51: Blow-in/Fall-in - NSP responsibility
J52: Grow-in - Other responsible party | L52: Grow-in - NSP responsibility
L53: Blow-in/Fall-in - Other responsible party
L54: Grow-in - Other responsible party
K55: Weather
K56: 2 - STPIS Exclusion (3.3)(a)
K57: 3 - STPIS Exclusion (3.3)(a)
K58: 4 - STPIS Exclusion (3.3)(a)
K59: 5 - STPIS Exclusion (3.3)(a)
K60: 6 - STPIS Exclusion (3.3)(a)
K61: 7 - STPIS Exclusion (3.3)(a)
B64: CA & RESET RINS TNSP | C64: dms_TNSP_0203_SubstationType | D64: dms_TNSP_020301_ProjectType | E64: dms_TNSP_020301_ProjectTrigger | F64: dms_TNSP_020302_ProjectType | G64: dms_TNSP_0203_ProjectTrigger
C65: Terminal station | D65: New substation establishment | E65: Demand growth | F65: New line on new route - single circuit | G65: Demand growth
C66: Switching station | D66: Capacity upgrade | E66: Voltage issues | F66: New line on new route - dual circuit | G66: Voltage issues
C67: Transmission substation | D67: Voltage upgrade | E67: Reactive power issue | F67: New line on new route - other | G67: Reactive power issue
C68: Other | D68: Other | E68: Fault level issues | F68: Line rebuild over existing route - single circuit | G68: Fault level issues
E69: Net market benefit | F69: Line rebuild over existing route - dual circuit | G69: Net market benefit
E70: Safety | F70: Reconductor - Single circuit | G70: Safety
E71: Environment | F71: Reconductor - Dual circuit | G71: Environment
E72: Other | F72: Reconductor - Other | G72: Other
F73: Line upgrade - raising/retensoring
F74: Line upgrade - voltage upgrade
F75: Line upgrade - capacity
F76: String spare circuit
F77: Other
B81: NAMED RANGES USED IN ETL PROCESS
B83: CA & RESET RINS DNSP ONLY | C83: dms_020303_01_UOM | D83: dms_020501_01_UOM | E83: dms_020501_02_UOM | F83: dms_020501_03_UOM | G83: dms_020501_04_UOM | H83: dms_020701_01_UOM | I83: dms_020701_02_UOM | J83: dms_020701_01_Rows | K83: dms_040102_01_UOM | L83: dms_040102_04_UOM | M83: dms_S140101_UOM | N83: dms_S140102_UOM | O83: dms_S140201_UOM
C84: Circuit line length in km | D84: 0's | E84: 0's | F84: 0's | G84: 0's | H84: km | I84: km | J84: Route line length within zone | K84: 0's | L84: days | M84: number | N84: number | O84: number per km
C85: Circuit line length in km | D85: 0's | E85: 0's | F85: 0's | G85: 0's | H85: 0's | I85: 0's | J85: Number of maintenance spans | K85: 0's | L85: 0's | M85: number | N85: number | O85: number
C86: Circuit line length in km | D86: MVA added | E86: MVA added | F86: MVA added | G86: MVA added | H86: km | I86: km | J86: Total length of maintenance spans | K86: 0's | L86: $0s | M86: number | N86: number | O86: number
C87: Circuit line length in km | D87: 0's | E87: 0's | F87: 0's | G87: 0's | H87: km | I87: km | J87: Length of vegetation corridors | K87: $0s | L87: 0's | M87: km | N87: number
C88: Number | D88: total spend $0s | E88: total spend $0s | F88: total spend $0s | G88: total spend $0s | H88: 0's | I88: 0's | J88: Average number of trees per maintenance span
C89: Number | D89: net circuit km added | E89: net circuit km added | F89: net circuit km added | G89: net circuit km added | H89: years | I89: years | J89: Average frequency of cutting cycle
C90: Number | D90: total spend $0s | E90: total spend $0s | F90: total spend $0s | G90: total spend $0s
D91: net circuit km added | E91: net circuit km added | F91: net circuit km added | G91: net circuit km added
D92: total spend $0s | E92: total spend $0s | F92: total spend $0s | G92: total spend $0s
D93: 0's | F93: $0s
D94: 0's
D95: 0's
D96: $0s
B99: CA & RESET RINS TNSP ONLY | C99: dms_020701_01_UOM
C100: km
C101: 0's
C102: km
C103: 0's
C104: km
C105: metres
C106: years
B109: CA & RESET RINS DNSP & TNSP | C109: dms_020603_01_UOM
C110: 0's
C111: 0's
C112: 0's
C113: 0's
C114: (per cent)
B117: EB & RESET RINS DNSP ONLY | C117: dms_030601_01_UOM | D117: dms_030601_02_UOM | E117: dms_030701_01_UOM | F117: dms_030702_01_UOM | G117: dms_030703_01_UOM
C118: minutes/customer | D118: minutes/customer | E118: Customer / km | F118: % | G118: km
C119: minutes/customer | D119: minutes/customer | E119: MWh/customer | F119: Number of spans
C120: interruptions/customer | D120: interruptions/customer | E120: kVA / customer | F120: Number of spans
C121: interruptions/customer | D121: interruptions/customer | F121: Number of spans
F122: Number of spans
F123: Years
F124: Years
F125: Trees
F126: Trees
F127: Defects
F128: Defects
F129: Spans
F130: km
F131: Spans
C133: WHEN INSERTING COVER SHEET INTO A TNSP FILE - APPLY THESE NAMED RANGES
B134: EB & RESET RINS TNSP ONLY | C134: dms_030601_01_UOM | E134: dms_030701_01_UOM | F134: dms_030702_01_UOM
C135: % | E135: Number of spans | F135: km
C136: number | E136: Years | F136: %
C137: number | E137: Trees | F137: km
C138: % | E138: Defects | F138: number
C139: number | E139: Number of spans
C140: number | E140: km
C141: % | E141: km
C142: number | E142: Number of spans
C143: number
C144: %
C145: number
C146: %
C147: number
C148: %
C149: number
B151: EB & RESET RINS DNSP & TNSP | C151: dms_EB_RAB_PIT
C152: Beginning of year
C153: End of year
C154: End of year
C155: End of year
C156: End of year
C157: End of year
B159: ARR DNSP ONLY | C159: dms_030605_UOM | D159: dms_03060703_UOM | E159: Spare | F159: Spare
C160: number | D160: number
C161: number | D161: number
C162: number | D162: number
C163: number | D163: number
C164: number | D164: (per cent)
C165: number
C166: number
C167: number
C168: number
C169: number
C170: number
C171: number
C172: (per cent)
C173: (per cent)
B175: RFM | C175: dms_Beg | D175: dms_Mid | E175: dms_End
C176: Beginning of year | D176: Mid year | E176: End of Year
B178: PTRM | C178: dms_PTRM_RAB_PIT | D178: dms_PTRM_TAB_PIT | E178: DMS_Xfactor
C179: Beginning of year | D179: Beginning of year | E179: x factors
C180: End of year | D180: End of year
C181: End of year | D181: End of year
C182: End of year | D182: End of year
C183: End of year
B186: STPIS & MIC NAMED RANGES
B188: These "row descriptions" are the column headings in the various templates but become row descriptions in the ETL process
B190: Table 6.3 sustained interruptions - row descriptions | C190: dms_060301_CustNo_Affected_Row | D190: dms_060301_Avg_Duration_Sustained_Int_Row | E190: dms_060301_Effect_unplanned_SAIDI_Row | F190: dms_060301_Effect_unplanned_SAIFI_Row
C191: Number of customers affected by the interruption | D191: Average duration of sustained customer interruption | E191: Effect on unplanned SAIDI | F191: Effect on unplanned SAIFI
B194: Table 6.1 telephone answering - row descriptions and start date | C194: dms_060101_Rows | D194: dms_060102_Rows | E194: dms_060101_StartDateTxt
C195: Total number of calls (after removing excluded events) | D195: Number of calls answered within 30 seconds (after excluding excluded events) | E195: =dms_060701_StartDateTxt -> 2015-01-01
B198: Table 6.8.1 - row descriptions | C198: dms_060801_01_Rows | D198: dms_060801_02_Rows | E198: dms_060801_03_Rows | F198: dms_060801_04_Rows
C199: Number of interruptions | D199: Duration of interruptions | E199: Total unplanned minutes off supply | F199: Effect on unplanned MAIFI
B202: Table 7.9.4 - market impact component - row descriptions | C202: dms_070904_01_Rows | D202: without exclusions | E202: with exclusions
B205: These headings (Lists) are determined from the INDEX/MATCH function on the NSP selected on the Business & other details sheet
B207: Table 6.7.1 - daily performance data - unplanned - MAIFI -- row descriptions and header named range values | C207: dms_060701_Feeder_Header_Lvl4 | D207: =INDEX(dms_FeederName_1,MATCH(dms_TradingName,dms_TradingName_List)) -> CBD | E207: =INDEX(dms_FeederName_1,MATCH(dms_TradingName,dms_TradingName_List)) -> CBD | F207: =INDEX(dms_FeederName_2,MATCH(dms_TradingName,dms_TradingName_List)) -> Urban | G207: =INDEX(dms_FeederName_2,MATCH(dms_TradingName,dms_TradingName_List)) -> Urban | H207: =INDEX(dms_FeederName_3,MATCH(dms_TradingName,dms_TradingName_List)) -> Short rural | I207: =INDEX(dms_FeederName_3,MATCH(dms_TradingName,dms_TradingName_List)) -> Short rural | J207: =INDEX(dms_FeederName_4,MATCH(dms_TradingName,dms_TradingName_List)) -> Long rural | K207: =INDEX(dms_FeederName_4,MATCH(dms_TradingName,dms_TradingName_List)) -> Long rural | L207: =IF((INDEX(dms_FeederName_5,MATCH(dms_TradingName,dms_TradingName_List))=0),"Network",(INDEX(dms_FeederName_5,MATCH(dms_TradingName,dms_TradingName_List)))) -> Network | M207: =IF((INDEX(dms_FeederName_5,MATCH(dms_TradingName,dms_TradingName_List))=0),"Network",(INDEX(dms_FeederName_5,MATCH(dms_TradingName,dms_TradingName_List)))) -> Network | N207: Network | O207: Network
C209: dms_060701_Rows | D209: All events | E209: After removing excluded events | F209: All events | G209: After removing excluded events | H209: All events | I209: After removing excluded events | J209: All events | K209: After removing excluded events | L209: All events | M209: After removing excluded events | N209: All events | O209: After removing excluded events
D210: the number of column headings changes from 10 to 12 depending on the number of feeder categories for the NSP
C212: dms_0603_FeederList | D212: =INDEX(dms_FeederName_1,MATCH(dms_TradingName,dms_TradingName_List)) -> CBD | E212: =INDEX(dms_FeederName_2,MATCH(dms_TradingName,dms_TradingName_List)) -> Urban | F212: =INDEX(dms_FeederName_3,MATCH(dms_TradingName,dms_TradingName_List)) -> Short rural | G212: =INDEX(dms_FeederName_4,MATCH(dms_TradingName,dms_TradingName_List)) -> Long rural
B215: Use these to add to specific worksheets in existing files | C215: Use these to add to specific worksheets in existing files
B218: ARRs 6.7 STPIS daily performance | C218: dms_060101_Values | D218: dms_060102_Values | E218: dms_060701_Values
C219: dms_LeapYear
B222: ARR's 6.8 STPIS exclusions | C222: dms_060801_Event_Date | D222: dms_060801_OutageID | E222: dms_060801_FeederID | F222: dms_060801_FeederClass | G222: dms_060801_CauseID | H222: dms_060801_01_Values | I222: dms_060801_02_Values | J222: dms_060801_03_Values | K222: dms_060801_Excl_Cat | L222: dms_060801_04_Values
C223: dms_060801_StartCell
B226: CA 6.3 sustained interruptions | C226: dms_060301_Event_Date | D226: dms_060301_Event_Time | E226: dms_060301_AssetID | F226: dms_060301_FeederClass | G226: dms_060301_Reason | H226: dms_060301_DetailedReason | I226: dms_060301_CustNo_Affected_Values | J226: dms_060301_Avg_Duration_Sustained_Int_Values | K226: dms_060301_Effect_unplanned_SAIDI_Values | L226: dms_060301_Effect_unplanned_SAIFI_Values | M226: dms_060301_MED

Sheet AER lookups (hidden)
B1: AER LOOKUP TABLES
B3: Data in these columns used for data validation and database purposes.
B4: Date last modified: | C4: 2017-01-16 | D4: added (Albury and Victora) for AGN
C5: 2016-10-17 | D5: updated TransGrid's correct legal name, corrected TasNetworks (T) to June financial year
C6: 2017-02-01 | D6: inserted Power and Water, added NRs (dms_FeederCat_1 and dms_FeederCat_2)
C7: 2017-03-03 | D7: inserted AEMO as a business | Z7: FOR ELECTRICITY BUSINESSES ONLY
C8: 2018-03-28 | D8: major changes to accommodate STPIS
C9: Template Version | D9: 5 | Z9: Feeder Types | AD9: TasNetworks (D) | AE9: MAIFI flag | AF9: Feeder Names
Z11: CBD | AA11: Urban | AB11: Short rural | AC11: long rural | AD11: EXTRA
B12: dms_TradingName_List | C12: dms_TradingNameFull_List | D12: dms_ABN_List | E12: dms_JurisdictionList | F12: dms_Sector_List | G12: dms_Segment_List | H12: dms_FormControl_List | I12: dms_RPT_List | J12: dms_RPTMonth_List | K12: dms_CRCPlength_List | L12: dms_FRCPlength_List | M12: dms_PRCPlength_List | N12: dms_663_List | O12: dms_DeterminationRef_List | P12: dms_Addr1_List | Q12: dms_Addr2_List | R12: dms_Suburb_List | S12: dms_State_List | T12: dms_PostCode_List | U12: dms_PAddr1_List | V12: dms_PAddr2_List | W12: dms_PSuburb_List | X12: dms_PState_List | Y12: dms_PPostCode_List | Z12: dms_CBD_flag | AA12: dms_Urban_flag | AB12: dms_ShortRural_flag | AC12: dms_LongRural_flag | AD12: dms_FeederType_5_flag | AE12: dms_MAIFI_flag_List | AF12: dms_FeederName_1 | AG12: dms_FeederName_2 | AH12: dms_FeederName_3 | AI12: dms_FeederName_4 | AJ12: dms_FeederName_5 | AK12: dms_Public_Lighting_List | AL12: Name
B13: AusNet (D) | C13: AusNet Electricity Services Pty Ltd | D13: 91064651118 | E13: Vic | F13: Electricity | G13: Distribution | H13: Revenue cap | I13: Financial | J13: June | K13: 5 | L13: 5 | M13: 5 | N13: 2 | O13: 2016-20 Distribution Determination | P13: Level 32 | Q13: 2 Southbank Boulevard | R13: SOUTHBANK | S13: Vic | T13: 3006 | U13: Locked Bag 14051 | W13: MELBOURNE CITY MAIL CENTRE | X13: Vic | Y13: 8001 | Z13: NO | AA13: YES | AB13: YES | AC13: YES | AD13: NO | AE13: YES | AF13: CBD | AG13: Urban | AH13: Short rural | AI13: Long rural | AK13: YES | AL13: =B13 -> AusNet (D)
B14: Australian Distribution Co. (Vic) | C14: Australian Distribution Co. (Victoria) | D14: 11222333444 | E14: Vic | F14: Electricity | G14: Distribution | H14: Revenue cap | I14: Financial | J14: June | K14: 5 | L14: 5 | M14: 5 | N14: 2 | O14: distribution determination | P14: 123 Straight Street | R14: MELBOURNE | S14: Vic | T14: 3000 | U14: PO Box 123 | W14: MELBOURNE | X14: Vic | Y14: 3000 | Z14: NO | AA14: NO | AB14: NO | AC14: NO | AD14: NO | AE14: YES | AF14: CBD | AG14: Urban | AH14: Short rural | AI14: Long rural | AK14: YES | AL14: Australian Distribution Co. (Vic)
B15: CitiPower | C15: CitiPower | D15: 76064651056 | E15: Vic | F15: Electricity | G15: Distribution | H15: Revenue cap | I15: Financial | J15: June | K15: 5 | L15: 5 | M15: 5 | N15: 2 | O15: 2016-20 Distribution Determination | P15: 40 Market Street | R15: MELBOURNE | S15: Vic | T15: 3000 | U15: Locked Bag 14090 | W15: MELBOURNE | X15: Vic | Y15: 8001 | Z15: YES | AA15: YES | AB15: NO | AC15: NO | AD15: NO | AE15: YES | AF15: CBD | AG15: Urban | AH15: Short rural | AI15: Long rural | AK15: YES | AL15: CitiPower
B16: Jemena Electricity | C16: Jemena Electricity | D16: 82064651083 | E16: Vic | F16: Electricity | G16: Distribution | H16: Revenue cap | I16: Financial | J16: June | K16: 5 | L16: 5 | M16: 5 | N16: 2 | O16: 2016-20 Distribution Determination | P16: Level 16 | Q16: 567 Collins Street | R16: MELBOURNE | S16: Vic | T16: 3000 | U16: PO Box 16182 | W16: MELBOURNE | X16: Vic | Y16: 8001 | Z16: NO | AA16: YES | AB16: YES | AC16: NO | AD16: NO | AE16: YES | AF16: CBD | AG16: Urban | AH16: Short rural | AI16: Long rural | AK16: YES | AL16: Jemena Electricity
B17: Powercor Australia | C17: Powercor Australia | D17: 89064651109 | E17: Vic | F17: Electricity | G17: Distribution | H17: Revenue cap | I17: Financial | J17: June | K17: 5 | L17: 5 | M17: 5 | N17: 2 | O17: 2016-20 Distribution Determination | P17: 40 Market Street | R17: MELBOURNE | S17: Vic | T17: 3000 | U17: Locked bag 14090 | W17: MELBOURNE | X17: Vic | Y17: 8001 | Z17: NO | AA17: NO | AB17: YES | AC17: YES | AD17: NO | AE17: YES | AF17: CBD | AG17: Urban | AH17: Short rural | AI17: Long rural | AK17: YES | AL17: Powercor Australia
B18: United Energy | C18: United Energy | D18: 70064651029 | E18: Vic | F18: Electricity | G18: Distribution | H18: Revenue cap | I18: Financial | J18: June | K18: 5 | L18: 5 | M18: 5 | N18: 2 | O18: 2016-20 Distribution Determination | P18: 43-45 Centreway | R18: MOUNT WAVERLEY | S18: Vic | T18: 3149 | U18: PO Box 449 | W18: MOUNT WAVERLEY | X18: Vic | Y18: 3170 | Z18: NO | AA18: NO | AB18: YES | AC18: NO | AD18: NO | AE18: YES | AF18: CBD | AG18: Urban | AH18: Short rural | AI18: Long rural | AK18: YES | AL18: United Energy
B23: The Reg Year Ending (dms_RYE) must be set to the last year of the regulatory period. For forecast data is is usually (FRCP_y5) for actual it is a single year (CRY). For historical actual data the RYE will need to be set manually in the business details sheet by setting the dms_Multiyear_flag to 1 and putting the correct value in 'dms_Specified_FinalYear. See cells C67:C68
B24: dms_Model_List | C24: dms_Model_Name_Format1 | D24: dms_Worksheet_List | E24: dms_Model_Span_List
B25: ARR | C25: Annual Reporting | D25: =IF(dms_MultiYear_ResponseFlag="yes","NEW HISTORICAL ANNUAL REPORTING","ANNUAL REPORTING") -> ANNUAL REPORTING | E25: 1
B26: CA | C26: Category Analysis | D26: =IF(dms_MultiYear_ResponseFlag="yes","NEW HISTORICAL CATEGORY ANALYSIS","CATEGORY ANALYSIS") -> CATEGORY ANALYSIS | E26: 1
B27: CESS | C27: Capitlal Expenditure | D27: CAPITLAL EXPENDITURE SHARING SCHEMING | E27: 5
B28: CPI | C28: CPI | D28: CPI | E28: 5
B29: EB | C29: Economic Benchmarking | D29: =IF(dms_MultiYear_ResponseFlag="yes","NEW HISTORICAL ECONOMIC BENCHMARKING","ECONOMIC BENCHMARKING") -> ECONOMIC BENCHMARKING | E29: 1
B30: Pricing | C30: Pricing Proposal | D30: PRICING PROPOSAL | E30: 5
B31: PTRM | C31: Post Tax Revenue Model | D31: POST TAX REVENUE MODEL | E31: 5
B32: Reset | C32: Regulatory Reporting (Reset) | D32: REGULATORY REPORTING STATEMENT | E32: 5
B33: RFM | C33: Roll Forward Model | D33: ROLL FORWARD MODEL | E33: 5
B34: WACC | C34: Weighted Average Cost of Capital | D34: WEIGHTED AVERAGE COST OF CAPITAL | E34: 1
B38: Financial | C38: Calendar | E38: PREVIOUS | G38: CURRENT | I38: FORTHCOMING
B39: 1987-88 | C39: 1988 | D39: PRCP_y1 | E39: =INDEX(INDIRECT(dms_RPT),dms_PRCP_start_row) -> 2011-12 | F39: CRCP_y1 | G39: =INDEX(INDIRECT(dms_RPT),dms_CRCP_start_row) -> 2016-17 | H39: =FRCP_y1 -> 2021-22 | I39: =INDEX(INDIRECT(dms_RPT),dms_FRCP_start_row) -> 2021-22
B40: 1988-89 | C40: 1989 | D40: PRCP_y2 | E40: =INDEX(INDIRECT(dms_RPT),dms_PRCP_start_row+1) -> 2012-13 | F40: CRCP_y2 | G40: =INDEX(INDIRECT(dms_RPT),dms_CRCP_start_row+1) -> 2017-18 | H40: FRCP_y2 | I40: =INDEX(INDIRECT(dms_RPT),dms_FRCP_start_row+1) -> 2022-23
B41: 1989-90 | C41: 1990 | D41: PRCP_y3 | E41: =INDEX(INDIRECT(dms_RPT),dms_PRCP_start_row+2) -> 2013-14 | F41: CRCP_y3 | G41: =INDEX(INDIRECT(dms_RPT),dms_CRCP_start_row+2) -> 2018-19 | H41: FRCP_y3 | I41: =INDEX(INDIRECT(dms_RPT),dms_FRCP_start_row+2) -> 2023-24
B42: 1990-91 | C42: 1991 | D42: PRCP_y4 | E42: =INDEX(INDIRECT(dms_RPT),dms_PRCP_start_row+3) -> 2014-15 | F42: CRCP_y4 | G42: =INDEX(INDIRECT(dms_RPT),dms_CRCP_start_row+3) -> 2019-20 | H42: FRCP_y4 | I42: =INDEX(INDIRECT(dms_RPT),dms_FRCP_start_row+3) -> 2024-25
B43: 1991-92 | C43: 1992 | D43: PRCP_y5 | E43: =INDEX(INDIRECT(dms_RPT),dms_PRCP_start_row+4) -> 2015-16 | F43: CRCP_y5 | G43: =INDEX(INDIRECT(dms_RPT),dms_CRCP_start_row+4) -> 2020-21 | H43: FRCP_y5 | I43: =INDEX(INDIRECT(dms_RPT),dms_FRCP_start_row+4) -> 2025-26
B44: 1992-93 | C44: 1993 | D44: PRCP_y6 | E44: =INDEX(INDIRECT(dms_RPT),dms_PRCP_start_row+5) -> 2016-17 | F44: CRCP_y6 | G44: =INDEX(INDIRECT(dms_RPT),dms_CRCP_start_row+5) -> 2021-22 | H44: FRCP_y6 | I44: =INDEX(INDIRECT(dms_RPT),dms_FRCP_start_row+5) -> 2026-27
B45: 1993-94 | C45: 1994 | D45: PRCP_y7 | E45: =INDEX(INDIRECT(dms_RPT),dms_PRCP_start_row+6) -> 2017-18 | F45: CRCP_y7 | G45: =INDEX(INDIRECT(dms_RPT),dms_CRCP_start_row+6) -> 2022-23 | H45: FRCP_y7 | I45: =INDEX(INDIRECT(dms_RPT),dms_FRCP_start_row+6) -> 2027-28
B46: 1994-95 | C46: 1995 | D46: PRCP_y8 | E46: =INDEX(INDIRECT(dms_RPT),dms_PRCP_start_row+7) -> 2018-19 | F46: CRCP_y8 | G46: =INDEX(INDIRECT(dms_RPT),dms_CRCP_start_row+7) -> 2023-24 | H46: FRCP_y8 | I46: =INDEX(INDIRECT(dms_RPT),dms_FRCP_start_row+7) -> 2028-29
B47: 1995-96 | C47: 1996 | D47: PRCP_y9 | E47: =INDEX(INDIRECT(dms_RPT),dms_PRCP_start_row+8) -> 2019-20 | F47: CRCP_y9 | G47: =INDEX(INDIRECT(dms_RPT),dms_CRCP_start_row+8) -> 2024-25 | H47: FRCP_y9 | I47: =INDEX(INDIRECT(dms_RPT),dms_FRCP_start_row+8) -> 2029-30
B48: 1996-97 | C48: 1997 | D48: PRCP_y10 | E48: =INDEX(INDIRECT(dms_RPT),dms_PRCP_start_row+9) -> 2020-21 | F48: CRCP_y10 | G48: =INDEX(INDIRECT(dms_RPT),dms_CRCP_start_row+9) -> 2025-26 | H48: FRCP_y10 | I48: =INDEX(INDIRECT(dms_RPT),dms_FRCP_start_row+9) -> 2030-31
B49: 1997-98 | C49: 1998 | D49: PRCP_y11 | E49: =INDEX(INDIRECT(dms_RPT),dms_PRCP_start_row+10) -> 2021-22 | F49: CRCP_y11 | G49: =INDEX(INDIRECT(dms_RPT),dms_CRCP_start_row+10) -> 2026-27 | H49: FRCP_y11 | I49: =INDEX(INDIRECT(dms_RPT),dms_FRCP_start_row+10) -> 2031-32
B50: 1998-99 | C50: 1999 | D50: PRCP_y12 | E50: =INDEX(INDIRECT(dms_RPT),dms_PRCP_start_row+11) -> 2022-23 | F50: CRCP_y12 | G50: =INDEX(INDIRECT(dms_RPT),dms_CRCP_start_row+11) -> 2027-28 | H50: FRCP_y12 | I50: =INDEX(INDIRECT(dms_RPT),dms_FRCP_start_row+11) -> 2032-33
B51: 1999-00 | C51: 2000 | D51: PRCP_y13 | E51: =INDEX(INDIRECT(dms_RPT),dms_PRCP_start_row+12) -> 2023-24 | F51: CRCP_y13 | G51: =INDEX(INDIRECT(dms_RPT),dms_CRCP_start_row+12) -> 2028-29 | H51: FRCP_y13 | I51: =INDEX(INDIRECT(dms_RPT),dms_FRCP_start_row+12) -> 2033-34
B52: 2000-01 | C52: 2001 | D52: PRCP_y14 | E52: =INDEX(INDIRECT(dms_RPT),dms_PRCP_start_row+13) -> 2024-25 | F52: CRCP_y14 | G52: =INDEX(INDIRECT(dms_RPT),dms_CRCP_start_row+13) -> 2029-30 | H52: FRCP_y14 | I52: =INDEX(INDIRECT(dms_RPT),dms_FRCP_start_row+13) -> 2034-35
B53: 2001-02 | C53: 2002 | D53: PRCP_y15 | E53: =INDEX(INDIRECT(dms_RPT),dms_PRCP_start_row+14) -> 2025-26 | F53: CRCP_y15 | G53: =INDEX(INDIRECT(dms_RPT),dms_CRCP_start_row+14) -> 2030-31 | H53: FRCP_y15 | I53: =INDEX(INDIRECT(dms_RPT),dms_FRCP_start_row+14) -> 2035-36
B54: 2002-03 | C54: 2003 | D54: PRCP_y16 | E54: =INDEX(INDIRECT(dms_RPT),dms_PRCP_start_row+15) -> 2026-27 | F54: CRCP_y16 | G54: =INDEX(INDIRECT(dms_RPT),dms_CRCP_start_row+15) -> 2031-32 | H54: FRCP_y16 | I54: =INDEX(INDIRECT(dms_RPT),dms_FRCP_start_row+15) -> 2036-37
B55: 2003-04 | C55: 2004
B56: 2004-05 | C56: 2005
B57: 2005-06 | C57: 2006 | E57: CRY - FRY
B58: 2006-07 | C58: 2007 | D58: dms_y1 | E58: =IFERROR(INDEX(INDIRECT(dms_RPT),dms_CRY_start_row),0) -> 2019-20
B59: 2007-08 | C59: 2008 | D59: dms_y2 | E59: =IFERROR(INDEX(INDIRECT(dms_RPT),dms_CRY_start_row+1),0) -> 2020-21
B60: 2008-09 | C60: 2009 | D60: dms_y3 | E60: =IFERROR(INDEX(INDIRECT(dms_RPT),dms_CRY_start_row+2),0) -> 2021-22
B61: 2009-10 | C61: 2010 | D61: dms_y4 | E61: =IFERROR(INDEX(INDIRECT(dms_RPT),dms_CRY_start_row+3),0) -> 2022-23
B62: 2010-11 | C62: 2011 | D62: dms_y5 | E62: =IFERROR(INDEX(INDIRECT(dms_RPT),dms_CRY_start_row+4),0) -> 2023-24
B63: 2011-12 | C63: 2012 | D63: dms_y6 | E63: =IFERROR(INDEX(INDIRECT(dms_RPT),dms_CRY_start_row+5),0) -> 2024-25
B64: 2012-13 | C64: 2013 | D64: dms_y7 | E64: =IFERROR(INDEX(INDIRECT(dms_RPT),dms_CRY_start_row+6),0) -> 2025-26
B65: 2013-14 | C65: 2014 | D65: dms_y8 | E65: =IFERROR(INDEX(INDIRECT(dms_RPT),dms_CRY_start_row+7),0) -> 2026-27
B66: 2014-15 | C66: 2015 | D66: dms_y9 | E66: =IFERROR(INDEX(INDIRECT(dms_RPT),dms_CRY_start_row+8),0) -> 2027-28
B67: 2015-16 | C67: 2016 | D67: dms_y10 | E67: =IFERROR(INDEX(INDIRECT(dms_RPT),dms_CRY_start_row+9),0) -> 2028-29
B68: 2016-17 | C68: 2017 | D68: dms_y11 | E68: =IFERROR(INDEX(INDIRECT(dms_RPT),dms_CRY_start_row+10),0) -> 2029-30
B69: 2017-18 | C69: 2018 | D69: dms_y12 | E69: =IFERROR(INDEX(INDIRECT(dms_RPT),dms_CRY_start_row+11),0) -> 2030-31
B70: 2018-19 | C70: 2019 | D70: dms_y13 | E70: =IFERROR(INDEX(INDIRECT(dms_RPT),dms_CRY_start_row+12),0) -> 2031-32
B71: 2019-20 | C71: 2020 | D71: dms_y14 | E71: =IFERROR(INDEX(INDIRECT(dms_RPT),dms_CRY_start_row+13),0) -> 2032-33
B72: 2020-21 | C72: 2021 | D72: dms_y15 | E72: =IFERROR(INDEX(INDIRECT(dms_RPT),dms_CRY_start_row+14),0) -> 2033-34
B73: 2021-22 | C73: 2022 | D73: dms_y16 | E73: =IFERROR(INDEX(INDIRECT(dms_RPT),dms_CRY_start_row+15),0) -> 2034-35
B74: 2022-23 | C74: 2023
B75: 2023-24 | C75: 2024
B76: 2024-25 | C76: 2025
B77: 2025-26 | C77: 2026
B78: 2026-27 | C78: 2027
B79: 2027-28 | C79: 2028
B80: 2028-29 | C80: 2029
B81: 2029-30 | C81: 2030
B82: 2030-31 | C82: 2031
B83: 2031-32 | C83: 2032
B84: 2032-33 | C84: 2033
B85: 2033-34 | C85: 2034
B86: 2034-35 | C86: 2035
B87: 2035-36 | C87: 2036
B88: 2036-37 | C88: 2037

Sheet AER ETL (hidden)
B1: AER ETL INFORMATION
B3: USES NAMED RANGES FLAG | C3: yes | D3: dms_Defined_Names_Used
B5: IF THIS IS AN ABC RIN - make sure the the named range CRY is applied and the named range dms_dollar_nom_UOM is applied
B6: IF THIS IS A RESET RIN - make sure the named ranges CRY and dms_dollar_nom_UOM are NOT present in the workbook
B7: FOR ABC RINS THAT SPAN MULTIPLE YEARS - make sure MultiYear Flag is set and final year entered as required
B9: Full trading name | C9: =INDEX(dms_TradingNameFull_List,MATCH(dms_TradingName,dms_TradingName_List)) -> Jemena Electricity | E9: dms_TradingNameFull
B10: Trading name | C10: =dms_TradingName -> Jemena Electricity
A11: Selected here | B11: Model / RIN | C11: Reset | D11: dms_Model
A12: Read from Business & other details | B12: Source | C12: Regulatory proposal | D12: dms_Source
B13: Data quality | C13: =dms_Selected_Quality -> Consolidated | D13: dms_DQ_1
B14: Data status | C14: =dms_Selected_Status -> Public | D14: dms_DQ_2
B15: Amendment reason | C15: =dms_Amendment_Text -> 0 | F15: dms_AmendmentReason
B16: Submission date | C16: =dms_Typed_Submission_Date -> 2020-02-24 | D16: dms_SubmissionDate
A18: Redundant | B18: EBSS - First application of scheme in forthcoming period? | C18: No
A19: Pre-populated from lookup table | B19: Data ingestion data quality | C19: =dms_Selected_Quality -> Consolidated | D19: dms_DataQuality | E19: =IF(dms_DQ_2="Confidential","Consolidated","Public")
B20: Sector | C20: =INDEX(dms_Sector_List,MATCH(dms_TradingName,dms_TradingName_List)) -> Electricity | D20: dms_Sector | E20: =INDEX(dms_Sector_List,MATCH(dms_TradingName,dms_TradingName_List))
B21: Segment | C21: =INDEX(dms_Segment_List,MATCH(dms_TradingName,dms_TradingName_List)) -> Distribution | D21: dms_Segment | E21: =INDEX(dms_Segment_List,MATCH(dms_TradingName,dms_TradingName_List))
B22: Regulatory Year Ending | C22: =dms_RYE_result -> 2026 | D22: dms_RYE | E22: =IF(dms_MultiYear_Flag=1,LEFT(dms_Specified_FinalYear,2)&RIGHT(dms_Specified_FinalYear,2),INDEX(dms_RYE_Formula_Result,MATCH(dms_Model,dms_Model_List)))
B23: Reporting Period Type | C23: =INDEX(dms_RPT_List,MATCH(dms_TradingName,dms_TradingName_List)) -> Financial | D23: dms_RPT | E23: =INDEX(dms_RPT_List,MATCH(dms_TradingName,dms_TradingName_List))
B24: EB/CA Unit of Measure for Monetary Values | C24: $0s | D24: dms_dollar_nom_UOM | E24: If the cover sheet is attached to an ABC RIN apply the NAMED RANGE to the cell
B25: Security Classification | C25: Public | D25: dms_Classification | E25: Always Public
B26: Jurisdiction | C26: =INDEX(dms_JurisdictionList,MATCH(dms_TradingName,dms_TradingName_List)) -> Vic | D26: dms_Jurisdiction | E26: =INDEX(dms_JurisdictionList,MATCH(dms_TradingName,dms_TradingName_List))
A27: Relevant for PTRM, RFMs and Reset RINS | B27: $ REAL REFERENCES
B28: Does the named range CRY exist in this file? | C28: =IFERROR(CRY,"NO") -> NO
B29: CRY-1 (last full calendar year before CRY) | C29: =IFERROR(IF(dms_RPT="calendar",CRY-1,LEFT(CRY,4)),"CRY not present") -> CRY not present | D29: dms_Cal_Year_B4_CRY | E29: '=IF(dms_RPT="financial",VALUE(LEFT(dms_SingleYear_FinalYear_Result,4)),VALUE(LEFT(dms_SingleYear_FinalYear_Result,4)-1))
B30: Dollar $ real month | C30: =INDEX(dms_RPTMonth_List,MATCH(dms_TradingName,dms_TradingName_List)) -> June | D30: dms_RPTMonth | E30: =INDEX(dms_RPTMonth_List,MATCH(dms_TradingName,dms_TradingName_List))
B31: Dollar $ real (the last month before the FRCP_y1) | C31: =IF(dms_SingleYearModel="yes",CONCATENATE(dms_RPTMonth)&" "&VALUE((LEFT(CRY,2))&RIGHT(CRY,2)),CONCATENATE(dms_RPTMonth)&" "&dms_DollarReal_year) -> June 2021 | D31: dms_DollarReal | E31: =IF(SUM(dms_SingleYear_Model)>0,CONCATENATE(dms_RPTMonth)&" "&VALUE((LEFT(CRY,2))&RIGHT(CRY,2)),CONCATENATE(dms_RPTMonth)&" "&VALUE((LEFT(dms_RYE,2)&RIGHT(dms_RYE,2))))
B32: Dollar $ real previous year (PRCP_y5) | C32: =IF(dms_SingleYearModel="yes",CONCATENATE(dms_RPTMonth)&" "&VALUE((LEFT(CRY,2))&RIGHT(CRY,2)),CONCATENATE(dms_RPTMonth)&" "&dms_Previous_DollarReal_year) -> June 2016 | D32: dms_DollarReal_Prev | E32: =IF(SUM(dms_SingleYear_Model)>0,CONCATENATE(dms_RPTMonth)&" "&VALUE(((LEFT(CRY,2))&RIGHT(CRY,2))-1),CONCATENATE(dms_RPTMonth)&" "&VALUE(((LEFT(dms_CRCP_FirstYear_Result,2)&RIGHT(dms_CRCP_FirstYear_Result,2))))-1)
B33: PTRM/ RFMs
B34: Form of control | C34: =INDEX(dms_FormControl_List,MATCH(dms_TradingName,dms_TradingName_List)) -> Revenue cap | D34: dms_FormControl | E34: =INDEX(dms_FormControl_List,MATCH(dms_TradingName,dms_TradingName_List))
A35: All potential values for Regulatory Years or RYEs as calculated | B35: This block works out the various RYE's for ALL RIN types and MODELS
B36: dms_start_year | C36: =FRCP_y1 -> 2021-22 | D36: =FRCP_y1 | E36: FRCP_y1 from cover sheet
B37: dms_CRY_start_year | C37: =IFERROR(CRY,CRCP_y4) -> 2019-20 | D37: =IFERROR(CRY,CRCP_y4)
B38: dms_CRY_start_row | C38: =IFERROR(MATCH(dms_CRY_start_year,INDIRECT(dms_RPT),0),0) -> 33 | D38: =IFERROR(MATCH(dms_CRY_start_year,INDIRECT(dms_RPT),0),0)
B39: dms_FRCP_start_row | C39: =MATCH(dms_start_year,INDIRECT(dms_RPT),0) -> 35 | D39: =MATCH(dms_start_year,INDIRECT(dms_RPT),0) | E39: Uses FRCP_y1 as a start reference
B40: dms_CRCP_start_row | C40: =dms_FRCP_start_row-dms_CRCPlength_Num -> 30 | D40: =dms_FRCP_start_row-dms_CRCPlength_Num | E40: Uses the value in dms_CRCPlength_Num
B41: dms_PRCP_start_row | C41: =dms_FRCP_start_row-dms_CRCPlength_Num-dms_PRCPlength_Num -> 25 | D41: =dms_FRCP_start_row-dms_CRCPlength_Num-dms_PRCPlength_Num | E41: Uses the value in dms_CRCPlength_Num and dms_PRCPlength_Num
B42: dms_RYE_start_row | C42: =dms_FRCP_start_row+(dms_FRCPlength_Num-1) -> 39 | D42: =dms_FRCP_start_row+(dms_FRCPlength_Num-1) | E42: Uses the value in dms_FRCPlength_Num-1
B43: FRCP_start_year | C43: =INDEX(INDIRECT(dms_RPT),dms_FRCP_start_row) -> 2021-22 | D43: =INDEX(INDIRECT(dms_RPT),dms_FRCP_start_row) | E43: Converts the FRCP start row to display the year
B44: CRCP_start_year | C44: =INDEX(INDIRECT(dms_RPT),dms_CRCP_start_row) -> 2016-17 | D44: =INDEX(INDIRECT(dms_RPT),dms_CRCP_start_row) | E44: Converts the CRCP start row to display the year
B45: PRCP_start_year | C45: =INDEX(INDIRECT(dms_RPT),dms_PRCP_start_row) -> 2011-12 | D45: =INDEX(INDIRECT(dms_RPT),dms_PRCP_start_row) | E45: Converts the PRCP start row to display the year
B46: FRCP_final_year | C46: =INDEX(INDIRECT(dms_RPT),dms_FRCP_start_row+dms_FRCPlength_Num-1) -> 2025-26 | D46: =INDEX(INDIRECT(dms_RPT),dms_FRCP_start_row+dms_FRCPlength_Num-1) | E46: Finds the FRCP final year
B47: CRCP_final_year | C47: =INDEX(INDIRECT(dms_RPT),dms_CRCP_start_row+dms_CRCPlength_Num-1) -> 2020-21 | D47: =INDEX(INDIRECT(dms_RPT),dms_CRCP_start_row+dms_CRCPlength_Num-1) | E47: Finds the CRCP final year
B48: PRCP_final_year | C48: =INDEX(INDIRECT(dms_RPT),dms_PRCP_start_row+dms_FRCPlength_Num-1) -> 2015-16 | D48: =INDEX(INDIRECT(dms_RPT),dms_PRCP_start_row+dms_FRCPlength_Num-1) | E48: Finds the PRCP final year
B49: dms_Reset_final_year | C49: =INDEX(INDIRECT(dms_RPT),dms_RYE_start_row) -> 2025-26 | D49: =INDEX(INDIRECT(dms_RPT),dms_RYE_start_row) | E49: For Resets and PTRM/RFMs (same as FRCP_final_year)
B50: dms_SpecifiedYear_final_year | C50: =FRY -> 2017-18 | D50: =FRY | E50: FRY from cover sheet
B51: dms_DollarReal_year | C51: =LEFT(CRCP_final_year,2)&RIGHT(CRCP_final_year,2) -> 2021 | D51: =LEFT(CRCP_final_year,2)&RIGHT(CRCP_final_year,2) | E51: Uses the value in CRCP_final_year
B52: dms_Previous_DollarReal_year | C52: =LEFT(PRCP_final_year,2)&RIGHT(PRCP_final_year,2) -> 2016 | D52: =LEFT(PRCP_final_year,2)&RIGHT(PRCP_final_year,2) | E52: Uses the value in PRCP_final_year
B53: dms_CRY_RYE | C53: =IFERROR(LEFT(CRY,2)&RIGHT(CRY,2),0) -> 0 | D53: =IFERROR(LEFT(CRY,2)&RIGHT(CRY,2),0) | E53: For ABC single year RINS
B54: dms_Reset_RYE | C54: =IF(dms_Model_Span>1,IF(dms_Model="RFM",(LEFT(dms_DollarReal_year,2)&RIGHT(dms_DollarReal_year,2)),(LEFT(dms_Reset_final_year,2)&RIGHT(dms_Reset_final_year,2))),0) -> 2026 | D54: =IF(dms_Model_Span>1,IF(dms_Model="RFM",(LEFT(dms_DollarReal_year,2)&RIGHT(dms_DollarReal_year,2)),(LEFT(dms_Reset_final_year,2)&RIGHT(dms_Reset_final_year,2))),0) | E54: If model span > 1 then uses dms_Reset_RYE otherwise it's a multi year ABC and uses dms_Specified_RYE
B55: dms_Specified_RYE | C55: =IF(dms_MultiYear_ResponseFlag="Yes",(LEFT(dms_Specified_FinalYear,2)&RIGHT(dms_Specified_FinalYear,2)),0) -> 0 | D55: =IF(dms_MultiYear_ResponseFlag="Yes",(LEFT(dms_Specified_FinalYear,2)&RIGHT(dms_Specified_FinalYear,2)),0) | E55: If multi year ABC - uses dms_Specified_FinalYear
B56: dms_Model_Span | C56: =INDEX(dms_Model_Span_List,MATCH(dms_Model,dms_Model_List)) -> 5 | D56: =INDEX(dms_Model_Span_List,MATCH(dms_Model,dms_Model_List)) | E56: A result of 5 is used to signify that it is more than 1 year span
B57: dms_RYE_result | C57: =IF(dms_MultiYear_ResponseFlag="yes",dms_Specified_RYE,(IF(dms_Model_Span>1,dms_Reset_RYE,dms_CRY_RYE))) -> 2026 | D57: =IF(dms_MultiYear_ResponseFlag="yes",dms_Specified_RYE,(IF(dms_Model_Span>1,dms_Reset_RYE,dms_CRY_RYE))) | E57: Nested IF - feeds into dms_RYE
B58: dms_Reset_Span | C58: =IF(dms_Reset_RYE>0,CONCATENATE(FRCP_y1," to ",FRCP_final_year),0) -> 2021-22 to 2025-26 | D58: =IF(dms_Reset_RYE>0,CONCATENATE(FRCP_y1," to ",FRCP_final_year),0) | E58: Reset span of years as text
B59: dms_SpecifiedYear_Span | C59: =IF(dms_Specified_RYE>0,CONCATENATE(CRY," to ",dms_Specified_FinalYear),0) -> 0 | D59: =IF(dms_Specified_RYE>0,CONCATENATE(CRY," to ",dms_Specified_FinalYear),0) | E59: Multi year ABC span of years as text
B60: dms_Header_Span | C60: =IF(dms_MultiYear_Flag=1,dms_SpecifiedYear_Span,IF(dms_Model_Span>1,dms_Reset_Span,CRY)) -> 2021-22 to 2025-26 | D60: =IF(dms_MultiYear_Flag=1,dms_SpecifiedYear_Span,IF(dms_Model_Span>1,dms_Reset_Span,CRY)) | E60: NESTED IF - for Sheet Headers
B61: ABC RINS THAT SPAN MULTIPLE YEARS
B62: This is a multi year ABC RIN? | C62: No
C63: =IF(dms_MultiYear_ResponseFlag="No",0,1) -> 0 | D63: dms_MultiYear_Flag | E63: This is set from the answer provided above
C64: =IF(dms_MultiYear_Flag=1,FRY,"not a Multiple year submission") -> not a Multiple year submission | D64: dms_Specified_FinalYear | E64: The result here is returned to dms_CRCP_FinalYear_Result if response to Q in C73 is "yes" and dms_MultiYear_Flag is set to 1
B65: Start year for 5.2 in Multi year ABC RINS | C65: =IFERROR(IF(dms_MultiYear_Flag=1,FRY,CRY),"not an ABC") -> not an ABC | D65: dms_0502_Inst_Year | E65: =IF(dms_MultiYear_Flag=1,FRY,CRY) | G65: For single year RINS this is CRY - multi year RINS need to start a the end of the span of years (ie. FRY)
B66: WHAT IS THE RYE?
B67: Reg Period Lengths
B68: PRCP length in years | C68: =INDEX(dms_PRCPlength_List,MATCH(dms_TradingName,dms_TradingName_List)) -> 5 | D68: dms_PRCPlength_Num | E68: =INDEX(dms_PRCPlength_List,MATCH(dms_TradingName,dms_TradingName_List))
B69: CRCP length in years | C69: =INDEX(dms_CRCPlength_List,MATCH(dms_TradingName,dms_TradingName_List)) -> 5 | D69: dms_CRCPlength_Num | E69: =INDEX(dms_CRCPlength_List,MATCH(dms_TradingName,dms_TradingName_List))
B70: FRCP length in years | C70: =INDEX(dms_FRCPlength_List,MATCH(dms_TradingName,dms_TradingName_List)) -> 5 | D70: dms_FRCPlength_Num | E70: =INDEX(dms_FRCPlength_List,MATCH(dms_TradingName,dms_TradingName_List))
B71: Single year RIN?
B72: Single Year ABC RIN ? | C72: =IF(dms_Model="EB",1,0) -> 0 | D72: dms_EB
C73: =IF(dms_Model="CA",1,0) -> 0 | D73: dms_CA | E73: =dms_SingleYear_Model
C74: =IF(dms_Model="ARR",1,0) -> 0 | D74: dms_ARR
B75: Is this a single Year ABC RIN? | C75: =IF(SUM(dms_SingleYear_Model)=1,"yes","no") -> no | D75: dms_SingleYearModel | E75: =IF(SUM(dms_SingleYear_Model)=1,"yes","no")
B76: Single Year Final Year Result | C76: =IF(AND(dms_SingleYearModel="yes",dms_MultiYear_Flag=0),CRY,0) -> 0 | D76: dms_SingleYear_FinalYear_Result | E76: =IFERROR(IF(SUM(dms_SingleYear_Model)<>0,(INDIRECT(dms_SingleYear_FinalYear_Ref)),"not a single year RIN"),"CRY not present")
B77: Multi year RIN?
B79: Multi Year Reset/Model? | C79: =IF(dms_Model_Span>1,"yes","no") -> yes
B80: Final year result for Reset/Model | C80: =IF(dms_Model_Span>1,dms_Reset_final_year,0) -> 2025-26 | D80: dms_MultiYear_FinalYear_Result | E80: dms_CRCP_FinalYear_Result
B82: Multi Year ABC RIN? | C82: =IF(dms_MultiYear_Flag=1,"yes","no") -> no | D82: dms_MultiYear_ABC_RIN
B83: Final year result for ABC multi year | C83: =IF(dms_MultiYear_Flag=1,C50,0) -> 0
B85: EB RINS
B86: Calendar Year for table 3.6 data | C86: =IFERROR(IF(dms_Segment="Transmission",dms_Cal_Year_B4_CRY,CRY),"CRY not present") -> CRY not present | D86: dms_0306_Year | E86: =IF(dms_Segment="Transmission",dms_Cal_Year_B4_CRY,CRY)
B87: CA RINS
B88: Find how many rows in tables 6.3 sustained interruptions? | E88: dms_060301_MaxRows only returns a valid value when cover sheet is attached to a CA file
C89: =IF(dms_Model<>"CA","not a CA","Is a CA") -> not a CA | E89: =IF(dms_Model<>"CA","not a CA","Is a CA")
B90: dms_060301_Avg_Duration_Sustained_Int_Values present? | C90: =IFERROR(IF(INDEX(dms_060301_Avg_Duration_Sustained_Int_Values,1,1)<>"","yes","no"),"no") -> no | D90: dms_060301_checkvalue | E90: =IFERROR(IF(INDEX(dms_060301_Avg_Duration_Sustained_Int_Values,1,1)<>"","yes","no"),"no")
C91: =IF(AND(dms_Model="CA",(dms_060301_checkvalue="no")),"error - NR not present","no errors") -> no errors | E91: =IF(AND(dms_Model="CA",(dms_060301_checkvalue="no")),"error - NR not present","no errors")
B92: Table 6.3.1 - last row reference | C92: =IFERROR(IF(dms_Model="CA",LOOKUP(2,1/(dms_060301_Avg_Duration_Sustained_Int_Values<>""),(ROW(dms_060301_Avg_Duration_Sustained_Int_Values))),"not a CA"),"6.3 not present") -> not a CA | D92: dms_060301_LastRow | E92: =IFERROR(IF(dms_Model="CA",LOOKUP(2,1/(dms_060301_Avg_Duration_Sustained_Int_Values<>""),(ROW(dms_060301_Avg_Duration_Sustained_Int_Values))),"not a CA"),"6.3 not present")
B93: Table 6.3.1 - max number rows | C93: =IFERROR(IF(dms_Model="CA",(dms_060301_LastRow-15),"not a CA"),"error") -> not a CA | D93: dms_060301_MaxRows | E93: =IFERROR(IF(dms_Model="CA",(dms_060301_LastRow-15),"not a CA"),"error")
B94: Table 6.6.3 - Public lighting repair - no. business days | C94: =INDEX(dms_663_List,MATCH(dms_TradingName,dms_TradingName_List)) -> 2 | D94: dms_663 | E94: =INDEX(dms_663_List,MATCH(dms_TradingName,dms_TradingName_List))
B95: ARR or RESET RINS
B96: How many rows in tables 6.1 or 6.7? (leap year?) | C96: insert dms_LeapYear NR if required | E96: 'dms_LeapYear is used to determine dms_060701_Max_Rows BUT it is only found on worksheet 6.1 or 6.7 and the date value in the cell is used to determine whether it is a leap year
B97: Is dms_LeapYear named range present? | C97: =IFERROR(IF(dms_LeapYear,"yes"),"no") -> no
B98: Table 6.7.1 - includes a leap year? | C98: =IFERROR(IF(MONTH(DATE(YEAR(dms_LeapYear),2,29))=2,"is a leap year","not a leap year"), "dms_LeapYear not present") -> dms_LeapYear not present | D98: dms_LeapYear_Result | E98: =IFERROR(IF(MONTH(DATE(YEAR(dms_LeapYear),2,29))=2,"is a leap year","not a leap year"),"dms_LeapYear not present")
B99: MaxRows if Reset and leap year | C99: =IF(dms_LeapYear_Result="is a leap year",1827,1826) -> 1826 | D99: dms_060701_Reset_MaxRows | E99: =IF(dms_LeapYear_Result="is a leap year",1827,1826) | H99: number of days present in Reset RIN table
B100: MaxRows if ARR and leap year | C100: =IF(dms_LeapYear_Result="is a leap year",366,365) -> 365 | D100: dms_060701_ARR_MaxRows | E100: =IF(dms_LeapYear_Result="is a leap year",366,365) | H100: number of days present in ARR RIN table
B101: Table 6.7.1 - Max Rows (leap year/ non leap year) | C101: =IF(dms_Model="ARR",dms_060701_ARR_MaxRows,IF(dms_Model="Reset",dms_060701_Reset_MaxRows,"not a relevant RIN type")) -> 1826 | D101: dms_060701_MaxRows | E101: =IF(dms_Model="ARR",dms_060701_ARR_MaxRows,IF(dms_Model="Reset",dms_060701_Reset_MaxRows,"not a relevant RIN type"))
B102: How many columns in 6.7? (4 or 5 feeder categories) | C102: =IF(dms_FifthFeeder_flag_NSP="NO","This NSP has only 4 feeder categories","This NSP has 5 feeder categories") -> This NSP has only 4 feeder categories
B103: Table 6.7.1 - Last column (# of feeder categories > 4) | C103: =IF(dms_FifthFeeder_flag_NSP="NO",10,12) -> 10 | D103: dms_060701_MaxCols | E103: =IF(dms_FifthFeeder_flag_NSP="NO",8,10)
B104: Table 6.7.1 - Number of offset rows | C104: =IF(dms_Model="ARR",15,9) -> 9 | D104: dms_060701_OffsetRows | E104: =IF(dms_Model="ARR",15,9)
B105: Start date for telephone answering in 6.1 or 6.7? | E105: Using 060101 as naming standard not 060701 for start dates
B106: Table 6.1.1 and 6.7.1 - Start Date as Text | C106: 2015-01-01 | D106: dms_060101_StartDateTxt | E106: =IF(SUM(dms_SingleYear_Model)>1,(CONCATENATE(IF(LEN(CRY)=4,"1-Jan-","1-Jul-"),LEFT(CRY,4))),(CONCATENATE(IF(LEN(CRCP_y4)=4,"1-Jan-","1-Jul-"),LEFT(CRCP_y4,4))))
B107: Table 6.1.1 and 6.7.1 - Start Date as Date Value | C107: 42005 | D107: dms_060101_StartDateVal | E107: =DATEVALUE(dms_060701_StartDateTxt)
B108: ARRs
B109: How many rows in table 6.8? | C109: insert dms_060801_StartCell NR if required | E109: dms_060801_StartCell is only found on worksheet 6.8 and is used to determine the starting date for the date range
B110: Is dms_060801_StartCell named range present? | C110: yes | E110: =IFERROR(IF((ROW(dms_060801_StartCell)-1)=1,"yes","yes"),"no")
B111: Table 6.8 - Number of offset rows | C111: 12 | D111: dms_0608_OffsetRows | E111: =IFERROR(IF(dms_Model="ARR",(ROW(dms_060801_StartCell)-1),"not an ARR"),"6.8 error")
B112: Table 6.8 - Last row | C112: 0 | D112: dms_0608_LastRow | E112: =IFERROR(IF(dms_060801_StartCell<>"",IF(dms_Model="ARR",(LOOKUP(2,1/(dms_060801_01_Values<>""),(ROW(dms_060801_01_Values)))),"not an ARR"),0),"0")
B113: Table 6.8 - MaxRows | C113: =IFERROR(IF(dms_Model="ARR",(MAX(0,dms_0608_LastRow-dms_0608_OffsetRows)),"not an ARR"),"0") -> not an ARR | D113: dms_060801_MaxRows | E113: =IFERROR(IF(dms_Model="ARR",(MAX(0,dms_0608_LastRow-dms_0608_OffsetRows)),"not an ARR"),"0")
B114: TNSP RESET RINS
B115: Table 7.9.4 only appears in TNSPs Reset RIN
B116: Table 7.9.4 - first year | C116: =LEFT(PRCP_y3,4) -> 2013 | D116: dms_070904_Start_Year | E116: =LEFT(PRCP_y3,4)
B118: MISC
B119: Distribution Determination Reference | C119: =INDEX(dms_DeterminationRef_List,MATCH(dms_TradingName,dms_TradingName_List)) -> 2016-20 Distribution Determination | D119: dms_DeterminationRef
B120: Public lighting NSP? | C120: =INDEX(dms_Public_Lighting_List,MATCH(dms_TradingName,dms_TradingName_List)) -> YES | D120: dms_Public_Lighting | E120: =INDEX(dms_Public_Lighting_List,MATCH(dms_TradingName,dms_TradingName_List))
B121: CBD Feeder for this business | C121: =INDEX(dms_CBD_flag,MATCH(dms_TradingName,dms_TradingName_List)) -> NO | D121: dms_CBD_flag_NSP
B122: Urban Feeder for this business | C122: =INDEX(dms_Urban_flag,MATCH(dms_TradingName,dms_TradingName_List)) -> YES | D122: dms_Urban_flag_NSP
B123: Short rural Feeder for this business | C123: =INDEX(dms_ShortRural_flag,MATCH(dms_TradingName,dms_TradingName_List)) -> YES | D123: dms_ShortRural_flag_NSP
B124: Long rural Feeder for this business | C124: =INDEX(dms_LongRural_flag,MATCH(dms_TradingName,dms_TradingName_List)) -> NO | D124: dms_LongRural_flag_NSP
B125: Fifth Feeder Category (eg. TasNetworks (D)) | C125: =INDEX(dms_FeederType_5_flag,MATCH(dms_TradingName,dms_TradingName_List)) -> NO | D125: dms_FifthFeeder_flag_NSP | E125: =INDEX(dms_FeederType_5_flag,MATCH(dms_TradingName,dms_TradingName_List))
B127: DISCARD FILES
B128: discard this record? | C128: NO | D128: dms_DISCARD | E128: If record is to be discarded from DB set this flag to YES
B130: SUBSET FILES
B131: Is this Submission File a Subset File | C131: NO | D131: dms_Partial
B134: REGULATORY YEARS FOR MULTI RYE SUBMISSIONS
B135: Multiple RYE flag | C135: NO | D135: dms_Multi_RYE_flag
C136: Manually specify RYE | D136: Named ranges to apply
C137: 2013 | D137: dms_RYE_01
C138: 2014 | D138: dms_RYE_02
C139: 2015 | D139: dms_RYE_03
C140: 2016 | D140: dms_RYE_04
C141: 2017 | D141: dms_RYE_05
C142: 2018 | D142: dms_RYE_06
C143: 2019 | D143: dms_RYE_07
C144: 2020 | D144: dms_RYE_08
C145: 2021 | D145: dms_RYE_09

Sheet Instructions
B2: =CONCATENATE(dms_Sector," ",dms_Segment," ", "Network Service Provider") -> Electricity Distribution Network Service Provider
B3: =IF(dms_Model="Reset","Regulatory Proposal RIN Template","Annual Reporting RIN") -> Regulatory Proposal RIN Template
B4: =CONCATENATE("This template is to be used by ",dms_TradingNameFull," to fulfil its reporting obligations to the AER.") -> This template is to be used by Jemena Electricity to fulfil its reporting obligations to the AER.
B5: INSTRUCTIONS
B6: GENERAL | C6: Complete the Business & other details worksheet before entering data or values in any other worksheets. The Business & other details worksheet is linked to other worksheets within the workbook and automatically generates certain column headings and conditional formatting.
B8: CONFIDENTIAL INFORMATION | C8: Please use the macro at the top of each worksheet to identify confidential information in the confidential workbook.
C9: -Do this by selecting the cell or cells that contain confidential information and then run the Mark selection as CONFIDENTIAL macro. This will format the cells a specific colour that is identified by the AER's database which in turn marks that information as confidential. -To reverse this, select the cell or cells and run the Return selection to NON-CONFIDENTIAL macro.
B11: RESPONSES | C11: Please return two (2) files to the AER: 1. A confidential version which must contain a complete set of all responses with confidential information marked using the Mark selection CONFIDENTIAL macro and which has been completed using the locked template file provided by the AER. 2. A public version with confidential information either removed completely or aggregated in some form together with writtten consent to disclose the public version of the response. Use the drop down box on the Business and other details worksheet to identify the file as either confidential ('consolidated') or public.
B13: AMENDMENTS | C13: If an NSP wishes to correct data previously submitted to the AER it should resubmit that data using the original completed submission as the starting point. Please make any necessary changes to the data. Data that is not being amended should be left unchanged. NSPs must identify the reason for the amendments in the Amendment Reason box on the Business and other details worksheet. NSPs may provide further details regarding any amendments in the Amendments worksheet. .
C14: NSP may use Amended Data macro to highlight cells that contain amended data. NB: if data is also CONFIDENTIAL, re-apply the Confidentiality macro after applying the Amended macro
C15: Please resubmit two (2) files - a confidential version and a public version of the amended submission to the AER
B17: UNITS OF MEASURE | C17: All amounts are to be unrounded and reported on a one for one basis: that is 1000 is to be entered as '1000'. Applicable units of measure may be identified in the table column headings or row descriptors.
B19: INPUT / NON-INPUT CELLS
D20: Yellow = Input cell (mandatory)
D21: Darker yellow = input cell (mandatory)
D22: Orange = input cell (if data available)
D23: Grey = Not applicable/No inputs required
D24: PLEASE DO NOT ENTER TEXT into cells that are to contain numeric data.
B27: NAVIGATION | C27: Many tables in the worksheets have been "grouped" to allow for easy navigation. To ungroup or group data use the outline symbols in the left margin (for Row groupings) or above the columns (for column groupings).

Sheet CONTENTS
C1: =IF(dms_MultiYear_ResponseFlag="Yes","REGULATORY REPORTING STATEMENT - HISTORICAL INFORMATION",INDEX(dms_Worksheet_List,MATCH(dms_Model,dms_Model_List))) -> REGULATORY REPORTING STATEMENT
C2: =INDEX(dms_TradingNameFull_List,MATCH(dms_TradingName,dms_TradingName_List)) -> Jemena Electricity
C3: =dms_Header_Span -> 2021-22 to 2025-26
D7: CONTENTS
D9: SUBMISSION | E9: Business & other details
E10: CPI series
D12: EXPENDITURE | E12: 2.1 Expenditure summary
E13: 2.2 Repex
E14: 2.3 Augex (a)
E15: 2.3 Augex (b)
E16: 2.5 Connections
E17: 2.6 Non-network
E18: 2.10 Overheads
E19: 2.11 Labour
E20: 2.14 Forecast price changes
E21: 2.16 Opex Summary
E22: 2.17 Step Changes
D24: ECONOMIC BENCHMARKING | E24: 3.1 Revenue
E25: 3.2 Operating expenditure
E26: 3.3 Assets (RAB)
E27: 3.4 Operational data
E28: 3.5 Physical assets
E29: 3.6 Quality of service
E30: 3.7 Operating Environment
D32: ALTERNATIVE CONTROL | E32: 4.1 Public lighting
E33: 4.2 Metering
E34: 4.3 Fee-based services
E35: 4.4 Quoted services
D37: NETWORK | E37: 5.4 MD & utilisation-Spatial
D39: SERVICE | E39: 6.1 Telephone answering
E40: 6.2 Reliability & Cust serv
D42: OTHER | E42: 7.1 Policies and Procedures
E43: 7.2 Contingent projects
E44: 7.3 Obligations
E45: 7.4 Shared Assets
E46: 7.7 TSS-LRMC
D48: FINANCIAL | E48: 8.2 Capex

Sheet Business & other details
V1: =INDEX(dms_Worksheet_List,MATCH(dms_Model,dms_Model_List)) -> REGULATORY REPORTING STATEMENT
V2: =INDEX(dms_TradingNameFull_List,MATCH(dms_TradingName,dms_TradingName_List)) -> Jemena Electricity
V3: =dms_Header_Span -> 2021-22 to 2025-26
V4: BUSINESS & OTHER DETAILS
V6: INSTRUCTIONS
V7: Complete the following business details regulatory template before entering data or values in any other regulatory template. This regulatory template is linked to other cells within the spreadsheet and automatically generates column headings and conditional formatting to distinguish business specific input and non-input cells.
Q9: SUBMISSION PARTICULARS INPUT SHEET
V12: ENTITY DETAILS
V14: Business Name
V16: Short name | AL16: Jemena Electricity
V17: ACN/ABN | AL17: =INDEX(dms_ABN_List,MATCH(dms_TradingName,dms_TradingName_List)) -> 82064651083
V21: Business Address | BQ21: Postal Address
V23: Address 1 | AL23: =INDEX(dms_Addr1_List,MATCH(dms_TradingName,dms_TradingName_List)) -> Level 16 | BI23: Address 1 | BQ23: =INDEX(dms_PAddr1_List,MATCH(dms_TradingName,dms_TradingName_List)) -> PO Box 16182
V24: Address 2 | AL24: =IF(ISBLANK(INDEX(dms_Addr2_List,MATCH(dms_TradingName,dms_TradingName_List))),"",(INDEX(dms_Addr2_List,MATCH(dms_TradingName,dms_TradingName_List)))) -> 567 Collins Street | BI24: Address 2 | BQ24: =IF(ISBLANK(INDEX(dms_PAddr2_List,MATCH(dms_TradingName,dms_TradingName_List))),"",(INDEX(dms_PAddr2_List,MATCH(dms_TradingName,dms_TradingName_List)))) -> 
V25: Suburb | AL25: =INDEX(dms_Suburb_List,MATCH(dms_TradingName,dms_TradingName_List)) -> MELBOURNE | BI25: Suburb | BQ25: =INDEX(dms_PSuburb_List,MATCH(dms_TradingName,dms_TradingName_List)) -> MELBOURNE
V26: State | AL26: =INDEX(dms_State_List,MATCH(dms_TradingName,dms_TradingName_List)) -> Vic | AV26: Post code | AX26: 3000 | BI26: State | BQ26: =INDEX(dms_PState_List,MATCH(dms_TradingName,dms_TradingName_List)) -> Vic | CA26: Post code | CC26: 3000
BA28: `
V30: Contact Names
V32: Name | AL32: Matthew Serpell | BI32: Name
V33: Phone | AL33: 03 9173 7000 | BI33: Phone
V34: Email | AL34: matthew.serpell@jemena.com.au | BI34: Email
Q39: REGULATORY CONTROL PERIODS
Z42: Forthcoming period | AL42: 2021-22 | AU42: =FRCP_y2 -> 2022-23 | BD42: =FRCP_y3 -> 2023-24 | BM42: =FRCP_y4 -> 2024-25 | BV42: =FRCP_y5 -> 2025-26
AL43: =FRCP_y6 -> 2026-27 | AU43: =FRCP_y7 -> 2027-28 | BD43: =FRCP_y8 -> 2028-29 | BM43: =FRCP_y9 -> 2029-30 | BV43: =FRCP_y10 -> 2030-31
AL44: =FRCP_y11 -> 2031-32 | AU44: =FRCP_y12 -> 2032-33 | BD44: =FRCP_y13 -> 2033-34 | BM44: =FRCP_y14 -> 2034-35 | BV44: =FRCP_y15 -> 2035-36
X46: RESETS | Z46: Current period | AL46: =CRCP_y1 -> 2016-17 | AU46: =CRCP_y2 -> 2017-18 | BD46: =CRCP_y3 -> 2018-19 | BM46: =CRCP_y4 -> 2019-20 | BV46: =CRCP_y5 -> 2020-21
AL47: =CRCP_y6 -> 2021-22 | AU47: =CRCP_y7 -> 2022-23 | BD47: =CRCP_y8 -> 2023-24 | BM47: =CRCP_y9 -> 2024-25 | BV47: =CRCP_y10 -> 2025-26
AL48: =CRCP_y11 -> 2026-27 | AU48: =CRCP_y12 -> 2027-28 | BD48: =CRCP_y13 -> 2028-29 | BM48: =CRCP_y14 -> 2029-30 | BV48: =CRCP_y15 -> 2030-31
Z50: Previous period | AL50: =PRCP_y1 -> 2011-12 | AU50: =PRCP_y2 -> 2012-13 | BD50: =PRCP_y3 -> 2013-14 | BM50: =PRCP_y4 -> 2014-15 | BV50: =PRCP_y5 -> 2015-16
AL51: =PRCP_y6 -> 2016-17 | AU51: =PRCP_y7 -> 2017-18 | BD51: =PRCP_y8 -> 2018-19 | BM51: =PRCP_y9 -> 2019-20 | BV51: =PRCP_y10 -> 2020-21
AL52: =PRCP_y11 -> 2021-22 | AU52: =PRCP_y12 -> 2022-23 | BD52: =PRCP_y13 -> 2023-24 | BM52: =PRCP_y14 -> 2024-25 | BV52: =PRCP_y15 -> 2025-26
Z54: Commencing year | AL54: 2017-18
X55: ANNUAL RINS
Z56: Final year | AL56: 2017-18
Q60: SUBMISSION DETAILS
Z62: RIN type | AL62: =INDIRECT(dms_Model) -> Regulatory Reporting (Reset)
Z64: Source | AL64: Regulatory proposal
X66: THIS FILE | Z66: Data Quality | AL66: Consolidated
Z68: Confidentiality Status | AL68: Public
Z70: Amended RIN Amendment Reason
Z74: Submission Date | AL74: 2020-02-24 | BD74: Please enter date this file submitted to AER

Sheet CPI series
B1: =INDEX(dms_Worksheet_List,MATCH(dms_Model,dms_Model_List)) -> REGULATORY REPORTING STATEMENT
B2: =INDEX(dms_TradingNameFull_List,MATCH(dms_TradingName,dms_TradingName_List)) -> Jemena Electricity
B3: =dms_Header_Span -> 2021-22 to 2025-26
B4: CPI SERIES
B8: NOMINATED CPI SERIES
B10: Name of CPI series | C10: June-June Unlagged CPI | D10: 0 | E10: 0 | F10: 0 | G10: 0 | H10: 0 | I10: 0
C12: =CRCP_y1 -> 2016-17 | D12: =CRCP_y2 -> 2017-18 | E12: =CRCP_y3 -> 2018-19 | F12: =CRCP_y4 -> 2019-20 | G12: =CRCP_y5 -> 2020-21 | H12: =FRCP_y1 -> 2021-22 | I12: =FRCP_y2 -> 2022-23 | J12: =FRCP_y3 -> 2023-24 | K12: =FRCP_y4 -> 2024-25 | L12: =FRCP_y5 -> 2025-26
B13: Series data | C13: 0.01692322293 | D13: 0.01846586947 | E13: 0.0176705923 | F13: 0.0175 | G13: 0.01874923313 | H13: 0.02365 | I13: 0.02365 | J13: 0.02365 | K13: 0.02365 | L13: 0.02365

Sheet 2.1 Expenditure summary
B1: =INDEX(dms_Worksheet_List,MATCH(dms_Model,dms_Model_List)) -> REGULATORY REPORTING STATEMENT
B2: =INDEX(dms_TradingNameFull_List,MATCH(dms_TradingName,dms_TradingName_List)) -> Jemena Electricity
B3: =dms_Header_Span -> 2021-22 to 2025-26
B4: 2.1 EXPENDITURE SUMMARY & RECONCILIATION
B7: 2.1.1 - STANDARD CONTROL SERVICES CAPEX
C8: =CONCATENATE("Forecast ($0's, real ", dms_DollarReal, ")") -> Forecast ($0's, real June 2021)
C9: =CRCP_y4 -> 2019-20 | D9: =CRCP_y5 -> 2020-21 | E9: =FRCP_y1 -> 2021-22 | F9: =FRCP_y2 -> 2022-23 | G9: =FRCP_y3 -> 2023-24 | H9: =FRCP_y4 -> 2024-25 | I9: =FRCP_y5 -> 2025-26
B10: Replacement expenditure | C10: 40553021.67 | D10: 48092800.49 | E10: 45947503.17 | F10: 41029726.41 | G10: 40288874.04 | H10: 41116645.92 | I10: 42554798.17
B11: Connections | C11: 43707273.08 | D11: 43567226.71 | E11: 46264024.3 | F11: 41445853.84 | G11: 43769312.53 | H11: 45233369.26 | I11: 41330810.35
B12: Augmentation Expenditure | C12: 20378161.46 | D12: 17354556.44 | E12: 33444989.82 | F12: 57098299.23 | G12: 27677429.43 | H12: 18165087.23 | I12: 10111060.2
B13: Non-network | C13: 28371212.48 | D13: 33601865.66 | E13: 37271428.62 | F13: 24522463.99 | G13: 24871443.11 | H13: 15181579.77 | I13: 12031971.53
B14: Public lighting | C14: 0 | D14: 0 | E14: 0 | F14: 0 | G14: 0 | H14: 0 | I14: 0
B15: Metering | C15: 0 | D15: 0 | E15: 0 | F15: 0 | G15: 0 | H15: 0 | I15: 0
B16: Capitalised network overheads | C16: 15333744.9 | D16: 20721568.22 | E16: 18652986.1 | F16: 19262711.56 | G16: 18107023.56 | H16: 17808042.37 | I16: 17351802.98
B17: Capitalised corporate overheads | C17: 12532945.57 | D17: 6305538.56 | E17: 0 | F17: 0 | G17: 0 | H17: 0 | I17: 0
B18: capcons (included in the above) | C18: 36933728.93 | D18: 36842229.59 | E18: 32924473.06 | F18: 29628252.7 | G18: 30558838.86 | H18: 30500388.27 | I18: 29373117.91
B19: Total | C19: =SUM(C10:C17) -> 160876359.2 | D19: 169643556.1 | E19: 181580932 | F19: 183359055 | G19: 154714082.7 | H19: 137504724.6 | I19: 123380443.2
B22: 2.1.2 - STANDARD CONTROL SERVICES OPEX BY CATEGORY
C23: =CONCATENATE("Forecast ($0's, real ", dms_DollarReal, ")") -> Forecast ($0's, real June 2021)
C24: =CRCP_y4 -> 2019-20 | D24: =CRCP_y5 -> 2020-21
B25: Vegetation management | C25: 4147432.056 | D25: 4392803.345
B26: Maintenance | C26: 7201507.251 | D26: 7627564.409
B27: Emergency response | C27: 4728776.858 | D27: 5008541.796
B28: Non-network | C28: 14678968.59 | D28: 15547408.97
B29: Metering | C29: 0 | D29: 0
B30: Network overheads | C30: 29966738.01 | D30: 31739636.76
B31: Corporate overheads | C31: 29239039.15 | D31: 37176892.23
B32: Total | C32: =SUM(C25:C31) -> 89962461.91 | D32: =SUM(D25:D31) -> 101492847.5
B35: 2.1.3 - ALTERNATIVE CONTROL SERVICES CAPEX
C36: =CONCATENATE("Forecast ($0's, real ", dms_DollarReal, ")") -> Forecast ($0's, real June 2021)
C37: =CRCP_y4 -> 2019-20 | D37: =CRCP_y5 -> 2020-21 | E37: =FRCP_y1 -> 2021-22 | F37: =FRCP_y2 -> 2022-23 | G37: =FRCP_y3 -> 2023-24 | H37: =FRCP_y4 -> 2024-25 | I37: =FRCP_y5 -> 2025-26
B38: Connections | C38: 5219923.339 | D38: 5526260.276 | E38: 5529880.829 | F38: 5379459.399 | G38: 5480578.65 | H38: 5583939.086 | I38: 5485673.873
B39: Metering | C39: 3221141.238 | D39: 3761549.368 | E39: 4767285.525 | F39: 3360400.073 | G39: 3010416.926 | H39: 5081308.744 | I39: 5119695.567
B40: Public lighting | C40: 1303040.504 | D40: 2240930.941 | E40: 4508814.133 | F40: 4542562.411 | G40: 4624388.622 | H40: 4710496.681 | I40: 4233499.423
B41: Fee and quoted | C41: 0 | D41: 0 | E41: 0 | F41: 0 | G41: 0 | H41: 0 | I41: 0
B42: Network overheads | C42: 1203126.909 | D42: 1447710.954 | E42: 1447946.483 | F42: 1445062.783 | G42: 1456465.019 | H42: 1468202.757 | I42: 1443821.584
B43: Corporate overheads | C43: 872880.4304 | D43: 458754.4118 | E43: 0 | F43: 0 | G43: 0 | H43: 0 | I43: 0
B44: Total | C44: =SUM(C38:C43) -> 11820112.42 | D44: 13435205.95 | E44: 16253926.97 | F44: 14727484.67 | G44: 14571849.22 | H44: 16843947.27 | I44: 16282690.45
B47: 2.1.4 - ALTERNATIVE CONTROL SERVICES OPEX
C48: =CONCATENATE("Forecast ($0's, real ", dms_DollarReal, ")") -> Forecast ($0's, real June 2021)
C49: =CRCP_y4 -> 2019-20 | D49: =CRCP_y5 -> 2020-21 | E49: =FRCP_y1 -> 2021-22 | F49: =FRCP_y2 -> 2022-23 | G49: =FRCP_y3 -> 2023-24 | H49: =FRCP_y4 -> 2024-25 | I49: =FRCP_y5 -> 2025-26
B50: Connections | C50: 0 | D50: 0 | E50: 0 | F50: 0 | G50: 0 | H50: 0 | I50: 0
B51: Metering | C51: 7080010.081 | D51: 7847742.345 | E51: 7479350.443 | F51: 7634620.868 | G51: 7794853.632 | H51: 7959158.995 | I51: 8120533.555
B52: Public lighting | C52: 2078200.199 | D52: 2130664.082 | E52: 3524013.774 | F52: 3519851.009 | G52: 3528003.643 | H52: 3541852.403 | I52: 3565753.546
B53: Fee and quoted | C53: 2566128.48 | D53: 2934696.13 | E53: 2641749.112 | F53: 2691016.062 | G53: 2742998.006 | H53: 2796697.441 | I53: 2852946.016
B54: Network overheads | C54: 1432906.991 | D54: 1587845.203 | E54: 1404035.414 | F54: 1429020.43 | G54: 1455437.126 | H54: 1482770.731 | I54: 1510732.745
B55: Corporate overheads | C55: 5924581.112 | D55: 6506148.076 | E55: 5742538.368 | F55: 5840316.312 | G55: 5942736.426 | H55: 6048538.773 | I55: 6156887.649
B56: Total | C56: =SUM(C50:C55) -> 19081826.86 | D56: 21007095.84 | E56: 20791687.11 | F56: 21114824.68 | G56: 21464028.83 | H56: 21829018.34 | I56: 22206853.51
B59: 2.1.5 - DUAL FUNCTION ASSETS CAPEX
C60: =CONCATENATE("Forecast ($0's, real ", dms_DollarReal, ")") -> Forecast ($0's, real June 2021)
C61: =CRCP_y4 -> 2019-20 | D61: =CRCP_y5 -> 2020-21 | E61: =FRCP_y1 -> 2021-22 | F61: =FRCP_y2 -> 2022-23 | G61: =FRCP_y3 -> 2023-24 | H61: =FRCP_y4 -> 2024-25 | I61: =FRCP_y5 -> 2025-26
B62: Replacement expenditure | C62: N/A | D62: N/A | E62: N/A | F62: N/A | G62: N/A | H62: N/A | I62: N/A
B63: Connections | C63: N/A | D63: N/A | E63: N/A | F63: N/A | G63: N/A | H63: N/A | I63: N/A
B64: Augmentation expenditure | C64: N/A | D64: N/A | E64: N/A | F64: N/A | G64: N/A | H64: N/A | I64: N/A
B65: Non-network | C65: N/A | D65: N/A | E65: N/A | F65: N/A | G65: N/A | H65: N/A | I65: N/A
B66: Capitalised network overheads | C66: N/A | D66: N/A | E66: N/A | F66: N/A | G66: N/A | H66: N/A | I66: N/A
B67: Capitalised corporate overheads | C67: N/A | D67: N/A | E67: N/A | F67: N/A | G67: N/A | H67: N/A | I67: N/A
B68: capcons (included in the above) | C68: N/A | D68: N/A | E68: N/A | F68: N/A | G68: N/A | H68: N/A | I68: N/A
B69: Total | C69: =SUM(C62:C67) -> 0 | D69: 0 | E69: 0 | F69: 0 | G69: 0 | H69: 0 | I69: 0
B72: 2.1.6 - DUAL FUNCTION ASSETS OPEX BY CATEGORY
C73: =CONCATENATE("Forecast ($0's, real ", dms_DollarReal, ")") -> Forecast ($0's, real June 2021)
C74: =CRCP_y4 -> 2019-20 | D74: =CRCP_y5 -> 2020-21
B75: Vegetation management | C75: N/A | D75: N/A
B76: Maintenance | C76: N/A | D76: N/A
B77: Emergency response | C77: N/A | D77: N/A
B78: Non-network | C78: N/A | D78: N/A
B79: Metering | C79: N/A | D79: N/A
B80: Network overheads | C80: N/A | D80: N/A
B81: Corporate overheads | C81: N/A | D81: N/A
B96: Total | C96: =SUM(C75:C95) -> 0 | D96: =SUM(D75:D95) -> 0
B99: 2.1.7 - STANDARD CONTROL SERVICES CAPCONS
C100: =CONCATENATE("Forecast ($0's, real ", dms_DollarReal, ")") -> Forecast ($0's, real June 2021)
C101: =CRCP_y4 -> 2019-20 | D101: =CRCP_y5 -> 2020-21 | E101: =FRCP_y1 -> 2021-22 | F101: =FRCP_y2 -> 2022-23 | G101: =FRCP_y3 -> 2023-24 | H101: =FRCP_y4 -> 2024-25 | I101: =FRCP_y5 -> 2025-26
B102: Replacement expenditure | C102: 12128169.75 | D102: 11004863.54 | E102: 6749344.014 | F102: 6751385.933 | G102: 7079727.559 | H102: 7369333.048 | I102: 7658938.537
B103: Connections | C103: 24805559.18 | D103: 25837366.05 | E103: 26175129.05 | F103: 22876866.76 | G103: 23479111.3 | H103: 23131055.22 | I103: 21714179.37
B104: Augmentation Expenditure | C104: 0 | D104: 0 | E104: 0 | F104: 0 | G104: 0 | H104: 0 | I104: 0
B105: Non-network | C105: 0 | D105: 0 | E105: 0 | F105: 0 | G105: 0 | H105: 0 | I105: 0
B106: Capitalised network overheads | C106: 0 | D106: 0 | E106: 0 | F106: 0 | G106: 0 | H106: 0 | I106: 0
B107: Capitalised corporate overheads | C107: 0 | D107: 0 | E107: 0 | F107: 0 | G107: 0 | H107: 0 | I107: 0
B108: Total | C108: =SUM(C102:C107) -> 36933728.93 | D108: 36842229.59 | E108: 32924473.06 | F108: 29628252.7 | G108: 30558838.86 | H108: 30500388.27 | I108: 29373117.91
B111: 2.1.8 - STANDARD CONTROL SERVICES CAPITALISED OVERHEADS
C112: =CONCATENATE("Forecast ($0's, real ", dms_DollarReal, ")") -> Forecast ($0's, real June 2021)
C113: =CRCP_y4 -> 2019-20 | D113: =CRCP_y5 -> 2020-21 | E113: =FRCP_y1 -> 2021-22 | F113: =FRCP_y2 -> 2022-23 | G113: =FRCP_y3 -> 2023-24 | H113: =FRCP_y4 -> 2024-25 | I113: =FRCP_y5 -> 2025-26
B114: Replacement expenditure | C114: 9908181.639 | D114: 12740213.85 | E114: 6806662.58 | F114: 5720890.747 | G114: 6496524.966 | H114: 6978915.943 | I114: 7828036.394
B115: Connections | C115: 12452324.99 | D115: 9911007.696 | E115: 6925962.667 | F115: 5832555.181 | G115: 7112760.184 | H115: 7726337.54 | I115: 7651840.539
B116: Augmentation Expenditure | C116: 5506183.841 | D116: 4375885.233 | E116: 4920360.856 | F116: 7709265.635 | G116: 4497738.408 | H116: 3102788.886 | I116: 1871926.045
B117: Non-network | C117: 0 | D117: 0 | E117: 0 | F117: 0 | G117: 0 | H117: 0 | I117: 0
B118: capcons (included in the above) | C118: 0 | D118: 0 | E118: 0 | F118: 0 | G118: 0 | H118: 0 | I118: 0
B119: Total | C119: =SUM(C114:C117) -> 27866690.47 | D119: 27027106.78 | E119: 18652986.1 | F119: 19262711.56 | G119: 18107023.56 | H119: 17808042.37 | I119: 17351802.98

Sheet 2.2 Repex
B1: =INDEX(dms_Worksheet_List,MATCH(dms_Model,dms_Model_List)) -> REGULATORY REPORTING STATEMENT
B2: =INDEX(dms_TradingNameFull_List,MATCH(dms_TradingName,dms_TradingName_List)) -> Jemena Electricity
B3: =dms_Header_Span -> 2021-22 to 2025-26
B4: 2.2 REPEX
B6: There are THREE sub-tables on this worksheet. The table has been sub-grouped for easy navigation. See the Instructions sheet on how to group or ungroup tables.
B8: 2.2.1 - REPLACEMENT EXPENDITURE, VOLUMES AND ASSET FAILURES BY ASSET CATEGORY
B9: EXPENDITURE
E10: =CONCATENATE("EXPENDITURE ($0's, real ", dms_DollarReal,")") -> EXPENDITURE ($0's, real June 2021)
B11: ASSET GROUP | C11: ASSET CATEGORY | D11: UNITS | E11: =CRCP_y4 -> 2019-20 | F11: =CRCP_y5 -> 2020-21 | G11: =FRCP_y1 -> 2021-22 | H11: =FRCP_y2 -> 2022-23 | I11: =FRCP_y3 -> 2023-24 | J11: =FRCP_y4 -> 2024-25 | K11: =FRCP_y5 -> 2025-26
B12: POLES BY: HIGHEST OPERATING VOLTAGE ; MATERIAL TYPE | C12: Staking of a wooden pole | E12: 1064030.771 | F12: 856476.2642 | G12: 1134491.831 | H12: 1229185.127 | I12: 1241173.326 | J12: 1253222.794 | K12: 1152666.383
C13: ˂ = 1 kV; Wood | E13: 1188571.02 | F13: 1019402.391 | G13: 1367998.956 | H13: 1375235.69 | I13: 1380193.643 | J13: 1385217.72 | K13: 1395639.988
C14: > 1 kV & < = 11 kV; Wood | E14: 177674.5917 | F14: 145169.8566 | G14: 154105.5998 | H14: 154983.696 | I14: 156478.7687 | J14: 157991.6439 | K14: 158362.7533
C15: ˃ 11 kV & < = 22 kV; Wood | E15: 710698.3669 | F15: 555649.6074 | G15: 591392.5802 | H15: 594904.965 | I15: 600885.2556 | J15: 606936.7567 | K15: 608421.1943
C16: > 22 kV & < = 66 kV; Wood | E16: 166906.2049 | F16: 196590.5196 | G16: 240830.3082 | H16: 241735.953 | I16: 242046.9871 | J16: 242363.5155 | K16: 243970.3138
C17: > 66 kV & < = 132 kV; Wood | E17: 0 | F17: 0 | G17: 0 | H17: 0 | I17: 0 | J17: 0 | K17: 0
C18: > 132 kV; Wood | E18: 0 | F18: 0 | G18: 0 | H18: 0 | I18: 0 | J18: 0 | K18: 0
C19: ˂ = 1 kV; Concrete | E19: 19437.21616 | F19: 19437.21616 | G19: 19437.21616 | H19: 19437.21616 | I19: 19437.21616 | J19: 19437.21616 | K19: 19437.21616
C20: > 1 kV & < = 11 kV; Concrete | E20: 14934.1401 | F20: 14934.1401 | G20: 14934.1401 | H20: 14934.1401 | I20: 14934.1401 | J20: 14934.1401 | K20: 14934.1401
C21: ˃ 11 kV & < = 22 kV; Concrete | E21: 59736.5604 | F21: 84766.37951 | G21: 84766.37951 | H21: 84766.37951 | I21: 84766.37951 | J21: 84766.37951 | K21: 84766.37951
C22: > 22 kV & < = 66 kV; Concrete | E22: 21191.59488 | F22: 21191.59488 | G22: 21191.59488 | H22: 21191.59488 | I22: 21191.59488 | J22: 21191.59488 | K22: 21191.59488
C23: > 66 kV & < = 132 kV; Concrete | E23: 0 | F23: 0 | G23: 0 | H23: 0 | I23: 0 | J23: 0 | K23: 0
C24: > 132 kV; Concrete | E24: 0 | F24: 0 | G24: 0 | H24: 0 | I24: 0 | J24: 0 | K24: 0
C25: ˂ = 1 kV; Steel | E25: 0 | F25: 0 | G25: 0 | H25: 0 | I25: 0 | J25: 0 | K25: 0
C26: > 1 kV & < = 11 kV; Steel | E26: 0 | F26: 0 | G26: 0 | H26: 0 | I26: 0 | J26: 0 | K26: 0
C27: ˃ 11 kV & < = 22 kV; Steel | E27: 0 | F27: 0 | G27: 0 | H27: 0 | I27: 0 | J27: 0 | K27: 0
C28: > 22 kV & < = 66 kV; Steel | E28: 0 | F28: 0 | G28: 0 | H28: 0 | I28: 0 | J28: 0 | K28: 0
C29: > 66 kV & < = 132 kV; Steel | E29: 0 | F29: 0 | G29: 0 | H29: 0 | I29: 0 | J29: 0 | K29: 0
C30: > 132 kV; Steel | E30: 0 | F30: 0 | G30: 0 | H30: 0 | I30: 0 | J30: 0 | K30: 0
C31: Other | E31: 0 | F31: 0 | G31: 0 | H31: 0 | I31: 0 | J31: 0 | K31: 0
B32: POLE TOP STRUCTURES BY: HIGHEST OPERATING VOLTAGE | C32: ˂ = 1 kV | E32: 1019531.659 | F32: 1458790.814 | G32: 1789144.478 | H32: 1802466.242 | I32: 1816497.958 | J32: 1830738.449 | K32: 1845149.357
C33: > 1 kV & < = 11 kV | E33: 217771.8865 | F33: 340389.4636 | G33: 303047.551 | H33: 305028.4585 | I33: 307601.3259 | J33: 310209.9347 | K33: 311858.5711
C34: ˃ 11 kV & < = 22 kV | E34: 1905021.117 | F34: 2957688.76 | G34: 2669409.164 | H34: 2686858.52 | I34: 2709910.149 | J34: 2733282.499 | K34: 2747417.705
C35: > 22 kV & < = 66 kV | E35: 243514.2099 | F35: 377273.8654 | G35: 340862.5855 | H35: 341913.3127 | I35: 353189.7645 | J35: 364609.3463 | K35: 359036.6
C36: > 66 kV & < = 132 kV | E36: 0 | F36: 0 | G36: 0 | H36: 0 | I36: 0 | J36: 0 | K36: 0
C37: > 132 kV | E37: 0 | F37: 0 | G37: 0 | H37: 0 | I37: 0 | J37: 0 | K37: 0
C38: Other | E38: 0 | F38: 0 | G38: 0 | H38: 0 | I38: 0 | J38: 0 | K38: 0
B39: STAKING WOODEN POLES BY: HIGHEST OPERATING VOLTAGE | C39: ˂ = 1 Kv | D39: for year wooden pole staked | E39: 563618.7961 | F39: 455492.6517 | G39: 659204.6675 | H39: 714203.2223 | I39: 719892.4961 | J39: 725592.2381 | K39: 668513.6061
C40: > 1 kV & < = 11 kV | D40: for year wooden pole staked | E40: 84253.05498 | F40: 64865.26181 | G40: 74259.65512 | H40: 80487.9163 | I40: 81617.45416 | J40: 82757.75633 | K40: 75855.99167
C41: ˃ 11 kV & < = 22 kV | D41: for year wooden pole staked | E41: 337012.2199 | F41: 248277.143 | G41: 284977.3733 | H41: 308952.8915 | I41: 313414.5624 | J41: 317920.1315 | K41: 291434.6465
C42: > 22 kV & < = 66 kV | D42: for year wooden pole staked | E42: 79146.70026 | F42: 87841.20764 | G42: 116050.1348 | H42: 125541.0966 | I42: 126248.8134 | J42: 126952.6682 | K42: 116862.139
C43: > 66 kV & < = 132 kV | D43: for year wooden pole staked | E43: 0 | F43: 0 | G43: 0 | H43: 0 | I43: 0 | J43: 0 | K43: 0
C44: > 132 kV | D44: for year wooden pole staked | E44: 0 | F44: 0 | G44: 0 | H44: 0 | I44: 0 | J44: 0 | K44: 0
B45: OVERHEAD CONDUCTORS BY: Highest operating voltage; Number of phases (at HV) | C45: ˂ = 1 kV | D45: per km | E45: 336829.7636 | F45: 835729.1836 | G45: 1396745.164 | H45: 1405478.203 | I45: 1416000.934 | J45: 1426666.396 | K45: 1434743.755
C46: > 1 kV & < = 11 kV | D46: per km | E46: 0 | F46: 0 | G46: 0 | H46: 0 | I46: 0 | J46: 0 | K46: 0
C47: ˃ 11 kV & < = 22 kV ; SWER | D47: per km | E47: 0 | F47: 0 | G47: 0 | H47: 0 | I47: 0 | J47: 0 | K47: 0
C48: ˃ 11 kV & < = 22 kV ; Single-Phase | D48: per km | E48: 0 | F48: 0 | G48: 0 | H48: 0 | I48: 0 | J48: 0 | K48: 0
C49: ˃ 11 kV & < = 22 kV ; Multiple-Phase | D49: per km | E49: 445156.736 | F49: 764314.2258 | G49: 833678.3703 | H49: 1024659.651 | I49: 1255181.349 | J49: 1079292.925 | K49: 861087.5813
C50: > 22 kV & < = 66 kV | D50: per km | E50: 0 | F50: 0 | G50: 0 | H50: 0 | I50: 0 | J50: 0 | K50: 0
C51: > 66 kV & < = 132 kV | D51: per km | E51: 0 | F51: 0 | G51: 0 | H51: 0 | I51: 0 | J51: 0 | K51: 0
C52: > 132 kV | D52: per km | E52: 0 | F52: 0 | G52: 0 | H52: 0 | I52: 0 | J52: 0 | K52: 0
C53: Other | D53: per km | E53: 0 | F53: 0 | G53: 0 | H53: 0 | I53: 0 | J53: 0 | K53: 0
B54: UNDERGROUND CABLES BY: Highest operating voltage | C54: ˂ = 1 kV | D54: per km | E54: 509203.0382 | F54: 490681.6962 | G54: 488395.4473 | H54: 490517.6763 | I54: 492572.7927 | J54: 494651.765 | K54: 497099.1209
C55: > 1 kV & < = 11 kV | D55: per km | E55: 757256.8963 | F55: 391045.8197 | G55: 472092.8666 | H55: 473854.8672 | I55: 476699.2269 | J55: 479571.691 | K55: 480460.799
C56: > 11 kV & < = 22 kV | D56: per km | E56: 1023779.424 | F56: 1107740.238 | G56: 910744.6593 | H56: 914544.52 | I56: 920715.4321 | J56: 926946.7073 | K56: 928836.7957
C57: > 22 kV & < = 33 kV | D57: per km | E57: 0 | F57: 0 | G57: 0 | H57: 0 | I57: 0 | J57: 0 | K57: 0
C58: > 33 kV & < = 66 kV | D58: per km | E58: 363525.5807 | F58: 0 | G58: 0 | H58: 0 | I58: 0 | J58: 0 | K58: 0
C59: > 66 kV & < = 132 kV | D59: per km | E59: 0 | F59: 0 | G59: 0 | H59: 0 | I59: 0 | J59: 0 | K59: 0
C60: > 132 kV | D60: per km | E60: 0 | F60: 0 | G60: 0 | H60: 0 | I60: 0 | J60: 0 | K60: 0
C61: Other | D61: per km | E61: 0 | F61: 0 | G61: 0 | H61: 0 | I61: 0 | J61: 0 | K61: 0
B62: SERVICE LINES BY: Connection voltage; Customer type; Connection complexity | C62: ˂ = 11 kV ; Residential ; Simple Type | D62: per number of spans | E62: 3150687.963 | F62: 3138041.775 | G62: 3706393.465 | H62: 3717121.829 | I62: 3731763.984 | J62: 3746574.798 | K62: 3754707.884
C63: ˂ = 11 kV ; Commercial & Industrial ; Simple Type | D63: per number of spans | E63: 350076.4404 | F63: 348671.3083 | G63: 411821.4961 | H63: 413013.5365 | I63: 414640.4427 | J63: 416286.0886 | K63: 417189.7649
C64: ˂ = 11 kV ; Residential ; Complex Type | D64: per number of spans | E64: 0 | F64: 0 | G64: 0 | H64: 0 | I64: 0 | J64: 0 | K64: 0
C65: ˂ = 11 kV ; Commercial & Industrial ; Complex Type | D65: per number of spans | E65: 0 | F65: 0 | G65: 0 | H65: 0 | I65: 0 | J65: 0 | K65: 0
C66: ˂ = 11 kV ; Subdivision ; Complex Type | D66: per number of spans | E66: 0 | F66: 0 | G66: 0 | H66: 0 | I66: 0 | J66: 0 | K66: 0
C67: > 11 kV & < = 22 kV ; Commercial & Industrial | D67: per number of spans | E67: 0 | F67: 0 | G67: 0 | H67: 0 | I67: 0 | J67: 0 | K67: 0
C68: > 11 kV & < = 22 kV ; Subdivision | D68: per number of spans | E68: 0 | F68: 0 | G68: 0 | H68: 0 | I68: 0 | J68: 0 | K68: 0
C69: > 22 kV & < = 33 kV ; Commercial & Industrial | D69: per number of spans | E69: 0 | F69: 0 | G69: 0 | H69: 0 | I69: 0 | J69: 0 | K69: 0
C70: > 22 kV & < = 33 kV ; Subdivision | D70: per number of spans | E70: 0 | F70: 0 | G70: 0 | H70: 0 | I70: 0 | J70: 0 | K70: 0
C71: > 33 kV & < = 66 kV ; Commercial & Industrial | D71: per number of spans | E71: 0 | F71: 0 | G71: 0 | H71: 0 | I71: 0 | J71: 0 | K71: 0
C72: > 33 kV & < = 66 kV ; Subdivision | D72: per number of spans | E72: 0 | F72: 0 | G72: 0 | H72: 0 | I72: 0 | J72: 0 | K72: 0
C73: > 66 kV & < = 132 kV ; Commercial & Industrial | D73: per number of spans | E73: 0 | F73: 0 | G73: 0 | H73: 0 | I73: 0 | J73: 0 | K73: 0
C74: > 66 kV & < = 132 kV ; Subdivision | D74: per number of spans | E74: 0 | F74: 0 | G74: 0 | H74: 0 | I74: 0 | J74: 0 | K74: 0
C75: > 132 kV ; Commercial & Industrial | D75: per number of spans | E75: 0 | F75: 0 | G75: 0 | H75: 0 | I75: 0 | J75: 0 | K75: 0
C76: > 132 kV ; Subdivision | D76: per number of spans | E76: 0 | F76: 0 | G76: 0 | H76: 0 | I76: 0 | J76: 0 | K76: 0
C77: Other | D77: per number of spans | E77: 0 | F77: 0 | G77: 0 | H77: 0 | I77: 0 | J77: 0 | K77: 0
B78: TRANSFORMERS BY: Mounting type; Highest operating voltage; Ampere rating; Number of phases (at LV) | C78: Pole Mounted ; < = 22kV ; < = 60 kVA ; Single Phase | E78: 38400.87809 | F78: 29302.01096 | G78: 30436.30595 | H78: 29359.06586 | I78: 30449.78203 | J78: 32730.97371 | K78: 31842.9062
C79: Pole Mounted ; < = 22kV ; > 60 kVA and < = 600 kVA ; Single Phase | E79: 0 | F79: 0 | G79: 0 | H79: 0 | I79: 0 | J79: 0 | K79: 0
C80: Pole Mounted ; < = 22kV ; > 600 kVA ; Single Phase | E80: 0 | F80: 0 | G80: 0 | H80: 0 | I80: 0 | J80: 0 | K80: 0
C81: Pole Mounted ; < = 22kV ; < = 60 kVA ; Multiple Phase | E81: 17322.83695 | F81: 13218.2904 | G81: 13729.9768 | H81: 13244.02817 | I81: 13736.05593 | J81: 14765.11343 | K81: 14364.50153
C82: Pole Mounted ; < = 22kV ; > 60 kVA and < = 600 kVA ; Multiple Phase | E82: 224575.7499 | F82: 525852.9632 | G82: 958270.7276 | H82: 954472.7267 | I82: 963475.5966 | J82: 979467.9282 | K82: 976945.6671
C83: Pole Mounted ; < = 22kV ; > 600 kVA ; Multiple Phase | E83: 0 | F83: 0 | G83: 0 | H83: 0 | I83: 0 | J83: 0 | K83: 0
C84: Kiosk Mounted ; < = 22kV ; < = 60 kVA ; Single Phase | E84: 0 | F84: 0 | G84: 0 | H84: 0 | I84: 0 | J84: 0 | K84: 0
C85: Kiosk Mounted ; < = 22kV ; > 60 kVA and < = 600 kVA ; Single Phase | E85: 0 | F85: 0 | G85: 0 | H85: 0 | I85: 0 | J85: 0 | K85: 0
C86: Kiosk Mounted ; < = 22kV ; > 600 kVA ; Single Phase | E86: 0 | F86: 0 | G86: 0 | H86: 0 | I86: 0 | J86: 0 | K86: 0
C87: Kiosk Mounted ; < = 22kV ; < = 60 kVA ; Multiple Phase | E87: 0 | F87: 0 | G87: 0 | H87: 0 | I87: 0 | J87: 0 | K87: 0
C88: Kiosk Mounted ; < = 22kV ; > 60 kVA and < = 600 kVA ; Multiple Phase | E88: 146943.9794 | F88: 273953.9355 | G88: 281418.539 | H88: 282072.2863 | I88: 281770.8251 | J88: 281471.0361 | K88: 283153.6817
C89: Kiosk Mounted ; < = 22kV ; > 600 kVA ; Multiple Phase | E89: 0 | F89: 0 | G89: 0 | H89: 0 | I89: 0 | J89: 0 | K89: 0
C90: Ground Outdoor / Indoor Chamber Mounted; ˂ 22 kV ; < = 60 kVA ; Single Phase | E90: 0 | F90: 0 | G90: 0 | H90: 0 | I90: 0 | J90: 0 | K90: 0
C91: Ground Outdoor / Indoor Chamber Mounted; ˂ 22 kV ; > 60 kVA and < = 600 kVA ; Single Phase | E91: 0 | F91: 0 | G91: 0 | H91: 0 | I91: 0 | J91: 0 | K91: 0
C92: Ground Outdoor / Indoor Chamber Mounted; ˂ 22 kV ; > 600 kVA ; Single Phase | E92: 0 | F92: 0 | G92: 0 | H92: 0 | I92: 0 | J92: 0 | K92: 0
C93: Ground Outdoor / Indoor Chamber Mounted; ˂ 22 kV ; < = 60 kVA ; Multiple Phase | E93: 0 | F93: 0 | G93: 0 | H93: 0 | I93: 0 | J93: 0 | K93: 0
C94: Ground Outdoor / Indoor Chamber Mounted; ˂ 22 kV ; > 60 kVA and < = 600 kVA ; Multiple Phase | E94: 146621.1432 | F94: 226988.0448 | G94: 230426.2986 | H94: 231390.0347 | I94: 231590.9873 | J94: 231796.3765 | K94: 233639.3033
C95: Ground Outdoor / Indoor Chamber Mounted; ˂ 22 kV ; > 600 kVA ; Multiple Phase | E95: 0 | F95: 0 | G95: 0 | H95: 0 | I95: 0 | J95: 0 | K95: 0
C96: Ground Outdoor / Indoor Chamber Mounted; > = 22 kV & < = 33 kV ; < = 15 MVA | E96: 1452115 | F96: 0 | G96: 0 | H96: 0 | I96: 0 | J96: 0 | K96: 0
C97: Ground Outdoor / Indoor Chamber Mounted; > = 22 kV & < = 33 kV ; > 15 MVA and < = 40 MVA | E97: 0 | F97: 0 | G97: 0 | H97: 0 | I97: 0 | J97: 0 | K97: 0
C98: Ground Outdoor / Indoor Chamber Mounted; > = 22 kV & < = 33 kV ; > 40 MVA | E98: 0 | F98: 0 | G98: 0 | H98: 0 | I98: 0 | J98: 0 | K98: 0
C99: Ground Outdoor / Indoor Chamber Mounted; > 33 kV & < = 66 kV ; < = 15 MVA | E99: 0 | F99: 0 | G99: 0 | H99: 0 | I99: 0 | J99: 0 | K99: 0
C100: Ground Outdoor / Indoor Chamber Mounted; > 33 kV & < = 66 kV ; > 15 MVA and < = 40 MVA | E100: 2679240.529 | F100: 5697217.187 | G100: 5228679.621 | H100: 116726.5128 | I100: 32167.79353 | J100: 116829.1636 | K100: 117180.0521
C101: Ground Outdoor / Indoor Chamber Mounted; > 33 kV & < = 66 kV ; > 40 MVA | E101: 0 | F101: 0 | G101: 0 | H101: 0 | I101: 0 | J101: 0 | K101: 0
C102: Ground Outdoor / Indoor Chamber Mounted; > 66 kV & < = 132 kV ; < = 100 MVA | E102: 0 | F102: 0 | G102: 0 | H102: 0 | I102: 0 | J102: 0 | K102: 0
C103: Ground Outdoor / Indoor Chamber Mounted; > 66 kV & < = 132 kV ; > 100 MVA | E103: 0 | F103: 0 | G103: 0 | H103: 0 | I103: 0 | J103: 0 | K103: 0
C104: Ground Outdoor / Indoor Chamber Mounted; > 132 kV ; < = 100 MVA | E104: 0 | F104: 0 | G104: 0 | H104: 0 | I104: 0 | J104: 0 | K104: 0
C105: Ground Outdoor / Indoor Chamber Mounted; > 132 kV ; > 100 MVA | E105: 0 | F105: 0 | G105: 0 | H105: 0 | I105: 0 | J105: 0 | K105: 0
C106: Other | E106: 0 | F106: 0 | G106: 0 | H106: 0 | I106: 0 | J106: 0 | K106: 0
B107: SWITCHGEAR BY: Highest operating voltage; Switch function | C107: ˂ = 11 kV ; FUSE | E107: 40304.12891 | F107: 43141.16214 | G107: 45501.89489 | H107: 45795.99522 | I107: 45944.60386 | J107: 46095.30754 | K107: 46573.34358
C108: ˂ = 11 kV ; Switch | E108: 148618.6787 | F108: 122531.2896 | G108: 125793.1689 | H108: 121284.2014 | I108: 125708.4412 | J108: 137079.0663 | K108: 133269.3347
C109: ˂ = 11 kV ; Circuit Breaker | E109: 0 | F109: 0 | G109: 0 | H109: 0 | I109: 0 | J109: 0 | K109: 0
C110: > 11 kV & < = 22 kV ; Switch | E110: 675989.0135 | F110: 1015196.286 | G110: 1249209.3 | H110: 1187870.93 | I110: 1207081.305 | J110: 1185164.254 | K110: 1233367.892
C111: > 11 kV & < = 22 kV ; Circuit Breaker | E111: 2708443.703 | F111: 5455619.443 | G111: 4208181.546 | H111: 3325858.43 | I111: 3868223.476 | J111: 3750060.547 | K111: 3465653.936
C112: > 22 kV & < = 33 kV ; Switch | E112: 0 | F112: 0 | G112: 0 | H112: 0 | I112: 0 | J112: 0 | K112: 0
C113: > 22 kV & < = 33 kV ; Circuit Breaker | E113: 0 | F113: 0 | G113: 0 | H113: 0 | I113: 0 | J113: 0 | K113: 0
C114: > 33 kV & < = 66 kV ; Switch | E114: 0 | F114: 0 | G114: 0 | H114: 0 | I114: 0 | J114: 0 | K114: 0
C115: > 33 kV & < = 66 kV ; Circuit Breaker | E115: 284185.7179 | F115: 685802.2787 | G115: 84414.16395 | H115: 84653.98341 | I115: 84905.4289 | J115: 84565.15036 | K115: 84819.13606
C116: > 66 kV & < = 132 kV ; Switch | E116: 0 | F116: 0 | G116: 0 | H116: 0 | I116: 0 | J116: 0 | K116: 0
C117: > 66 kV & < = 132 kV ; Circuit Breaker | E117: 0 | F117: 0 | G117: 0 | H117: 0 | I117: 0 | J117: 0 | K117: 0
C118: > 132 kV ; Switch | E118: 0 | F118: 0 | G118: 0 | H118: 0 | I118: 0 | J118: 0 | K118: 0
C119: > 132 kV ; Circuit Breaker | E119: 0 | F119: 0 | G119: 0 | H119: 0 | I119: 0 | J119: 0 | K119: 0
C120: Other | E120: 0 | F120: 0 | G120: 0 | H120: 0 | I120: 0 | J120: 0 | K120: 0
B121: PUBLIC LIGHTING BY: Asset type ; Lighting obligation | C121: Luminaires ; Major Road | E121: 298047.33 | F121: 438013.52 | G121: 555456 | H121: 552901.15 | I121: 550872.44 | J121: 549022.72 | K121: 453762.3
C122: Luminaires ; Minor Road | E122: 577985.59 | F122: 1070324.11 | G122: 1565187.13 | H122: 1581962.53 | I122: 1602420.78 | J122: 1623719.8 | K122: 1205382.41
C123: Brackets ; Major Road | E123: 0 | F123: 0 | G123: 0 | H123: 0 | I123: 0 | J123: 0 | K123: 0
C124: Brackets ; Minor Road | E124: 0 | F124: 0 | G124: 0 | H124: 0 | I124: 0 | J124: 0 | K124: 0
C125: Lamps ; Major Road | E125: 0 | F125: 0 | G125: 0 | H125: 0 | I125: 0 | J125: 0 | K125: 0
C126: Lamps ; Minor Road | E126: 0 | F126: 0 | G126: 0 | H126: 0 | I126: 0 | J126: 0 | K126: 0
C127: Poles / Columns ; Major Road | E127: 172949.21 | F127: 297744.18 | G127: 332505.53 | H127: 350091.75 | I127: 369013.59 | J127: 389324.19 | K127: 411136.76
C128: Poles / Columns ; Minor Road | E128: 254058.37 | F128: 434849.14 | G128: 482590.84 | H128: 504719.31 | I128: 528202.1 | J128: 553044.44 | K128: 579330.94
C129: Other | E129: 0 | F129: 0 | G129: 0 | H129: 0 | I129: 0 | J129: 0 | K129: 0
B130: SCADA, NETWORK CONTROL AND PROTECTION SYSTEMS BY: Function | C130: Field Devices | E130: 2832413.026 | F130: 4484761.25 | G130: 5735213.311 | H130: 5013024.447 | I130: 4531953.874 | J130: 5615427.981 | K130: 7016216.209
C131: Local Network Wiring Assets | E131: 0 | F131: 0 | G131: 0 | H131: 0 | I131: 0 | J131: 0 | K131: 0
C132: Communications Network Assets | E132: 0 | F132: 0 | G132: 214695.6225 | H132: 431417.2234 | I132: 216772.6971 | J132: 179725.886 | K132: 180622.3668
C133: Master Station Assets | E133: 0 | F133: 0 | G133: 0 | H133: 0 | I133: 0 | J133: 0 | K133: 0
C134: Communications Site Infrastructure | E134: 0 | F134: 0 | G134: 0 | H134: 0 | I134: 0 | J134: 0 | K134: 0
C135: Communications Linear Assets | E135: 0 | F135: 0 | G135: 0 | H135: 0 | I135: 0 | J135: 0 | K135: 0
C136: AFLC | E136: 0 | F136: 0 | G136: 0 | H136: 0 | I136: 0 | J136: 0 | K136: 0
C137: Other | E137: 0 | F137: 0 | G137: 0 | H137: 0 | I137: 0 | J137: 0 | K137: 0
B138: OTHER BY: enter DNSP defined asset group here | C138: Capacitor Banks | E138: 0 | F138: 4844.947957 | G138: 10660.55662 | H138: 438324.5677 | I138: 439626.5116 | J138: 10754.67108 | K138: 10786.97201
C139: Earthing | E139: 646372.0591 | F139: 477484.3337 | G139: 488646.587 | H139: 323113.7986 | I139: 155553.5418 | J139: 155126.8241 | K139: 326371.0691
C140: ZSS Property | E140: 267971.3226 | F140: 686101.3183 | G140: 692369.4761 | H140: 1664347.284 | I140: 553802.7509 | J140: 491978.5506 | K140: 493456.1748
C141: Surge Diverters | E141: 44077.61191 | F141: 55517.10618 | G141: 58510.10145 | H141: 58851.81972 | I141: 59004.58632 | J141: 59159.55154 | K141: 59733.96181
C142: Kiosk Transformer REFURBISHED | E142: 105045.7531 | F142: 129292.5071 | G142: 129788.4502 | H142: 130780.306 | I142: 132300.3209 | J142: 133843.744 | K142: 134442.2877
C143: Rectification of Damaged Assets – Not Recoverable | E143: 2042472.707 | F143: 1974105.222 | G143: 2302651.121 | H143: 2331343.064 | I143: 2360832.602 | J143: 2390767.229 | K143: 2421124.179
C144: Customer initiated asset relocation – Subtransmission Asset | E144: 619260.5143 | F144: 376320.5497 | G144: 387972.5485 | H144: 388703.3294 | I144: 408280.7959 | J144: 425689.2824 | K144: 443157.5936
C145: Customer initiated asset relocation – In Line Poles/Stays | E145: 2972357.397 | F145: 3822111.158 | G145: 3950945.183 | H145: 3966900.143 | I145: 4176065.511 | J145: 4363985.061 | K145: 4553390.896
C146: Customer initiated asset relocation – Intersection Realignment | E146: 222328.0935 | F146: 429138.4258 | G146: 443218.9093 | H146: 444696.8729 | I146: 467801.741 | J146: 488491.7995 | K146: 509315.7899
C147: Customer initiated asset relocation – Substation Modification | E147: 317688.1216 | F147: 416089.0371 | G147: 429796.4094 | H147: 431274.252 | I147: 453730.8209 | J147: 473850.176 | K147: 494104.0619
C148: Customer initiated asset relocation – Undergrounding of Assets | E148: 1621071.784 | F148: 1215450.455 | G148: 1255463.587 | H148: 1259757.847 | I148: 1325328.913 | J148: 1384070.558 | K148: 1443202.815
C149: Customer initiated asset relocation – Major Vic Roads | E149: 219881.4028 | F149: 424691.0114 | G149: 440025.909 | H149: 442631.6813 | I149: 466884.4124 | J149: 488857.3303 | K149: 511086.145
C150: Customer initiated asset relocation – Major New Road Projects | E150: 6333784.862 | F150: 4384085.153 | G150: 0 | H150: 0 | I150: 0 | J150: 0 | K150: 0
B182: ASSET REPLACEMENTS
E183: VOLUMES (0's)
B184: ASSET GROUP | C184: ASSET CATEGORY | E184: =CRCP_y4 -> 2019-20 | F184: =CRCP_y5 -> 2020-21 | G184: =FRCP_y1 -> 2021-22 | H184: =FRCP_y2 -> 2022-23 | I184: =FRCP_y3 -> 2023-24 | J184: =FRCP_y4 -> 2024-25 | K184: =FRCP_y5 -> 2025-26
B185: POLES BY: HIGHEST OPERATING VOLTAGE ; MATERIAL TYPE | C185: Staking of a wooden pole | E185: 867.7581535 | F185: 734.9130241 | G185: 927.8543983 | H185: 1004.966396 | I185: 1012.637419 | J185: 1020.308441 | K185: 935.5254205
C186: ˂ = 1 kV; Wood | E186: 122.2984825 | F186: 110.6040703 | G186: 139.1792299 | H186: 139.1792299 | I186: 138.9127038 | J186: 138.6461776 | K186: 138.9127038
C187: > 1 kV & < = 11 kV; Wood | E187: 11.89720938 | F187: 9.637086834 | G187: 9.13055889 | H187: 9.13055889 | I187: 9.168071813 | J187: 9.205584736 | K187: 9.168071813
C188: ˃ 11 kV & < = 22 kV; Wood | E188: 47.58883754 | F188: 38.54834734 | G188: 36.52223556 | H188: 36.52223556 | I188: 36.67228725 | J188: 36.82233894 | K188: 36.67228725
C189: > 22 kV & < = 66 kV; Wood | E189: 7.876056797 | F189: 7.915748945 | G189: 7.525018912 | H189: 7.525018912 | I189: 7.495274928 | J189: 7.465530944 | K189: 7.495274928
C190: > 66 kV & < = 132 kV; Wood | E190: 0 | F190: 0 | G190: 0 | H190: 0 | I190: 0 | J190: 0 | K190: 0
C191: > 132 kV; Wood | E191: 0 | F191: 0 | G191: 0 | H191: 0 | I191: 0 | J191: 0 | K191: 0
C192: ˂ = 1 kV; Concrete | E192: 2 | F192: 2 | G192: 2 | H192: 2 | I192: 2 | J192: 2 | K192: 2
C193: > 1 kV & < = 11 kV; Concrete | E193: 1 | F193: 1 | G193: 1 | H193: 1 | I193: 1 | J193: 1 | K193: 1
C194: ˃ 11 kV & < = 22 kV; Concrete | E194: 4 | F194: 4 | G194: 4 | H194: 4 | I194: 4 | J194: 4 | K194: 4
C195: > 22 kV & < = 66 kV; Concrete | E195: 1 | F195: 1 | G195: 1 | H195: 1 | I195: 1 | J195: 1 | K195: 1
C196: > 66 kV & < = 132 kV; Concrete | E196: 0 | F196: 0 | G196: 0 | H196: 0 | I196: 0 | J196: 0 | K196: 0
C197: > 132 kV; Concrete | E197: 0 | F197: 0 | G197: 0 | H197: 0 | I197: 0 | J197: 0 | K197: 0
C198: ˂ = 1 kV; Steel | E198: 0 | F198: 0 | G198: 0 | H198: 0 | I198: 0 | J198: 0 | K198: 0
C199: > 1 kV & < = 11 kV; Steel | E199: 0 | F199: 0 | G199: 0 | H199: 0 | I199: 0 | J199: 0 | K199: 0
C200: ˃ 11 kV & < = 22 kV; Steel | E200: 0 | F200: 0 | G200: 0 | H200: 0 | I200: 0 | J200: 0 | K200: 0
C201: > 22 kV & < = 66 kV; Steel | E201: 0 | F201: 0 | G201: 0 | H201: 0 | I201: 0 | J201: 0 | K201: 0
C202: > 66 kV & < = 132 kV; Steel | E202: 0 | F202: 0 | G202: 0 | H202: 0 | I202: 0 | J202: 0 | K202: 0
C203: > 132 kV; Steel | E203: 0 | F203: 0 | G203: 0 | H203: 0 | I203: 0 | J203: 0 | K203: 0
C204: Other | E204: 0 | F204: 0 | G204: 0 | H204: 0 | I204: 0 | J204: 0 | K204: 0
B205: POLE TOP STRUCTURES BY: HIGHEST OPERATING VOLTAGE | C205: ˂ = 1 kV | E205: 350.1994968 | F205: 525.5045784 | G205: 606.1719324 | H205: 606.1719324 | I205: 606.1719324 | J205: 606.1719324 | K205: 606.1719324
C206: > 1 kV & < = 11 kV | E206: 59.60841075 | F206: 96.63887027 | G206: 82.1132927 | H206: 82.1132927 | I206: 82.24384362 | J206: 82.37439453 | K206: 82.24384362
C207: ˃ 11 kV & < = 22 kV | E207: 546.7511158 | F207: 875.5378369 | G207: 759.9537207 | H207: 759.9537207 | I207: 761.3048248 | J207: 762.655929 | K207: 761.3048248
C208: > 22 kV & < = 66 kV | E208: 56.19471105 | F208: 89.06150389 | G208: 75.38614201 | H208: 75.24879121 | I208: 76.33485036 | J208: 77.42090951 | K208: 76.47220116
C209: > 66 kV & < = 132 kV | E209: 0 | F209: 0 | G209: 0 | H209: 0 | I209: 0 | J209: 0 | K209: 0
C210: > 132 kV | E210: 0 | F210: 0 | G210: 0 | H210: 0 | I210: 0 | J210: 0 | K210: 0
C211: Other | E211: 0 | F211: 0 | G211: 0 | H211: 0 | I211: 0 | J211: 0 | K211: 0
B212: STAKING WOODEN POLES BY: HIGHEST OPERATING VOLTAGE | C212: ˂ = 1 Kv | E212: 559.5548736 | F212: 487.5933429 | G212: 671.3456312 | H212: 727.1397333 | I212: 731.7004839 | J212: 736.2451133 | K212: 675.9817386
C213: > 1 kV & < = 11 kV | E213: 54.43355762 | F213: 42.4846877 | G213: 44.04220964 | H213: 47.70246365 | I213: 48.29135421 | J213: 48.88390646 | K213: 44.61398386
C214: ˃ 11 kV & < = 22 kV | E214: 217.7342305 | F214: 169.9387508 | G214: 176.1688385 | H214: 190.8098546 | I214: 193.1654168 | J214: 195.5356258 | K214: 178.4559355
C215: > 22 kV & < = 66 kV | E215: 36.03549182 | F215: 34.89624278 | G215: 36.29771895 | H215: 39.31434488 | I215: 39.48016375 | J215: 39.64379524 | K215: 36.47376259
C216: > 66 kV & < = 132 kV | E216: 0 | F216: 0 | G216: 0 | H216: 0 | I216: 0 | J216: 0 | K216: 0
C217: > 132 kV | E217: 0 | F217: 0 | G217: 0 | H217: 0 | I217: 0 | J217: 0 | K217: 0
B218: OVERHEAD CONDUCTORS BY: Highest operating voltage; Number of phases (at HV) | C218: ˂ = 1 kV | E218: 2.722058595 | F218: 7.326003375 | G218: 11.36532109 | H218: 11.36532109 | I218: 11.37608945 | J218: 11.3868578 | K218: 11.37608945
C219: > 1 kV & < = 11 kV | E219: 0 | F219: 0 | G219: 0 | H219: 0 | I219: 0 | J219: 0 | K219: 0
C220: ˃ 11 kV & < = 22 kV ; SWER | E220: 0 | F220: 0 | G220: 0 | H220: 0 | I220: 0 | J220: 0 | K220: 0
C221: ˃ 11 kV & < = 22 kV ; Single-Phase | E221: 0 | F221: 0 | G221: 0 | H221: 0 | I221: 0 | J221: 0 | K221: 0
C222: ˃ 11 kV & < = 22 kV ; Multiple-Phase | E222: 2.206475915 | F222: 4.511361273 | G222: 5.056623621 | H222: 6.381193278 | I222: 7.945122077 | J222: 6.620148015 | K222: 5.056219217
C223: > 22 kV & < = 66 kV | E223: 0 | F223: 0 | G223: 0 | H223: 0 | I223: 0 | J223: 0 | K223: 0
C224: > 66 kV & < = 132 kV | E224: 0 | F224: 0 | G224: 0 | H224: 0 | I224: 0 | J224: 0 | K224: 0
C225: > 132 kV | E225: 0 | F225: 0 | G225: 0 | H225: 0 | I225: 0 | J225: 0 | K225: 0
C226: Other | E226: 0 | F226: 0 | G226: 0 | H226: 0 | I226: 0 | J226: 0 | K226: 0
B227: UNDERGROUND CABLES BY: Highest operating voltage | C227: ˂ = 1 kV | E227: 0.261585339 | F227: 0.3852201924 | G227: 0.3634406784 | H227: 0.3634406784 | I227: 0.3647270263 | J227: 0.3660133743 | K227: 0.3647270263
C228: > 1 kV & < = 11 kV | E228: 0.1203243976 | F228: 0.2379110618 | G228: 0.3069820152 | H228: 0.3069820152 | I228: 0.3083146143 | J228: 0.3096472133 | K228: 0.3083146143
C229: > 11 kV & < = 22 kV | E229: 0.8660236979 | F229: 1.21878369 | G229: 0.9209460457 | H229: 0.9209460457 | I229: 0.9249438428 | J229: 0.92894164 | K229: 0.9249438428
C230: > 22 kV & < = 33 kV | E230: 0 | F230: 0 | G230: 0 | H230: 0 | I230: 0 | J230: 0 | K230: 0
C231: > 33 kV & < = 66 kV | E231: 0.4911632208 | F231: 0 | G231: 0 | H231: 0 | I231: 0 | J231: 0 | K231: 0
C232: > 66 kV & < = 132 kV | E232: 0 | F232: 0 | G232: 0 | H232: 0 | I232: 0 | J232: 0 | K232: 0
C233: > 132 kV | E233: 0 | F233: 0 | G233: 0 | H233: 0 | I233: 0 | J233: 0 | K233: 0
... 236 more rows

Sheet 2.3 Augex (a)
B1: =INDEX(dms_Worksheet_List,MATCH(dms_Model,dms_Model_List)) -> REGULATORY REPORTING STATEMENT
B2: =INDEX(dms_TradingNameFull_List,MATCH(dms_TradingName,dms_TradingName_List)) -> Jemena Electricity
B3: =dms_Header_Span -> 2021-22 to 2025-26
B4: 2.3 AUGEX PROJECT DATA
B6: There are TWO tables on this worksheet - each has been 'grouped' (and sub-grouped) for easy navigation. Both ROWS and COLUMNS have been grouped. See the Instructions sheet on how to group or ungroup tables.
B9: 2.3.1 - AUGEX ASSET DATA - SUBTRANSMISSION SUBSTATIONS, SWITCHING STATIONS AND ZONE SUBSTATIONS
B10: PROJECT DESCRIPTION AND CHANGES | L10: PLANT AND EQUIPMENT EXPENDITURE AND VOLUME | X10: OTHER EXPENDITURE | Z10: TOTAL DIRECT EXPENDITURE ($0's) | AA10: YEARS INCURRED | AB10: ALL RELATED PARTY CONTRACTS | AD10: ALL NON-RELATED PARTY CONTRACTS | AE10: LAND AND EASEMENTS
B11: SUBSTATION ID | C11: SUBSTATION TYPE (drop down) | D11: PROJECT ID | E11: PROJECT TYPE (drop down) | F11: PROJECT TRIGGER (drop down) | G11: VOLTAGE (KV) | H11: SUBSTATION RATING NORMAL CYCLIC (MVA) | J11: SUBSTATION RATING N-1 EMERGENCY (MVA) | L11: TRANSFORMERS | O11: SWITCHGEAR | R11: CAPACITORS | U11: OTHER PLANT ITEM | V11: INSTALLATION (LABOUR) | X11: CIVIL WORKS | Y11: OTHER DIRECT | AB11: RELATED PARTY MARGINS | AC11: TOTAL | AE11: LAND PURCHASE | AF11: EASEMENTS
H12: PRE | I12: POST | J12: PRE | K12: POST | L12: UNITS ADDED | M12: MVA ADDED | N12: =CONCATENATE("EXPENDITURE ($0's, real ", dms_DollarReal,")") -> EXPENDITURE ($0's, real June 2021) | O12: UNITS ADDED | Q12: =CONCATENATE("EXPENDITURE ($0's, real ", dms_DollarReal,")") -> EXPENDITURE ($0's, real June 2021) | R12: MVAR ADDED | T12: =CONCATENATE("EXPENDITURE ($0's, real ", dms_DollarReal,")") -> EXPENDITURE ($0's, real June 2021) | U12: =CONCATENATE("EXPENDITURE ($0's, real ", dms_DollarReal,")") -> EXPENDITURE ($0's, real June 2021) | V12: VOLUME | W12: =CONCATENATE("EXPENDITURE ($0's, real ", dms_DollarReal,")") -> EXPENDITURE ($0's, real June 2021) | X12: =CONCATENATE("EXPENDITURE ($0's, real ", dms_DollarReal,")") -> EXPENDITURE ($0's, real June 2021) | AB12: =CONCATENATE("EXPENDITURE ($0's, real ", dms_DollarReal,")") -> EXPENDITURE ($0's, real June 2021) | AE12: =CONCATENATE("EXPENDITURE ($0's, real ", dms_DollarReal,")") -> EXPENDITURE ($0's, real June 2021)
B13: Flemington (FT) | C13: Zone substation | D13: BAA-DZA-700106 | E13: Substation upgrade - capacity | F13: Demand growth | G13: 66/11 | H13: 30.5 | I13: 45 | J13: 23.9 | K13: 34.8 | L13: 0 | M13: 0 | N13: 0 | O13: 22 | P13: 0 | Q13: 1093175.362 | R13: 0 | S13: 0 | T13: 0 | U13: 1465241.76 | V13: 4061.625 | W13: 516692.2895 | X13: 598559.4403 | Y13: 2033886.98 | Z13: =IF(SUM(N13,Q13,T13,U13,W13,X13,Y13)<>0,SUM(N13,Q13,T13,U13,W13,X13,Y13),"") -> 5707555.833 | AA13: 2016,2017,2018,2019 | AB13: 0 | AC13: 0 | AD13: 441619.8548 | AE13: 0 | AF13: 0
B14: Sunbury (SBY) | C14: Zone substation | D14: BAA-DZA-800026 | E14: Substation upgrade - capacity | F14: Demand growth | G14: 66/22 | H14: 32 | I14: 65 | J14: 26.4 | K14: 38 | L14: 1 | M14: 33 | N14: 748974.9391 | O14: 28 | P14: 0 | Q14: 1419520.071 | R14: 0 | S14: 0 | T14: 0 | U14: 1761750.115 | V14: 13028 | W14: 1448481.666 | X14: 2829784.499 | Y14: 2624308.763 | Z14: =IF(SUM(N14,Q14,T14,U14,W14,X14,Y14)<>0,SUM(N14,Q14,T14,U14,W14,X14,Y14),"") -> 10832820.05 | AA14: 2017,2018,2019 | AB14: 0 | AC14: 0 | AD14: 3528546.47 | AE14: 0 | AF14: 0
B15: Preston (PTN) | C15: Zone substation | D15: BAA-DZA-800010 | E15: Substation upgrade - voltage | F15: Safety | G15: 66/22 | H15: 0 | I15: 66 | J15: 0 | K15: 47.6 | L15: 2 | M15: 66 | N15: 1706468.721 | O15: 16 | P15: 0 | Q15: 807699.8487 | R15: 8 | S15: 0 | T15: 313440.7375 | U15: 1868669.265 | V15: 3326.5 | W15: 374524.6018 | X15: 2758560.147 | Y15: 9139548.796 | Z15: =IF(SUM(N15,Q15,T15,U15,W15,X15,Y15)<>0,SUM(N15,Q15,T15,U15,W15,X15,Y15),"") -> 16968912.12 | AA15: 2016,2017,2018,2019 | AB15: 19495.91767 | AC15: 8861780.758 | AD15: 970704.2227 | AE15: 0 | AF15: 0
B16: East Preston (EP) | C16: Zone substation | D16: BAA-DZA-000039 | E16: Substation upgrade -voltage | F16: Safety | G16: 66/22 | H16: 33 | I16: 66 | J16: 0 | K16: 47.6 | L16: 1 | M16: 33 | N16: 896660.1383 | O16: 8 | P16: 0 | Q16: 632936.5682 | R16: 8 | S16: 0 | T16: 0 | U16: 750910.6701 | V16: 6701 | W16: 821551.6655 | X16: 959911.5994 | Y16: 2862602.922 | Z16: 6924573.563 | AA16: 2020,2021 | AB16: 10216.94567 | AC16: 4644066.213 | AD16: 0 | AE16: 0 | AF16: 0
B17: Greenvale (GVE) | C17: Zone substation | D17: A929 | E17: New substation establishment | F17: Safety | G17: 66/22 | H17: 0 | I17: 66 | J17: 0 | K17: 47.6 | L17: 2 | M17: 66 | N17: 1793320.277 | O17: 16 | P17: 0 | Q17: 1054894.28 | R17: 8 | S17: 0 | T17: 316468.2841 | U17: 10021495.66 | V17: 10744.16381 | W17: 1265873.136 | X17: 2848214.557 | Y17: 7406538.573 | Z17: 24706804.77 | AA17: 2019,2020,2021,2022,2023 | AB17: 25345.37779 | AC17: 11520626.27 | AD17: 0 | AE17: 2950573.485 | AF17: 0
D65: Non material projects - [forecast] | Z65: 5026283.769 | AA65: 2019,2020,2021,2022,2023,2024,2025,2026 | AE65: 0 | AF65: 0
B68: 2.3.2 - AUGEX ASSET DATA - SUBTRANSMISSION LINES
B69: PROJECT DESCRIPTION AND CHANGES | L69: PLANT AND EQUIPMENT EXPENDITURE AND VOLUME | X69: OTHER EXPENDITURE | Z69: TOTAL DIRECT EXPENDITURE ($0's) | AA69: YEARS INCURRED | AB69: ALL RELATED PARTY CONTRACTS | AD69: ALL NON RELATED PARTY CONTRACTS | AE69: LAND AND EASEMENTS
B70: LINE ID | D70: PROJECT ID | E70: PROJECT TYPE (drop down) | F70: PROJECT TRIGGER (drop down) | G70: VOLTAGE (KV) (drop down) | H70: ROUTE LINE LENGTH ADDED | L70: POLES/TOWERS (INCLUDING STRUCTURES, AND CIVIL WORKS) | O70: OVERHEAD LINES | R70: UNDERGROUND CABLES | U70: OTHER PLANT ITEM | V70: INSTALLATION (LABOUR) | X70: CIVIL WORKS | Y70: OTHER DIRECT | AB70: RELATED PARTY MARGINS | AC70: TOTAL | AE70: LAND PURCHASE | AF70: EASEMENTS
H71: KM ADDED | L71: POLES/TOWERS ADDED | M71: POLES/TOWERS UPGRADED | N71: =CONCATENATE("EXPENDITURE ($0's, real ", dms_DollarReal,")") -> EXPENDITURE ($0's, real June 2021) | O71: CIRCUIT KM ADDED | P71: CIRCUIT KM UPGRADED | Q71: =CONCATENATE("EXPENDITURE ($0's, real ", dms_DollarReal,")") -> EXPENDITURE ($0's, real June 2021) | R71: CIRCUIT KM ADDED | S71: CIRCUIT KM UPGRADED | T71: =CONCATENATE("EXPENDITURE ($0's, real ", dms_DollarReal,")") -> EXPENDITURE ($0's, real June 2021) | U71: =CONCATENATE("EXPENDITURE ($0's, real ", dms_DollarReal,")") -> EXPENDITURE ($0's, real June 2021) | V71: VOLUME | W71: =CONCATENATE("EXPENDITURE ($0's, real ", dms_DollarReal,")") -> EXPENDITURE ($0's, real June 2021) | X71: =CONCATENATE("EXPENDITURE ($0's, real ", dms_DollarReal,")") -> EXPENDITURE ($0's, real June 2021) | AB71: =CONCATENATE("EXPENDITURE ($0's, real ", dms_DollarReal,")") -> EXPENDITURE ($0's, real June 2021) | AE71: =CONCATENATE("EXPENDITURE ($0's, real ", dms_DollarReal,")") -> EXPENDITURE ($0's, real June 2021)
B72: KTS-MLN-SBY(GSB-WND)-SHM-KTS 66kV | C72: 0 | D72: BAA-DOA-000019 | E72: New line on new route - single circuit | F72: Demand growth | G72: 66 | H72: 35.46188 | I72: 0 | J72: 0 | K72: 0 | L72: 197 | M72: 0 | N72: 655272.6153 | O72: 33.86382 | P72: 0 | Q72: 523460.5384 | R72: 1.59806 | S72: 0 | T72: 0 | U72: 997895.5944 | V72: 8114 | W72: 1177086.166 | X72: 0 | Y72: 2253023.038 | Z72: =IF(SUM(N72,Q72,T72,U72,W72,X72,Y72)<>0,SUM(N72,Q72,T72,U72,W72,X72,Y72),"") -> 5606737.952 | AA72: 2016,2017,2018,2019 | AB72: 0 | AC72: 0 | AD72: 1848521.44 | AE72: 0 | AF72: 0
B73: KTS-MAT-AW-PV-KTS 66kV | C73: 0 | D73: BAA-DOA-800011 | E73: New line on new route - single circuit | F73: Demand growth | G73: 66 | H73: 17.58295 | I73: 0 | J73: 0 | K73: 0 | L73: 139 | M73: 23 | N73: 2030940.235 | O73: 16.48295 | P73: 0 | Q73: 260816.5452 | R73: 1.1 | S73: 0 | T73: 538879.0295 | U73: 38213.54531 | V73: 18625.79192 | W73: 2719835.643 | X73: 2382277.247 | Y73: 2577995.682 | Z73: =IF(SUM(N73,Q73,T73,U73,W73,X73,Y73)<>0,SUM(N73,Q73,T73,U73,W73,X73,Y73),"") -> 10548957.93 | AA73: 2017,2018,2019,2020 | AB73: 0 | AC73: 0 | AD73: 2854293.724 | AE73: 0 | AF73: 0
B74: BTS-NS 22kV | C74: 0 | D74: BAA-DOA-800015 | E74: New line on new route - single circuit | F74: Demand growth | G74: Other | H74: 11.45 | I74: 0 | J74: 0 | K74: 0 | L74: 65 | M74: 10 | N74: 210978.8561 | O74: 5.25 | P74: 1.95 | Q74: 61268.2598 | R74: 5.85 | S74: 0.35 | T74: 1336234.585 | U74: 84391.54243 | V74: 9952 | W74: 1328194.57 | X74: 5179530.917 | Y74: 2190998.652 | Z74: =IF(SUM(N74,Q74,T74,U74,W74,X74,Y74)<>0,SUM(N74,Q74,T74,U74,W74,X74,Y74),"") -> 10391597.38 | AA74: 2019,2020,2021,2022,2023 | AB74: 19137.1931 | AC74: 8698724.138 | AD74: 0 | AE74: 0 | AF74: 0
B75: TTS-BD-BMS-VCO-COO-TTS 66kV | C75: 0 | D75: A928 | E75: New line on new route - single circuit | F75: Safety | G75: 66 | H75: 10 | I75: 0 | J75: 0 | K75: 0 | L75: 125 | M75: 0 | N75: 405728.5694 | O75: 10 | P75: 0 | Q75: 151775.4471 | R75: 0 | S75: 0 | T75: 0 | U75: 210978.8561 | V75: 7500.606415 | W75: 1054894.28 | X75: 527447.1402 | Y75: 3724339.748 | Z75: 6075164.041 | AA75: 2019,2020,2021,2022,2023 | AB75: 11674.69857 | AC75: 5306681.168 | AD75: 0 | AE75: 0 | AF75: 0
D126: Non material projects - [forecast] | Z126: 5969363.117 | AA126: 2019,2020,2021,2022,2023,2024,2025,2026 | AE126: 0 | AF126: 0

Sheet 2.3 Augex (b)
B1: =INDEX(dms_Worksheet_List,MATCH(dms_Model,dms_Model_List)) -> REGULATORY REPORTING STATEMENT
B2: =INDEX(dms_TradingNameFull_List,MATCH(dms_TradingName,dms_TradingName_List)) -> Jemena Electricity
B3: =dms_Header_Span -> 2021-22 to 2025-26
B4: 2.3 AUGEX PROJECT DATA
B6: There are FOUR tables on this worksheet. These tables have been 'grouped' (and sub-grouped) for easy navigation. See the Instructions sheet on how to group or ungroup tables.
B8: NOTE: DNSP must provide expenditure information on an 'as incurred' basis.
B9: 2.3.3 - AUGEX DATA - HV/LV FEEDERS AND DISTRIBUTION SUBSTATIONS
B10: PROJECT TYPE | C10: Units | D10: VOLUMES (0's)
D11: =CRCP_y4 -> 2019-20 | E11: =CRCP_y5 -> 2020-21 | F11: =FRCP_y1 -> 2021-22 | G11: =FRCP_y2 -> 2022-23 | H11: =FRCP_y3 -> 2023-24 | I11: =FRCP_y4 -> 2024-25 | J11: =FRCP_y5 -> 2025-26
B12: DESCRIPTOR METRICS - UNITS ADDED
B13: HV Feeder Augmentations - Overhead Lines | C13: Circuit Line Length in KM | D13: 0.31 | E13: 0.46 | F13: 2.56 | G13: 0 | H13: 0.46 | I13: 2.7 | J13: 1.5
B14: HV Feeder Augmentations - Underground Cables | C14: Circuit Line Length in KM | D14: 0.56 | E14: 0.76 | F14: 1.26 | G14: 2.2 | H14: 4.46 | I14: 6.28 | J14: 1.83
B15: LV Feeder Augmentations - Overhead Lines | C15: Circuit Line Length in KM | D15: 5.905313548 | E15: 5.785004991 | F15: 6.716868742 | G15: 6.815431959 | H15: 6.84651174 | I15: 6.878000192 | J15: 6.911760943
B16: LV Feeder Augmentations - Underground Cables | C16: Circuit Line Length in KM | D16: 0 | E16: 0 | F16: 0 | G16: 0 | H16: 0 | I16: 0 | J16: 0
B17: Distribution Substation Augmentations - Pole Mounted | C17: Number | D17: 6 | E17: 6 | F17: 7 | G17: 7 | H17: 8 | I17: 8 | J17: 8
B18: Distribution Substation Augmentations - Ground Mounted | C18: Number | D18: 0 | E18: 0 | F18: 0 | G18: 0 | H18: 0 | I18: 0 | J18: 0
B19: Distribution Substation Augmentations - Indoor | C19: Number | D19: 0 | E19: 0 | F19: 0 | G19: 0 | H19: 0 | I19: 0 | J19: 0
B20: DESCRIPTOR METRICS - UNITS UPGRADED
B21: HV Feeder Augmentations - Overhead Lines | C21: Circuit Line Length in KM | D21: 4.495 | E21: 6.264 | F21: 2.99 | G21: 0 | H21: 3.23 | I21: 14.53 | J21: 15.45
B22: HV Feeder Augmentations - Underground Cables | C22: Circuit Line Length in KM | D22: 0.215 | E22: 0 | F22: 0.3 | G22: 0.64 | H22: 0.314 | I22: 0.81 | J22: 0.17
B23: LV Feeder Augmentations - Overhead Lines | C23: Circuit Line Length in KM | D23: 5.216827592 | E23: 5.110545513 | F23: 5.933765566 | G23: 6.020837541 | H23: 6.048293806 | I23: 6.076111098 | J23: 6.105935765
B24: LV Feeder Augmentations - Underground Cables | C24: Circuit Line Length in KM | D24: 0 | E24: 0 | F24: 0 | G24: 0 | H24: 0 | I24: 0 | J24: 0
B25: Distribution Substation Augmentations - Pole Mounted | C25: Number | D25: 8 | E25: 17 | F25: 9 | G25: 9 | H25: 29 | I25: 27 | J25: 9
B26: Distribution Substation Augmentations - Ground Mounted | C26: Number | D26: 1 | E26: 16 | F26: 1 | G26: 1 | H26: 12 | I26: 8 | J26: 1
B27: Distribution Substation Augmentations - Indoor | C27: Number | D27: 0 | E27: 4 | F27: 0 | G27: 0 | H27: 26 | I27: 1 | J27: 0
B29: COST METRICS
B30: PROJECT TYPE | D30: =CONCATENATE("TOTAL DIRECT EXPENDITURE ($0's, real ", dms_DollarReal,")") -> TOTAL DIRECT EXPENDITURE ($0's, real June 2021)
D31: =CRCP_y4 -> 2019-20 | E31: =CRCP_y5 -> 2020-21 | F31: =FRCP_y1 -> 2021-22 | G31: =FRCP_y2 -> 2022-23 | H31: =FRCP_y3 -> 2023-24 | I31: =FRCP_y4 -> 2024-25 | J31: =FRCP_y5 -> 2025-26
B32: HV Feeder Augmentations - Overhead Lines | D32: 1780644.721 | E32: 3310757.186 | F32: 2184176.892 | G32: 1950581.876 | H32: 3620761.04 | I32: 3607629.53 | J32: 1015137.3
B33: HV Feeder Augmentations - Underground Cables | D33: 1355899.334 | E33: 2279091.525 | F33: 4151210.2 | G33: 5363529.057 | H33: 6626957.79 | I33: 3867262.145 | J33: 1312137.269
B34: HV Feeder Non-Material Projects | D34: 236066.4762 | E34: 370784.7476 | F34: 0 | G34: 0 | H34: 0 | I34: 144310.8683 | J34: 424409.813
B35: LV Feeder Augmentations - Overhead Lines | D35: 1859815.616 | E35: 1821925.717 | F35: 2115406.282 | G35: 2146447.717 | H35: 2156235.963 | I35: 2166152.916 | J35: 2176785.505
B36: LV Feeder Augmentations - Underground Cables | D36: 0 | E36: 0 | F36: 0 | G36: 0 | H36: 0 | I36: 0 | J36: 0
B37: LV Feeder Non-Material Projects | D37: 421307.1764 | E37: 700275.0295 | F37: 968870.587 | G37: 974418.1098 | H37: 977249.2351 | I37: 980116.1995 | J37: 983091.7398
B38: Distribution Substation Augmentations - Pole Mounted | D38: 1465245.244 | E38: 2241240.112 | F38: 1675308.55 | G38: 2565018.419 | H38: 3515984.53 | I38: 4161536.842 | J38: 2599030.692
B39: Distribution Substation Augmentations - Ground Mounted | D39: 260152.876 | E39: 1723443.896 | F39: 661467.4924 | G39: 1119930.595 | H39: 1473688.289 | I39: 1326587.67 | J39: 196474.0627
B40: Distribution Substation Augmentations - Indoor | D40: 29909.02331 | E40: 418512.9686 | F40: 45272.79225 | G40: 1905035.658 | H40: 3098575.5 | I40: 244008.1083 | J40: 28827.05397
B45: 2.3.4 - AUGEX - TOTAL EXPENDITURE
D46: =CONCATENATE("TOTAL DIRECT EXPENDITURE ($0's, real ", dms_DollarReal,")") -> TOTAL DIRECT EXPENDITURE ($0's, real June 2021)
D47: =CRCP_y4 -> 2019-20 | E47: =CRCP_y5 -> 2020-21 | F47: =FRCP_y1 -> 2021-22 | G47: =FRCP_y2 -> 2022-23 | H47: =FRCP_y3 -> 2023-24 | I47: =FRCP_y4 -> 2024-25 | J47: =FRCP_y5 -> 2025-26
B48: Subtransmission Substations, Switching Stations, Zone Substations | D48: 7839417.605 | E48: 1110523.954 | F48: 14793891.76 | G48: 28991569.66 | H48: 1519251.078 | I48: 835235.0799 | J48: 538757.8405
B49: Subtransmission Lines | D49: 4995326.716 | E49: 2872681.54 | F49: 6029214.385 | G49: 11257718.38 | H49: 3860601.675 | I49: 0 | J49: 0
B50: HV Feeders | D50: 3372610.532 | E50: 5960633.459 | F50: 6335387.092 | G50: 7314110.933 | H50: 10247718.83 | I50: 7619202.544 | J50: 2751684.382
B51: HV Feeders - Land Purchases and Easements | D51: 0 | E51: 0 | F51: 0 | G51: 0 | H51: 0 | I51: 0 | J51: 0
B52: Distribution Substations | D52: 1755307.143 | E52: 4383196.976 | F52: 2382048.835 | G52: 5589984.672 | H52: 8088248.32 | I52: 5732132.62 | J52: 2824331.809
B53: Distribution Substations - Land Purchases and Easements | D53: 0 | E53: 0 | F53: 0 | G53: 0 | H53: 0 | I53: 0 | J53: 0
B54: LV Feeders | D54: 2281122.792 | E54: 2522200.746 | F54: 3084276.869 | G54: 3120865.827 | H54: 3133485.198 | I54: 3146269.116 | J54: 3159877.245
B55: LV Feeders - Land Purchases and Easements | D55: 0 | E55: 0 | F55: 0 | G55: 0 | H55: 0 | I55: 0 | J55: 0
B56: Other Assets | D56: 134376.6727 | E56: 505319.7617 | F56: 820170.8765 | G56: 824049.7531 | H56: 828124.3289 | I56: 832247.8753 | J56: 836408.9263
B60: 2.3.5 - AUGEX - BY DRIVER
D61: =CONCATENATE("TOTAL DIRECT EXPENDITURE ($0's, real ", dms_DollarReal,")") -> TOTAL DIRECT EXPENDITURE ($0's, real June 2021)
D62: =CRCP_y4 -> 2019-20 | E62: =CRCP_y5 -> 2020-21 | F62: =FRCP_y1 -> 2021-22 | G62: =FRCP_y2 -> 2022-23 | H62: =FRCP_y3 -> 2023-24 | I62: =FRCP_y4 -> 2024-25 | J62: =FRCP_y5 -> 2025-26
B63: "Greenfield" driven augex (network expansion capex) | D63: 103600.1298 | E63: 581080.6052 | F63: 8402481.87 | G63: 28729436.88 | H63: 1078448.064 | I63: 2131209.324 | J63: 0
B64: Reinforcement driven augex (augmentation of the existing network) | D64: 20274561.33 | E64: 16773475.83 | F64: 25042507.95 | G64: 28368862.35 | H64: 26598981.37 | I64: 16033877.91 | J64: 10111060.2
B68: 2.3.6 - AUGEX - GREENFIELDS DRIVEN
D69: =CONCATENATE("TOTAL DIRECT EXPENDITURE ($0's, real ", dms_DollarReal,")") -> TOTAL DIRECT EXPENDITURE ($0's, real June 2021)
D70: =CRCP_y4 -> 2019-20 | E70: =CRCP_y5 -> 2020-21 | F70: =FRCP_y1 -> 2021-22 | G70: =FRCP_y2 -> 2022-23 | H70: =FRCP_y3 -> 2023-24 | I70: =FRCP_y4 -> 2024-25 | J70: =FRCP_y5 -> 2025-26
B71: Subtransmission Substations, Switching Stations, Zone Substations | D71: 83755.25196 | E71: 438323.2659 | F71: 5407771.838 | G71: 21727527.9 | H71: 0 | I71: 0 | J71: 0
B72: Subtransmission Lines | D72: 18384.63849 | E72: 96228.6407 | F72: 1187599.439 | G72: 4772951.322 | H72: 0 | I72: 0 | J72: 0
B73: HV Feeders | D73: 1460.239339 | E73: 46528.69867 | F73: 1807110.593 | G73: 2228957.657 | H73: 1078448.064 | I73: 2131209.324 | J73: 0
B74: HV Feeders - Land Purchases and Easements | D74: 0 | E74: 0 | F74: 0 | G74: 0 | H74: 0 | I74: 0 | J74: 0
B75: Distribution Substations | D75: 0 | E75: 0 | F75: 0 | G75: 0 | H75: 0 | I75: 0 | J75: 0
B76: Distribution Substations - Land Purchases and Easements | D76: 0 | E76: 0 | F76: 0 | G76: 0 | H76: 0 | I76: 0 | J76: 0
B77: LV Feeders | D77: 0 | E77: 0 | F77: 0 | G77: 0 | H77: 0 | I77: 0 | J77: 0
B78: LV Feeders - Land Purchases and Easements | D78: 0 | E78: 0 | F78: 0 | G78: 0 | H78: 0 | I78: 0 | J78: 0
B79: Other Assets | D79: 0 | E79: 0 | F79: 0 | G79: 0 | H79: 0 | I79: 0 | J79: 0

Sheet 2.5 Connections
B1: =INDEX(dms_Worksheet_List,MATCH(dms_Model,dms_Model_List)) -> REGULATORY REPORTING STATEMENT
B2: =INDEX(dms_TradingNameFull_List,MATCH(dms_TradingName,dms_TradingName_List)) -> Jemena Electricity
B3: =dms_Header_Span -> 2021-22 to 2025-26
B4: 2.5 CONNECTIONS
B6: There are THREE tables on this worksheet - each has been 'grouped' (and sub-grouped) for easy navigation. See the Instructions sheet on how to group or ungroup tables.
B8: 2.5.1 - DESCRIPTOR METRICS
B9: VOLUMES AND EXPENDITURE - ALL
B10: CONNECTION SUBCATEGORY | C10: DESCRIPTOR METRIC | D10: Unit of Measure | E10: =CONCATENATE("VOLUMES and EXPENDITURE (0's, real ", dms_DollarReal, ")") -> VOLUMES and EXPENDITURE (0's, real June 2021)
E11: =CRCP_y4 -> 2019-20 | F11: =CRCP_y5 -> 2020-21 | G11: =FRCP_y1 -> 2021-22 | H11: =FRCP_y2 -> 2022-23 | I11: =FRCP_y3 -> 2023-24 | J11: =FRCP_y4 -> 2024-25 | K11: =FRCP_y5 -> 2025-26
B12: RESIDENTIAL | C12: Underground connections | D12: 0's | E12: 8668.177733 | F12: 8588.792171 | G12: 8117.546793 | H12: 7895.329032 | I12: 8042.240509 | J12: 8192.374215 | K12: 8046.68913
C13: Overhead connections | D13: 0's | E13: 189.8523018 | F13: 188.1135821 | G13: 177.792264 | H13: 172.9252026 | I13: 176.1428895 | J13: 179.4311503 | K13: 176.2403241
C14: Distribution substations installed | D14: MVA added | E14: 0 | F14: 0 | G14: 0 | H14: 0 | I14: 0 | J14: 0 | K14: 0
C15: Distribution substations installed | D15: 0's | E15: 0 | F15: 0 | G15: 0 | H15: 0 | I15: 0 | J15: 0 | K15: 0
C16: Distribution substations installed | D16: total spend $0s | E16: 0 | F16: 0 | G16: 0 | H16: 0 | I16: 0 | J16: 0 | K16: 0
C17: Augmentation HV | D17: net circuit KM added | E17: 0 | F17: 0 | G17: 0 | H17: 0 | I17: 0 | J17: 0 | K17: 0
C18: Augmentation HV | D18: total spend $0s | E18: 0 | F18: 0 | G18: 0 | H18: 0 | I18: 0 | J18: 0 | K18: 0
C19: Augmentation LV | D19: net circuit KM added | E19: 28.45882094 | F19: 28.19818721 | G19: 26.65102375 | H19: 25.92145225 | I19: 26.40378285 | J19: 26.89669248 | K19: 26.41838829
C20: Augmentation LV | D20: total spend $0s | E20: 17275853.48 | F20: 15959464.86 | G20: 15842268.9 | H20: 15413141.34 | I20: 15704791.56 | J20: 16002949.84 | K20: 15723281.38
C21: Mean days to connect residential customer with LV single phase connection | D21: 0's | E21: 7.86 | F21: 8 | G21: 8 | H21: 8 | I21: 8 | J21: 8 | K21: 8
C22: Volume of GSL breaches for residential customers | D22: 0's | E22: 57.6 | F22: 100 | G22: 100 | H22: 100 | I22: 100 | J22: 100 | K22: 100
C23: Volume of customer complaints relating to connection services | D23: 0's | E23: 122.4 | F23: 110 | G23: 110 | H23: 110 | I23: 110 | J23: 110 | K23: 110
C24: GSL payments | D24: $0's | E24: 11000 | F24: 15000 | G24: 15000 | H24: 15000 | I24: 15000 | J24: 15000 | K24: 15000
B25: COMMERCIAL/INDUSTRIAL | C25: Underground connections | D25: 0's | E25: 154.5944269 | F25: 154.6456241 | G25: 166.833525 | H25: 170.0134408 | I25: 179.0898949 | J25: 200.2971421 | K25: 188.7034784
C26: Overhead connections | D26: 0's | E26: 23.98879038 | F26: 23.99673478 | G26: 25.88796077 | H26: 26.38139599 | I26: 27.78981128 | J26: 31.08059101 | K26: 29.28157423
C27: Distribution substations installed | D27: MVA added | E27: 45.70664194 | F27: 45.46583837 | G27: 52.22735549 | H27: 53.16751406 | I27: 56.84680697 | J27: 67.70076499 | K27: 60.11914483
C28: Distribution substations installed | D28: 0's | E28: 80.85110832 | F28: 80.42514757 | G28: 92.38568831 | H28: 94.04874775 | I28: 100.5570996 | J28: 119.7568155 | K28: 106.3455832
C29: Distribution substations installed | D29: total spend $0s | E29: 3759800.254 | F29: 2967449.377 | G29: 3628557.133 | H29: 3707775.012 | I29: 3975176.518 | J29: 4748103.308 | K29: 4236960.934
C30: Augmentation HV | D30: net circuit KM added | E30: 9.988165314 | F30: 9.935543075 | G30: 11.35871195 | H30: 14.80916259 | I30: 15.59603376 | J30: 14.6483587 | K30: 13.06313072
C31: Augmentation HV | D31: total spend $0s | E31: 8450355.545 | F31: 14394086.01 | G31: 16026523.3 | H31: 11583263.92 | I31: 11149629.19 | J31: 8945287.206 | K31: 8016184.006
C32: Augmentation LV | D32: net circuit KM added | E32: 9.169786201 | F32: 9.121475558 | G32: 9.807507191 | H32: 9.996124265 | I32: 10.52286165 | J32: 11.78155687 | K32: 11.14240601
C33: Augmentation LV | D33: total spend $0s | E33: 5628255.148 | F33: 4442140.833 | G33: 5084212.266 | H33: 5201490.078 | I33: 5490517.909 | J33: 6165359.098 | K33: 5859354.228
B34: SUBDIVISION | C34: Underground connections | D34: 0's | E34: 2746.745254 | F34: 2721.589804 | G34: 2572.263031 | H34: 2501.847357 | I34: 2548.40021 | J34: 2595.974113 | K34: 2549.809875
C35: Overhead connections | D35: 0's | E35: 0 | F35: 0 | G35: 0 | H35: 0 | I35: 0 | J35: 0 | K35: 0
C36: Distribution substations installed | D36: MVA added | E36: 17.20547473 | F36: 16.98150101 | G36: 15.67775382 | H36: 15.06964438 | I36: 15.46285562 | J36: 15.87070767 | K36: 15.48073157
C37: Distribution substations installed | D37: 0's | E37: 34.41094947 | F37: 33.96300202 | G37: 31.35550765 | H37: 30.13928876 | I37: 30.92571125 | J37: 31.74141534 | K37: 30.96146313
C38: Distribution substations installed | D38: total spend $0s | E38: 1483749.082 | F38: 1222001.544 | G38: 1181245.154 | H38: 1136909.278 | I38: 1168166.871 | J38: 1200626.774 | K38: 1172741.256
C39: Augmentation HV | D39: net circuit KM added | E39: 12.90410605 | F39: 12.73612576 | G39: 11.75831537 | H39: 11.30223328 | I39: 11.59714172 | J39: 11.90303075 | K39: 11.61054867
C40: Augmentation HV | D40: total spend $0s | E40: 4016471.081 | F40: 3307927.141 | G40: 3197600.629 | H40: 3077584.539 | I40: 3162198.049 | J40: 3250066.184 | K40: 3174580.793
C41: Augmentation LV | D41: net circuit KM added | E41: 51.84461787 | F41: 51.50396238 | G41: 49.42965955 | H41: 48.43802137 | I41: 49.11142534 | J41: 49.78744402 | K41: 49.11975711
C42: Augmentation LV | D42: total spend $0s | E42: 8203453.448 | F42: 6800417.219 | G42: 6833497.743 | H42: 6705149.08 | I42: 6807645.936 | J42: 6910839.391 | K42: 6827570.148
C43: Cost per lot | D43: $0's | E43: 4989.05881 | F43: 4163.135049 | G43: 4358.941286 | H43: 4364.631945 | I43: 4370.589366 | J43: 4376.596937 | K43: 4382.63743
B44: EMBEDDED GENERATION | C44: Underground connections | D44: 0's | E44: 2224.259458 | F44: 2059.983412 | G44: 1921.822381 | H44: 1836.68822 | I44: 1789.811539 | J44: 1747.295277 | K44: 1720.312155
C45: Overhead connections | D45: 0's | E45: 1988.739737 | F45: 1841.858357 | G45: 1718.326755 | H45: 1642.207179 | I45: 1600.294119 | J45: 1562.279768 | K45: 1538.153803
C46: Distribution substations installed | D46: MVA added | E46: 0 | F46: 0 | G46: 0 | H46: 0 | I46: 0 | J46: 0 | K46: 0
C47: Distribution substations installed | D47: 0's | E47: 0 | F47: 0 | G47: 0 | H47: 0 | I47: 0 | J47: 0 | K47: 0
C48: Distribution substations installed | D48: total spend $0's | E48: 0 | F48: 0 | G48: 0 | H48: 0 | I48: 0 | J48: 0 | K48: 0
C49: Augmentation HV | D49: net circuit KM added | E49: 0 | F49: 0 | G49: 0 | H49: 0 | I49: 0 | J49: 0 | K49: 0
C50: Augmentation HV | D50: total spend $0s | E50: 0 | F50: 0 | G50: 0 | H50: 0 | I50: 0 | J50: 0 | K50: 0
C51: Augmentation LV | D51: net circuit KM added | E51: 0 | F51: 0 | G51: 0 | H51: 0 | I51: 0 | J51: 0 | K51: 0
C52: Augmentation LV | D52: total spend $0s | E52: 0 | F52: 0 | G52: 0 | H52: 0 | I52: 0 | J52: 0 | K52: 0
B54: VOLUMES AND EXPENDITURE - STANDARD CONTROL SERVICES
B55: CONNECTION SUBCATEGORY | C55: DESCRIPTOR METRIC | D55: Unit of Measure | E55: =CONCATENATE("VOLUMES and EXPENDITURE (0's, real ", dms_DollarReal, ")") -> VOLUMES and EXPENDITURE (0's, real June 2021)
E56: =CRCP_y4 -> 2019-20 | F56: =CRCP_y5 -> 2020-21 | G56: =FRCP_y1 -> 2021-22 | H56: =FRCP_y2 -> 2022-23 | I56: =FRCP_y3 -> 2023-24 | J56: =FRCP_y4 -> 2024-25 | K56: =FRCP_y5 -> 2025-26
B57: RESIDENTIAL | C57: Underground connections | D57: 0's | E57: 0 | F57: 0 | G57: 0 | H57: 0 | I57: 0 | J57: 0 | K57: 0
C58: Overhead connections | D58: 0's | E58: 0 | F58: 0 | G58: 0 | H58: 0 | I58: 0 | J58: 0 | K58: 0
C59: Distribution substations installed | D59: MVA added | E59: 0 | F59: 0 | G59: 0 | H59: 0 | I59: 0 | J59: 0 | K59: 0
C60: Distribution substations installed | D60: 0's | E60: 0 | F60: 0 | G60: 0 | H60: 0 | I60: 0 | J60: 0 | K60: 0
C61: Distribution substations installed | D61: total spend $0s | E61: 0 | F61: 0 | G61: 0 | H61: 0 | I61: 0 | J61: 0 | K61: 0
C62: Augmentation HV | D62: net circuit KM added | E62: 0 | F62: 0 | G62: 0 | H62: 0 | I62: 0 | J62: 0 | K62: 0
C63: Augmentation HV | D63: total spend $0s | E63: 0 | F63: 0 | G63: 0 | H63: 0 | I63: 0 | J63: 0 | K63: 0
C64: Augmentation LV | D64: net circuit KM added | E64: 26.05543067 | F64: 25.81680785 | G64: 24.40030468 | H64: 23.73234659 | I64: 24.17394365 | J64: 24.62522631 | K64: 24.18731563
C65: Augmentation LV | D65: total spend $0s | E65: 12055930.14 | F65: 10433204.58 | G65: 10312388.07 | H65: 10033681.94 | I65: 10224212.91 | J65: 10419010.76 | K65: 10237607.51
C66: Mean days to connect residential customer with LV single phase connection | D66: 0's | E66: 7.86 | F66: 8 | G66: 8 | H66: 8 | I66: 8 | J66: 8 | K66: 8
C67: Volume of GSL breaches for residential customers | D67: 0's | E67: 57.6 | F67: 100 | G67: 100 | H67: 100 | I67: 100 | J67: 100 | K67: 100
C68: Volume of customer complaints relating to connection services | D68: 0's | E68: 122.4 | F68: 110 | G68: 110 | H68: 110 | I68: 110 | J68: 110 | K68: 110
C69: GSL payments | D69: $0's | E69: 11000 | F69: 15000 | G69: 15000 | H69: 15000 | I69: 15000 | J69: 15000 | K69: 15000
B70: COMMERCIAL/INDUSTRIAL | C70: Underground connections | D70: 0's | E70: 154.5944269 | F70: 154.6456241 | G70: 166.833525 | H70: 170.0134408 | I70: 179.0898949 | J70: 200.2971421 | K70: 188.7034784
C71: Overhead connections | D71: 0's | E71: 23.98879038 | F71: 23.99673478 | G71: 25.88796077 | H71: 26.38139599 | I71: 27.78981128 | J71: 31.08059101 | K71: 29.28157423
C72: Distribution substations installed | D72: MVA added | E72: 45.70664194 | F72: 45.46583837 | G72: 52.22735549 | H72: 53.16751406 | I72: 56.84680697 | J72: 67.70076499 | K72: 60.11914483
C73: Distribution substations installed | D73: 0's | E73: 80.85110832 | F73: 80.42514757 | G73: 92.38568831 | H73: 94.04874775 | I73: 100.5570996 | J73: 119.7568155 | K73: 106.3455832
C74: Distribution substations installed | D74: total spend $0s | E74: 3759800.254 | F74: 2967449.377 | G74: 3628557.133 | H74: 3707775.012 | I74: 3975176.518 | J74: 4748103.308 | K74: 4236960.934
C75: Augmentation HV | D75: net circuit KM added | E75: 9.988165314 | F75: 9.935543075 | G75: 11.35871195 | H75: 14.80916259 | I75: 15.59603376 | J75: 14.6483587 | K75: 13.06313072
C76: Augmentation HV | D76: total spend $0s | E76: 8450355.545 | F76: 14394086.01 | G76: 16026523.3 | H76: 11583263.92 | I76: 11149629.19 | J76: 8945287.206 | K76: 8016184.006
C77: Augmentation LV | D77: net circuit KM added | E77: 9.169786201 | F77: 9.121475558 | G77: 9.807507191 | H77: 9.996124265 | I77: 10.52286165 | J77: 11.78155687 | K77: 11.14240601
C78: Augmentation LV | D78: total spend $0s | E78: 5628255.148 | F78: 4442140.833 | G78: 5084212.266 | H78: 5201490.078 | I78: 5490517.909 | J78: 6165359.098 | K78: 5859354.228
B79: SUBDIVISION | C79: Underground connections | D79: 0's | E79: 2746.745254 | F79: 2721.589804 | G79: 2572.263031 | H79: 2501.847357 | I79: 2548.40021 | J79: 2595.974113 | K79: 2549.809875
C80: Overhead connections | D80: 0's | E80: 0 | F80: 0 | G80: 0 | H80: 0 | I80: 0 | J80: 0 | K80: 0
C81: Distribution substations installed | D81: MVA added | E81: 17.20547473 | F81: 16.98150101 | G81: 15.67775382 | H81: 15.06964438 | I81: 15.46285562 | J81: 15.87070767 | K81: 15.48073157
C82: Distribution substations installed | D82: 0's | E82: 34.41094947 | F82: 33.96300202 | G82: 31.35550765 | H82: 30.13928876 | I82: 30.92571125 | J82: 31.74141534 | K82: 30.96146313
C83: Distribution substations installed | D83: total spend $0s | E83: 1483749.082 | F83: 1222001.544 | G83: 1181245.154 | H83: 1136909.278 | I83: 1168166.871 | J83: 1200626.774 | K83: 1172741.256
C84: Augmentation HV | D84: net circuit KM added | E84: 12.90410605 | F84: 12.73612576 | G84: 11.75831537 | H84: 11.30223328 | I84: 11.59714172 | J84: 11.90303075 | K84: 11.61054867
C85: Augmentation HV | D85: total spend $0s | E85: 4016471.081 | F85: 3307927.141 | G85: 3197600.629 | H85: 3077584.539 | I85: 3162198.049 | J85: 3250066.184 | K85: 3174580.793
C86: Augmentation LV | D86: net circuit KM added | E86: 51.84461787 | F86: 51.50396238 | G86: 49.42965955 | H86: 48.43802137 | I86: 49.11142534 | J86: 49.78744402 | K86: 49.11975711
C87: Augmentation LV | D87: total spend $0s | E87: 8203453.448 | F87: 6800417.219 | G87: 6833497.743 | H87: 6705149.08 | I87: 6807645.936 | J87: 6910839.391 | K87: 6827570.148
C88: Cost per lot | D88: $0's | E88: 4989.05881 | F88: 4163.135049 | G88: 4358.941286 | H88: 4364.631945 | I88: 4370.589366 | J88: 4376.596937 | K88: 4382.63743
B89: EMBEDDED GENERATION | C89: Underground connections | D89: 0's | E89: 0 | F89: 0 | G89: 0 | H89: 0 | I89: 0 | J89: 0 | K89: 0
C90: Overhead connections | D90: 0's | E90: 0 | F90: 0 | G90: 0 | H90: 0 | I90: 0 | J90: 0 | K90: 0
C91: Distribution substations installed | D91: MVA added | E91: 0 | F91: 0 | G91: 0 | H91: 0 | I91: 0 | J91: 0 | K91: 0
C92: Distribution substations installed | D92: 0's | E92: 0 | F92: 0 | G92: 0 | H92: 0 | I92: 0 | J92: 0 | K92: 0
C93: Distribution substations installed | D93: total spend $0s | E93: 0 | F93: 0 | G93: 0 | H93: 0 | I93: 0 | J93: 0 | K93: 0
C94: Augmentation HV | D94: net circuit KM added | E94: 0 | F94: 0 | G94: 0 | H94: 0 | I94: 0 | J94: 0 | K94: 0
C95: Augmentation HV | D95: total spend $0s | E95: 0 | F95: 0 | G95: 0 | H95: 0 | I95: 0 | J95: 0 | K95: 0
C96: Augmentation LV | D96: net circuit KM added | E96: 0 | F96: 0 | G96: 0 | H96: 0 | I96: 0 | J96: 0 | K96: 0
C97: Augmentation LV | D97: total spend $0s | E97: 0 | F97: 0 | G97: 0 | H97: 0 | I97: 0 | J97: 0 | K97: 0
B101: 2.5.2 - COST METRICS BY CONNECTION CLASSIFICATION
B102: EXPENDITURE - ALL
B103: CONNECTION SUBCATEGORY | C103: CONNECTION CLASSICIATION | E103: =CONCATENATE("EXPENDITURE ($'0s, real ", dms_DollarReal,")") -> EXPENDITURE ($'0s, real June 2021)
E104: =CRCP_y4 -> 2019-20 | F104: =CRCP_y5 -> 2020-21 | G104: =FRCP_y1 -> 2021-22 | H104: =FRCP_y2 -> 2022-23 | I104: =FRCP_y3 -> 2023-24 | J104: =FRCP_y4 -> 2024-25 | K104: =FRCP_y5 -> 2025-26
B105: RESIDENTIAL | C105: Simple connection LV | E105: 17275853.48 | F105: 15959464.86 | G105: 15842268.9 | H105: 15413141.34 | I105: 15704791.56 | J105: 16002949.84 | K105: 15723281.38
C106: Complex connection LV | E106: 0 | F106: 0 | G106: 0 | H106: 0 | I106: 0 | J106: 0 | K106: 0
C107: Complex connection HV | E107: 0 | F107: 0 | G107: 0 | H107: 0 | I107: 0 | J107: 0 | K107: 0
B108: COMMERCIAL/INDUSTRIAL | C108: Simple connection LV | E108: 2740249.045 | F108: 2162761.256 | G108: 2297017.618 | H108: 2353445.996 | I108: 2437075.366 | J108: 2518210.206 | K108: 2604827.868
C109: Complex connection HV (customer connected at LV, minor HV works) | E109: 9424355.275 | F109: 7438240.145 | G109: 7899979.073 | H109: 8094049.417 | I109: 8381670.319 | J109: 8660711.946 | K109: 8958610.278
C110: Complex connection HV (customer connected at LV, upstream asset works) | E110: 4117972.622 | F110: 3250139.493 | G110: 5169627.601 | H110: 5260890.1 | I110: 5936415.81 | J110: 8441359.321 | K110: 6302390.408
C111: Complex connection HV (customer connected at HV) | E111: 1555834.005 | F111: 8952535.324 | G111: 9372668.406 | H111: 4784143.493 | I111: 3860162.121 | J111: 238468.1403 | K111: 246670.614
C112: Complex connection sub-transmission | E112: 109258.3821 | F112: 0 | G112: 0 | H112: 0 | I112: 1791765.149 | J112: 3594076.54 | K112: 1805811.472
B113: SUBDIVISION | C113: Complex connection LV | E113: 4027147.294 | F113: 3329689.041 | G113: 3295011.263 | H113: 3208994.288 | I113: 3273166.857 | J113: 3338853.913 | K113: 3284005.308
C114: Complex connection HV (no upstream asset works) | E114: 9676526.317 | F114: 8000656.862 | G114: 7917332.263 | H114: 7710648.608 | I114: 7864844 | J114: 8022678.437 | K114: 7890886.89
C115: Complex connection HV (with upstream asset works) | E115: 0 | F115: 0 | G115: 0 | H115: 0 | I115: 0 | J115: 0 | K115: 0
B116: EMBEDDED GENERATION | C116: Simple connection LV | E116: 0 | F116: 0 | G116: 0 | H116: 0 | I116: 0 | J116: 0 | K116: 0
C117: Complex connection HV (small capacity) | E117: 0 | F117: 0 | G117: 0 | H117: 0 | I117: 0 | J117: 0 | K117: 0
C118: Complex connection HV (large capacity) | E118: 0 | F118: 0 | G118: 0 | H118: 0 | I118: 0 | J118: 0 | K118: 0
B120: EXPENDITURE - STANDARD CONTROL SERVICES
E121: =CONCATENATE("EXPENDITURE ($'0s, real ", dms_DollarReal,")") -> EXPENDITURE ($'0s, real June 2021)
E122: =CRCP_y4 -> 2019-20 | F122: =CRCP_y5 -> 2020-21 | G122: =FRCP_y1 -> 2021-22 | H122: =FRCP_y2 -> 2022-23 | I122: =FRCP_y3 -> 2023-24 | J122: =FRCP_y4 -> 2024-25 | K122: =FRCP_y5 -> 2025-26
B123: RESIDENTIAL | C123: Simple connection LV | E123: 3537536.749 | F123: 2932390.144 | G123: 3031217.401 | H123: 2951833.242 | I123: 3010589.481 | J123: 3070722.366 | K123: 3019993.815
C124: Complex connection LV | E124: 0 | F124: 0 | G124: 0 | H124: 0 | I124: 0 | J124: 0 | K124: 0
C125: Complex connection HV | E125: 0 | F125: 0 | G125: 0 | H125: 0 | I125: 0 | J125: 0 | K125: 0
B126: COMMERCIAL/INDUSTRIAL | C126: Simple connection LV | E126: 1819367.801 | F126: 1199061.516 | G126: 1319754.011 | H126: 1474262.035 | I126: 1569743.396 | J126: 1730414.513 | K126: 1793893.755
C127: Complex connection HV (customer connected at LV, minor HV works) | E127: 6257230.002 | F127: 4123852.079 | G127: 4538941.708 | H127: 5070330.821 | I127: 5398713.479 | J127: 5951298.908 | K127: 6169618.819
C128: Complex connection HV (customer connected at LV, upstream asset works) | E128: 2734097.038 | F128: 1801917.422 | G128: 2970215.252 | H128: 3295563.426 | I128: 3823701.819 | J128: 5800568.455 | K128: 4340332.402
C129: Complex connection HV (customer connected at HV) | E129: 1032984.319 | F129: 4963396.003 | G129: 5385076.992 | H129: 2996916.495 | I129: 2486367.094 | J129: 163865.8799 | K129: 169877.2036
C130: Complex connection sub-transmission | E130: 72541.28333 | F130: 0 | G130: 0 | H130: 0 | I130: 1154092.954 | J130: 2469707.331 | K130: 1243626.868
B131: SUBDIVISION | C131: Complex connection LV | E131: 1013263.297 | F131: 796175.0178 | G131: 835685.2583 | H131: 816992.3074 | I131: 836655.9597 | J131: 856857.8788 | K131: 846146.6377
C132: Complex connection HV (no upstream asset works) | E132: 2434693.406 | F132: 1913068.47 | G132: 2008004.626 | H132: 1963088.754 | I132: 2010337.05 | J132: 2058878.707 | K132: 2033141.48
C133: Complex connection HV (with upstream asset works) | E133: 0 | F133: 0 | G133: 0 | H133: 0 | I133: 0 | J133: 0 | K133: 0
B134: EMBEDDED GENERATION | C134: Simple connection LV | E134: 0 | F134: 0 | G134: 0 | H134: 0 | I134: 0 | J134: 0 | K134: 0
C135: Complex connection HV (small capacity) | E135: 0 | F135: 0 | G135: 0 | H135: 0 | I135: 0 | J135: 0 | K135: 0
C136: Complex connection HV (large capacity) | E136: 0 | F136: 0 | G136: 0 | H136: 0 | I136: 0 | J136: 0 | K136: 0
B138: EXPENDITURE - STANDARD CONTROL SERVICES - CAPITAL CONTRIBUTIONS
E139: =CONCATENATE("EXPENDITURE ($'0s, real ", dms_DollarReal,")") -> EXPENDITURE ($'0s, real June 2021)
E140: =CRCP_y4 -> 2019-20 | F140: =CRCP_y5 -> 2020-21 | G140: =FRCP_y1 -> 2021-22 | H140: =FRCP_y2 -> 2022-23 | I140: =FRCP_y3 -> 2023-24 | J140: =FRCP_y4 -> 2024-25 | K140: =FRCP_y5 -> 2025-26
B141: RESIDENTIAL | C141: Simple connection LV | E141: 8518393.39 | F141: 7500814.44 | G141: 7281170.673 | H141: 7081848.701 | I141: 7213623.431 | J141: 7348288.393 | K141: 7217613.696
C142: Complex connection LV | E142: 0 | F142: 0 | G142: 0 | H142: 0 | I142: 0 | J142: 0 | K142: 0
C143: Complex connection HV | E143: 0 | F143: 0 | G143: 0 | H143: 0 | I143: 0 | J143: 0 | K143: 0
B144: COMMERCIAL/INDUSTRIAL | C144: Simple connection LV | E144: 920881.2433 | F144: 963699.7404 | G144: 977263.6069 | H144: 879183.9601 | I144: 867331.9706 | J144: 787795.6922 | K144: 810934.1127
C145: Complex connection HV (customer connected at LV, minor HV works) | E145: 3167125.273 | F145: 3314388.066 | G145: 3361037.365 | H145: 3023718.595 | I145: 2982956.84 | J145: 2709413.038 | K145: 2788991.459
C146: Complex connection HV (customer connected at LV, upstream asset works) | E146: 1383875.584 | F146: 1448222.071 | G146: 2199412.349 | H146: 1965326.675 | I146: 2112713.991 | J146: 2640790.866 | K146: 1962058.006
C147: Complex connection HV (customer connected at HV) | E147: 522849.6862 | F147: 3989139.321 | G147: 3987591.414 | H147: 1787226.998 | I147: 1373795.027 | J147: 74602.26048 | K147: 76793.4104
C148: Complex connection sub-transmission | E148: 36717.09873 | F148: 0 | G148: 0 | H148: 0 | I148: 637672.1946 | J148: 1124369.208 | K148: 562184.6042
B149: SUBDIVISION | C149: Complex connection LV | E149: 3013883.997 | F149: 2533514.023 | G149: 2459326.004 | H149: 2392001.98 | I149: 2436510.897 | J149: 2481996.034 | K149: 2437858.67
C150: Complex connection HV (no upstream asset works) | E150: 7241832.911 | F150: 6087588.392 | G150: 5909327.638 | H150: 5747559.854 | I150: 5854506.949 | J150: 5963799.73 | K150: 5857745.41
C151: Complex connection HV (with upstream asset works) | E151: 0 | F151: 0 | G151: 0 | H151: 0 | I151: 0 | J151: 0 | K151: 0
B152: EMBEDDED GENERATION | C152: Simple connection LV | E152: 0 | F152: 0 | G152: 0 | H152: 0 | I152: 0 | J152: 0 | K152: 0
C153: Complex connection HV (small capacity) | E153: 0 | F153: 0 | G153: 0 | H153: 0 | I153: 0 | J153: 0 | K153: 0
C154: Complex connection HV (large capacity) | E154: 0 | F154: 0 | G154: 0 | H154: 0 | I154: 0 | J154: 0 | K154: 0
B158: 2.5.3 - VOLUMES BY CONNECTION CLASSIFICATION
B159: NEW CONNECTIONS - ALL
E160: VOLUMES (0's)
E161: =CRCP_y4 -> 2019-20 | F161: =CRCP_y5 -> 2020-21 | G161: =FRCP_y1 -> 2021-22 | H161: =FRCP_y2 -> 2022-23 | I161: =FRCP_y3 -> 2023-24 | J161: =FRCP_y4 -> 2024-25 | K161: =FRCP_y5 -> 2025-26
B162: RESIDENTIAL | C162: Simple connection LV | E162: 8858.030035 | F162: 8776.905753 | G162: 8295.339056 | H162: 8068.254235 | I162: 8218.383398 | J162: 8371.805365 | K162: 8222.929454
C163: Complex connection LV | E163: 0 | F163: 0 | G163: 0 | H163: 0 | I163: 0 | J163: 0 | K163: 0
C164: Complex connection HV | E164: 0 | F164: 0 | G164: 0 | H164: 0 | I164: 0 | J164: 0 | K164: 0
B165: COMMERCIAL/INDUSTRIAL | C165: Simple connection LV | E165: 31.98505384 | F165: 31.8165419 | G165: 31.74467651 | H165: 32.40259013 | I165: 33.46271129 | J165: 34.47528818 | K165: 35.48786507
C166: Complex connection HV (customer connected at LV, minor HV works) | E166: 80.78912178 | F166: 80.36348761 | G166: 80.18196715 | H166: 81.84375156 | I166: 84.52144777 | J166: 87.07905477 | K166: 89.63666178
C167: Complex connection HV (customer connected at LV, upstream asset works) | E167: 23.18296538 | F167: 23.06082688 | G167: 34.45833744 | H167: 34.93519731 | I167: 39.31379423 | J167: 55.73869459 | K167: 41.41280304
C168: Complex connection HV (customer connected at HV) | E168: 0.7025141024 | F168: 1.698812936 | G168: 1.697234497 | H168: 1.711684796 | I168: 1.734969111 | J168: 0.7572091719 | K168: 0.7794492328
C169: Complex connection sub-transmission | E169: 0 | F169: 0 | G169: 0 | H169: 0 | I169: 0 | J169: 1 | K169: 1
B170: SUBDIVISION | C170: Complex connection LV | E170: 697.4692086 | F170: 691.0815933 | G170: 653.1636881 | H170: 635.2833389 | I170: 647.1043045 | J170: 659.184541 | K170: 647.4622547
C171: Complex connection HV (no upstream asset works) | E171: 2049.276046 | F171: 2030.508211 | G171: 1919.099343 | H171: 1866.564018 | I171: 1901.295905 | J171: 1936.789572 | K171: 1902.34762
C172: Complex connection HV (with upstream asset works) | E172: 0 | F172: 0 | G172: 0 | H172: 0 | I172: 0 | J172: 0 | K172: 0
B173: EMBEDDED GENERATION | C173: Simple connection LV | E173: 4212.999195 | F173: 3901.841769 | G173: 3640.149135 | H173: 3478.895399 | I173: 3390.105658 | J173: 3309.575045 | K173: 3258.465958
C174: Complex connection HV (small capacity) | E174: 0 | F174: 0 | G174: 0 | H174: 0 | I174: 0 | J174: 0 | K174: 0
C175: Complex connection HV (large capacity) | E175: 0 | F175: 0 | G175: 0 | H175: 0 | I175: 0 | J175: 0 | K175: 0
B177: NEW CONNECTIONS - STANDARD CONTROL SERVICES
E178: VOLUMES (0's)
E179: =CRCP_y4 -> 2019-20 | F179: =CRCP_y5 -> 2020-21 | G179: =FRCP_y1 -> 2021-22 | H179: =FRCP_y2 -> 2022-23 | I179: =FRCP_y3 -> 2023-24 | J179: =FRCP_y4 -> 2024-25 | K179: =FRCP_y5 -> 2025-26
B180: RESIDENTIAL | C180: Simple connection LV | E180: 0 | F180: 0 | G180: 0 | H180: 0 | I180: 0 | J180: 0 | K180: 0
C181: Complex connection LV | E181: 0 | F181: 0 | G181: 0 | H181: 0 | I181: 0 | J181: 0 | K181: 0
C182: Complex connection HV | E182: 0 | F182: 0 | G182: 0 | H182: 0 | I182: 0 | J182: 0 | K182: 0
B183: COMMERCIAL/INDUSTRIAL | C183: Simple connection LV | E183: 31.98505384 | F183: 31.8165419 | G183: 31.74467651 | H183: 32.40259013 | I183: 33.46271129 | J183: 34.47528818 | K183: 35.48786507
C184: Complex connection HV (customer connected at LV, minor HV works) | E184: 80.78912178 | F184: 80.36348761 | G184: 80.18196715 | H184: 81.84375156 | I184: 84.52144777 | J184: 87.07905477 | K184: 89.63666178
C185: Complex connection HV (customer connected at LV, upstream asset works) | E185: 23.18296538 | F185: 23.06082688 | G185: 34.45833744 | H185: 34.93519731 | I185: 39.31379423 | J185: 55.73869459 | K185: 41.41280304
C186: Complex connection HV (customer connected at HV) | E186: 0.7025141024 | F186: 1.698812936 | G186: 1.697234497 | H186: 1.711684796 | I186: 1.734969111 | J186: 0.7572091719 | K186: 0.7794492328
C187: Complex connection sub-transmission | E187: 0 | F187: 0 | G187: 0 | H187: 0 | I187: 0 | J187: 1 | K187: 1
B188: SUBDIVISION | C188: Complex connection LV | E188: 697.4692086 | F188: 691.0815933 | G188: 653.1636881 | H188: 635.2833389 | I188: 647.1043045 | J188: 659.184541 | K188: 647.4622547
C189: Complex connection HV (no upstream asset works) | E189: 2049.276046 | F189: 2030.508211 | G189: 1919.099343 | H189: 1866.564018 | I189: 1901.295905 | J189: 1936.789572 | K189: 1902.34762
C190: Complex connection HV (with upstream asset works) | E190: 0 | F190: 0 | G190: 0 | H190: 0 | I190: 0 | J190: 0 | K190: 0
B191: EMBEDDED GENERATION | C191: Simple connection LV | E191: 0 | F191: 0 | G191: 0 | H191: 0 | I191: 0 | J191: 0 | K191: 0
C192: Complex connection HV (small capacity) | E192: 0 | F192: 0 | G192: 0 | H192: 0 | I192: 0 | J192: 0 | K192: 0
C193: Complex connection HV (large capacity) | E193: 0 | F193: 0 | G193: 0 | H193: 0 | I193: 0 | J193: 0 | K193: 0
B195: EXISTING CONNECTIONS
E196: VOLUMES (0's)
E197: =CRCP_y4 -> 2019-20 | F197: =CRCP_y5 -> 2020-21 | G197: =FRCP_y1 -> 2021-22 | H197: =FRCP_y2 -> 2022-23 | I197: =FRCP_y3 -> 2023-24 | J197: =FRCP_y4 -> 2024-25 | K197: =FRCP_y5 -> 2025-26
B198: RESIDENTIAL | C198: Simple connection LV | E198: 0 | F198: 0
C199: Complex connection LV | E199: 0 | F199: 0
C200: Complex connection HV | E200: 0 | F200: 0
B201: COMMERCIAL/INDUSTRIAL | C201: Simple connection LV | E201: 14.21557948 | F201: 14.14068529
C202: Complex connection HV (customer connected at LV, minor HV works) | E202: 21.38535577 | F202: 21.2726879
C203: Complex connection HV (customer connected at LV, upstream asset works) | E203: 6.136667307 | F203: 6.104336527
C204: Complex connection HV (customer connected at HV) | E204: 0.1859596154 | F204: 0.1849798947
C205: Complex connection sub-transmission | E205: 0 | F205: 0
B206: SUBDIVISION | C206: Complex connection LV | E206: 0 | F206: 0
C207: Complex connection HV (no upstream asset works) | E207: 0 | F207: 0
C208: Complex connection HV (with upstream asset works) | E208: 0 | F208: 0
B209: EMBEDDED GENERATION | C209: Simple connection LV | E209: 0 | F209: 0
C210: Complex connection HV (small capacity) | E210: 0 | F210: 0
C211: Complex connection HV (large capacity) | E211: 0 | F211: 0

Sheet 2.6 Non-network
B1: =INDEX(dms_Worksheet_List,MATCH(dms_Model,dms_Model_List)) -> REGULATORY REPORTING STATEMENT
B2: =INDEX(dms_TradingNameFull_List,MATCH(dms_TradingName,dms_TradingName_List)) -> Jemena Electricity
B3: =dms_Header_Span -> 2021-22 to 2025-26
B4: 2.6 NON NETWORK EXPENDITURE
B6: There are THREE tables on this worksheet - each has been 'grouped' (and sub-grouped) for easy navigation. See the Instructions sheet on how to group or ungroup tables.
B8: 2.6.1 - NON-NETWORK EXPENDITURE
E9: =CONCATENATE("EXPENDITURE ($'0s, real ", dms_DollarReal,")") -> EXPENDITURE ($'0s, real June 2021)
B10: SERVICE SUBCATEGORY | C10: ASSET CATEGORY | E10: =CRCP_y4 -> 2019-20 | F10: =CRCP_y5 -> 2020-21 | G10: =FRCP_y1 -> 2021-22 | H10: =FRCP_y2 -> 2022-23 | I10: =FRCP_y3 -> 2023-24 | J10: =FRCP_y4 -> 2024-25 | K10: =FRCP_y5 -> 2025-26
B11: OPEX
B12: IT & COMMUNICATIONS | C12: Total IT and communications | E12: 5440627.036 | F12: 5762506.61 | G12: 5964692.83 | H12: 6053137.534 | I12: 6145567.545 | J12: 6236010.51 | K12: 6328322.946
B13: MOTOR VEHICLES | C13: Car | E13: 299809.8754 | F13: 317547.2933 | G13: 296776.8274 | H13: 301575.4464 | I13: 306589.4528 | J13: 311492.5472 | K13: 316497.4551
C14: Light commercial vehicle | E14: 179619.5367 | F14: 190246.2273 | G14: 177802.4029 | H14: 180677.3106 | I14: 183681.2594 | J14: 186618.7595 | K14: 189617.2572
C15: Elevated work platform (LCV) | E15: 0 | F15: 0 | G15: 0 | H15: 0 | I15: 0 | J15: 0 | K15: 0
C16: Elevated work platform (HCV) | E16: 251781.744 | F16: 266677.711 | G16: 249234.576 | H16: 253264.4788 | I16: 257475.265 | J16: 261592.9067 | K16: 265796.0519
C17: Heavy commercial vehicle | E17: 30541.29775 | F17: 32348.18873 | G17: 30232.32453 | H17: 30721.1545 | I17: 31231.92575 | J17: 31731.3985 | K17: 32241.24288
B18: BUILDINGS AND PROPERTY | C18: Total buildings and property expenditure | E18: 8430690.56 | F18: 8929468.932 | G18: 8345400.877 | H18: 8480338.635 | I18: 8621333.111 | J18: 8759208.728 | K18: 8899947.351
B19: OTHER | C19: Other expenditure | E19: 45898.54558 | F19: 48614.00544 | G19: 45434.20967 | H19: 46168.84069 | I19: 46936.44583 | J19: 47687.0712 | K19: 48453.28342
B20: OTHER - DNSP nominated | C20: Office furniture and equipment | E20: 0 | F20: 0 | G20: 0 | H20: 0 | I20: 0 | J20: 0 | K20: 0
C21: Plant and equipment | E21: 0 | F21: 0 | G21: 0 | H21: 0 | I21: 0 | J21: 0 | K21: 0
C22: Crane borer plant HCV | E22: 0 | F22: 0 | G22: 0 | H22: 0 | I22: 0 | J22: 0 | K22: 0
C23: Other fleet assets | E23: 0 | F23: 0 | G23: 0 | H23: 0 | I23: 0 | J23: 0 | K23: 0
C24: EWP Hired | E24: 0 | F24: 0 | G24: 0 | H24: 0 | I24: 0 | J24: 0 | K24: 0
C25: Car Hired | E25: 0 | F25: 0 | G25: 0 | H25: 0 | I25: 0 | J25: 0 | K25: 0
C26: LCV Hired | E26: 0 | F26: 0 | G26: 0 | H26: 0 | I26: 0 | J26: 0 | K26: 0
C27: Other Hire | E27: 0 | F27: 0 | G27: 0 | H27: 0 | I27: 0 | J27: 0 | K27: 0
B31: CAPEX
B32: IT & COMMUNICATIONS | C32: Total IT and communications | E32: 25141667.01 | F32: 25608614.05 | G32: 30518223.26 | H32: 21894351.99 | I32: 21876094.75 | J32: 12662120.19 | K32: 8773654.313
B33: MOTOR VEHICLES | C33: Car | E33: 0 | F33: 670833.3568 | G33: 501480.8182 | H33: 554917.2988 | I33: 68337.03773 | J33: 96596.71498 | K33: 418551.5108
C34: Light commercial vehicle | E34: 0 | F34: 2697822.935 | G34: 1244453.424 | H34: 0 | I34: 1125248.967 | J34: 55491.72988 | K34: 495315.0704
C35: Elevated work platform (LCV) | E35: 0 | F35: 0 | G35: 0 | H35: 0 | I35: 0 | J35: 0 | K35: 0
C36: Elevated work platform (HCV) | E36: 2494122 | F36: 2481122.718 | G36: 1556941.156 | H36: 156114.6858 | I36: 0 | J36: 0 | K36: 0
C37: Heavy commercial vehicle | E37: 51690.05663 | F37: 971547.0722 | G37: 1893072.347 | H37: 364267.6001 | I37: 459229.7103 | J37: 230267.8955 | K37: 682279.8133
B38: BUILDINGS AND PROPERTY | C38: Total buildings and property expenditure | E38: 51323.24987 | F38: 34286.00042 | G38: 233737.44 | H38: 259601.287 | I38: 189465.2353 | J38: 361550.0602 | K38: 233825.2395
B39: OTHER | C39: Other expenditure | E39: 0 | F39: 0 | G39: 0 | H39: 0 | I39: 0 | J39: 0 | K39: 0
B40: OTHER - DNSP nominated | C40: Tools and Equipment | E40: 478440.4086 | F40: 457256.4801 | G40: 478440.4086 | H40: 478440.4086 | I40: 476771.1192 | J40: 475101.8298 | K40: 475101.8298
C41: Trailers & Mobile Plant | E41: 0 | F41: 577525.0406 | G41: 143867.4478 | H41: 35966.86196 | I41: 107900.5859 | J41: 215801.1718 | K41: 251768.0337
C42: Furniture | E42: 153969.7496 | F42: 102858.0012 | G42: 701212.3199 | H42: 778803.8609 | I42: 568395.706 | J42: 1084650.181 | K42: 701475.7185
B54: 2.6.2 - ANNUAL DESCRIPTOR METRICS
B55: IT & COMMUNICATIONS
E56: VOLUMES (0's)
E57: =CRCP_y4 -> 2019-20 | F57: =CRCP_y5 -> 2020-21 | G57: =FRCP_y1 -> 2021-22 | H57: =FRCP_y2 -> 2022-23 | I57: =FRCP_y3 -> 2023-24 | J57: =FRCP_y4 -> 2024-25 | K57: =FRCP_y5 -> 2025-26
B58: Employee numbers | E58: 577.7909928 | F58: 577.7909928 | G58: 577.7909928 | H58: 577.7909928 | I58: 577.7909928 | J58: 577.7909928 | K58: 577.7909928
B59: User numbers | E59: 425.4271283 | F59: 425.4271283 | G59: 425.4271283 | H59: 425.4271283 | I59: 425.4271283 | J59: 425.4271283 | K59: 425.4271283
B60: Number of devices | E60: 610.4887859 | F60: 610.4887859 | G60: 610.4887859 | H60: 610.4887859 | I60: 610.4887859 | J60: 610.4887859 | K60: 610.4887859
B62: MOTOR VEHICLES
E63: VOLUMES (0's or %)
B64: ASSET CATEGORY | C64: DESCRIPTOR METRIC | D64: Units | E64: =CRCP_y4 -> 2019-20 | F64: =CRCP_y5 -> 2020-21 | G64: =FRCP_y1 -> 2021-22 | H64: =FRCP_y2 -> 2022-23 | I64: =FRCP_y3 -> 2023-24 | J64: =FRCP_y4 -> 2024-25 | K64: =FRCP_y5 -> 2025-26
B65: CAR | C65: Average kilometres travelled | D65: 0's | E65: 17321.53931 | F65: 17321.53931 | G65: 17321.53931 | H65: 17321.53931 | I65: 17321.53931 | J65: 17321.53931 | K65: 17321.53931
C66: Number purchased | D66: 0's
C67: Number leased | D67: 0's | E67: 0 | F67: 0 | G67: 0 | H67: 0 | I67: 0 | J67: 0 | K67: 0
C68: Number in fleet | D68: 0's | E68: 52.5 | F68: 52 | G68: 52 | H68: 52 | I68: 52 | J68: 52 | K68: 52
C69: Proportion of total fleet expenditure allocated as regulatory expenditure | D69: % | E69: 1 | F69: 1 | G69: 1 | H69: 1 | I69: 1 | J69: 1 | K69: 1
B70: LIGHT COMMERCIAL VEHICLE | C70: Average kilometres travelled | D70: 0's | E70: 16693.59602 | F70: 16693.59602 | G70: 16693.59602 | H70: 16693.59602 | I70: 16693.59602 | J70: 16693.59602 | K70: 16693.59602
C71: Number purchased | D71: 0's
C72: Number leased | D72: 0's | E72: 0 | F72: 0 | G72: 0 | H72: 0 | I72: 0 | J72: 0 | K72: 0
C73: Number in fleet | D73: 0's | E73: 74.5 | F73: 72 | G73: 72 | H73: 72 | I73: 72 | J73: 72 | K73: 72
C74: Proportion of total fleet expenditure allocated as regulatory expenditure | D74: % | E74: 1 | F74: 1 | G74: 1 | H74: 1 | I74: 1 | J74: 1 | K74: 1
B75: ELEVATED WORK PLATFORM (LCV) | C75: Average kilometres travelled | D75: 0's | E75: 0 | F75: 0 | G75: 0 | H75: 0 | I75: 0 | J75: 0 | K75: 0
C76: Number purchased | D76: 0's | E76: 0 | F76: 0 | G76: 0 | H76: 0 | I76: 0 | J76: 0 | K76: 0
C77: Number leased | D77: 0's | E77: 0 | F77: 0 | G77: 0 | H77: 0 | I77: 0 | J77: 0 | K77: 0
C78: Number in fleet | D78: 0's | E78: 0 | F78: 0 | G78: 0 | H78: 0 | I78: 0 | J78: 0 | K78: 0
C79: Proportion of total fleet expenditure allocated as regulatory expenditure | D79: % | E79: 0 | F79: 0 | G79: 0 | H79: 0 | I79: 0 | J79: 0 | K79: 0
B80: ELEVATED WORK PLATFORM (HCV) | C80: Average kilometres travelled | D80: 0's | E80: 12665.14599 | F80: 12665.14599 | G80: 12665.14599 | H80: 12665.14599 | I80: 12665.14599 | J80: 12665.14599 | K80: 12665.14599
C81: Number purchased | D81: 0's
C82: Number leased | D82: 0's | E82: 0 | F82: 0 | G82: 0 | H82: 0 | I82: 0 | J82: 0 | K82: 0
C83: Number in fleet | D83: 0's | E83: 28.66666667 | F83: 24.66666667 | G83: 23 | H83: 23 | I83: 23 | J83: 23 | K83: 23
C84: Proportion of total fleet expenditure allocated as regulatory expenditure | D84: % | E84: 1 | F84: 1 | G84: 1 | H84: 1 | I84: 1 | J84: 1 | K84: 1
B85: HEAVY COMMERCIAL VEHICLE | C85: Average kilometres travelled | D85: 0's | E85: 8203.006428 | F85: 8203.006428 | G85: 8203.006428 | H85: 8203.006428 | I85: 8203.006428 | J85: 8203.006428 | K85: 8203.006428
C86: Number purchased | D86: 0's
C87: Number leased | D87: 0's | E87: 0 | F87: 0 | G87: 0 | H87: 0 | I87: 0 | J87: 0 | K87: 0
C88: Number in fleet | D88: 0's | E88: 26 | F88: 22.5 | G88: 23 | H88: 23 | I88: 23 | J88: 23 | K88: 23
C89: Proportion of total fleet expenditure allocated as regulatory expenditure | D89: % | E89: 1 | F89: 1 | G89: 1 | H89: 1 | I89: 1 | J89: 1 | K89: 1
B92: Table 2.6.4 intentionally omitted
B94: 2.6.5 - INFORMATION & COMMUNICATIONS TECHNOLOGY - CAPEX
E95: =CONCATENATE("EXPENDITURE ($'0s, real ", dms_DollarReal,")") -> EXPENDITURE ($'0s, real June 2021)
E96: =CRCP_y4 -> 2019-20 | F96: =CRCP_y5 -> 2020-21 | G96: =FRCP_y1 -> 2021-22 | H96: =FRCP_y2 -> 2022-23 | I96: =FRCP_y3 -> 2023-24 | J96: =FRCP_y4 -> 2024-25 | K96: =FRCP_y5 -> 2025-26
B97: RECURRENT
B98: Recurrent - Base | C98: 0 | D98: 0 | E98: 9164803.668 | F98: 7535866.657 | G98: 9064648.902 | H98: 12180218.63 | I98: 9981368.594 | J98: 5225401.415 | K98: 5865289.633
B99: Recurrent - Step | C99: 0 | D99: 0 | E99: 170125.4927 | F99: 732814.6721 | G99: 1828806.247 | H99: 3280361.047 | I99: 796428.2602 | J99: 1770498.622 | K99: 916551.4262
B108: NON-RECURRENT
B109: Non-Recurrent - Compliance | C109: 0 | D109: 0 | E109: 2142132.06 | F109: 12142792.83 | G109: 11526334.36 | H109: 1107458.689 | I109: 634831.7327 | J109: 573001.6357 | K109: 66476.46098
B110: Non-Recurrent - Maintain | C110: 0 | D110: 0 | E110: 7478071.68 | F110: 635444.743 | G110: 1823694.228 | H110: 2417998.18 | I110: 4527899.502 | J110: 942659.84 | K110: 0
B111: Non-Recurrent - New Capability | C111: 0 | D111: 0 | E111: 6186534.11 | F111: 4561695.151 | G111: 6274739.527 | H111: 2908315.435 | I111: 5935566.664 | J111: 4150558.678 | K111: 1925336.793

Sheet 2.10 Overheads
B1: =INDEX(dms_Worksheet_List,MATCH(dms_Model,dms_Model_List)) -> REGULATORY REPORTING STATEMENT
B2: =INDEX(dms_TradingNameFull_List,MATCH(dms_TradingName,dms_TradingName_List)) -> Jemena Electricity
B3: =dms_Header_Span -> 2021-22 to 2025-26
B4: 2.10 OVERHEADS
B6: There are TWO tables on this worksheet. Each table has been 'grouped' (and sub-grouped) for easy navigation. See the Instructions sheet on how to group or ungroup data.
B8: 2.10.1 - NETWORK OVERHEADS EXPENDITURE
D9: =CONCATENATE("EXPENDITURE ($0's, real ", dms_DollarReal,")") -> EXPENDITURE ($0's, real June 2021)
D10: =CRCP_y4 -> 2019-20 | E10: =CRCP_y5 -> 2020-21 | F10: =FRCP_y1 -> 2021-22 | G10: =FRCP_y2 -> 2022-23 | H10: =FRCP_y3 -> 2023-24 | I10: =FRCP_y4 -> 2024-25 | J10: =FRCP_y5 -> 2025-26
B11: OPEX
B12: Standard Control Services | C12: Total | D12: 29966738.01 | E12: 31739636.76 | F12: 31960936.39 | G12: 32444484.92 | H12: 32949781.96 | I12: 33444066.7 | J12: 33948590.69
B13: Alternative Control Services | C13: Total | D13: 1432906.991 | E13: 1587845.203 | F13: 1404035.414 | G13: 1429020.43 | H13: 1455437.126 | I13: 1482770.731 | J13: 1510732.745
B14: CAPEX
B15: Standard Control Services | C15: Total | D15: 15333744.9 | E15: 20721568.22 | F15: 18652986.1 | G15: 19262711.56 | H15: 18107023.56 | I15: 17808042.37 | J15: 17351802.98
B16: Alternative Control Services | C16: Total | D16: 1203126.909 | E16: 1447710.954 | F16: 1447946.483 | G16: 1445062.783 | H16: 1456465.019 | I16: 1468202.757 | J16: 1443821.584
B17: OTHER DISTRIBUTION SERVICES
B18: Negotiated Services | C18: Total | D18: 417299.622 | E18: 429718.7224 | F18: 0 | G18: 0 | H18: 0 | I18: 0 | J18: 0
B19: Unregulated Distribution Services | C19: Total | D19: 170945.139 | E19: 170910.5505 | F19: 151571.99 | G19: 152045.8086 | H19: 152539.9696 | I19: 153039.1824 | J19: 153542.2479
B23: 2.10.2 - CORPORATE OVERHEADS EXPENDITURE
D24: =CONCATENATE("EXPENDITURE ($0's, real ", dms_DollarReal,")") -> EXPENDITURE ($0's, real June 2021)
D25: =CRCP_y4 -> 2019-20 | E25: =CRCP_y5 -> 2020-21 | F25: =FRCP_y1 -> 2021-22 | G25: =FRCP_y2 -> 2022-23 | H25: =FRCP_y3 -> 2023-24 | I25: =FRCP_y4 -> 2024-25 | J25: =FRCP_y5 -> 2025-26
B26: OPEX
B27: Standard Control Services | C27: Total | D27: 29239039.15 | E27: 37176892.23 | F27: 47528279.26 | G27: 48727392.53 | H27: 50351484.66 | I27: 51368553.17 | J27: 52416896.29
B28: Alternative Control Services | C28: Total | D28: 5924581.112 | E28: 6506148.076 | F28: 5742538.368 | G28: 5840316.312 | H28: 5942736.426 | I28: 6048538.773 | J28: 6156887.649
B29: CAPEX
B30: Standard Control Services | C30: Total | D30: 12532945.57 | E30: 6305538.56 | F30: 0 | G30: 0 | H30: 0 | I30: 0 | J30: 0
B31: Alternative Control Services | C31: Total | D31: 872880.4304 | E31: 458754.4118 | F31: 0 | G31: 0 | H31: 0 | I31: 0 | J31: 0
B32: OTHER DISTRIBUTION SERVICES
B33: Negotiated Services | C33: Total | D33: 298364.1458 | E33: 307243.6513 | F33: 0 | G33: 0 | H33: 0 | I33: 0 | J33: 0
B34: Unregulated Distribution Services | C34: Total | D34: 25388.45926 | E34: 25383.32224 | F34: 0 | G34: 0 | H34: 0 | I34: 0 | J34: 0

Sheet 2.11 Labour
B1: =INDEX(dms_Worksheet_List,MATCH(dms_Model,dms_Model_List)) -> REGULATORY REPORTING STATEMENT
B2: =INDEX(dms_TradingNameFull_List,MATCH(dms_TradingName,dms_TradingName_List)) -> Jemena Electricity
B3: =dms_Header_Span -> 2021-22 to 2025-26
B4: 2.11 LABOUR
B6: Table numbering on this worksheet starts at 2.11.3.
B8: 2.11.3 - LABOUR / NON-LABOUR EXPENDITURE SPLIT - STANDARD CONTROL SERVICES
C9: EXPENDITURE
C10: =CONCATENATE("($0's, real ", dms_DollarReal,")") -> ($0's, real June 2021)
C11: =CRCP_y4 -> 2019-20 | D11: =CRCP_y5 -> 2020-21 | E11: =FRCP_y1 -> 2021-22 | F11: =FRCP_y2 -> 2022-23 | G11: =FRCP_y3 -> 2023-24 | H11: =FRCP_y4 -> 2024-25 | I11: =FRCP_y5 -> 2025-26
B12: OPEX
B13: In-house labour expenditure | C13: 0 | D13: 0 | E13: 0 | F13: 0 | G13: 0 | H13: 0 | I13: 0
B14: Labour expenditure outsourced to related parties | C14: 57816842.53 | D14: 61237415.3 | E14: 58519223.09 | F14: 59014967.22 | G14: 60262543.32 | H14: 61216432.17 | I14: 62190079.75
B15: Labour expenditure outsourced to unrelated parties | C15: 0 | D15: 0 | E15: 0 | F15: 0 | G15: 0 | H15: 0 | I15: 0
B16: Controllable non-labour expenditure | C16: 29208157.87 | D16: 37144183.95 | E16: 47700786.75 | F16: 49442534.66 | G16: 51067551.55 | H16: 52085581.91 | I16: 53134898.26
B17: Uncontrollable non-labour expenditure | C17: 2937461.512 | D17: 3111248.257 | E17: 4293844.665 | F17: 4340860.324 | G17: 4389986.293 | H17: 4438025.575 | I17: 4487062.399
B18: Total | C18: =SUM(C13:C17) -> 89962461.91 | D18: 101492847.5 | E18: 110513854.5 | F18: 112798362.2 | G18: 115720081.2 | H18: 117740039.7 | I18: 119812040.4
B19: CAPEX
B20: In-house labour expenditure | C20: 46608104.01 | D20: 50623730.25 | E20: 54394303.51 | F20: 54660687.36 | G20: 48633539.01 | H20: 43037987.58 | I20: 38827490.44
B21: Labour expenditure outsourced to related parties | C21: 0 | D21: 0 | E21: 0 | F21: 0 | G21: 0 | H21: 0 | I21: 0
B22: Labour expenditure outsourced to unrelated parties | C22: 60050981.9 | D22: 59936132.17 | E22: 67369444.12 | F22: 69878904.82 | G22: 55964969.34 | H22: 51616897.38 | I22: 45508627.72
B23: Controllable non-labour expenditure | C23: 54217273.24 | D23: 59083693.64 | E23: 59817184.38 | F23: 58819462.85 | G23: 50115574.33 | H23: 42849839.59 | I23: 39044325.07
B24: Uncontrollable non-labour expenditure | C24: 0 | D24: 0 | E24: 0 | F24: 0 | G24: 0 | H24: 0 | I24: 0
B25: Total | C25: =SUM(C20:C24) -> 160876359.2 | D25: 169643556.1 | E25: 181580932 | F25: 183359055 | G25: 154714082.7 | H25: 137504724.6 | I25: 123380443.2

Sheet 2.14 Forecast price changes
B1: =INDEX(dms_Worksheet_List,MATCH(dms_Model,dms_Model_List)) -> REGULATORY REPORTING STATEMENT
B2: =INDEX(dms_TradingNameFull_List,MATCH(dms_TradingName,dms_TradingName_List)) -> Jemena Electricity
B3: =dms_Header_Span -> 2021-22 to 2025-26
B4: 2.14 FORECAST PRICE CHANGES
B6: There is ONE table on this worksheet. It has been grouped for easy navigation. See the Instructions sheet on how to group or ungroup data.
B8: Instructions
B9: =CONCATENATE(dms_TradingName, " must provide all forecast price changes used to forecast opex and capex, including forecast changes in CPI. Forecast price changes must be expressed in real terms, except for CPI. "&"If the same escalators are not used for capex and opex, report capex and opex escalators separately. Add additional rows as required. If price changes for a given year were not used to forecast either opex or capex enter '0' for that year.") -> Jemena Electricity must provide all forecast price changes used to forecast opex and capex, including forecast changes in CPI. Forecast price changes must be expressed in real terms, except for CPI. If the same escalators are not used for capex and opex, report capex and opex escalators separately. Add additional rows as required. If price changes for a given year were not used to forecast either opex or capex enter '0' for that year.
B11: 2.14.2 - FORECAST CAPEX AND OPEX PRICE CHANGES
C12: Price changes (% YoY real) Current regulatory period | E12: Price changes (%YoY real) Forthcoming regulatory period
C13: Forecast
C14: =CRCP_y4 -> 2019-20 | D14: =CRCP_y5 -> 2020-21 | E14: =FRCP_y1 -> 2021-22 | F14: =FRCP_y2 -> 2022-23 | G14: =FRCP_y3 -> 2023-24 | H14: =FRCP_y4 -> 2024-25 | I14: =FRCP_y5 -> 2025-26
B15: OPEX
B16: Opex & Capex Input Price Escalation | C16: 0.01136271298 | D16: 0.01041612007 | E16: 0.009892629759 | F16: 0.01022854934 | G16: 0.01069402959 | H16: 0.01076930724 | I16: 0.0108134125
B19: CAPEX

Sheet 2.16 Opex Summary
B1: =INDEX(dms_Worksheet_List,MATCH(dms_Model,dms_Model_List)) -> REGULATORY REPORTING STATEMENT
B2: =INDEX(dms_TradingNameFull_List,MATCH(dms_TradingName,dms_TradingName_List)) -> Jemena Electricity
B3: =dms_Header_Span -> 2021-22 to 2025-26
B4: 2.16 OPEX SUMMARY
B6: There are FOUR tables on this worksheet. Each table has been 'grouped' (and 'sub-grouped') for easy navigation. See the Instructions sheet on how to group or ungroup data.
B8: Instructions | J8: IMPORTANT!
B9: =CONCATENATE("Complete the tables below in accordance with the regulatory information notice. ",dms_TradingName,"'s total forecast opex must reconcile to Table 2.16.1 (and if ",dms_TradingName," owns any dual function assets Table 2.16.3). If ",dms_TradingName," did not forecast its total opex using a Base Year approach, total forecast opex must reconcile to Table 2.16.2 (and if ",dms_TradingName," owns any dual function assets Table 2.16.4).") -> Complete the tables below in accordance with the regulatory information notice. Jemena Electricity's total forecast opex must reconcile to Table 2.16.1 (and if Jemena Electricity owns any dual function assets Table 2.16.3). If Jemena Electricity did not forecast its total opex using a Base Year approach, total forecast opex must reconcile to Table 2.16.2 (and if Jemena Electricity owns any dual function assets Table 2.16.4). | J9: =CONCATENATE("Has ",dms_TradingName," used a base-step-trend model to derive its opex forecast? ") -> Has Jemena Electricity used a base-step-trend model to derive its opex forecast? | L9: Yes
B10: =CONCATENATE("If ",dms_TradingName," does not own any dual function assets,Table 2.16.3 and 2.16.4 may be left blank.") -> If Jemena Electricity does not own any dual function assets,Table 2.16.3 and 2.16.4 may be left blank. | J10: Yes / No
B11: The total step changes in Table 2.16.1 and Table 2.16.3 must "&"reconcile (in each year) to the total step changes for each year in Table 2.17.1 and Table 2.17.3 of worksheet '2.17 Step Changes', respectively.") | J11: Please nominate the base year. | L11: 2018
B14: 2.16.1 - STANDARD CONTROL SERVICES - OPEX BY DRIVER
C15: EXPENDITURE
C16: =CONCATENATE("Forecast ($0's, real ", dms_DollarReal,")") -> Forecast ($0's, real June 2021)
C17: 2017 | D17: 2018 | E17: 2019 | F17: 2020 | G17: 2021 | H17: =FRCP_y1 -> 2021-22 | I17: =FRCP_y2 -> 2022-23 | J17: =FRCP_y3 -> 2023-24 | K17: =FRCP_y4 -> 2024-25 | L17: =FRCP_y5 -> 2025-26
B18: Base year total opex, excluding category specific | D18: 85040538.57 | E18: 85040538.57 | F18: 85040538.57 | G18: 57330385.14 | H18: 99123198.48 | I18: 99123198.48 | J18: 99123198.48 | K18: 99123198.48 | L18: 99123198.48
B19: Increment from base year to final year | F19: 14082659.91 | H19: 0 | I19: 0 | J19: 0 | K19: 0 | L19: 0
B20: Price growth | H20: 902642.6799 | I20: 1513444.873 | J20: 2155942.984 | K20: 2807094.58 | L20: 3465116.521
B21: Output growth | H21: 1952413.582 | I21: 3308470.435 | J21: 4715633.099 | K21: 6098162.23 | L21: 7522909.473
B22: Productivity growth | H22: -509891.2737 | I22: -1036852.51 | J22: -1581985.26 | K22: -2144418.784 | L22: -2725390.101
B23: Step changes | H23: 6676545.957 | I23: 7482842.571 | J23: 8864602.692 | K23: 9395291.271 | L23: 9958446.977
B24: Category specific | D24: 1271314.809 | E24: 1383713.198 | F24: 1343153.462 | G24: 137293.0115 | H24: 2368945.081 | I24: 2407258.349 | J24: 2442689.167 | K24: 2460711.878 | L24: 2467759.066
B25: Total opex | C25: =SUM(C18:C24) -> 0 | D25: 86311853.38 | E25: 86424251.77 | F25: 100466351.9 | G25: 57467678.15 | H25: 110513854.5 | I25: 112798362.2 | J25: 115720081.2 | K25: 117740039.7 | L25: 119812040.4
B28: 2.16.2 - STANDARD CONTROL SERVICES - OPEX BY CATEGORY
C29: EXPENDITURE
C30: =CONCATENATE("Forecast ($0's, real ", dms_DollarReal,")") -> Forecast ($0's, real June 2021)
C31: =CRCP_y1 -> 2016-17 | D31: =CRCP_y2 -> 2017-18 | E31: =CRCP_y3 -> 2018-19 | F31: =CRCP_y4 -> 2019-20 | G31: =CRCP_y5 -> 2020-21 | H31: =FRCP_y1 -> 2021-22 | I31: =FRCP_y2 -> 2022-23 | J31: =FRCP_y3 -> 2023-24 | K31: =FRCP_y4 -> 2024-25 | L31: =FRCP_y5 -> 2025-26
B32: Vegetation management
B33: Maintenance
B34: Emergency response
B35: Non-network
B36: Metering
B37: Network overheads
B38: Corporate overheads
B39: Total opex | C39: =SUM(C32:C38) -> 0 | D39: 0 | E39: 0 | F39: 0 | G39: 0 | H39: 0 | I39: 0 | J39: 0 | K39: 0 | L39: 0
B42: 2.16.3 - DUAL FUNCTION ASSETS - OPEX BY DRIVER
C43: EXPENDITURE
C44: =CONCATENATE("Forecast ($0's, real ", dms_DollarReal,")") -> Forecast ($0's, real June 2021)
C45: 2017 | D45: 2018 | E45: 2019 | F45: 2020 | G45: 2021 | H45: =FRCP_y1 -> 2021-22 | I45: =FRCP_y2 -> 2022-23 | J45: =FRCP_y3 -> 2023-24 | K45: =FRCP_y4 -> 2024-25 | L45: =FRCP_y5 -> 2025-26
B46: Base year total opex, excluding category specific | D46: N/A | E46: N/A | F46: N/A | G46: N/A | H46: N/A | I46: N/A | J46: N/A | K46: N/A | L46: N/A
B47: Increment from base year to final year | G47: N/A | H47: N/A | I47: N/A | J47: N/A | K47: N/A | L47: N/A
B48: Price growth | H48: N/A | I48: N/A | J48: N/A | K48: N/A | L48: N/A
B49: Output growth | H49: N/A | I49: N/A | J49: N/A | K49: N/A | L49: N/A
B50: Productivity growth | H50: N/A | I50: N/A | J50: N/A | K50: N/A | L50: N/A
B51: Step changes | H51: N/A | I51: N/A | J51: N/A | K51: N/A | L51: N/A
B52: Category specific | D52: N/A | E52: N/A | F52: N/A | G52: N/A | H52: N/A | I52: N/A | J52: N/A | K52: N/A | L52: N/A
B53: Total opex | C53: =SUM(C46:C52) -> 0 | D53: 0 | E53: 0 | F53: 0 | G53: 0 | H53: 0 | I53: 0 | J53: 0 | K53: 0 | L53: 0
B56: 2.16.4 - DUAL FUNCTION ASSETS - OPEX BY CATEGORY
C57: EXPENDITURE
C58: =CONCATENATE("Forecast ($0's, real ", dms_DollarReal,")") -> Forecast ($0's, real June 2021)
C59: =CRCP_y1 -> 2016-17 | D59: =CRCP_y2 -> 2017-18 | E59: =CRCP_y3 -> 2018-19 | F59: =CRCP_y4 -> 2019-20 | G59: =CRCP_y5 -> 2020-21 | H59: =FRCP_y1 -> 2021-22 | I59: =FRCP_y2 -> 2022-23 | J59: =FRCP_y3 -> 2023-24 | K59: =FRCP_y4 -> 2024-25 | L59: =FRCP_y5 -> 2025-26
B60: Vegetation management
B61: Maintenance
B62: Emergency response
B63: Non-network
B64: Metering
B65: Network overheads
B66: Corporate overheads
B67: Total opex | C67: =SUM(C60:C66) -> 0 | D67: 0 | E67: 0 | F67: 0 | G67: 0 | H67: 0 | I67: 0 | J67: 0 | K67: 0 | L67: 0

Sheet 2.17 Step Changes
B1: =INDEX(dms_Worksheet_List,MATCH(dms_Model,dms_Model_List)) -> REGULATORY REPORTING STATEMENT
B2: =INDEX(dms_TradingNameFull_List,MATCH(dms_TradingName,dms_TradingName_List)) -> Jemena Electricity
B3: =dms_Header_Span -> 2021-22 to 2025-26
B4: 2.17 STEP CHANGES
B6: There are FIVE tables on this worksheet. Each table has been 'grouped' (and 'sub-grouped') for easy navigation. See the Instructions sheet on how to group or ungroup data.
B8: 2.17.1 - STEP CHANGES FOR STANDARD CONTROL SERVICES - FORECAST OPEX
E9: EXPENDITURE
E10: =CONCATENATE("Forecast ($0's, real ", dms_DollarReal, ")") -> Forecast ($0's, real June 2021)
B11: Step change | C11: Description | E11: =CRCP_y4 -> 2019-20 | F11: =CRCP_y5 -> 2020-21 | G11: =FRCP_y1 -> 2021-22 | H11: =FRCP_y2 -> 2022-23 | I11: =FRCP_y3 -> 2023-24 | J11: =FRCP_y4 -> 2024-25 | K11: =FRCP_y5 -> 2025-26
B12: Insurance Premium | C12: Increased global concern about insurable catastrophic events, such as bushfires, has increased the premiums incurred to insure them. | D12: 0 | E12: 0 | F12: 0 | G12: 3941026.969 | H12: 5106210.588 | I12: 6131372.396 | J12: 6577494.943 | K12: 7057091.848
B13: REFCL testing & maintenance | C13: Victoria’s Electricity Safety (Bushfire Mitigation) Regulations 2013 require JEN to install rapid earth fault current limiters (REFCL) by 1 May 2023. Although installation is a capital cost, the REFCL assets will require testing and maintenance once installed. | D13: 0 | E13: 0 | F13: 0 | G13: 0 | H13: 108204.0092 | I13: 384719.2205 | J13: 388862.38 | K13: 393067.3093
B14: Future Grid program | C14: Incremental operating expenditure to support JEN's Enabling DER portfolio within its Future Grid program, which will increase the hosting capacity of our low voltage network to meet growing penetration of distributed energy resources. | D14: 0 | E14: 0 | F14: 0 | G14: 745524.3956 | H14: 749439.0898 | I14: 753573.7975 | J14: 757782.1383 | K14: 762053.2207
B15: Transitional return on debt alignment costs | C15: The Victorian Government’s change to the regulatory year from calendar years to Australian financial years creates a six-month gap between its existing return on debt hedges and return on debt averaging periods over the next regulatory period. To ensure that JEN remains aligned over to those averaging periods it needs to enter new interest rate swaps—which come at a cost. | D15: 0 | E15: 0 | F15: 0 | G15: 55838.98282 | H15: 116914.4032 | I15: 182635.326 | J15: 248440.2493 | K15: 312958.2347
B16: EPA regulation changes | C16: Victoria’s Environment Protection Amendment Act 2018 increases the environmental obligations that JEN faces. Complying with these changes requires JEN to develop plans, undertake studies and risk assessments, and adopt monitoring that it has not previously done. | D16: 0 | E16: 0 | F16: 0 | G16: 813284.9405 | H16: 821603.6656 | I16: 830389.9195 | J16: 839332.6437 | K16: 848408.6938
B17: Cyber-security | C17: Heightened cyber security risks and clear guidance from the Australian Energy Market Operator and other bodies have increased customer, governmental and community expectations about what protections JEN has in place. JEN’s current cyber security measures do not meet these expectations and so more needs to be done. | D17: 0 | E17: 0 | F17: 0 | G17: 579106.286 | H17: 580470.8148 | I17: 581912.0329 | J17: 583378.9168 | K17: 584867.6704
B18: Additional RIN reporting | C18: Changes to the regulatory year applying to JEN from the start of the next regulatory period—from calendar years to Australian financial years—will require it to undertake additional regulatory reporting. This reporting will lead to one-off expenditure in the 2021-22 financial year related to preparing RIN responses for the six months to June 2021. | D18: 0 | E18: 0 | F18: 0 | G18: 541764.3836 | H18: 0 | I18: 0 | J18: 0 | K18: 0
B22: Total | E22: =SUM(E12:E21) -> 0 | F22: 0 | G22: 6676545.957 | H22: 7482842.571 | I22: 8864602.692 | J22: 9395291.271 | K22: 9958446.977
B23: Check | G23: =IF(ROUND(G$22,0)-ROUND('2.16 Opex Summary'!H$23,0)=0,"OK","Error") -> OK | H23: =IF(ROUND(H$22,0)-ROUND('2.16 Opex Summary'!I$23,0)=0,"OK","Error") -> OK | I23: =IF(ROUND(I$22,0)-ROUND('2.16 Opex Summary'!J$23,0)=0,"OK","Error") -> OK | J23: =IF(ROUND(J$22,0)-ROUND('2.16 Opex Summary'!K$23,0)=0,"OK","Error") -> OK | K23: =IF(ROUND(K$22,0)-ROUND('2.16 Opex Summary'!L$23,0)=0,"OK","Error") -> OK
B25: 2.17.2 - STEP CHANGES FOR STANDARD CONTROL SERVICES - FORECAST CAPEX
E26: EXPENDITURE
E27: =CONCATENATE("Forecast ($0's, real ", dms_DollarReal, ")") -> Forecast ($0's, real June 2021)
B28: Step change | C28: Description | E28: =CRCP_y4 -> 2019-20 | F28: =CRCP_y5 -> 2020-21 | G28: =FRCP_y1 -> 2021-22 | H28: =FRCP_y2 -> 2022-23 | I28: =FRCP_y3 -> 2023-24 | J28: =FRCP_y4 -> 2024-25 | K28: =FRCP_y5 -> 2025-26
B39: Total | E39: =SUM(E29:E38) -> 0 | F39: 0 | G39: 0 | H39: 0 | I39: 0 | J39: 0 | K39: 0
B41: 2.17.3 - STEP CHANGES FOR DUAL FUNCTION ASSETS - FORECAST OPEX
E42: EXPENDITURE
E43: =CONCATENATE("Forecast ($0's, real ", dms_DollarReal, ")") -> Forecast ($0's, real June 2021)
B44: Step change | C44: Description | E44: =CRCP_y4 -> 2019-20 | F44: =CRCP_y5 -> 2020-21 | G44: =FRCP_y1 -> 2021-22 | H44: =FRCP_y2 -> 2022-23 | I44: =FRCP_y3 -> 2023-24 | J44: =FRCP_y4 -> 2024-25 | K44: =FRCP_y5 -> 2025-26
B55: Total | E55: =SUM(E45:E54) -> 0 | F55: 0 | G55: 0 | H55: 0 | I55: 0 | J55: 0 | K55: 0
B56: Check | G56: =IF(ROUND(G$22,0)-ROUND('2.16 Opex Summary'!H$51,0)=0,"OK","Error") ->  | H56: =IF(ROUND(H$22,0)-ROUND('2.16 Opex Summary'!I$51,0)=0,"OK","Error") ->  | I56: =IF(ROUND(I$22,0)-ROUND('2.16 Opex Summary'!J$51,0)=0,"OK","Error") ->  | J56: =IF(ROUND(J$22,0)-ROUND('2.16 Opex Summary'!K$51,0)=0,"OK","Error") ->  | K56: =IF(ROUND(K$22,0)-ROUND('2.16 Opex Summary'!L$51,0)=0,"OK","Error") -> 
B58: 2.17.4 - STEP CHANGES FOR DUAL FUNCTION ASSETS - FORECAST CAPEX
E59: EXPENDITURE
E60: =CONCATENATE("Forecast ($0's, real ", dms_DollarReal, ")") -> Forecast ($0's, real June 2021)
B61: Step change | C61: Description | E61: =CRCP_y4 -> 2019-20 | F61: =CRCP_y5 -> 2020-21 | G61: =FRCP_y1 -> 2021-22 | H61: =FRCP_y2 -> 2022-23 | I61: =FRCP_y3 -> 2023-24 | J61: =FRCP_y4 -> 2024-25 | K61: =FRCP_y5 -> 2025-26
B72: Total | E72: =SUM(E62:E71) -> 0 | F72: 0 | G72: 0 | H72: 0 | I72: 0 | J72: 0 | K72: 0
B75: 2.17.5 - FORECAST CATEGORY SPECIFIC OPEX
D76: EXPENDITURE
D77: =CONCATENATE("Forecast ($0's, real ", dms_DollarReal, ")") -> Forecast ($0's, real June 2021)
B78: Category | C78: Description | D78: =CRCP_y3 -> 2018-19 | E78: =CRCP_y4 -> 2019-20 | F78: =CRCP_y5 -> 2020-21 | G78: =FRCP_y1 -> 2021-22 | H78: =FRCP_y2 -> 2022-23 | I78: =FRCP_y3 -> 2023-24 | J78: =FRCP_y4 -> 2024-25 | K78: =FRCP_y5 -> 2025-26
B79: GSL payments | C79: Payments we must make to customers where we do not meet certain GSL standards, as set out in the Electricity Distribution Code. | D79: 0 | E79: 0 | F79: 0 | G79: 165734.4404 | H79: 165734.4404 | I79: 165734.4404 | J79: 165734.4404 | K79: 165734.4404
B80: Electricity Levy for Energy Safe Victoria | C80: JEN is required to pay a levy to ESV as determined by the Victorian Minister for Energy, Environment amd Climate Change under the Electricity Safety Act 1998 (Vic). | D80: 0 | E80: 0 | F80: 0 | G80: 1386100.192 | H80: 1386100.192 | I80: 1386100.192 | J80: 1386100.192 | K80: 1386100.192
B81: Debt raising costs | C81: Reflects the estimated debt issuance costs for a benchmark efficient entity with the same characteristics as JEN. | D81: 0 | E81: 0 | F81: 0 | G81: 817110.4485 | H81: 855423.7167 | I81: 890854.5346 | J81: 908877.2454 | K81: 915924.4335
B89: Total | D89: =SUM(D86:D88) -> 0 | E89: 0 | F89: 0 | G89: 0 | H89: 0 | I89: 0 | J89: 0 | K89: 0

Sheet 3.1 Revenue
B1: =INDEX(dms_Worksheet_List,MATCH(dms_Model,dms_Model_List)) -> REGULATORY REPORTING STATEMENT
B2: =INDEX(dms_TradingNameFull_List,MATCH(dms_TradingName,dms_TradingName_List)) -> Jemena Electricity
B3: =dms_Header_Span -> 2021-22 to 2025-26
B4: 3.1 REVENUE
B6: There are THREE tables on this worksheet. Each table has been 'grouped' (and 'sub-grouped') for easy navigation. See the Instructions sheet on how to group or ungroup data.
B8: 3.1.1 - REVENUE GROUPING BY CHARGEABLE QUANTITY
C9: Standard control services | K9: Alternative control services
C10: REVENUE | K10: REVENUE
C11: =CONCATENATE("Forecast ($0's, real ", dms_DollarReal,")") -> Forecast ($0's, real June 2021) | K11: =CONCATENATE("Forecast ($0's, real ", dms_DollarReal,")") -> Forecast ($0's, real June 2021)
C12: =CRCP_y4 -> 2019-20 | D12: =CRCP_y5 -> 2020-21 | E12: =FRCP_y1 -> 2021-22 | F12: =FRCP_y2 -> 2022-23 | G12: =FRCP_y3 -> 2023-24 | H12: =FRCP_y4 -> 2024-25 | I12: =FRCP_y5 -> 2025-26 | K12: =CRCP_y4 -> 2019-20 | L12: =CRCP_y5 -> 2020-21 | M12: =FRCP_y1 -> 2021-22 | N12: =FRCP_y2 -> 2022-23 | O12: =FRCP_y3 -> 2023-24 | P12: =FRCP_y4 -> 2024-25 | Q12: =FRCP_y5 -> 2025-26
A13: DREV0101 | B13: Revenue from Fixed Customer Charges | C13: 25797359.18 | D13: 28400743.63 | E13: 32161479.35 | F13: 36576572.76 | G13: 41817728.7 | H13: 48144764.58 | I13: 55793444.57 | K13: 0 | L13: 0 | M13: 0 | N13: 0 | O13: 0 | P13: 0 | Q13: 0
A14: DREV0102 | B14: Revenue from Energy Delivery charges where time of use is not a determinant | C14: 115348597.7 | D14: 109055206 | E14: 104722068.5 | F14: 100571789.4 | G14: 95618827.19 | H14: 89590922.85 | I14: 82542867.88 | K14: 0 | L14: 0 | M14: 0 | N14: 0 | O14: 0 | P14: 0 | Q14: 0
A15: DREV0103 | B15: Revenue from On–Peak Energy Delivery charges | C15: 48312783.79 | D15: 45507329.31 | E15: 46812844.55 | F15: 46791677.77 | G15: 46337860.71 | H15: 45758356.5 | I15: 45020426.67 | K15: 0 | L15: 0 | M15: 0 | N15: 0 | O15: 0 | P15: 0 | Q15: 0
A16: DREV0104 | B16: Revenue from Shoulder period Energy Delivery Charges | C16: 211861.2483 | D16: 177678.4564 | E16: 189325.1801 | F16: 180183.6739 | G16: 169778.1399 | H16: 157395.8431 | I16: 143297.9944 | K16: 0 | L16: 0 | M16: 0 | N16: 0 | O16: 0 | P16: 0 | Q16: 0
A17: DREV0105 | B17: Revenue from Off–Peak Energy Delivery charges | C17: 8219002.693 | D17: 7623351.165 | E17: 8347775.401 | F17: 8341948.159 | G17: 8269806.523 | H17: 8174979.498 | I17: 8053667.764 | K17: 0 | L17: 0 | M17: 0 | N17: 0 | O17: 0 | P17: 0 | Q17: 0
A18: DREV0106 | B18: Revenue from controlled load customer charges | C18: 619080.4095 | D18: 555397.0884 | E18: 519657.4188 | F18: 494538.3592 | G18: 465947.2255 | H18: 431971.778 | I18: 393278.0302 | K18: 0 | L18: 0 | M18: 0 | N18: 0 | O18: 0 | P18: 0 | Q18: 0
A19: DREV0107 | B19: Revenue from unmetered supplies | C19: 1726648.228 | D19: 1653260.359 | E19: 1725963.929 | F19: 1729540.814 | G19: 1711558.324 | H19: 1689622.374 | I19: 1664281.883 | K19: 0 | L19: 0 | M19: 0 | N19: 0 | O19: 0 | P19: 0 | Q19: 0
A20: DREV0108 | B20: Revenue from Contracted Maximum Demand charges | C20: 0 | D20: 0 | E20: 0 | F20: 0 | G20: 0 | H20: 0 | I20: 0 | K20: 0 | L20: 0 | M20: 0 | N20: 0 | O20: 0 | P20: 0 | Q20: 0
A21: DREV0109 | B21: Revenue from Measured Maximum Demand charges | C21: 68779555.95 | D21: 65403562.68 | E21: 62616881.76 | F21: 62409795.58 | G21: 62704532.88 | H21: 63148102.23 | I21: 63484827.57 | K21: 0 | L21: 0 | M21: 0 | N21: 0 | O21: 0 | P21: 0 | Q21: 0
A22: DREV0110 | B22: Revenue from metering charges | C22: 0 | D22: 0 | E22: 0 | F22: 0 | G22: 0 | H22: 0 | I22: 0 | K22: 32008658.95 | L22: 28377836.31 | M22: 23892235.52 | N22: 23892235.52 | O22: 23892235.52 | P22: 23892235.52 | Q22: 23892235.52
A23: DREV0111 | B23: Revenue from connection charges | C23: 0 | D23: 0 | E23: 0 | F23: 0 | G23: 0 | H23: 0 | I23: 0 | K23: 6259463.877 | L23: 6379501.727 | M23: 6613959.061 | N23: 6760641.606 | O23: 6913428.226 | P23: 7070607.855 | Q23: 7232163.492
A24: DREV0112 | B24: Revenue from public lighting charges | C24: 0 | D24: 0 | E24: 0 | F24: 0 | G24: 0 | H24: 0 | I24: 0 | K24: 4700783.159 | L24: 4725451.674 | M24: 5610094.07 | N24: 5632927.984 | O24: 5676495.667 | P24: 5801829.095 | Q24: 5905705.625
A25: DREV0113 | B25: Revenue from other Sources | C25: 0 | D25: 0 | E25: 0 | F25: 0 | G25: 0 | H25: 0 | I25: 0 | K25: 8201670.887 | L25: 9335487.929 | M25: 9529737.013 | N25: 9731666.978 | O25: 9943290.978 | P25: 10161459.25 | Q25: 10387467.85
A26: DREV01 | B26: Total revenue by chargeable quantity | C26: =SUM(C13:C25) -> 269014889.2 | D26: 258376528.7 | E26: 257095996.1 | F26: 257096046.5 | G26: 257096039.7 | H26: 257096115.7 | I26: 257096092.4 | K26: =SUM(K13:K25) -> 51170576.87 | L26: 48818277.64 | M26: 45646025.67 | N26: 46017472.09 | O26: 46425450.4 | P26: 46926131.73 | Q26: 47417572.49
B29: 3.1.2 - REVENUE GROUPING BY CUSTOMER TYPE OR CLASS
C30: Standard control services | K30: Alternative control services
C31: REVENUE | K31: REVENUE
C32: =CONCATENATE("Forecast ($0's, real ", dms_DollarReal,")") -> Forecast ($0's, real June 2021) | K32: =CONCATENATE("Forecast ($0's, real ", dms_DollarReal,")") -> Forecast ($0's, real June 2021)
C33: =CRCP_y4 -> 2019-20 | D33: =CRCP_y5 -> 2020-21 | E33: =FRCP_y1 -> 2021-22 | F33: =FRCP_y2 -> 2022-23 | G33: =FRCP_y3 -> 2023-24 | H33: =FRCP_y4 -> 2024-25 | I33: =FRCP_y5 -> 2025-26 | K33: =CRCP_y4 -> 2019-20 | L33: =CRCP_y5 -> 2020-21 | M33: =FRCP_y1 -> 2021-22 | N33: =FRCP_y2 -> 2022-23 | O33: =FRCP_y3 -> 2023-24 | P33: =FRCP_y4 -> 2024-25 | Q33: =FRCP_y5 -> 2025-26
A34: DREV0201 | B34: Revenue from residential Customers | C34: 120267080.8 | D34: 116529870 | E34: 116306034.5 | F34: 116134973.3 | G34: 116158300 | H34: 116196385.6 | I34: 116465042.4 | K34: 0 | L34: 0 | M34: 0 | N34: 0 | O34: 0 | P34: 0 | Q34: 0
A35: DREV0202 | B35: Revenue from Non residential customers not on demand tariffs | C35: 47346363.99 | D35: 45074938.19 | E35: 45506479.14 | F35: 45630232.34 | G35: 45225605.99 | H35: 44723747.03 | I35: 44130691 | K35: 0 | L35: 0 | M35: 0 | N35: 0 | O35: 0 | P35: 0 | Q35: 0
A36: DREV0203 | B36: Revenue from Non-residential low voltage demand tariff customers | C36: 78748369.69 | D36: 74846395.78 | E36: 73953516.61 | F36: 74006670.31 | G36: 74390851.78 | H36: 74916304.67 | I36: 75262898.7 | K36: 0 | L36: 0 | M36: 0 | N36: 0 | O36: 0 | P36: 0 | Q36: 0
A37: DREV0204 | B37: Revenue from Non-residential high voltage demand tariff customers | C37: 20926426.5 | D37: 20272064.34 | E37: 19604001.93 | F37: 19594629.71 | G37: 19609723.57 | H37: 19570055.98 | I37: 19573178.36 | K37: 0 | L37: 0 | M37: 0 | N37: 0 | O37: 0 | P37: 0 | Q37: 0
A38: DREV0205 | B38: Revenue from unmetered supplies | C38: 1726648.228 | D38: 1653260.359 | E38: 1725963.929 | F38: 1729540.814 | G38: 1711558.324 | H38: 1689622.374 | I38: 1664281.883 | K38: 0 | L38: 0 | M38: 0 | N38: 0 | O38: 0 | P38: 0 | Q38: 0
A39: DREV0206 | B39: Revenue from Other Customers | C39: 0 | D39: 0 | E39: 0 | F39: 0 | G39: 0 | H39: 0 | I39: 0 | K39: 51170576.87 | L39: 48818277.64 | M39: 45646025.67 | N39: 46017472.09 | O39: 46425450.4 | P39: 46926131.73 | Q39: 47417572.49
A40: DREV02 | B40: Total revenue by customer class | C40: =SUM(C34:C39) -> 269014889.2 | D40: 258376528.7 | E40: 257095996.1 | F40: 257096046.5 | G40: 257096039.7 | H40: 257096115.7 | I40: 257096092.4 | K40: =SUM(K34:K39) -> 51170576.87 | L40: 48818277.64 | M40: 45646025.67 | N40: 46017472.09 | O40: 46425450.4 | P40: 46926131.73 | Q40: 47417572.49
B43: 3.1.3 - REVENUE (penalties) ALLOWED (deducted) THROUGH INCENTIVE SCHEMES
C44: Standard control services | K44: Alternative control services
C45: REVENUE | K45: REVENUE
C46: =CONCATENATE("Forecast ($0's, real ", dms_DollarReal,")") -> Forecast ($0's, real June 2021) | K46: =CONCATENATE("Forecast ($0's, real ", dms_DollarReal,")") -> Forecast ($0's, real June 2021)
C47: =CRCP_y4 -> 2019-20 | D47: =CRCP_y5 -> 2020-21 | E47: =FRCP_y1 -> 2021-22 | F47: =FRCP_y2 -> 2022-23 | G47: =FRCP_y3 -> 2023-24 | H47: =FRCP_y4 -> 2024-25 | I47: =FRCP_y5 -> 2025-26 | K47: =CRCP_y4 -> 2019-20 | L47: =CRCP_y5 -> 2020-21 | M47: =FRCP_y1 -> 2021-22 | N47: =FRCP_y2 -> 2022-23 | O47: =FRCP_y3 -> 2023-24 | P47: =FRCP_y4 -> 2024-25 | Q47: =FRCP_y5 -> 2025-26
A48: DREV0301 | B48: EBSS | C48: 0 | D48: 173411.1271 | E48: 8079681.778 | F48: 6549970.401 | G48: 4862471.189 | H48: 2053182.842 | I48: 2053182.842 | K48: 0 | L48: 0 | M48: 0 | N48: 0 | O48: 0 | P48: 0 | Q48: 0
A49: DREV0302 | B49: STPIS | C49: 1304.058604 | D49: 0 | E49: 0 | F49: 0 | G49: 0 | H49: 0 | I49: 0 | K49: 0 | L49: 0 | M49: 0 | N49: 0 | O49: 0 | P49: 0 | Q49: 0
A50: DREV0303 | B50: F-Factor | C50: 115050 | D50: 0 | E50: 0 | F50: 0 | G50: 0 | H50: 0 | I50: 0 | K50: 0 | L50: 0 | M50: 0 | N50: 0 | O50: 0 | P50: 0 | Q50: 0
A51: DREV0304 | B51: S-Factor True up | C51: 907222.7136 | D51: 0 | E51: 0 | F51: 0 | G51: 0 | H51: 0 | I51: 0 | K51: 0 | L51: 0 | M51: 0 | N51: 0 | O51: 0 | P51: 0 | Q51: 0
A52: DREV0305 | B52: Other | C52: 0 | D52: 0 | E52: 0 | F52: 0 | G52: 0 | H52: 0 | I52: 0 | K52: 0 | L52: 0 | M52: 0 | N52: 0 | O52: 0 | P52: 0 | Q52: 0
A53: DREV03 | B53: Total revenue of incentive schemes | C53: =SUM(C48:C52) -> 1023576.772 | D53: 173411.1271 | E53: 8079681.778 | F53: 6549970.401 | G53: 4862471.189 | H53: 2053182.842 | I53: 2053182.842 | K53: =SUM(K48:K52) -> 0 | L53: 0 | M53: 0 | N53: 0 | O53: 0 | P53: 0 | Q53: 0

Sheet 3.2 Operating expenditure
B1: =INDEX(dms_Worksheet_List,MATCH(dms_Model,dms_Model_List)) -> REGULATORY REPORTING STATEMENT
B2: =INDEX(dms_TradingNameFull_List,MATCH(dms_TradingName,dms_TradingName_List)) -> Jemena Electricity
B3: =dms_Header_Span -> 2021-22 to 2025-26
B4: 3.2 OPERATING EXPENDITURE
B6: There are THREE tables on this worksheet. Both ROWS and COLUMNS have been grouped for ease of navigation. see the Instructions sheet on how to group or ungroup tables.
B8: 3.2.1 - OPEX CATEGORIES
B9: CURRENT OPEX CATEGORIES AND COST ALLOCATIONS
C10: Standard control services | K10: Alternative control services
C11: EXPENDITURE | K11: EXPENDITURE
C12: =CONCATENATE("Forecast ($0's, real ",dms_DollarReal,")") -> Forecast ($0's, real June 2021) | K12: =CONCATENATE("Forecast ($0's, real ",dms_DollarReal,")") -> Forecast ($0's, real June 2021)
C13: =CRCP_y4 -> 2019-20 | D13: =CRCP_y5 -> 2020-21 | E13: =FRCP_y1 -> 2021-22 | F13: =FRCP_y2 -> 2022-23 | G13: =FRCP_y3 -> 2023-24 | H13: =FRCP_y4 -> 2024-25 | I13: =FRCP_y5 -> 2025-26 | K13: =CRCP_y4 -> 2019-20 | L13: =CRCP_y5 -> 2020-21 | M13: =FRCP_y1 -> 2021-22 | N13: =FRCP_y2 -> 2022-23 | O13: =FRCP_y3 -> 2023-24 | P13: =FRCP_y4 -> 2024-25 | Q13: =FRCP_y5 -> 2025-26
A14: DOPEX0101 | B14: SCS - Vegetation management | C14: 4147432.056 | D14: 4392803.345 | E14: 4105474.264 | F14: 4171856.155 | G14: 4241217.616 | H14: 4309044.77 | I14: 4378280.366 | K14: 0 | L14: 0 | M14: 0 | N14: 0 | O14: 0 | P14: 0 | Q14: 0
A15: DOPEX0102 | B15: SCS - Maintenance | C15: 7201507.251 | D15: 7627564.409 | E15: 7128652.689 | F15: 7352120.712 | G15: 7749073.596 | H15: 7870990.293 | I15: 7995414.345 | K15: 0 | L15: 0 | M15: 0 | N15: 0 | O15: 0 | P15: 0 | Q15: 0
A16: DOPEX0103 | B16: SCS - Emergency response | C16: 4728776.858 | D16: 5008541.796 | E16: 4680937.849 | F16: 4756624.478 | G16: 4835708.322 | H16: 4913042.796 | I16: 4991983.133 | K16: 0 | L16: 0 | M16: 0 | N16: 0 | O16: 0 | P16: 0 | Q16: 0
A17: DOPEX0104 | B17: SCS - Non-network | C17: 14678968.59 | D17: 15547408.97 | E17: 15109574.05 | F17: 15345883.4 | G17: 15592815.01 | H17: 15834341.92 | I17: 16080875.59 | K17: 0 | L17: 0 | M17: 0 | N17: 0 | O17: 0 | P17: 0 | Q17: 0
A18: DOPEX0105 | B18: SCS - Metering | C18: 0 | D18: 0 | E18: 0 | F18: 0 | G18: 0 | H18: 0 | I18: 0 | K18: 0 | L18: 0 | M18: 0 | N18: 0 | O18: 0 | P18: 0 | Q18: 0
A19: DOPEX0106 | B19: SCS - Network overheads | C19: 29966738.01 | D19: 31739636.76 | E19: 31960936.39 | F19: 32444484.92 | G19: 32949781.96 | H19: 33444066.7 | I19: 33948590.69 | K19: 0 | L19: 0 | M19: 0 | N19: 0 | O19: 0 | P19: 0 | Q19: 0
A20: DOPEX0107 | B20: SCS - Corporate overheads | C20: 29239039.15 | D20: 37176892.23 | E20: 47528279.26 | F20: 48727392.53 | G20: 50351484.66 | H20: 51368553.17 | I20: 52416896.29 | K20: 0 | L20: 0 | M20: 0 | N20: 0 | O20: 0 | P20: 0 | Q20: 0
A21: DOPEX0108
A22: DOPEX0109 | B22: ACS - Connections | C22: 0 | D22: 0 | E22: 0 | F22: 0 | G22: 0 | H22: 0 | I22: 0 | K22: 0 | L22: 0 | M22: 0 | N22: 0 | O22: 0 | P22: 0 | Q22: 0
A23: DOPEX0110 | B23: ACS - Metering | C23: 0 | D23: 0 | E23: 0 | F23: 0 | G23: 0 | H23: 0 | I23: 0 | K23: 7080010.081 | L23: 7847742.345 | M23: 7479350.443 | N23: 7634620.868 | O23: 7794853.632 | P23: 7959158.995 | Q23: 8120533.555
A24: DOPEX0111 | B24: ACS - Public lighting | C24: 0 | D24: 0 | E24: 0 | F24: 0 | G24: 0 | H24: 0 | I24: 0 | K24: 2078200.199 | L24: 2130664.082 | M24: 3524013.774 | N24: 3519851.009 | O24: 3528003.643 | P24: 3541852.403 | Q24: 3565753.546
A25: DOPEX0112 | B25: ACS - Fee and quoted | C25: 0 | D25: 0 | E25: 0 | F25: 0 | G25: 0 | H25: 0 | I25: 0 | K25: 2566128.48 | L25: 2934696.13 | M25: 2641749.112 | N25: 2691016.062 | O25: 2742998.006 | P25: 2796697.441 | Q25: 2852946.016
A26: DOPEX0113 | B26: ACS - Network overheads | C26: 0 | D26: 0 | E26: 0 | F26: 0 | G26: 0 | H26: 0 | I26: 0 | K26: 1432906.991 | L26: 1587845.203 | M26: 1404035.414 | N26: 1429020.43 | O26: 1455437.126 | P26: 1482770.731 | Q26: 1510732.745
A27: DOPEX0114 | B27: ACS - Corporate overheads | C27: 0 | D27: 0 | E27: 0 | F27: 0 | G27: 0 | H27: 0 | I27: 0 | K27: 5924581.112 | L27: 6506148.076 | M27: 5742538.368 | N27: 5840316.312 | O27: 5942736.426 | P27: 6048538.773 | Q27: 6156887.649
A28: DOPEX0115
A29: DOPEX0116
A30: DOPEX0117
A31: DOPEX0118
A32: DOPEX0119
A33: DOPEX0120
A34: DOPEX0121
A35: DOPEX0122
A36: DOPEX0123
A37: DOPEX0124
A38: DOPEX0125
A39: DOPEX0126
A40: DOPEX0127
A41: DOPEX0128
A42: DOPEX0129
A43: DOPEX0130
A44: DOPEX0131
A45: DOPEX0132
A46: DOPEX0133
A47: DOPEX0134
A48: DOPEX0135
A49: DOPEX0136
A50: DOPEX0137
A51: DOPEX0138
A52: DOPEX0139
A53: DOPEX0140
A54: DOPEX0141
A55: DOPEX0142
A56: DOPEX0143
A57: DOPEX0144
A58: DOPEX0145
A59: DOPEX0146
A60: DOPEX0147
A61: DOPEX0148
A62: DOPEX0149
A63: DOPEX01 | B63: Total opex | C63: =SUM(C14:C62) -> 89962461.91 | D63: 101492847.5 | E63: 110513854.5 | F63: 112798362.2 | G63: 115720081.2 | H63: 117740039.7 | I63: 119812040.4 | K63: =SUM(K14:K62) -> 19081826.86 | L63: 21007095.84 | M63: 20791687.11 | N63: 21114824.68 | O63: 21464028.83 | P63: 21829018.34 | Q63: 22206853.51
B66: 3.2.2 - OPEX CONSISTENCY
B67: OPEX CONSISTENCY - CURRENT COST ALLOCATION APPROACH
C68: Standard control services | K68: Alternative control services
C69: EXPENDITURE | K69: EXPENDITURE
C70: =CONCATENATE("Forecast ($0's, real ",dms_DollarReal,")") -> Forecast ($0's, real June 2021) | K70: =CONCATENATE("Forecast ($0's, real ",dms_DollarReal,")") -> Forecast ($0's, real June 2021)
C71: =CRCP_y4 -> 2019-20 | D71: =CRCP_y5 -> 2020-21 | E71: =FRCP_y1 -> 2021-22 | F71: =FRCP_y2 -> 2022-23 | G71: =FRCP_y3 -> 2023-24 | H71: =FRCP_y4 -> 2024-25 | I71: =FRCP_y5 -> 2025-26 | K71: =CRCP_y4 -> 2019-20 | L71: =CRCP_y5 -> 2020-21 | M71: =FRCP_y1 -> 2021-22 | N71: =FRCP_y2 -> 2022-23 | O71: =FRCP_y3 -> 2023-24 | P71: =FRCP_y4 -> 2024-25 | Q71: =FRCP_y5 -> 2025-26
A72: DOPEX0201 | B72: Opex for network services | C72: 87079970.5 | D72: 98439821.5 | E72: 107660524 | F72: 109898895.9 | G72: 112772408.2 | H72: 114745226.4 | I72: 116769108 | K72: 0 | L72: 0 | M72: 0 | N72: 0 | O72: 0 | P72: 0 | Q72: 0
A73: DOPEX0202 | B73: Opex for metering | C73: 0 | D73: 0 | E73: 0 | F73: 0 | G73: 0 | H73: 0 | I73: 0 | K73: 11575518.66 | L73: 12830728.62 | M73: 12260210.56 | N73: 12512258.33 | O73: 12771262.46 | P73: 13036582.23 | Q73: 13298083.28
A74: DOPEX0203 | B74: Opex for connection services | C74: 2775821.727 | D74: 2940045.503 | E74: 2747739.928 | F74: 2792168.454 | G74: 2838591.168 | H74: 2883986.99 | I74: 2930325.464 | K74: 0 | L74: 0 | M74: 0 | N74: 0 | O74: 0 | P74: 0 | Q74: 0
A75: DOPEX0204 | B75: Opex for public lighting | C75: 0 | D75: 0 | E75: 0 | F75: 0 | G75: 0 | H75: 0 | I75: 0 | K75: 3397769.906 | L75: 3483546.148 | M75: 4300116.675 | N75: 4291967.46 | O75: 4298572.539 | P75: 4311888.166 | Q75: 4337793.379
A76: DOPEX0205 | B76: Opex for amounts payable for easement levy or similar direct charges on DNSP | C76: 0 | D76: 0 | E76: 0 | F76: 0 | G76: 0 | H76: 0 | I76: 0 | K76: 0 | L76: 0 | M76: 0 | N76: 0 | O76: 0 | P76: 0 | Q76: 0
A77: DOPEX0207 | B77: Opex for transmission connection point planning | C77: 106669.6925 | D77: 112980.5083 | E77: 105590.5609 | F77: 107297.867 | G77: 109081.8059 | H77: 110826.2834 | I77: 112606.9852 | K77: 0 | L77: 0 | M77: 0 | N77: 0 | O77: 0 | P77: 0 | Q77: 0
B80: 3.2.4 - OPEX FOR HIGH VOLTAGE CUSTOMERS
C81: End user costs (not standard control services)
C82: EXPENDITURE
C83: =CONCATENATE("Forecast ($0's, real ",dms_DollarReal,")") -> Forecast ($0's, real June 2021)
C84: =CRCP_y4 -> 2019-20 | D84: =CRCP_y5 -> 2020-21 | E84: =FRCP_y1 -> 2021-22 | F84: =FRCP_y2 -> 2022-23 | G84: =FRCP_y3 -> 2023-24 | H84: =FRCP_y4 -> 2024-25 | I84: =FRCP_y5 -> 2025-26
A85: DOPEX0401 | B85: Opex for high voltage customers | C85: 56576.18252 | D85: 57177.0039 | E85: 57914.7237 | F85: 58736.56886 | G85: 59595.30278 | H85: 60435.04112 | I85: 61292.21675

Sheet 3.3 Assets (RAB)
B1: =INDEX(dms_Worksheet_List,MATCH(dms_Model,dms_Model_List)) -> REGULATORY REPORTING STATEMENT
B2: =INDEX(dms_TradingNameFull_List,MATCH(dms_TradingName,dms_TradingName_List)) -> Jemena Electricity
B3: =dms_Header_Span -> 2021-22 to 2025-26
B4: 3.3 ASSETS
B6: There are FOUR tables on this worksheet. Both ROWS and COLUMNS in each have been grouped (and sub-grouped) for ease of navigation. see the Instructions sheet on how to group or ungroup tables.
B8: 3.3.1 - REGULATORY ASSET BASE VALUES
C9: Network services | K9: Standard control services | S9: Alternative control services
C10: =CONCATENATE("Forecast ($0's, real ", dms_DollarReal,")") -> Forecast ($0's, real June 2021) | K10: =CONCATENATE("Forecast ($0's, real ", dms_DollarReal,")") -> Forecast ($0's, real June 2021) | S10: =CONCATENATE("Forecast ($0's, real ", dms_DollarReal,")") -> Forecast ($0's, real June 2021)
C11: =CRCP_y4 -> 2019-20 | D11: =CRCP_y5 -> 2020-21 | E11: =FRCP_y1 -> 2021-22 | F11: =FRCP_y2 -> 2022-23 | G11: =FRCP_y3 -> 2023-24 | H11: =FRCP_y4 -> 2024-25 | I11: =FRCP_y5 -> 2025-26 | K11: =CRCP_y4 -> 2019-20 | L11: =CRCP_y5 -> 2020-21 | M11: =FRCP_y1 -> 2021-22 | N11: =FRCP_y2 -> 2022-23 | O11: =FRCP_y3 -> 2023-24 | P11: =FRCP_y4 -> 2024-25 | Q11: =FRCP_y5 -> 2025-26 | S11: =CRCP_y4 -> 2019-20 | T11: =CRCP_y5 -> 2020-21 | U11: =FRCP_y1 -> 2021-22 | V11: =FRCP_y2 -> 2022-23 | W11: =FRCP_y3 -> 2023-24 | X11: =FRCP_y4 -> 2024-25 | Y11: =FRCP_y5 -> 2025-26
B12: For total asset base:
A13: DRAB0101 | B13: Opening value | C13: 1287256100 | D13: 1317461877 | E13: 1357614714 | F13: 1438920969 | G13: 1514406620 | H13: 1556538989 | I13: 1577503852 | K13: 1474604835 | L13: 1511944218 | M13: 1551082856 | N13: 1623811155 | O13: 1691067833 | P13: 1725279509 | Q13: 1738656859 | S13: 74942266.5 | T13: 66581894.03 | U13: 60340169.02 | V13: 56898931.4 | W13: 51261687.34 | X13: 44973569 | Y13: 40532465.83
A14: DRAB0102 | B14: Inflation addition | C14: 0 | D14: 0 | E14: 0 | F14: 0 | G14: 0 | H14: 0 | I14: 0 | K14: 0 | L14: 0 | M14: 0 | N14: 0 | O14: 0 | P14: 0 | Q14: 0 | S14: 0 | T14: 0 | U14: 0 | V14: 0 | W14: 0 | X14: 0 | Y14: 0
A15: DRAB0103 | B15: Straight line depreciation | C15: -82463699.92 | D15: -77213020.43 | E15: -73184598.74 | F15: -79911525.13 | G15: -83274472 | H15: -87067247.9 | I15: -88826217.51 | K15: -92285553.2 | L15: -86671547 | M15: -81762554.42 | N15: -88140497.61 | O15: -91195165.21 | P15: -94654761 | Q15: -96113546.42 | S15: -11852171.03 | T15: -10046461.18 | U15: -8464330.961 | V15: -9035592 | W15: -9330882.798 | X15: -9574228.236 | Y15: -10229192.06
A16: DRAB0105 | B16: Actual additions (recognised in RAB) | C16: 112829418.3 | D16: 117645189.9 | E16: 154682693.6 | F16: 155466832.8 | G16: 125489316.6 | H16: 108095506.2 | I16: 94914437.36 | K16: 129796518.5 | L16: 126021653.4 | M16: 154682693.6 | N16: 155466832.8 | O16: 125489316.6 | P16: 108095506.2 | Q16: 94914437.36 | S16: 3491798.56 | T16: 3804736.174 | U16: 5023093.335 | V16: 3398347.946 | W16: 3042764.456 | X16: 5133125.066 | Y16: 5169097.435
A17: DRAB0106 | B17: Disposals | C17: -171582.4791 | D17: -211468.2891 | E17: -191839.7259 | F17: -69657.33114 | G17: -82475.67601 | H17: -63394.86961 | I17: -88805.04474 | K17: -171582.4791 | L17: -211468.2891 | M17: -191839.7259 | N17: -69657.33114 | O17: -82475.67601 | P17: -63394.86961 | Q17: -88805.04474 | S17: 0 | T17: 0 | U17: 0 | V17: 0 | W17: 0 | X17: 0 | Y17: 0
A18: DRAB0107 | B18: Closing value | C18: =SUM(C13+C14+C15+C16+C17) -> 1317450236 | D18: 1357682578 | E18: 1438920969 | F18: 1514406620 | G18: 1556538989 | H18: 1577503852 | I18: 1583503267 | K18: =SUM(K13+K14+K15+K16+K17) -> 1511944218 | L18: 1551082856 | M18: 1623811155 | N18: 1691067833 | O18: 1725279509 | P18: 1738656859 | Q18: 1737368945 | S18: =SUM(S13+S14+S15+S16+S17) -> 66581894.03 | T18: 60340169.02 | U18: 56898931.4 | V18: 51261687.34 | W18: 44973569 | X18: 40532465.83 | Y18: 35472371.2
B21: 3.3.2 - ASSET VALUE ROLL FORWARD
C22: Network services | K22: Standard control services | S22: Alternative control services
C23: =CONCATENATE("Forecast ($0's, real ", dms_DollarReal,")") -> Forecast ($0's, real June 2021) | K23: =CONCATENATE("Forecast ($0's, real ", dms_DollarReal,")") -> Forecast ($0's, real June 2021) | S23: =CONCATENATE("Forecast ($0's, real ", dms_DollarReal,")") -> Forecast ($0's, real June 2021)
C24: =CRCP_y4 -> 2019-20 | D24: =CRCP_y5 -> 2020-21 | E24: =FRCP_y1 -> 2021-22 | F24: =FRCP_y2 -> 2022-23 | G24: =FRCP_y3 -> 2023-24 | H24: =FRCP_y4 -> 2024-25 | I24: =FRCP_y5 -> 2025-26 | K24: =CRCP_y4 -> 2019-20 | L24: =CRCP_y5 -> 2020-21 | M24: =FRCP_y1 -> 2021-22 | N24: =FRCP_y2 -> 2022-23 | O24: =FRCP_y3 -> 2023-24 | P24: =FRCP_y4 -> 2024-25 | Q24: =FRCP_y5 -> 2025-26 | S24: =CRCP_y4 -> 2019-20 | T24: =CRCP_y5 -> 2020-21 | U24: =FRCP_y1 -> 2021-22 | V24: =FRCP_y2 -> 2022-23 | W24: =FRCP_y3 -> 2023-24 | X24: =FRCP_y4 -> 2024-25 | Y24: =FRCP_y5 -> 2025-26
B25: For overhead network assets less than 33kV:
A26: DRAB0201 | B26: Opening value | C26: 707195364 | D26: 718598995.8 | E26: 740250833.8 | F26: 769731603.2 | G26: 798721179.7 | H26: 835727486.5 | I26: 868267738.8 | K26: 871448518.6 | L26: 890574455.2 | M26: 912040060.7 | N26: 933928278.6 | O26: 955609896 | P26: 985582019.3 | Q26: 1011383978 | S26: 0 | T26: 0 | U26: 0 | V26: 0 | W26: 0 | X26: 0 | Y26: 0
A27: DRAB0202 | B27: Inflation addition | C27: 0 | D27: 0 | E27: 0 | F27: 0 | G27: 0 | H27: 0 | I27: 0 | K27: 0 | L27: 0 | M27: 0 | N27: 0 | O27: 0 | P27: 0 | Q27: 0 | S27: 0 | T27: 0 | U27: 0 | V27: 0 | W27: 0 | X27: 0 | Y27: 0
A28: DRAB0203 | B28: Straight line depreciation | C28: -31546961.14 | D28: -32098275.9 | E28: -32716793.08 | F28: -34258714.92 | G28: -35811060.6 | H28: -37578959.89 | I28: -39263012.81 | K28: -38875348.04 | L28: -39779015.57 | M28: -40309344.6 | N28: -41566674.05 | O28: -42845244.08 | P28: -44317253.86 | Q28: -45734720.18 | S28: 0 | T28: 0 | U28: 0 | V28: 0 | W28: 0 | X28: 0 | Y28: 0
A29: DRAB0205 | B29: Actual additions (recognised in RAB) | C29: 42889744.53 | D29: 53780069.45 | E29: 62197562.48 | F29: 63248291.5 | G29: 72817367.38 | H29: 70119212.14 | I29: 60205126.3 | K29: 57957831.69 | L29: 61219011.93 | M29: 62197562.48 | N29: 63248291.5 | O29: 72817367.38 | P29: 70119212.14 | Q29: 60205126.3 | S29: 0 | T29: 0 | U29: 0 | V29: 0 | W29: 0 | X29: 0 | Y29: 0
A30: DRAB0206 | B30: Disposals | C30: 0 | D30: 0 | E30: 0 | F30: 0 | G30: 0 | H30: 0 | I30: 0 | K30: 0 | L30: 0 | M30: 0 | N30: 0 | O30: 0 | P30: 0 | Q30: 0 | S30: 0 | T30: 0 | U30: 0 | V30: 0 | W30: 0 | X30: 0 | Y30: 0
A31: DRAB0207 | B31: Closing value | C31: =SUM(C26+C27+C28+C29+C30) -> 718538147.4 | D31: 740280789.3 | E31: 769731603.2 | F31: 798721179.7 | G31: 835727486.5 | H31: 868267738.8 | I31: 889209852.3 | K31: =SUM(K26+K27+K28+K29+K30) -> 890531002.3 | L31: 912014451.5 | M31: 933928278.6 | N31: 955609896 | O31: 985582019.3 | P31: 1011383978 | Q31: 1025854384 | S31: =SUM(S26+S27+S28+S29+S30) -> 0 | T31: 0 | U31: 0 | V31: 0 | W31: 0 | X31: 0 | Y31: 0
B32: For underground network assets less than 33kV:
A33: DRAB0301 | B33: Opening value | C33: 50890426.58 | D33: 51711042.38 | E33: 53269128.49 | F33: 55390591.67 | G33: 57476708.17 | H33: 60139715.93 | I33: 62481342.31 | K33: 62710234.14 | L33: 64086554.06 | M33: 65631238.71 | N33: 67206334.93 | O33: 68766564 | P33: 70923385.46 | Q33: 72780118.03 | S33: 0 | T33: 0 | U33: 0 | V33: 0 | W33: 0 | X33: 0 | Y33: 0
A34: DRAB0302 | B34: Inflation addition | C34: 0 | D34: 0 | E34: 0 | F34: 0 | G34: 0 | H34: 0 | I34: 0 | K34: 0 | L34: 0 | M34: 0 | N34: 0 | O34: 0 | P34: 0 | Q34: 0 | S34: 0 | T34: 0 | U34: 0 | V34: 0 | W34: 0 | X34: 0 | Y34: 0
A35: DRAB0303 | B35: Straight line depreciation | C35: -2270148.238 | D35: -2309821.354 | E35: -2354330.417 | F35: -2465288.526 | G35: -2576996.744 | H35: -2704216.397 | I35: -2825402.389 | K35: -2797505.677 | L35: -2862534.421 | M35: -2900697.384 | N35: -2991175.963 | O35: -3083183.034 | P35: -3189110.207 | Q35: -3291112.383 | S35: 0 | T35: 0 | U35: 0 | V35: 0 | W35: 0 | X35: 0 | Y35: 0
A36: DRAB0305 | B36: Actual additions (recognised in RAB) | C36: 3086385.328 | D36: 3870063.091 | E36: 4475793.604 | F36: 4551405.028 | G36: 5240004.499 | H36: 5045842.774 | I36: 4332416.07 | K36: 4170698.691 | L36: 4405376.21 | M36: 4475793.604 | N36: 4551405.028 | O36: 5240004.499 | P36: 5045842.774 | Q36: 4332416.07 | S36: 0 | T36: 0 | U36: 0 | V36: 0 | W36: 0 | X36: 0 | Y36: 0
A37: DRAB0306 | B37: Disposals | C37: 0 | D37: 0 | E37: 0 | F37: 0 | G37: 0 | H37: 0 | I37: 0 | K37: 0 | L37: 0 | M37: 0 | N37: 0 | O37: 0 | P37: 0 | Q37: 0 | S37: 0 | T37: 0 | U37: 0 | V37: 0 | W37: 0 | X37: 0 | Y37: 0
A38: DRAB0307 | B38: Closing value | C38: =SUM(C33+C34+C35+C36+C37) -> 51706663.67 | D38: 53271284.11 | E38: 55390591.67 | F38: 57476708.17 | G38: 60139715.93 | H38: 62481342.31 | I38: 63988355.99 | K38: =SUM(K33+K34+K35+K36+K37) -> 64083427.15 | L38: 65629395.85 | M38: 67206334.93 | N38: 68766564 | O38: 70923385.46 | P38: 72780118.03 | Q38: 73821421.72 | S38: =SUM(S33+S34+S35+S36+S37) -> 0 | T38: 0 | U38: 0 | V38: 0 | W38: 0 | X38: 0 | Y38: 0
B39: For distribution substations and transformers:
A40: DRAB0401 | B40: Opening value | C40: 38236559.77 | D40: 38853130.06 | E40: 40023799.21 | F40: 41617762.15 | G40: 43185167.34 | H40: 45186020.19 | I40: 46945402.9 | K40: 47117380.95 | L40: 48151479.95 | M40: 49312079.91 | N40: 50495529.62 | O40: 51667808.89 | P40: 53288338.29 | Q40: 54683395.69 | S40: 0 | T40: 0 | U40: 0 | V40: 0 | W40: 0 | X40: 0 | Y40: 0
A41: DRAB0402 | B41: Inflation addition | C41: 0 | D41: 0 | E41: 0 | F41: 0 | G41: 0 | H41: 0 | I41: 0 | K41: 0 | L41: 0 | M41: 0 | N41: 0 | O41: 0 | P41: 0 | Q41: 0 | S41: 0 | T41: 0 | U41: 0 | V41: 0 | W41: 0 | X41: 0 | Y41: 0
A42: DRAB0403 | B42: Straight line depreciation | C42: -1705677.563 | D42: -1735485.988 | E42: -1768927.906 | F42: -1852296.363 | G42: -1936228.416 | H42: -2031814.997 | I42: -2122868.182 | K42: -2101907.966 | L42: -2150767.361 | M42: -2179441.132 | N42: -2247422.279 | O42: -2316551.861 | P42: -2396140.321 | Q42: -2472779.731 | S42: 0 | T42: 0 | U42: 0 | V42: 0 | W42: 0 | X42: 0 | Y42: 0
A43: DRAB0405 | B43: Actual additions (recognised in RAB) | C43: 2318957.906 | D43: 2907774.775 | E43: 3362890.845 | F43: 3419701.545 | G43: 3937081.268 | H43: 3791197.712 | I43: 3255164.029 | K43: 3133657.556 | L43: 3309982.684 | M43: 3362890.845 | N43: 3419701.545 | O43: 3937081.268 | P43: 3791197.712 | Q43: 3255164.029 | S43: 0 | T43: 0 | U43: 0 | V43: 0 | W43: 0 | X43: 0 | Y43: 0
A44: DRAB0406 | B44: Disposals | C44: 0 | D44: 0 | E44: 0 | F44: 0 | G44: 0 | H44: 0 | I44: 0 | K44: 0 | L44: 0 | M44: 0 | N44: 0 | O44: 0 | P44: 0 | Q44: 0 | S44: 0 | T44: 0 | U44: 0 | V44: 0 | W44: 0 | X44: 0 | Y44: 0
A45: DRAB0407 | B45: Closing value | C45: =SUM(C40+C41+C42+C43+C44) -> 38849840.12 | D45: 40025418.85 | E45: 41617762.15 | F45: 43185167.34 | G45: 45186020.19 | H45: 46945402.9 | I45: 48077698.75 | K45: =SUM(K40+K41+K42+K43+K44) -> 48149130.54 | L45: 49310695.27 | M45: 50495529.62 | N45: 51667808.89 | O45: 53288338.29 | P45: 54683395.69 | Q45: 55465779.98 | S45: =SUM(S40+S41+S42+S43+S44) -> 0 | T45: 0 | U45: 0 | V45: 0 | W45: 0 | X45: 0 | Y45: 0
B46: For overhead network assets 33kV and above:
A47: DRAB0501 | B47: Opening value | C47: 172880763.2 | D47: 184888014.7 | E47: 191984118.5 | F47: 207007033.4 | G47: 229284340.4 | H47: 231465449.1 | I47: 231200327.1 | K47: 172880763.2 | L47: 184888014.7 | M47: 191984118.5 | N47: 207007033.4 | O47: 229284340.4 | P47: 231465449.1 | Q47: 231200327.1 | S47: 0 | T47: 0 | U47: 0 | V47: 0 | W47: 0 | X47: 0 | Y47: 0
A48: DRAB0502 | B48: Inflation addition | C48: 0 | D48: 0 | E48: 0 | F48: 0 | G48: 0 | H48: 0 | I48: 0 | K48: 0 | L48: 0 | M48: 0 | N48: 0 | O48: 0 | P48: 0 | Q48: 0 | S48: 0 | T48: 0 | U48: 0 | V48: 0 | W48: 0 | X48: 0 | Y48: 0
A49: DRAB0503 | B49: Straight line depreciation | C49: -5608008.474 | D49: -5827479.272 | E49: -6009301.948 | F49: -6403443.107 | G49: -6940916.839 | H49: -7111862.477 | I49: -7240169.552 | K49: -5608008.474 | L49: -5827479.272 | M49: -6009301.948 | N49: -6403443.107 | O49: -6940916.839 | P49: -7111862.477 | Q49: -7240169.552 | S49: 0 | T49: 0 | U49: 0 | V49: 0 | W49: 0 | X49: 0 | Y49: 0
A50: DRAB0505 | B50: Actual additions (recognised in RAB) | C50: 17659507.44 | D50: 12939150.52 | E50: 21032216.86 | F50: 28680750.09 | G50: 9122025.54 | H50: 6846740.444 | I50: 7432019.986 | K50: 17659507.44 | L50: 12939150.52 | M50: 21032216.86 | N50: 28680750.09 | O50: 9122025.54 | P50: 6846740.444 | Q50: 7432019.986 | S50: 0 | T50: 0 | U50: 0 | V50: 0 | W50: 0 | X50: 0 | Y50: 0
A51: DRAB0506 | B51: Disposals | C51: 0 | D51: 0 | E51: 0 | F51: 0 | G51: 0 | H51: 0 | I51: 0 | K51: 0 | L51: 0 | M51: 0 | N51: 0 | O51: 0 | P51: 0 | Q51: 0 | S51: 0 | T51: 0 | U51: 0 | V51: 0 | W51: 0 | X51: 0 | Y51: 0
A52: DRAB0507 | B52: Closing value | C52: =SUM(C47+C48+C49+C50+C51) -> 184932262.2 | D52: 191999685.9 | E52: 207007033.4 | F52: 229284340.4 | G52: 231465449.1 | H52: 231200327.1 | I52: 231392177.5 | K52: =SUM(K47+K48+K49+K50+K51) -> 184932262.2 | L52: 191999685.9 | M52: 207007033.4 | N52: 229284340.4 | O52: 231465449.1 | P52: 231200327.1 | Q52: 231392177.5 | S52: =SUM(S47+S48+S49+S50+S51) -> 0 | T52: 0 | U52: 0 | V52: 0 | W52: 0 | X52: 0 | Y52: 0
B53: For underground network assets 33kV and above:
A54: DRAB0601 | B54: Opening value | C54: 6631375.391 | D54: 7091950.588 | E54: 7364143.557 | F54: 7940393.837 | G54: 8794908.721 | H54: 8878571.879 | I54: 8868402.305 | K54: 6631375.391 | L54: 7091950.588 | M54: 7364143.557 | N54: 7940393.837 | O54: 8794908.721 | P54: 8878571.879 | Q54: 8868402.305 | S54: 0 | T54: 0 | U54: 0 | V54: 0 | W54: 0 | X54: 0 | Y54: 0
A55: DRAB0602 | B55: Inflation addition | C55: 0 | D55: 0 | E55: 0 | F55: 0 | G55: 0 | H55: 0 | I55: 0 | K55: 0 | L55: 0 | M55: 0 | N55: 0 | O55: 0 | P55: 0 | Q55: 0 | S55: 0 | T55: 0 | U55: 0 | V55: 0 | W55: 0 | X55: 0 | Y55: 0
A56: DRAB0603 | B56: Straight line depreciation | C56: -215112.478 | D56: -223530.958 | E56: -230505.3281 | F56: -245623.829 | G56: -266240.2933 | H56: -272797.441 | I56: -277719.055 | K56: -215112.478 | L56: -223530.958 | M56: -230505.3281 | N56: -245623.829 | O56: -266240.2933 | P56: -272797.441 | Q56: -277719.055 | S56: 0 | T56: 0 | U56: 0 | V56: 0 | W56: 0 | X56: 0 | Y56: 0
A57: DRAB0605 | B57: Actual additions (recognised in RAB) | C57: 677384.9263 | D57: 496321.0637 | E57: 806755.6081 | F57: 1100138.713 | G57: 349903.451 | H57: 262627.8669 | I57: 285078.0706 | K57: 677384.9263 | L57: 496321.0637 | M57: 806755.6081 | N57: 1100138.713 | O57: 349903.451 | P57: 262627.8669 | Q57: 285078.0706 | S57: 0 | T57: 0 | U57: 0 | V57: 0 | W57: 0 | X57: 0 | Y57: 0
A58: DRAB0606 | B58: Disposals | C58: 0 | D58: 0 | E58: 0 | F58: 0 | G58: 0 | H58: 0 | I58: 0 | K58: 0 | L58: 0 | M58: 0 | N58: 0 | O58: 0 | P58: 0 | Q58: 0 | S58: 0 | T58: 0 | U58: 0 | V58: 0 | W58: 0 | X58: 0 | Y58: 0
A59: DRAB0607 | B59: Closing value | C59: =SUM(C54+C55+C56+C57+C58) -> 7093647.839 | D59: 7364740.693 | E59: 7940393.837 | F59: 8794908.721 | G59: 8878571.879 | H59: 8868402.305 | I59: 8875761.321 | K59: =SUM(K54+K55+K56+K57+K58) -> 7093647.839 | L59: 7364740.693 | M59: 7940393.837 | N59: 8794908.721 | O59: 8878571.879 | P59: 8868402.305 | Q59: 8875761.321 | S59: =SUM(S54+S55+S56+S57+S58) -> 0 | T59: 0 | U59: 0 | V59: 0 | W59: 0 | X59: 0 | Y59: 0
B60: Zone substations and transformers
A61: DRAB0701 | B61: Opening value | C61: 162404504.8 | D61: 173684138.8 | E61: 180350231.7 | F61: 194462785.4 | G61: 215390128.3 | H61: 217439065.8 | I61: 217190009.6 | K61: 162404504.8 | L61: 173684138.8 | M61: 180350231.7 | N61: 194462785.4 | O61: 215390128.3 | P61: 217439065.8 | Q61: 217190009.6 | S61: 0 | T61: 0 | U61: 0 | V61: 0 | W61: 0 | X61: 0 | Y61: 0
A62: DRAB0702 | B62: Inflation addition | C62: 0 | D62: 0 | E62: 0 | F62: 0 | G62: 0 | H62: 0 | I62: 0 | K62: 0 | L62: 0 | M62: 0 | N62: 0 | O62: 0 | P62: 0 | Q62: 0 | S62: 0 | T62: 0 | U62: 0 | V62: 0 | W62: 0 | X62: 0 | Y62: 0
A63: DRAB0703 | B63: Straight line depreciation | C63: -5268173.407 | D63: -5474344.674 | E63: -5645149.228 | F63: -6015406.154 | G63: -6520309.96 | H63: -6680896.604 | I63: -6801428.504 | K63: -5268173.407 | L63: -5474344.674 | M63: -5645149.228 | N63: -6015406.154 | O63: -6520309.96 | P63: -6680896.604 | Q63: -6801428.504 | S63: 0 | T63: 0 | U63: 0 | V63: 0 | W63: 0 | X63: 0 | Y63: 0
A64: DRAB0705 | B64: Actual additions (recognised in RAB) | C64: 16589373.55 | D64: 12155061.63 | E64: 19757702.94 | F64: 26942749.04 | G64: 8569247.458 | H64: 6431840.482 | I64: 6981653.153 | K64: 16589373.55 | L64: 12155061.63 | M64: 19757702.94 | N64: 26942749.04 | O64: 8569247.458 | P64: 6431840.482 | Q64: 6981653.153 | S64: 0 | T64: 0 | U64: 0 | V64: 0 | W64: 0 | X64: 0 | Y64: 0
A65: DRAB0706 | B65: Disposals | C65: 0 | D65: 0 | E65: 0 | F65: 0 | G65: 0 | H65: 0 | I65: 0 | K65: 0 | L65: 0 | M65: 0 | N65: 0 | O65: 0 | P65: 0 | Q65: 0 | S65: 0 | T65: 0 | U65: 0 | V65: 0 | W65: 0 | X65: 0 | Y65: 0
A66: DRAB0707 | B66: Closing value | C66: =SUM(C61+C62+C63+C64+C65) -> 173725705 | D66: 180364855.7 | E66: 194462785.4 | F66: 215390128.3 | G66: 217439065.8 | H66: 217190009.6 | I66: 217370234.3 | K66: =SUM(K61+K62+K63+K64+K65) -> 173725705 | L66: 180364855.7 | M66: 194462785.4 | N66: 215390128.3 | O66: 217439065.8 | P66: 217190009.6 | Q66: 217370234.3 | S66: =SUM(S61+S62+S63+S64+S65) -> 0 | T66: 0 | U66: 0 | V66: 0 | W66: 0 | X66: 0 | Y66: 0
B67: For easements:
A68: DRAB0801 | B68: Opening value | C68: 0 | D68: 0 | E68: 0 | F68: 0 | G68: 0 | H68: 0 | I68: 0 | K68: 0 | L68: 0 | M68: 0 | N68: 0 | O68: 0 | P68: 0 | Q68: 0 | S68: 0 | T68: 0 | U68: 0 | V68: 0 | W68: 0 | X68: 0 | Y68: 0
A69: DRAB0802 | B69: Inflation addition | C69: 0 | D69: 0 | E69: 0 | F69: 0 | G69: 0 | H69: 0 | I69: 0 | K69: 0 | L69: 0 | M69: 0 | N69: 0 | O69: 0 | P69: 0 | Q69: 0 | S69: 0 | T69: 0 | U69: 0 | V69: 0 | W69: 0 | X69: 0 | Y69: 0
A70: DRAB0803 | B70: Actual additions (recognised in RAB) | C70: 0 | D70: 0 | E70: 0 | F70: 0 | G70: 0 | H70: 0 | I70: 0 | K70: 0 | L70: 0 | M70: 0 | N70: 0 | O70: 0 | P70: 0 | Q70: 0 | S70: 0 | T70: 0 | U70: 0 | V70: 0 | W70: 0 | X70: 0 | Y70: 0
A71: DRAB0804 | B71: Disposals | C71: 0 | D71: 0 | E71: 0 | F71: 0 | G71: 0 | H71: 0 | I71: 0 | K71: 0 | L71: 0 | M71: 0 | N71: 0 | O71: 0 | P71: 0 | Q71: 0 | S71: 0 | T71: 0 | U71: 0 | V71: 0 | W71: 0 | X71: 0 | Y71: 0
A72: DRAB0805 | B72: Closing value | C72: =SUM(C68+C69+C70+C71) -> 0 | D72: 0 | E72: 0 | F72: 0 | G72: 0 | H72: 0 | I72: 0 | K72: =SUM(K68+K69+K70+K71) -> 0 | L72: 0 | M72: 0 | N72: 0 | O72: 0 | P72: 0 | Q72: 0 | S72: =SUM(S68+S69+S70+S71) -> 0 | T72: 0 | U72: 0 | V72: 0 | W72: 0 | X72: 0 | Y72: 0
B73: For meters:
A74: DRAB0901 | B74: Opening value | C74: 0 | D74: 0 | E74: 0 | F74: 0 | G74: 0 | H74: 0 | I74: 0 | K74: 3.409616254e-09 | L74: 3.410385062e-09 | M74: 3.411228512e-09 | N74: 3.411228512e-09 | O74: 3.411228512e-09 | P74: 3.411228512e-09 | Q74: 3.411228512e-09 | S74: 60283971.07 | T74: 54070145.69 | U74: 48296690.78 | V74: 43220740.49 | W74: 37517038.12 | X74: 31667788.22 | Y74: 26135884.43
A75: DRAB0902 | B75: Inflation addition | C75: 0 | D75: 0 | E75: 0 | F75: 0 | G75: 0 | H75: 0 | I75: 0 | K75: 0 | L75: 0 | M75: 0 | N75: 0 | O75: 0 | P75: 0 | Q75: 0 | S75: 0 | T75: 0 | U75: 0 | V75: 0 | W75: 0 | X75: 0 | Y75: 0
A76: DRAB0903 | B76: Straight line depreciation | C76: 0 | D76: 0 | E76: 0 | F76: 0 | G76: 0 | H76: 0 | I76: 0 | K76: 0 | L76: 0 | M76: 0 | N76: 0 | O76: 0 | P76: 0 | Q76: 0 | S76: -7748290.617 | T76: -7925748.756 | U76: -7343156.371 | V76: -7392468.899 | W76: -7579143.372 | X76: -7734104.438 | Y76: -7941647.174
A77: DRAB0905 | B77: Actual additions (recognised in RAB) | C77: 0 | D77: 0 | E77: 0 | F77: 0 | G77: 0 | H77: 0 | I77: 0 | K77: 0 | L77: 0 | M77: 0 | N77: 0 | O77: 0 | P77: 0 | Q77: 0 | S77: 1681967.652 | T77: 2040864.926 | U77: 2093022.007 | V77: 1676089.918 | W77: 1610016.22 | X77: 1909662.922 | Y77: 1936537.324
A78: DRAB0906 | B78: Disposals | C78: 0 | D78: 0 | E78: 0 | F78: 0 | G78: 0 | H78: 0 | I78: 0 | K78: 0 | L78: 0 | M78: 0 | N78: 0 | O78: 0 | P78: 0 | Q78: 0 | S78: 0 | T78: 0 | U78: 0 | V78: 0 | W78: 0 | X78: 0 | Y78: 0
A79: DRAB0907 | B79: Closing value | C79: =SUM(C74+C75+C76+C77+C78) -> 0 | D79: 0 | E79: 0 | F79: 0 | G79: 0 | H79: 0 | I79: 0 | K79: =SUM(K74+K75+K76+K77+K78) -> 3.409616254e-09 | L79: 3.410385062e-09 | M79: 3.411228512e-09 | N79: 3.411228512e-09 | O79: 3.411228512e-09 | P79: 3.411228512e-09 | Q79: 3.411228512e-09 | S79: =SUM(S74+S75+S76+S77+S78) -> 54217648.1 | T79: 48185261.86 | U79: 43046556.42 | V79: 37504361.51 | W79: 31547910.96 | X79: 25843346.7 | Y79: 20130774.58
B80: For “other” asset items with long lives:
A81: DRAB1001 | B81: Opening value | C81: 11611954.19 | D81: 11361748.56 | E81: 11608913.81 | F81: 16515147.81 | G81: 18572546.34 | H81: 18230582.31 | I81: 17975216.55 | K81: 14006905.58 | L81: 12194768.47 | M81: 11637437.78 | N81: 16515147.81 | O81: 18572546.34 | P81: 18230582.31 | Q81: 17975216.55 | S81: 9021340.489 | T81: 8961358.833 | U81: 8834244.592 | V81: 8948600.177 | W81: 9251317.134 | X81: 9474434.947 | Y81: 9684817.403
A82: DRAB1002 | B82: Inflation addition | C82: 0 | D82: 0 | E82: 0 | F82: 0 | G82: 0 | H82: 0 | I82: 0 | K82: 0 | L82: 0 | M82: 0 | N82: 0 | O82: 0 | P82: 0 | Q82: 0 | S82: 0 | T82: 0 | U82: 0 | V82: 0 | W82: 0 | X82: 0 | Y82: 0
A83: DRAB1003 | B83: Straight line depreciation | C83: -670124.1095 | D83: -689450.9486 | E83: -625323.6499 | F83: -709167.9422 | G83: -724377.2151 | H83: -767347.164 | I83: -805826.979 | K83: -2240002.644 | L83: -1499243.417 | M83: -653847.6148 | N83: -709167.9422 | O83: -724377.2151 | P83: -767347.164 | Q83: -805826.979 | S83: -672621.135 | T83: -522000.5124 | U83: -531003.5737 | V83: -690398.6669 | W83: -675302.1091 | X83: -693304.9199 | Y83: -681514.1456
A84: DRAB1005 | B84: Actual additions (recognised in RAB) | C84: 428350.7615 | D84: 951546.069 | E84: 5544858.448 | F84: 2771396.024 | G84: 388131.4645 | H84: 516376.7512 | I84: 447801.7525 | K84: 428350.7615 | L84: 951546.069 | M84: 5544858.448 | N84: 2771396.024 | O84: 388131.4645 | P84: 516376.7512 | Q84: 447801.7525 | S84: 780118.5178 | T84: 631015.829 | U84: 885343.901 | V84: 1116514.61 | W84: 1092001.934 | X84: 1303449.793 | Y84: 1283077.785
A85: DRAB1006 | B85: Disposals | C85: -11896.311 | D85: -14661.7099 | E85: -13300.80468 | F85: -4829.544826 | G85: -5718.277859 | H85: -4395.350203 | I85: -6157.111353 | K85: -11896.311 | L85: -14661.7099 | M85: -13300.80468 | N85: -4829.544826 | O85: -5718.277859 | P85: -4395.350203 | Q85: -6157.111353 | S85: 0 | T85: 0 | U85: 0 | V85: 0 | W85: 0 | X85: 0 | Y85: 0
A86: DRAB1007 | B86: Closing value | C86: =SUM(C81+C82+C83+C84+C85) -> 11358284.53 | D86: 11609181.97 | E86: 16515147.81 | F86: 18572546.34 | G86: 18230582.31 | H86: 17975216.55 | I86: 17611034.21 | K86: =SUM(K81+K82+K83+K84+K85) -> 12183357.39 | L86: 11632409.42 | M86: 16515147.81 | N86: 18572546.34 | O86: 18230582.31 | P86: 17975216.55 | Q86: 17611034.21 | S86: =SUM(S81+S82+S83+S84+S85) -> 9128837.872 | T86: 9070374.15 | U86: 9188584.919 | V86: 9374716.119 | W86: 9668016.959 | X86: 10084579.82 | Y86: 10286381.04
B87: For “other” asset items with short lives:
A88: DRAB1101 | B88: Opening value | C88: 137405152.3 | D88: 131272856.2 | E88: 132763545.2 | F88: 146255651.8 | G88: 142981640.6 | H88: 139472096.9 | I88: 124575412.5 | K88: 137405152.3 | L88: 131272856.2 | M88: 132763545.2 | N88: 146255651.8 | O88: 142981640.6 | P88: 139472096.9 | Q88: 124575412.5 | S88: 5636954.939 | T88: 3550389.509 | U88: 3209233.647 | V88: 4729590.729 | W88: 4493332.093 | X88: 3831345.838 | Y88: 4711763.996
A89: DRAB1102 | B89: Inflation addition | C89: 0 | D89: 0 | E89: 0 | F89: 0 | G89: 0 | H89: 0 | I89: 0 | K89: 0 | L89: 0 | M89: 0 | N89: 0 | O89: 0 | P89: 0 | Q89: 0 | S89: 0 | T89: 0 | U89: 0 | V89: 0 | W89: 0 | X89: 0 | Y89: 0
A90: DRAB1103 | B90: Straight line depreciation | C90: -35179494.51 | D90: -28854631.33 | E90: -23834267.18 | F90: -27961584.29 | G90: -28498341.93 | H90: -29919352.93 | I90: -29489790.03 | K90: -35179494.51 | L90: -28854631.33 | M90: -23834267.18 | N90: -27961584.29 | O90: -28498341.93 | P90: -29919352.93 | Q90: -29489790.03 | S90: -3431259.275 | T90: -1598711.913 | U90: -590171.0162 | V90: -952724.4336 | W90: -1076437.317 | X90: -1146818.878 | Y90: -1606030.742
A91: DRAB1105 | B91: Actual additions (recognised in RAB) | C91: 29179713.84 | D91: 30545203.33 | E91: 37504912.79 | F91: 24752400.88 | G91: 25065555.57 | H91: 15081668.01 | I91: 11975178 | K91: 29179713.84 | L91: 30545203.33 | M91: 37504912.79 | N91: 24752400.88 | O91: 25065555.57 | P91: 15081668.01 | Q91: 11975178 | S91: 1029712.391 | T91: 1132855.419 | U91: 2044727.428 | V91: 605743.4184 | W91: 340746.3017 | X91: 1920012.351 | Y91: 1949482.327
A92: DRAB1106 | B92: Disposals | C92: -159686.1681 | D92: -196806.5792 | E92: -178538.9213 | F92: -64827.78631 | G92: -76757.39815 | H92: -58999.5194 | I92: -82647.93339 | K92: -159686.1681 | L92: -196806.5792 | M92: -178538.9213 | N92: -64827.78631 | O92: -76757.39815 | P92: -58999.5194 | Q92: -82647.93339 | S92: 0 | T92: 0 | U92: 0 | V92: 0 | W92: 0 | X92: 0 | Y92: 0
A93: DRAB1107 | B93: Closing value | C93: =SUM(C88+C89+C90+C91+C92) -> 131245685.4 | D93: 132766621.6 | E93: 146255651.8 | F93: 142981640.6 | G93: 139472096.9 | H93: 124575412.5 | I93: 106978152.5 | K93: =SUM(K88+K89+K90+K91+K92) -> 131245685.4 | L93: 132766621.6 | M93: 146255651.8 | N93: 142981640.6 | O93: 139472096.9 | P93: 124575412.5 | Q93: 106978152.5 | S93: =SUM(S88+S89+S90+S91+S92) -> 3235408.055 | T93: 3084533.016 | U93: 4663790.058 | V93: 4382609.713 | W93: 3757641.078 | X93: 4604539.311 | Y93: 5055215.581
B97: 3.3.3 - TOTAL DISAGGREGATED RAB ASSET VALUES
C98: Network services | K98: Standard control services | S98: Alternative control services
C99: =CONCATENATE("Forecast ($0's, real ", dms_DollarReal,")") -> Forecast ($0's, real June 2021) | K99: =CONCATENATE("Forecast ($0's, real ", dms_DollarReal,")") -> Forecast ($0's, real June 2021) | S99: =CONCATENATE("Forecast ($0's, real ", dms_DollarReal,")") -> Forecast ($0's, real June 2021)
C100: =CRCP_y4 -> 2019-20 | D100: =CRCP_y5 -> 2020-21 | E100: =FRCP_y1 -> 2021-22 | F100: =FRCP_y2 -> 2022-23 | G100: =FRCP_y3 -> 2023-24 | H100: =FRCP_y4 -> 2024-25 | I100: =FRCP_y5 -> 2025-26 | K100: =CRCP_y4 -> 2019-20 | L100: =CRCP_y5 -> 2020-21 | M100: =FRCP_y1 -> 2021-22 | N100: =FRCP_y2 -> 2022-23 | O100: =FRCP_y3 -> 2023-24 | P100: =FRCP_y4 -> 2024-25 | Q100: =FRCP_y5 -> 2025-26 | S100: =CRCP_y4 -> 2019-20 | T100: =CRCP_y5 -> 2020-21 | U100: =FRCP_y1 -> 2021-22 | V100: =FRCP_y2 -> 2022-23 | W100: =FRCP_y3 -> 2023-24 | X100: =FRCP_y4 -> 2024-25 | Y100: =FRCP_y5 -> 2025-26
A101: DRAB1201 | B101: Overhead network assets less than 33kV (wires and poles) | C101: 712866755.7 | D101: 729439892.5 | E101: 754991218.5 | F101: 784226391.5 | G101: 817224333.1 | H101: 851997612.6 | I101: 878738795.5 | K101: 880989760.4 | L101: 901294453.3 | M101: 922984169.6 | N101: 944769087.3 | O101: 970595957.7 | P101: 998482998.5 | Q101: 1018619181 | S101: 0 | T101: 0 | U101: 0 | V101: 0 | W101: 0 | X101: 0 | Y101: 0
A102: DRAB1202 | B102: Underground network assets less than 33kV (cables) | C102: 51298545.13 | D102: 52491163.25 | E102: 54329860.08 | F102: 56433649.92 | G102: 58808212.05 | H102: 61310529.12 | I102: 63234849.15 | K102: 63396830.65 | L102: 64857974.96 | M102: 66418786.82 | N102: 67986449.47 | O102: 69844974.73 | P102: 71851751.75 | Q102: 73300769.87 | S102: 0 | T102: 0 | U102: 0 | V102: 0 | W102: 0 | X102: 0 | Y102: 0
A103: DRAB1203 | B103: Distribution substations including transformers | C103: 38543199.95 | D103: 39439274.45 | E103: 40820780.68 | F103: 42401464.74 | G103: 44185593.76 | H103: 46065711.55 | I103: 47511550.83 | K103: 47633255.75 | L103: 48731087.61 | M103: 49903804.76 | N103: 51081669.25 | O103: 52478073.59 | P103: 53985866.99 | Q103: 55074587.83 | S103: 0 | T103: 0 | U103: 0 | V103: 0 | W103: 0 | X103: 0 | Y103: 0
A104: DRAB1204 | B104: Overhead network assets 33kV and above (wires and towers / poles etc) | C104: 178906512.7 | D104: 188443850.3 | E104: 199495576 | F104: 218145686.9 | G104: 230374894.7 | H104: 231332888.1 | I104: 231296252.3 | K104: 178906512.7 | L104: 188443850.3 | M104: 199495576 | N104: 218145686.9 | O104: 230374894.7 | P104: 231332888.1 | Q104: 231296252.3 | S104: 0 | T104: 0 | U104: 0 | V104: 0 | W104: 0 | X104: 0 | Y104: 0
A105: DRAB1205 | B105: Underground network assets 33kV and above(cables, ducts etc) | C105: 6862511.615 | D105: 7228345.64 | E105: 7652268.697 | F105: 8367651.279 | G105: 8836740.3 | H105: 8873487.092 | I105: 8872081.813 | K105: 6862511.615 | L105: 7228345.64 | M105: 7652268.697 | N105: 8367651.279 | O105: 8836740.3 | P105: 8873487.092 | Q105: 8872081.813 | S105: 0 | T105: 0 | U105: 0 | V105: 0 | W105: 0 | X105: 0 | Y105: 0
A106: DRAB1206 | B106: Zone substations and transformers | C106: 168065104.9 | D106: 177024497.2 | E106: 187406508.5 | F106: 204926456.8 | G106: 216414597 | H106: 217314537.7 | I106: 217280122 | K106: 168065104.9 | L106: 177024497.2 | M106: 187406508.5 | N106: 204926456.8 | O106: 216414597 | P106: 217314537.7 | Q106: 217280122 | S106: 0 | T106: 0 | U106: 0 | V106: 0 | W106: 0 | X106: 0 | Y106: 0
A107: DRAB1207 | B107: Easements | C107: 0 | D107: 0 | E107: 0 | F107: 0 | G107: 0 | H107: 0 | I107: 0 | K107: 0 | L107: 0 | M107: 0 | N107: 0 | O107: 0 | P107: 0 | Q107: 0 | S107: 0 | T107: 0 | U107: 0 | V107: 0 | W107: 0 | X107: 0 | Y107: 0
A108: DRAB1208 | B108: Meters | C108: 0 | D108: 0 | E108: 0 | F108: 0 | G108: 0 | H108: 0 | I108: 0 | K108: 3.409616254e-09 | L108: 3.410385062e-09 | M108: 3.411228512e-09 | N108: 3.411228512e-09 | O108: 3.411228512e-09 | P108: 3.411228512e-09 | Q108: 3.411228512e-09 | S108: 57250809.59 | T108: 51127703.77 | U108: 45671623.6 | V108: 40362551 | W108: 34532474.54 | X108: 28755567.46 | Y108: 23133329.51
A109: DRAB1209 | B109: “Other” assets with long lives | C109: 11485119.36 | D109: 11485465.26 | E109: 14062030.81 | F109: 17543847.07 | G109: 18401564.33 | H109: 18102899.43 | I109: 17793125.38 | K109: 13095131.49 | L109: 11913588.94 | M109: 14076292.79 | N109: 17543847.07 | O109: 18401564.33 | P109: 18102899.43 | Q109: 17793125.38 | S109: 9075089.181 | T109: 9015866.492 | U109: 9011414.756 | V109: 9161658.148 | W109: 9459667.047 | X109: 9779507.383 | Y109: 9985599.223
A110: DRAB1210 | B110: “Other” assets with short lives | C110: 134325418.9 | D110: 132019738.9 | E110: 139509598.5 | F110: 144618646.2 | G110: 141226868.8 | H110: 132023754.7 | I110: 115776782.5 | K110: 134325418.9 | L110: 132019738.9 | M110: 139509598.5 | N110: 144618646.2 | O110: 141226868.8 | P110: 132023754.7 | Q110: 115776782.5 | S110: 4436181.497 | T110: 3317461.262 | U110: 3936511.853 | V110: 4556100.221 | W110: 4125486.586 | X110: 4217942.574 | Y110: 4883489.788
A111: DRAB13 | B111: Value of Capital Contributions or Contributed Assets (included in the above) | C111: 26859727.35 | D111: 33649383.08 | E111: 34908692.91 | F111: 32899466.88 | G111: 35537549.71 | H111: 37146983.77 | I111: 37465845.47 | K111: 33455673.5 | L111: 37120868.24 | M111: 34908692.91 | N111: 32899466.88 | O111: 35537549.71 | P111: 37146983.77 | Q111: 37465845.47 | S111: 0 | T111: 0 | U111: 0 | V111: 0 | W111: 0 | X111: 0 | Y111: 0
B114: 3.3.4 - ASSET LIVES
C115: Network services | K115: Standard control services | S115: Alternative control services
C116: Forecast ( years ) | K116: Forecast ( years ) | S116: Forecast ( years )
C117: =CRCP_y4 -> 2019-20 | D117: =CRCP_y5 -> 2020-21 | E117: =FRCP_y1 -> 2021-22 | F117: =FRCP_y2 -> 2022-23 | G117: =FRCP_y3 -> 2023-24 | H117: =FRCP_y4 -> 2024-25 | I117: =FRCP_y5 -> 2025-26 | K117: =CRCP_y4 -> 2019-20 | L117: =CRCP_y5 -> 2020-21 | M117: =FRCP_y1 -> 2021-22 | N117: =FRCP_y2 -> 2022-23 | O117: =FRCP_y3 -> 2023-24 | P117: =FRCP_y4 -> 2024-25 | Q117: =FRCP_y5 -> 2025-26 | S117: =CRCP_y4 -> 2019-20 | T117: =CRCP_y5 -> 2020-21 | U117: =FRCP_y1 -> 2021-22 | V117: =FRCP_y2 -> 2022-23 | W117: =FRCP_y3 -> 2023-24 | X117: =FRCP_y4 -> 2024-25 | Y117: =FRCP_y5 -> 2025-26
B118: Estimated service life of new assets
A119: DRAB1401 | B119: Overhead network assets less than 33kV (wires and poles) | C119: 49.4679916 | D119: 49.4679916 | E119: 49.4679916 | F119: 49.4679916 | G119: 49.4679916 | H119: 49.4679916 | I119: 49.4679916 | K119: 49.4679916 | L119: 49.4679916 | M119: 49.4679916 | N119: 49.4679916 | O119: 49.4679916 | P119: 49.4679916 | Q119: 49.4679916 | S119: 0 | T119: 0 | U119: 0 | V119: 0 | W119: 0 | X119: 0 | Y119: 0
A120: DRAB1402 | B120: Underground network assets less than 33kV (cables) | C120: 49.4679916 | D120: 49.4679916 | E120: 49.4679916 | F120: 49.4679916 | G120: 49.4679916 | H120: 49.4679916 | I120: 49.4679916 | K120: 49.4679916 | L120: 49.4679916 | M120: 49.4679916 | N120: 49.4679916 | O120: 49.4679916 | P120: 49.4679916 | Q120: 49.4679916 | S120: 0 | T120: 0 | U120: 0 | V120: 0 | W120: 0 | X120: 0 | Y120: 0
A121: DRAB1403 | B121: Distribution substations including transformers | C121: 49.4679916 | D121: 49.4679916 | E121: 49.4679916 | F121: 49.4679916 | G121: 49.4679916 | H121: 49.4679916 | I121: 49.4679916 | K121: 49.4679916 | L121: 49.4679916 | M121: 49.4679916 | N121: 49.4679916 | O121: 49.4679916 | P121: 49.4679916 | Q121: 49.4679916 | S121: 0 | T121: 0 | U121: 0 | V121: 0 | W121: 0 | X121: 0 | Y121: 0
A122: DRAB1404 | B122: Overhead network assets 33kV and above (wires and towers / poles etc) | C122: 53.36214286 | D122: 53.36214286 | E122: 53.36214286 | F122: 53.36214286 | G122: 53.36214286 | H122: 53.36214286 | I122: 53.36214286 | K122: 53.36214286 | L122: 53.36214286 | M122: 53.36214286 | N122: 53.36214286 | O122: 53.36214286 | P122: 53.36214286 | Q122: 53.36214286 | S122: 0 | T122: 0 | U122: 0 | V122: 0 | W122: 0 | X122: 0 | Y122: 0
A123: DRAB1405 | B123: Underground network assets 33kV and above(cables, ducts etc) | C123: 53.36214286 | D123: 53.36214286 | E123: 53.36214286 | F123: 53.36214286 | G123: 53.36214286 | H123: 53.36214286 | I123: 53.36214286 | K123: 53.36214286 | L123: 53.36214286 | M123: 53.36214286 | N123: 53.36214286 | O123: 53.36214286 | P123: 53.36214286 | Q123: 53.36214286 | S123: 0 | T123: 0 | U123: 0 | V123: 0 | W123: 0 | X123: 0 | Y123: 0
A124: DRAB1406 | B124: Zone substations and transformers | C124: 53.36214286 | D124: 53.36214286 | E124: 53.36214286 | F124: 53.36214286 | G124: 53.36214286 | H124: 53.36214286 | I124: 53.36214286 | K124: 53.36214286 | L124: 53.36214286 | M124: 53.36214286 | N124: 53.36214286 | O124: 53.36214286 | P124: 53.36214286 | Q124: 53.36214286 | S124: 0 | T124: 0 | U124: 0 | V124: 0 | W124: 0 | X124: 0 | Y124: 0
A125: DRAB1407 | B125: Meters | C125: 0 | D125: 0 | E125: 0 | F125: 0 | G125: 0 | H125: 0 | I125: 0 | K125: 0 | L125: 0 | M125: 0 | N125: 0 | O125: 0 | P125: 0 | Q125: 0 | S125: 15 | T125: 15 | U125: 15 | V125: 15 | W125: 15 | X125: 15 | Y125: 15
A126: DRAB1408 | B126: “Other” assets with long lives | C126: 40 | D126: 40 | E126: 40 | F126: 40 | G126: 40 | H126: 40 | I126: 40 | K126: 40 | L126: 40 | M126: 40 | N126: 40 | O126: 40 | P126: 40 | Q126: 40 | S126: 20 | T126: 20 | U126: 20 | V126: 20 | W126: 20 | X126: 20 | Y126: 20
A127: DRAB1409 | B127: “Other” assets with short lives | C127: 5 | D127: 5 | E127: 5 | F127: 5 | G127: 5 | H127: 5 | I127: 5 | K127: 5 | L127: 5 | M127: 5 | N127: 5 | O127: 5 | P127: 5 | Q127: 5 | S127: 7 | T127: 7 | U127: 7 | V127: 7 | W127: 7 | X127: 7 | Y127: 7
B128: Estimated residual service life
A129: DRAB1501 | B129: Overhead network assets less than 33kV (wires and poles) | C129: 22.09677486 | D129: 22.17836973 | E129: 22.10327806 | F129: 21.94910212 | G129: 21.78845955 | H129: 21.72543294 | I129: 21.60322317 | K129: 22.09604076 | L129: 22.17894692 | M129: 22.10327806 | N129: 21.94910212 | O129: 21.78845955 | P129: 21.72543294 | Q129: 21.60322317 | S129: 0 | T129: 0 | U129: 0 | V129: 0 | W129: 0 | X129: 0 | Y129: 0
A130: DRAB1502 | B130: Underground network assets less than 33kV (cables) | C130: 22.09677486 | D130: 22.17836973 | E130: 22.10327806 | F130: 21.94910212 | G130: 21.78845955 | H130: 21.72543294 | I130: 21.60322317 | K130: 22.09604076 | L130: 22.17894692 | M130: 22.10327806 | N130: 21.94910212 | O130: 21.78845955 | P130: 21.72543294 | Q130: 21.60322317 | S130: 0 | T130: 0 | U130: 0 | V130: 0 | W130: 0 | X130: 0 | Y130: 0
A131: DRAB1503 | B131: Distribution substations including transformers | C131: 22.09677486 | D131: 22.17836973 | E131: 22.10327806 | F131: 21.94910212 | G131: 21.78845955 | H131: 21.72543294 | I131: 21.60322317 | K131: 22.09604076 | L131: 22.17894692 | M131: 22.10327806 | N131: 21.94910212 | O131: 21.78845955 | P131: 21.72543294 | Q131: 21.60322317 | S131: 0 | T131: 0 | U131: 0 | V131: 0 | W131: 0 | X131: 0 | Y131: 0
A132: DRAB1504 | B132: Overhead network assets 33kV and above (wires and towers / poles etc) | C132: 30.38680413 | D132: 31.43060499 | E132: 31.20971385 | F132: 31.58057663 | G132: 32.27052736 | H132: 31.79445113 | I132: 31.19523177 | K132: 30.38680413 | L132: 31.43060499 | M132: 31.20971385 | N132: 31.58057663 | O132: 32.27052736 | P132: 31.79445113 | Q132: 31.19523177 | S132: 0 | T132: 0 | U132: 0 | V132: 0 | W132: 0 | X132: 0 | Y132: 0
A133: DRAB1505 | B133: Underground network assets 33kV and above (cables, ducts etc) | C133: 30.38680413 | D133: 31.43060499 | E133: 31.20971385 | F133: 31.58057663 | G133: 32.27052736 | H133: 31.79445113 | I133: 31.19523177 | K133: 30.38680413 | L133: 31.43060499 | M133: 31.20971385 | N133: 31.58057663 | O133: 32.27052736 | P133: 31.79445113 | Q133: 31.19523177 | S133: 0 | T133: 0 | U133: 0 | V133: 0 | W133: 0 | X133: 0 | Y133: 0
A134: DRAB1506 | B134: Zone substations and transformers | C134: 30.38680413 | D134: 31.43060499 | E134: 31.20971385 | F134: 31.58057663 | G134: 32.27052736 | H134: 31.79445113 | I134: 31.19523177 | K134: 30.38680413 | L134: 31.43060499 | M134: 31.20971385 | N134: 31.58057663 | O134: 32.27052736 | P134: 31.79445113 | Q134: 31.19523177 | S134: 0 | T134: 0 | U134: 0 | V134: 0 | W134: 0 | X134: 0 | Y134: 0
A135: DRAB1507 | B135: Meters | C135: 0 | D135: 0 | E135: 0 | F135: 0 | G135: 0 | H135: 0 | I135: 0 | K135: 0 | L135: 0 | M135: 0 | N135: 0 | O135: 0 | P135: 0 | Q135: 0 | S135: 8.220281189 | T135: 7.401229066 | U135: 7.054970205 | V135: 6.259555513 | W135: 5.473521077 | X135: 4.700565913 | Y135: 3.942870483
A136: DRAB1508 | B136: “Other” assets with long lives | C136: 17.08036264 | D136: 16.32550106 | E136: 18.13573837 | F136: 22.75002503 | G136: 25.04696902 | H136: 23.20903897 | I136: 21.79118446 | K136: 6.163688563 | L136: 8.057978937 | M136: 17.38718749 | N136: 22.75002503 | O136: 25.04696902 | P136: 23.20903897 | Q136: 21.79118446 | S136: 14.17069946 | T136: 18.62471113 | U136: 17.84565781 | V136: 13.87701182 | W136: 15.14829784 | X136: 15.68814098 | Y136: 17.02560139
A137: DRAB1509 | B137: “Other” assets with short lives | C137: 3.849997428 | D137: 4.50696436 | E137: 5.441586617 | F137: 5.10974694 | G137: 4.901276375 | H137: 4.553901607 | I137: 4.126759527 | K137: 3.849997428 | L137: 4.50696436 | M137: 5.441586617 | N137: 5.10974694 | O137: 4.901276375 | P137: 4.553901607 | Q137: 4.126759527 | S137: 1.735728322 | T137: 2.409308416 | U137: 5.832893482 | V137: 5.314923964 | W137: 4.615706076 | X137: 3.835296726 | Y137: 3.514921046

Sheet 3.4 Operational data
B1: =INDEX(dms_Worksheet_List,MATCH(dms_Model,dms_Model_List)) -> REGULATORY REPORTING STATEMENT
B2: =INDEX(dms_TradingNameFull_List,MATCH(dms_TradingName,dms_TradingName_List)) -> Jemena Electricity
B3: =dms_Header_Span -> 2021-22 to 2025-26
B4: 3.4 OPERATIONAL DATA
B6: There are TWO tables on this worksheet. Each table has been grouped for ease of navigation. See the Instructions sheet on how to group or ungroup tables.
B8: 3.4.1 - ENERGY DELIVERY
D9: Standard control services
D10: Forecast
C11: Units | D11: =CRCP_y4 -> 2019-20 | E11: =CRCP_y5 -> 2020-21 | F11: =FRCP_y1 -> 2021-22 | G11: =FRCP_y2 -> 2022-23 | H11: =FRCP_y3 -> 2023-24 | I11: =FRCP_y4 -> 2024-25 | J11: =FRCP_y5 -> 2025-26
A12: DOPED01 | B12: Total energy delivered | C12: GWh
B13: 3.4.1.1 - Energy grouping - delivery by chargeable quantity
A14: DOPED0201 | B14: Energy Delivery where time of use is not a determinant | C14: GWh | D14: 1412.09769 | E14: 1423.046911 | F14: 1433.884247 | G14: 1440.945118 | H14: 1447.416823 | I14: 1455.618031 | J14: 1466.653079
A15: DOPED0202 | B15: Energy Delivery at On-peak times | C15: GWh | D15: 1670.423198 | E15: 1674.240232 | F15: 1716.159832 | G15: 1750.513553 | H15: 1762.948343 | I15: 1774.742166 | J15: 1787.314599
A16: DOPED0203 | B16: Energy Delivery at Shoulder times | C16: GWh | D16: 2.664921121 | E16: 2.675284458 | F16: 2.68685319 | G16: 2.69840135 | H16: 2.713619833 | I16: 2.733229123 | J16: 2.75888422
A17: DOPED0204 | B17: Energy Delivery at Off-peak times | C17: GWh | D17: 1273.46391 | E17: 1268.332333 | F17: 1279.613396 | G17: 1308.881434 | H17: 1317.751612 | I17: 1326.219821 | J17: 1333.853964
A18: DOPED0205 | B18: Controlled load energy deliveries | C18: GWh | D18: 33.64914513 | E18: 33.77999982 | F18: 33.92607466 | G18: 34.07188975 | H18: 34.26404889 | I18: 34.5116494 | J18: 34.83558848
A19: DOPED0206 | B19: Energy Delivery to unmetered supplies | C19: GWh | D19: 37.68552516 | E19: 38.90598014 | F19: 39.9957899 | G19: 40.34438626 | H19: 40.24628695 | I19: 40.0927899 | J19: 39.88759202
B20: 3.4.1.2 - Energy - received from TNSP and other DNSPs by time of receipt
A21: DOPED0301 | B21: Energy into DNSP network at On-peak times | C21: GWh | D21: 0 | E21: 0 | F21: 0 | G21: 0 | H21: 0 | I21: 0 | J21: 0
A22: DOPED0302 | B22: Energy into DNSP network at Shoulder times | C22: GWh | D22: 0 | E22: 0 | F22: 0 | G22: 0 | H22: 0 | I22: 0 | J22: 0
A23: DOPED0303 | B23: Energy into DNSP network at Off-peak times | C23: GWh | D23: 0 | E23: 0 | F23: 0 | G23: 0 | H23: 0 | I23: 0 | J23: 0
A24: DOPED0304 | B24: Energy received from TNSP and other DNSPs not included in the above categories | C24: GWh | D24: 4503.834164 | E24: 4558.467876 | F24: 4611.411958 | G24: 4649.710046 | H24: 4680.517631 | I24: 4711.981624 | J24: 4746.042143
B25: 3.4.1.3 - Energy - received into DNSP system from embedded generation by time of receipt
A26: DOPED0401 | B26: Energy into DNSP network at On-peak times from non-residential embedded generation | C26: GWh | D26: 0 | E26: 0 | F26: 0 | G26: 0 | H26: 0 | I26: 0 | J26: 0
A27: DOPED0402 | B27: Energy into DNSP network at Shoulder times from non-residential embedded generation | C27: GWh | D27: 0 | E27: 0 | F27: 0 | G27: 0 | H27: 0 | I27: 0 | J27: 0
A28: DOPED0403 | B28: Energy into DNSP network at Off-peak times from non-residential embedded generation | C28: GWh | D28: 0 | E28: 0 | F28: 0 | G28: 0 | H28: 0 | I28: 0 | J28: 0
A29: DOPED0404 | B29: Energy received from embedded generation not included in above categories from non-residential embedded generation | C29: GWh | D29: 36.6007022 | E29: 37.35506265 | F29: 38.00961645 | G29: 38.62459354 | H29: 39.20473797 | I29: 39.75420514 | J29: 40.27659586
A30: DOPED0405 | B30: Energy into DNSP network at On-peak times from residential embedded generation | C30: GWh | D30: 0 | E30: 0 | F30: 0 | G30: 0 | H30: 0 | I30: 0 | J30: 0
A31: DOPED0406 | B31: Energy into DNSP network at Shoulder times from residential embedded generation | C31: GWh | D31: 0 | E31: 0 | F31: 0 | G31: 0 | H31: 0 | I31: 0 | J31: 0
A32: DOPED0407 | B32: Energy into DNSP network at Off-peak times from residential embedded generation | C32: GWh | D32: 0 | E32: 0 | F32: 0 | G32: 0 | H32: 0 | I32: 0 | J32: 0
A33: DOPED0408 | B33: Energy received from embedded generation not included in above categories from residential embedded generation | C33: GWh | D33: 92.55658715 | E33: 106.0065947 | F33: 118.4854583 | G33: 130.2715548 | H33: 141.6769995 | I33: 152.8368444 | J33: 163.8172162
B34: 3.4.1.4 - Energy grouping - customer type or class
A35: DOPED0501 | B35: Residential customers energy deliveries | C35: GWh | D35: 1342.520238 | E35: 1347.741027 | F35: 1374.444381 | G35: 1380.351776 | H35: 1388.136704 | I35: 1398.167724 | J35: 1411.291442
A36: DOPED0502 | B36: Non residential customers not on demand tariffs energy deliveries | C36: GWh | D36: 515.5662528 | E36: 532.2629923 | F36: 547.1724074 | G36: 551.9414671 | H36: 550.5993949 | I36: 548.4994402 | J36: 545.6921793
A37: DOPED0503 | B37: Non-residential low voltage demand tariff customers energy deliveries | C37: GWh | D37: 1477.11665 | E37: 1503.471488 | F37: 1529.721443 | G37: 1553.696837 | H37: 1575.689518 | I37: 1596.940062 | J37: 1618.338118
A38: DOPED0504 | B38: Non-residential high voltage demand tariff customers energy deliveries | C38: GWh | D38: 1057.095722 | E38: 1018.599252 | F38: 1014.932171 | G38: 1051.120317 | H38: 1050.668831 | I38: 1050.217672 | J38: 1049.76684
A39: DOPED0505 | B39: Other Customer Class Energy Deliveries | C39: GWh | D39: 37.68552516 | E39: 38.90598014 | F39: 39.9957899 | G39: 40.34438626 | H39: 40.24628695 | I39: 40.0927899 | J39: 39.88759202
B43: 3.4.3 - SYSTEM DEMAND
D44: Standard control services
D45: Forecast
C46: Units | D46: =CRCP_y4 -> 2019-20 | E46: =CRCP_y5 -> 2020-21 | F46: =FRCP_y1 -> 2021-22 | G46: =FRCP_y2 -> 2022-23 | H46: =FRCP_y3 -> 2023-24 | I46: =FRCP_y4 -> 2024-25 | J46: =FRCP_y5 -> 2025-26
B47: 3.4.3.1 - Annual system maximum demand characteristics at the zone substation level – MW measure
A48: DOPSD0102 | B48: Non–coincident Summated Weather Adjusted System Annual Maximum Demand 10% POE | C48: MW | D48: 1125.134767 | E48: 1126.838238 | F48: 1141.233892 | G48: 1141.218794 | H48: 1152.362274 | I48: 1160.048734 | J48: 1165.641909
A49: DOPSD0103 | B49: Non–coincident Summated Weather Adjusted System Annual Maximum Demand 50% POE | C49: MW | D49: 1013.987033 | E49: 1019.627439 | F49: 1031.25792 | G49: 1039.348498 | H49: 1045.779429 | I49: 1049.799906 | J49: 1056.914589
A50: DOPSD0105 | B50: Coincident Weather Adjusted System Annual Maximum Demand 10% POE | C50: MW | D50: 1013.862203 | E50: 1018.489546 | F50: 1031.35185 | G50: 1031.239127 | H50: 1041.270713 | I50: 1048.222229 | J50: 1053.286932
A51: DOPSD0106 | B51: Coincident Weather Adjusted System Annual Maximum Demand 50% POE | C51: MW | D51: 913.7908241 | E51: 921.6963048 | F51: 932.0752297 | G51: 939.2974153 | H51: 945.0754595 | I51: 948.7117476 | J51: 955.1482862
B52: 3.4.3.2 - Annual system maximum demand characteristics at the transmission connection point – MW measure
A53: DOPSD0108 | B53: Non–coincident Summated Weather Adjusted System Annual Maximum Demand 10% POE | C53: MW | D53: 1121.737626 | E53: 1127.123711 | F53: 1141.391165 | G53: 1127.398119 | H53: 1138.411859 | I53: 1146.788956 | J53: 1153.185793
A54: DOPSD0109 | B54: Non–coincident Summated Weather Adjusted System Annual Maximum Demand 50% POE | C54: MW | D54: 994.985456 | E54: 1004.165264 | F54: 1015.760793 | G54: 1023.643314 | H54: 1029.992565 | I54: 1034.596851 | J54: 1042.302871
A55: DOPSD0111 | B55: Coincident Weather Adjusted System Annual Maximum Demand 10% POE | C55: MW | D55: 1073.395908 | E55: 1078.802996 | F55: 1092.455379 | G55: 1080.449938 | H55: 1090.917927 | I55: 1098.792495 | J55: 1104.761192
A56: DOPSD0112 | B56: Coincident Weather Adjusted System Annual Maximum Demand 50% POE | C56: MW | D56: 967.2392091 | E56: 976.0080304 | F56: 987.0844187 | G56: 984.8140328 | H56: 990.8790236 | I56: 995.2771721 | J56: 1002.638188
B57: 3.4.3.3 - Annual system maximum demand characteristics at the zone substation level – MVA measure
A58: DOPSD0202 | B58: Non–coincident Summated Weather Adjusted System Annual Maximum Demand 10% POE | C58: MVA | D58: 1138.610096 | E58: 1141.266188 | F58: 1156.159025 | G58: 1154.812419 | H58: 1166.310823 | I58: 1174.241377 | J58: 1179.992001
A59: DOPSD0203 | B59: Non–coincident Summated Weather Adjusted System Annual Maximum Demand 50% POE | C59: MVA | D59: 1024.989973 | E59: 1030.958781 | F59: 1042.964695 | G59: 1051.286712 | H59: 1057.886657 | I59: 1062.006104 | J59: 1068.186695
A60: DOPSD0205 | B60: Coincident Weather Adjusted System Annual Maximum Demand 10% POE | C60: MVA | D60: 1026.023441 | E60: 1031.672002 | F60: 1044.983977 | G60: 1043.672476 | H60: 1054.03009 | I60: 1061.207047 | J60: 1066.41855
A61: DOPSD0206 | B61: Coincident Weather Adjusted System Annual Maximum Demand 50% POE | C61: MVA | D61: 923.7882759 | E61: 932.1145287 | F61: 942.8335198 | G61: 950.2664686 | H61: 956.2015127 | I61: 959.9310363 | J61: 965.5297516
B62: 3.4.3.4 - Annual system maximum demand characteristics at the transmission connection point – MVA measure
A63: DOPSD0208 | B63: Non–coincident Summated Weather Adjusted System Annual Maximum Demand 10% POE | C63: MVA | D63: 1174.672357 | E63: 1180.080121 | F63: 1195.035714 | G63: 1180.309048 | H63: 1191.813614 | I63: 1200.625809 | J63: 1207.366766
A64: DOPSD0209 | B64: Non–coincident Summated Weather Adjusted System Annual Maximum Demand 50% POE | C64: MVA | D64: 1043.850803 | E64: 1053.218174 | F64: 1065.374143 | G64: 1072.248496 | H64: 1078.880218 | I64: 1083.752819 | J64: 1091.870115
A65: DOPSD0211 | B65: Coincident Weather Adjusted System Annual Maximum Demand 10% POE | C65: MVA | D65: 1123.467194 | E65: 1128.90414 | F65: 1143.212512 | G65: 1130.575982 | H65: 1141.508151 | I65: 1149.789801 | J65: 1156.078431
A66: DOPSD0212 | B66: Coincident Weather Adjusted System Annual Maximum Demand 50% POE | C66: MVA | D66: 1012.566853 | E66: 1021.539471 | F66: 1033.15152 | G66: 1030.61819 | H66: 1036.946119 | I66: 1041.587206 | J66: 1049.328564
B67: 3.4.3.5 - Power factor conversion between MVA and MW
A68: DOPSD0301 | B68: Average overall network power factor conversion between MVA and MW | C68: Factor | D68: 0.9757510447 | E68: 0.9757510447 | F68: 0.9757510447 | G68: 0.9757510447 | H68: 0.9757510447 | I68: 0.9757510447 | J68: 0.9757510447
A69: DOPSD0302 | B69: Average power factor conversion for low voltage distribution lines | C69: Factor | D69: 0.9093634397 | E69: 0.9093634397 | F69: 0.9093634397 | G69: 0.9093634397 | H69: 0.9093634397 | I69: 0.9093634397 | J69: 0.9093634397
A70: DOPSD0303 | B70: Average power factor conversion for 3.3 kV lines | C70: Factor | D70: 0 | E70: 0 | F70: 0 | G70: 0 | H70: 0 | I70: 0 | J70: 0
A71: DOPSD0304 | B71: Average power factor conversion for 6.6 kV lines | C71: Factor | D71: 0.8841065088 | E71: 0.8841065088 | F71: 0.8841065088 | G71: 0.8841065088 | H71: 0.8841065088 | I71: 0.8841065088 | J71: 0.8841065088
A72: DOPSD0305 | B72: Average power factor conversion for 7.6 kV lines | C72: Factor | D72: 0 | E72: 0 | F72: 0 | G72: 0 | H72: 0 | I72: 0 | J72: 0
A73: DOPSD0306 | B73: Average power factor conversion for 11 kV lines | C73: Factor | D73: 0.9436361963 | E73: 0.9436361963 | F73: 0.9436361963 | G73: 0.9436361963 | H73: 0.9436361963 | I73: 0.9436361963 | J73: 0.9436361963
A74: DOPSD0307 | B74: Average power factor conversion for SWER lines | C74: Factor | D74: 0 | E74: 0 | F74: 0 | G74: 0 | H74: 0 | I74: 0 | J74: 0
A75: DOPSD0308 | B75: Average power factor conversion for 22 kV lines | C75: Factor | D75: 0.9454326091 | E75: 0.9454326091 | F75: 0.9454326091 | G75: 0.9454326091 | H75: 0.9454326091 | I75: 0.9454326091 | J75: 0.9454326091
A76: DOPSD0309 | B76: Average power factor conversion for 33 kV lines | C76: Factor | D76: 0 | E76: 0 | F76: 0 | G76: 0 | H76: 0 | I76: 0 | J76: 0
A77: DOPSD0310 | B77: Average power factor conversion for 44 kV lines | C77: Factor | D77: 0 | E77: 0 | F77: 0 | G77: 0 | H77: 0 | I77: 0 | J77: 0
A78: DOPSD0311 | B78: Average power factor conversion for 66 kV lines | C78: Factor | D78: 0.9758792845 | E78: 0.9758792845 | F78: 0.9758792845 | G78: 0.9758792845 | H78: 0.9758792845 | I78: 0.9758792845 | J78: 0.9758792845
A79: DOPSD0312 | B79: Average power factor conversion for 110 kV lines | C79: Factor | D79: 0 | E79: 0 | F79: 0 | G79: 0 | H79: 0 | I79: 0 | J79: 0
A80: DOPSD0313 | B80: Average power factor conversion for 132 kV lines | C80: Factor | D80: 0 | E80: 0 | F80: 0 | G80: 0 | H80: 0 | I80: 0 | J80: 0
A81: DOPSD0314 | B81: Average power factor conversion for 220 kV lines | C81: Factor | D81: 0 | E81: 0 | F81: 0 | G81: 0 | H81: 0 | I81: 0 | J81: 0
B82: 3.4.3.6 - Demand supplied (for customers charged on this basis) – MW measure
A83: DOPSD0401 | B83: Summated Chargeable Contracted Maximum Demand | C83: MW | D83: 0 | E83: 0 | F83: 0 | G83: 0 | H83: 0 | I83: 0 | J83: 0
A84: DOPSD0402 | B84: Summated Chargeable Measured Maximum Demand | C84: MW | D84: 58.39695628 | E84: 57.83264909 | F84: 58.33810393 | G84: 57.64733756 | H84: 58.23286467 | I84: 59.41394183 | J84: 59.63340124
B85: 3.4.3.7 - Demand supplied (for customers charged on this basis) – MVA measure
A86: DOPSD0403 | B86: Summated Chargeable Contracted Maximum Demand | C86: MVA | D86: 0 | E86: 0 | F86: 0 | G86: 0 | H86: 0 | I86: 0 | J86: 0
A87: DOPSD0404 | B87: Summated Chargeable Measured Maximum Demand | C87: MVA | D87: 852.6720275 | E87: 860.4377822 | F87: 812.1430196 | G87: 815.2414398 | H87: 822.5747024 | I87: 832.2866414 | J87: 840.2902726

Sheet 3.5 Physical assets
B1: =INDEX(dms_Worksheet_List,MATCH(dms_Model,dms_Model_List)) -> REGULATORY REPORTING STATEMENT
B2: =INDEX(dms_TradingNameFull_List,MATCH(dms_TradingName,dms_TradingName_List)) -> Jemena Electricity
B3: =dms_Header_Span -> 2021-22 to 2025-26
B4: 3.5 PHYSICAL ASSETS DATA
B6: There are THREE tables on this worksheet. Each table has been grouped (and sub-grouped) for ease of navigation. See the Instructions sheet on how to group or ungroup tables.
B8: 3.5.1 - NETWORK CAPACITIES VARIABLES
D9: VOLUMES
C10: Units | D10: =CRCP_y4 -> 2019-20 | E10: =CRCP_y5 -> 2020-21 | F10: =FRCP_y1 -> 2021-22 | G10: =FRCP_y2 -> 2022-23 | H10: =FRCP_y3 -> 2023-24 | I10: =FRCP_y4 -> 2024-25 | J10: =FRCP_y5 -> 2025-26
B11: CIRCUIT LENGTH
B12: 3.5.1.1 - Overhead network length of circuit at each voltage
A13: DPA0101 | B13: Overhead low voltage distribution | C13: km | D13: 2490.872753 | E13: 2502.477181 | F13: 2519.709716 | G13: 2530.068209 | H13: 2552.984832 | I13: 2570.256451 | J13: 2586.831448
A14: DPA0102 | B14: Overhead 2.2 kV | C14: km | D14: 0 | E14: 0 | F14: 0 | G14: 0 | H14: 0 | I14: 0 | J14: 0
A15: DPA0103 | B15: Overhead 7.6 kV | C15: km | D15: 0 | E15: 0 | F15: 0 | G15: 0 | H15: 0 | I15: 0 | J15: 0
A16: DPA0104 | B16: Overhead 11 kV | C16: km | D16: 212.4497832 | E16: 212.8469171 | F16: 214.0418523 | G16: 214.4992391 | H16: 215.1955751 | I16: 215.6606692 | J16: 216.0928718
A17: DPA0105 | B17: Overhead SWER | C17: km | D17: 0 | E17: 0 | F17: 0 | G17: 0 | H17: 0 | I17: 0 | J17: 0
A18: DPA0106 | B18: Overhead 22 kV | C18: km | D18: 1443.854757 | E18: 1448.672334 | F18: 1451.561472 | G18: 1455.175572 | H18: 1461.707044 | I18: 1471.512446 | J18: 1474.206944
A19: DPA0107 | B19: Overhead 33 kV | C19: km | D19: 0 | E19: 0 | F19: 0 | G19: 0 | H19: 0 | I19: 0 | J19: 0
A20: DPA0108 | B20: Overhead 44 kV | C20: km | D20: 0 | E20: 0 | F20: 0 | G20: 0 | H20: 0 | I20: 0 | J20: 0
A21: DPA0109 | B21: Overhead 66 kV | C21: km | D21: 327.875 | E21: 345.255 | F21: 345.255 | G21: 355.525 | H21: 355.525 | I21: 355.525 | J21: 358.925
A22: DPA0110 | B22: Overhead 132 kV | C22: km | D22: 0 | E22: 0 | F22: 0 | G22: 0 | H22: 0 | I22: 0 | J22: 0
A23: DPA0111 | B23: Overhead 6.6kv | C23: km | D23: 52.48711 | E23: 46.42211 | F23: 46.42211 | G23: 46.32211 | H23: 37.82211 | I23: 30.89711 | J23: 30.89711
A24: DPA0112 | B24: Overhead 110kV | C24: km | D24: 0 | E24: 0 | F24: 0 | G24: 0 | H24: 0 | I24: 0 | J24: 0
A25: DPA0113 | B25: Overhead 220kV | C25: km | D25: 0 | E25: 0 | F25: 0 | G25: 0 | H25: 0 | I25: 0 | J25: 0
A26: DPA0114 | B26: Other | C26: km | D26: 0 | E26: 0 | F26: 0 | G26: 0 | H26: 0 | I26: 0 | J26: 0
A27: DPA01 | B27: Total overhead circuit km | D27: =SUM(D13:D26) -> 4527.539403 | E27: 4555.673542 | F27: 4576.99015 | G27: 4601.59013 | H27: 4623.234561 | I27: 4643.851676 | J27: 4666.953374
B28: 3.5.1.2 - Underground network circuit length at each voltage
A29: DPA0201 | B29: Underground low voltage distribution | C29: km | D29: 1386.787222 | E29: 1467.242695 | F29: 1546.673077 | G29: 1624.343083 | H29: 1703.116505 | I29: 1778.83353 | J29: 1855.728775
A30: DPA0202 | B30: Underground 5 kV | C30: km | D30: 0 | E30: 0 | F30: 0 | G30: 0 | H30: 0 | I30: 0 | J30: 0
A31: DPA0203 | B31: Underground 6.6 Kv | C31: km | D31: 11.67021904 | E31: 11.70418591 | F31: 11.73882001 | G31: 11.6479403 | H31: 11.68868132 | I31: 11.56846082 | J31: 11.60542711
A32: DPA0204 | B32: Underground 7.6 kV | C32: km | D32: 0 | E32: 0 | F32: 0 | G32: 0 | H32: 0 | I32: 0 | J32: 0
A33: DPA0205 | B33: Underground 11 kV | C33: km | D33: 91.68596627 | E33: 94.58046977 | F33: 97.79183241 | G33: 101.1254876 | H33: 107.6572542 | I33: 111.0470836 | J33: 116.0271848
A34: DPA0206 | B34: Underground SWER | C34: km | D34: 0 | E34: 0 | F34: 0 | G34: 0 | H34: 0 | I34: 0 | J34: 0
A35: DPA0207 | B35: Underground 22 kV | C35: km | D35: 727.862246 | E35: 746.8707333 | F35: 766.477691 | G35: 795.7148239 | H35: 823.1026842 | I35: 850.9089692 | J35: 870.7688803
A36: DPA0208 | B36: Underground 33 kV | C36: km | D36: 0 | E36: 0 | F36: 0 | G36: 0 | H36: 0 | I36: 0 | J36: 0
A37: DPA0209 | B37: Underground 66 kV | C37: km | D37: 17.5 | E37: 19.9 | F37: 19.9 | G37: 20.3 | H37: 20.3 | I37: 20.3 | J37: 20.6
A38: DPA0210 | B38: Underground 110 kV | C38: km | D38: 0 | E38: 0 | F38: 0 | G38: 0 | H38: 0 | I38: 0 | J38: 0
A39: DPA0211 | B39: Underground 132 kV | C39: km | D39: 0 | E39: 0 | F39: 0 | G39: 0 | H39: 0 | I39: 0 | J39: 0
A40: DPA0212 | B40: Other | C40: km | D40: 0 | E40: 0 | F40: 0 | G40: 0 | H40: 0 | I40: 0 | J40: 0
A41: DPA02 | B41: Total underground circuit km | D41: =SUM(D29:D40) -> 2235.505653 | E41: 2340.298084 | F41: 2442.581421 | G41: 2553.131334 | H41: 2665.865125 | I41: 2772.658044 | J41: 2874.730267
B43: CIRCUIT CAPACITY MVA
B44: 3.5.1.3 - Estimated overhead network weighted average MVA capacity by voltage class
A45: DPA0301 | B45: Overhead low voltage distribution | C45: MVA | D45: 0.1355248228 | E45: 0.1356468051 | F45: 0.1357729607 | G45: 0.1358973705 | H45: 0.1360220588 | I45: 0.1361475819 | J45: 0.1362706502
A46: DPA0302 | B46: Overhead 6.6 kV | C46: MVA | D46: 3.567702843 | E46: 3.3916621 | F46: 3.3916621 | G46: 3.390963542 | H46: 3.114976349 | I46: 3.009665635 | J46: 3.009665635
A47: DPA0303 | B47: Overhead 7.6 kV | C47: MVA | D47: 0 | E47: 0 | F47: 0 | G47: 0 | H47: 0 | I47: 0 | J47: 0
A48: DPA0304 | B48: Overhead 11 kV | C48: MVA | D48: 5.472673207 | E48: 5.475792925 | F48: 5.502670548 | G48: 5.506171944 | H48: 5.5459406 | I48: 5.549388507 | J48: 5.584915028
A49: DPA0305 | B49: Overhead SWER | C49: MVA | D49: 0 | E49: 0 | F49: 0 | G49: 0 | H49: 0 | I49: 0 | J49: 0
A50: DPA0306 | B50: Overhead 22 kV | C50: MVA | D50: 8.931161987 | E50: 9.003639567 | F50: 9.007328345 | G50: 9.116542839 | H50: 9.146089753 | I50: 9.26084628 | J50: 9.403499881
A51: DPA0307 | B51: Overhead 33 kV | C51: MVA | D51: 0 | E51: 0 | F51: 0 | G51: 0 | H51: 0 | I51: 0 | J51: 0
A52: DPA0308 | B52: Overhead 44 kV | C52: MVA | D52: 0 | E52: 0 | F52: 0 | G52: 0 | H52: 0 | I52: 0 | J52: 0
A53: DPA0309 | B53: Overhead 66 kV | C53: MVA | D53: 112.2570347 | E53: 112.5045144 | F53: 112.5045144 | G53: 112.6322818 | H53: 112.6322818 | I53: 112.6322818 | J53: 112.6641976
A54: DPA0310 | B54: Overhead 110 kV | C54: MVA | D54: 0 | E54: 0 | F54: 0 | G54: 0 | H54: 0 | I54: 0 | J54: 0
A55: DPA0311 | B55: Overhead 132 kV | C55: MVA | D55: 0 | E55: 0 | F55: 0 | G55: 0 | H55: 0 | I55: 0 | J55: 0
A56: DPA0312 | B56: Overhead 220 kV | C56: MVA | D56: 0 | E56: 0 | F56: 0 | G56: 0 | H56: 0 | I56: 0 | J56: 0
A57: DPA0313 | B57: Other | C57: MVA | D57: 0 | E57: 0 | F57: 0 | G57: 0 | H57: 0 | I57: 0 | J57: 0
B58: 3.5.1.4 - Estimated underground network weighted average MVA capacity by voltage class
A59: DPA0401 | B59: Underground low voltage distribution | C59: MVA | D59: 0.2762967551 | E59: 0.2757647764 | F59: 0.2753038015 | G59: 0.2748946823 | H59: 0.2745157816 | I59: 0.2741612136 | J59: 0.2738438073
A60: DPA0402 | B60: Underground 5 kV | C60: MVA | D60: 0 | E60: 0 | F60: 0 | G60: 0 | H60: 0 | I60: 0 | J60: 0
A61: DPA0403 | B61: Underground 6.6 kV | C61: MVA | D61: 4.486411196 | E61: 4.485831977 | F61: 4.485244831 | G61: 4.481689548 | H61: 4.481010349 | I61: 4.492514706 | J61: 4.491859534
A62: DPA0404 | B62: Underground 7.6 kV | C62: MVA | D62: 0 | E62: 0 | F62: 0 | G62: 0 | H62: 0 | I62: 0 | J62: 0
A63: DPA0405 | B63: Underground 11 kV | C63: MVA | D63: 7.58406893 | E63: 7.57062295 | F63: 7.563358038 | G63: 7.54955707 | H63: 7.546305453 | I63: 7.534046316 | J63: 7.520397737
A64: DPA0406 | B64: Underground SWER | C64: MVA | D64: 0 | E64: 0 | F64: 0 | G64: 0 | H64: 0 | I64: 0 | J64: 0
A65: DPA0407 | B65: Underground 12.7 kV | C65: MVA | D65: 0 | E65: 0 | F65: 0 | G65: 0 | H65: 0 | I65: 0 | J65: 0
A66: DPA0408 | B66: Underground 22 kV | C66: MVA | D66: 14.57912084 | E66: 14.57174769 | F66: 14.56452555 | G66: 14.66724117 | H66: 14.70256119 | I66: 14.69436031 | J66: 14.68512468
A67: DPA0409 | B67: Underground 33 kV | C67: MVA | D67: 0 | E67: 0 | F67: 0 | G67: 0 | H67: 0 | I67: 0 | J67: 0
A68: DPA0410 | B68: Underground 66 kV | C68: MVA | D68: 105.4117539 | E68: 106.8302243 | F68: 106.8302243 | G68: 107.0340275 | H68: 107.0340275 | I68: 107.0340275 | J68: 107.1816859
A69: DPA0411 | B69: Underground 110 kV | C69: MVA | D69: 0 | E69: 0 | F69: 0 | G69: 0 | H69: 0 | I69: 0 | J69: 0
A70: DPA0412 | B70: Underground 132 kV | C70: MVA | D70: 0 | E70: 0 | F70: 0 | G70: 0 | H70: 0 | I70: 0 | J70: 0
A71: DPA0413 | B71: Other | C71: MVA | D71: 0 | E71: 0 | F71: 0 | G71: 0 | H71: 0 | I71: 0 | J71: 0
B75: 3.5.2 - TRANSFORMER CAPACITIES VARIABLES
D76: VOLUMES
C77: Units | D77: =CRCP_y4 -> 2019-20 | E77: =CRCP_y5 -> 2020-21 | F77: =FRCP_y1 -> 2021-22 | G77: =FRCP_y2 -> 2022-23 | H77: =FRCP_y3 -> 2023-24 | I77: =FRCP_y4 -> 2024-25 | J77: =FRCP_y5 -> 2025-26
B78: Distribution transformer total installed capacity
A79: DPA0501 | B79: Distribution transformer capacity owned by utility | C79: MVA | D79: 2876.012117 | E79: 2944.459456 | F79: 3018.164565 | G79: 3094.966724 | H79: 3174.916386 | I79: 3264.787859 | J79: 3346.687735
A80: DPA0502 | B80: Distribution transformer capacity owned by High Voltage Customers | C80: MVA | D80: 174.0120219 | E80: 175.3867169 | F80: 176.772272 | G80: 178.1687729 | H80: 179.5763062 | I80: 180.994959 | J80: 182.4248192
A81: DPA0503 | B81: Cold spare capacity included in DPA0501 | C81: MVA | D81: 31.43854699 | E81: 32.18676529 | F81: 32.99245784 | G81: 33.83200516 | H81: 34.70595879 | I81: 35.68837069 | J81: 36.58364269
B82: Zone substation transformer capacity
A83: DPA0601 | B83: Total installed capacity for first step transformation where there are two steps to reach distribution voltage | C83: MVA | D83: 0 | E83: 0 | F83: 0 | G83: 0 | H83: 0 | I83: 0 | J83: 0
A84: DPA0602 | B84: Total installed capacity for second step transformation where there are two steps to reach distribution voltage | C84: MVA | D84: 0 | E84: 0 | F84: 0 | G84: 0 | H84: 0 | I84: 0 | J84: 0
A85: DPA0603 | B85: Total zone substation transformer capacity where there is only a single step transformation to reach distribution voltage | C85: MVA | D85: 1887 | E85: 1873.5 | F85: 1888.5 | G85: 1965 | H85: 1965 | I85: 1938 | J85: 1938
A86: DPA0604 | B86: Total zone substation transformer capacity | C86: MVA | D86: 1914 | E86: 1914 | F86: 1929 | G86: 2005.5 | H86: 2005.5 | I86: 1951.5 | J86: 1951.5
A87: DPA0605 | B87: Cold spare capacity of zone substation transformers included in DPA0604 | C87: MVA | D87: 27 | E87: 40.5 | F87: 40.5 | G87: 40.5 | H87: 40.5 | I87: 13.5 | J87: 13.5
B91: 3.5.3 - PUBLIC LIGHTING
D92: VOLUMES
C93: Units | D93: =CRCP_y4 -> 2019-20 | E93: =CRCP_y5 -> 2020-21 | F93: =FRCP_y1 -> 2021-22 | G93: =FRCP_y2 -> 2022-23 | H93: =FRCP_y3 -> 2023-24 | I93: =FRCP_y4 -> 2024-25 | J93: =FRCP_y5 -> 2025-26
A94: DPA0701 | B94: Public lighting luminaires | C94: 0's | D94: 76658 | E94: 77905 | F94: 78975 | G94: 80291 | H94: 81888 | I94: 83591 | J94: 85054
A95: DPA0702 | B95: Public lighting poles | C95: 0's | D95: 29018 | E95: 30328 | F95: 31703 | G95: 33145 | H95: 34659 | I95: 36248 | J95: 37917

Sheet 3.6 Quality of service
B1: =INDEX(dms_Worksheet_List,MATCH(dms_Model,dms_Model_List)) -> REGULATORY REPORTING STATEMENT
B2: =INDEX(dms_TradingNameFull_List,MATCH(dms_TradingName,dms_TradingName_List)) -> Jemena Electricity
B3: =dms_Header_Span -> 2021-22 to 2025-26
B4: 3.6 QUALITY OF SERVICE DATA
B6: 3.6.2 - ENERGY NOT SUPPLIED
D7: Forecast
C8: Units | D8: =CRCP_y4 -> 2019-20 | E8: =CRCP_y5 -> 2020-21 | F8: =FRCP_y1 -> 2021-22 | G8: =FRCP_y2 -> 2022-23 | H8: =FRCP_y3 -> 2023-24 | I8: =FRCP_y4 -> 2024-25 | J8: =FRCP_y5 -> 2025-26
A9: DQS0201 | B9: Energy Not Supplied (planned) | C9: GWh | D9: 0.05681128783 | E9: 0.06023452957 | F9: 0.06563142 | G9: 0.06274866112 | H9: 0.06463852766 | I9: 0.06639057098 | J9: 0.06227066087
A10: DQS0202 | B10: Energy Not Supplied (unplanned) | C10: GWh | D10: 0.3432954758 | E10: 0.2925120793 | F10: 0.3415634481 | G10: 0.2903687302 | H10: 0.3415634481 | I10: 0.2903687302 | J10: 0.3415634481
A11: DQS02 | B11: Total | D11: =SUM(D9:D10) -> 0.4001067637 | E11: 0.3527466089 | F11: 0.4071948681 | G11: 0.3531173913 | H11: 0.4062019758 | I11: 0.3567593011 | J11: 0.403834109
B13: 3.6.3 - SYSTEM LOSSES
D14: Forecast
C15: Units | D15: =CRCP_y4 -> 2019-20 | E15: =CRCP_y5 -> 2020-21 | F15: =FRCP_y1 -> 2021-22 | G15: =FRCP_y2 -> 2022-23 | H15: =FRCP_y3 -> 2023-24 | I15: =FRCP_y4 -> 2024-25 | J15: =FRCP_y5 -> 2025-26
A16: DQS03 | B16: System losses | C16: % | D16: 0.03584993157 | E16: 0.03652031336 | F16: 0.03713953419 | G16: 0.03760669387 | H16: 0.03799374856 | I16: 0.03837541438 | J16: 0.03876881988
B18: 3.6.4 - CAPACITY UTILISATION
D19: Forecast
C20: Units | D20: =CRCP_y4 -> 2019-20 | E20: =CRCP_y5 -> 2020-21 | F20: =FRCP_y1 -> 2021-22 | G20: =FRCP_y2 -> 2022-23 | H20: =FRCP_y3 -> 2023-24 | I20: =FRCP_y4 -> 2024-25 | J20: =FRCP_y5 -> 2025-26
A21: DQS04 | B21: Overall utilisation | C21: % | D21: 0.5431849353 | E21: 0.5502849112 | F21: 0.5522714829 | G21: 0.5350059605 | H21: 0.5383647111 | I21: 0.5479907656 | J21: 0.5511799251

Sheet 3.7 Operating Environment
B1: =INDEX(dms_Worksheet_List,MATCH(dms_Model,dms_Model_List)) -> REGULATORY REPORTING STATEMENT
B2: =INDEX(dms_TradingNameFull_List,MATCH(dms_TradingName,dms_TradingName_List)) -> Jemena Electricity
B3: =dms_Header_Span -> 2021-22 to 2025-26
B4: 3.7 OPERATING ENVIRONMENT FACTORS
B6: There are THREE tables on this worksheet. Each table has been grouped (and sub-grouped) for ease of navigation. See the Instructions sheet on how to group or ungroup tables.
A8: DOEF01 | B8: 3.7.1 - DENSITY FACTORS
D9: Forecast
C10: Units | D10: =CRCP_y4 -> 2019-20 | E10: =CRCP_y5 -> 2020-21 | F10: =FRCP_y1 -> 2021-22 | G10: =FRCP_y2 -> 2022-23 | H10: =FRCP_y3 -> 2023-24 | I10: =FRCP_y4 -> 2024-25 | J10: =FRCP_y5 -> 2025-26
A11: DOEF0101 | B11: Customer density | C11: Customer / km | D11: 75.48910677
A12: DOEF0102 | B12: Energy density | C12: MWh/customer | D12: 12.46720491
A13: DOEF0103 | B13: Demand density | C13: kVA / customer | D13: 2.884606108
A15: DOEF02 | B15: 3.7.2 - TERRAIN FACTORS
D16: Forecast
C17: Units | D17: =CRCP_y4 -> 2019-20 | E17: =CRCP_y5 -> 2020-21 | F17: =FRCP_y1 -> 2021-22 | G17: =FRCP_y2 -> 2022-23 | H17: =FRCP_y3 -> 2023-24 | I17: =FRCP_y4 -> 2024-25 | J17: =FRCP_y5 -> 2025-26
A18: DOEF0201 | B18: Rural proportion | C18: % | D18: 15.81027907
A19: DOEF0202 | B19: Urban and CBD vegetation maintenance spans | C19: 0's | D19: 6009
A20: DOEF0203 | B20: Rural vegetation maintenance spans | C20: 0's | D20: 498
A21: DOEF0204 | B21: Total vegetation maintenance spans | C21: 0's | D21: 6507
A22: DOEF0205 | B22: Total number of spans | C22: 0's | D22: 91579
A23: DOEF0206 | B23: Average urban and CBD vegetation maintenance span cycle | C23: Years | D23: 2
A24: DOEF0207 | B24: Average rural vegetation maintenance span cycle | C24: Years | D24: 1
A25: DOEF0208 | B25: Average number of trees per urban and CBD vegetation maintenance span | C25: Trees | D25: 2.66863506
A26: DOEF0209 | B26: Average number of trees per rural vegetation maintenance span | C26: Trees | D26: 5.831325301
A27: DOEF0210 | B27: Average number of defects per urban and CBD vegetation maintenance span | C27: Defects | D27: 0.0180529779
A28: DOEF0211 | B28: Average number of defects per rural vegetation maintenance span | C28: Defects | D28: 0.124497992
A29: DOEF0212 | B29: Tropical proportion | C29: Spans | D29: 0
A30: DOEF0213 | B30: Standard vehicle access | C30: km | D30: 3426.57784 | E30: 3458.417828 | F30: 3490.257815 | G30: 3522.097803 | H30: 3553.937791 | I30: 3585.777779 | J30: 3617.617766
A31: DOEF0214 | B31: Bushfire risk | C31: Spans | D31: 377
A33: DOEF03 | B33: 3.7.3 - SERVICE AREA FACTORS
D34: Forecast
C35: Units | D35: =CRCP_y4 -> 2019-20 | E35: =CRCP_y5 -> 2020-21 | F35: =FRCP_y1 -> 2021-22 | G35: =FRCP_y2 -> 2022-23 | H35: =FRCP_y3 -> 2023-24 | I35: =FRCP_y4 -> 2024-25 | J35: =FRCP_y5 -> 2025-26
A36: DOEF0301 | B36: Route Line length | C36: km | D36: 4707.05 | E36: 4728.621113 | F36: 4750.192225 | G36: 4771.763338 | H36: 4793.334451 | I36: 4814.905563 | J36: 4836.476676

Sheet 4.1 Public lighting
B1: =INDEX(dms_Worksheet_List,MATCH(dms_Model,dms_Model_List)) -> REGULATORY REPORTING STATEMENT
B2: =INDEX(dms_TradingNameFull_List,MATCH(dms_TradingName,dms_TradingName_List)) -> Jemena Electricity
B3: =dms_Header_Span -> 2021-22 to 2025-26
B4: 4.1 PUBLIC LIGHTING
B6: There are TWO tables on this worksheet. Each table has been grouped (and sub-grouped) for ease of navigation. See the Instructions sheet on how to group or ungroup tables.
B8: 4.1.2 - DESCRIPTOR METRICS ANNUALLY
D9: VOLUMES & EXPENDITURE
C10: Units | D10: =CRCP_y4 -> 2019-20 | E10: =CRCP_y5 -> 2020-21 | F10: =FRCP_y1 -> 2021-22 | G10: =FRCP_y2 -> 2022-23 | H10: =FRCP_y3 -> 2023-24 | I10: =FRCP_y4 -> 2024-25 | J10: =FRCP_y5 -> 2025-26
B11: LIGHT INSTALLATION
B12: Number of lights installed | C12: 0's | D12: 1601 | E12: 1056 | F12: 1071 | G12: 1542 | H12: 1632 | I12: 1724 | J12: 1153
B13: Number of poles installed | C13: 0's | D13: 1248 | E13: 1310 | F13: 1374 | G13: 1442 | H13: 1514 | I13: 1589 | J13: 1669
B14: Total expenditure | C14: $0's | D14: 0 | E14: 0 | F14: 1573074.63 | G14: 1552887.66 | H14: 1573879.71 | I14: 1595385.53 | J14: 1583887.02
B15: LIGHT REPLACEMENT
B16: Number of lights replaced | C16: 0's | D16: 1113 | E16: 1668 | F16: 2223 | G16: 2234 | H16: 2250 | I16: 2266 | J16: 1684
B17: Number of poles replaced | C17: 0's | D17: 249 | E17: 260 | F17: 293.6523922 | G17: 307.0566098 | H17: 321.2474269 | I17: 336.2782937 | J17: 352.2067991
B18: Total expenditure | C18: $0's | D18: 1303040.5 | E18: 2240930.94 | F18: 2935739.51 | G18: 2989674.75 | H18: 3050508.92 | I18: 3115111.15 | J18: 2649612.4
B19: LIGHT MAINTENANCE
B20: Number of lights maintained | C20: 0's | D20: 9376 | E20: 9528 | F20: 9659 | G20: 9820 | H20: 10015 | I20: 10224 | J20: 10402
B21: Number of poles maintained | C21: 0's | D21: 7960 | E21: 8319 | F21: 8696 | G21: 9092 | H21: 9507 | I21: 9943 | J21: 10401
B22: Total expenditure | C22: $0's | D22: 2210460.013 | E22: 2236802.168 | F22: 2265662.254 | G22: 2297813.38 | H22: 2331407.618 | I22: 2364258.737 | J22: 2397792.014
B23: QUALITY OF SUPPLY
B24: Mean days to rectify/replace public lighting assets | C24: days | D24: 3.1 | E24: 3.1 | F24: 3.1 | G24: 3.1 | H24: 3.1 | I24: 3.1 | J24: 3.1
B25: GSO breaches | C25: 0's | D25: 26.5 | E25: 5 | F25: 5 | G25: 5 | H25: 5 | I25: 5 | J25: 5
B26: GSL payments | C26: $0's | D26: 662.5 | E26: 125 | F26: 125 | G26: 125 | H26: 125 | I26: 125 | J26: 125
B27: Customer complaints | C27: 0's | D27: 35.33333333 | E27: 35.33333333 | F27: 35.33333333 | G27: 35.33333333 | H27: 35.33333333 | I27: 35.33333333 | J27: 35.33333333
B31: 4.1.3 - COST METRICS
D32: =CONCATENATE("AVERAGE UNIT COST ($0's, real ",dms_DollarReal, ")") -> AVERAGE UNIT COST ($0's, real June 2021)
D33: =CRCP_y4 -> 2019-20 | E33: =CRCP_y5 -> 2020-21 | F33: =FRCP_y1 -> 2021-22 | G33: =FRCP_y2 -> 2022-23 | H33: =FRCP_y3 -> 2023-24 | I33: =FRCP_y4 -> 2024-25 | J33: =FRCP_y5 -> 2025-26
B34: LIGHT INSTALLATION
B35: Compact Fluorescent | C35: 0 | D35: 0 | E35: 0 | F35: 0 | G35: 0 | H35: 0 | I35: 0 | J35: 0
B36: Fluorescent | C36: 0 | D36: 0 | E36: 0 | F36: 0 | G36: 0 | H36: 0 | I36: 0 | J36: 0
B37: HP sodium | C37: 0 | D37: 0 | E37: 0 | F37: 0 | G37: 0 | H37: 0 | I37: 0 | J37: 0
B38: Incandescent | C38: 0 | D38: 0 | E38: 0 | F38: 0 | G38: 0 | H38: 0 | I38: 0 | J38: 0
B39: Induction | C39: 0 | D39: 0 | E39: 0 | F39: 0 | G39: 0 | H39: 0 | I39: 0 | J39: 0
B40: LED | C40: 0 | D40: 0 | E40: 0 | F40: 1469.18 | G40: 1007 | H40: 964.6 | I40: 925.24 | J40: 1373.77
B41: LED HE | C41: 0 | D41: 0 | E41: 0 | F41: 0 | G41: 0 | H41: 0 | I41: 0 | J41: 0
B42: LED HO | C42: 0 | D42: 0 | E42: 0 | F42: 1469.18 | G42: 1007 | H42: 964.6 | I42: 925.24 | J42: 1373.77
B43: LP Sodium | C43: 0 | D43: 0 | E43: 0 | F43: 0 | G43: 0 | H43: 0 | I43: 0 | J43: 0
B44: Mercury Vapour | C44: 0 | D44: 0 | E44: 0 | F44: 0 | G44: 0 | H44: 0 | I44: 0 | J44: 0
B45: Metal Halide | C45: 0 | D45: 0 | E45: 0 | F45: 0 | G45: 0 | H45: 0 | I45: 0 | J45: 0
B46: Twin T5 Fluorescent | C46: 0 | D46: 0 | E46: 0 | F46: 0 | G46: 0 | H46: 0 | I46: 0 | J46: 0
B47: 0 | C47: 0 | D47: 0 | E47: 0 | F47: 0 | G47: 0 | H47: 0 | I47: 0 | J47: 0
B48: 0 | C48: 0 | D48: 0 | E48: 0 | F48: 0 | G48: 0 | H48: 0 | I48: 0 | J48: 0
B49: 0 | C49: 0 | D49: 0 | E49: 0 | F49: 0 | G49: 0 | H49: 0 | I49: 0 | J49: 0
B50: 0 | C50: 0 | D50: 0 | E50: 0 | F50: 0 | G50: 0 | H50: 0 | I50: 0 | J50: 0
B51: 0 | C51: 0 | D51: 0 | E51: 0 | F51: 0 | G51: 0 | H51: 0 | I51: 0 | J51: 0
B52: 0 | C52: 0 | D52: 0 | E52: 0 | F52: 0 | G52: 0 | H52: 0 | I52: 0 | J52: 0
B53: 0 | C53: 0 | D53: 0 | E53: 0 | F53: 0 | G53: 0 | H53: 0 | I53: 0 | J53: 0
B54: 0 | C54: 0 | D54: 0 | E54: 0 | F54: 0 | G54: 0 | H54: 0 | I54: 0 | J54: 0
B55: 0 | C55: 0 | D55: 0 | E55: 0 | F55: 0 | G55: 0 | H55: 0 | I55: 0 | J55: 0
B56: 0 | C56: 0 | D56: 0 | E56: 0 | F56: 0 | G56: 0 | H56: 0 | I56: 0 | J56: 0
B57: 0 | C57: 0 | D57: 0 | E57: 0 | F57: 0 | G57: 0 | H57: 0 | I57: 0 | J57: 0
B58: 0 | C58: 0 | D58: 0 | E58: 0 | F58: 0 | G58: 0 | H58: 0 | I58: 0 | J58: 0
B59: 0 | C59: 0 | D59: 0 | E59: 0 | F59: 0 | G59: 0 | H59: 0 | I59: 0 | J59: 0
B60: 0 | C60: 0 | D60: 0 | E60: 0 | F60: 0 | G60: 0 | H60: 0 | I60: 0 | J60: 0
B61: 0 | C61: 0 | D61: 0 | E61: 0 | F61: 0 | G61: 0 | H61: 0 | I61: 0 | J61: 0
B62: 0 | C62: 0 | D62: 0 | E62: 0 | F62: 0 | G62: 0 | H62: 0 | I62: 0 | J62: 0
B63: 0 | C63: 0 | D63: 0 | E63: 0 | F63: 0 | G63: 0 | H63: 0 | I63: 0 | J63: 0
B64: 0 | C64: 0 | D64: 0 | E64: 0 | F64: 0 | G64: 0 | H64: 0 | I64: 0 | J64: 0
B65: 0 | C65: 0 | D65: 0 | E65: 0 | F65: 0 | G65: 0 | H65: 0 | I65: 0 | J65: 0
B66: 0 | C66: 0 | D66: 0 | E66: 0 | F66: 0 | G66: 0 | H66: 0 | I66: 0 | J66: 0
B67: 0 | C67: 0 | D67: 0 | E67: 0 | F67: 0 | G67: 0 | H67: 0 | I67: 0 | J67: 0
B68: 0 | C68: 0 | D68: 0 | E68: 0 | F68: 0 | G68: 0 | H68: 0 | I68: 0 | J68: 0
B69: 0 | C69: 0 | D69: 0 | E69: 0 | F69: 0 | G69: 0 | H69: 0 | I69: 0 | J69: 0
B70: 0 | C70: 0 | D70: 0 | E70: 0 | F70: 0 | G70: 0 | H70: 0 | I70: 0 | J70: 0
B71: 0 | C71: 0 | D71: 0 | E71: 0 | F71: 0 | G71: 0 | H71: 0 | I71: 0 | J71: 0
B72: 0 | C72: 0 | D72: 0 | E72: 0 | F72: 0 | G72: 0 | H72: 0 | I72: 0 | J72: 0
B73: 0 | C73: 0 | D73: 0 | E73: 0 | F73: 0 | G73: 0 | H73: 0 | I73: 0 | J73: 0
B74: 0 | C74: 0 | D74: 0 | E74: 0 | F74: 0 | G74: 0 | H74: 0 | I74: 0 | J74: 0
B75: 0 | C75: 0 | D75: 0 | E75: 0 | F75: 0 | G75: 0 | H75: 0 | I75: 0 | J75: 0
B76: 0 | C76: 0 | D76: 0 | E76: 0 | F76: 0 | G76: 0 | H76: 0 | I76: 0 | J76: 0
B77: 0 | C77: 0 | D77: 0 | E77: 0 | F77: 0 | G77: 0 | H77: 0 | I77: 0 | J77: 0
B78: 0 | C78: 0 | D78: 0 | E78: 0 | F78: 0 | G78: 0 | H78: 0 | I78: 0 | J78: 0
B79: 0 | C79: 0 | D79: 0 | E79: 0 | F79: 0 | G79: 0 | H79: 0 | I79: 0 | J79: 0
B80: 0 | C80: 0 | D80: 0 | E80: 0 | F80: 0 | G80: 0 | H80: 0 | I80: 0 | J80: 0
B81: 0 | C81: 0 | D81: 0 | E81: 0 | F81: 0 | G81: 0 | H81: 0 | I81: 0 | J81: 0
B82: 0 | C82: 0 | D82: 0 | E82: 0 | F82: 0 | G82: 0 | H82: 0 | I82: 0 | J82: 0
B83: 0 | C83: 0 | D83: 0 | E83: 0 | F83: 0 | G83: 0 | H83: 0 | I83: 0 | J83: 0
B84: 0 | C84: 0 | D84: 0 | E84: 0 | F84: 0 | G84: 0 | H84: 0 | I84: 0 | J84: 0
B85: 0 | C85: 0 | D85: 0 | E85: 0 | F85: 0 | G85: 0 | H85: 0 | I85: 0 | J85: 0
B86: 0 | C86: 0 | D86: 0 | E86: 0 | F86: 0 | G86: 0 | H86: 0 | I86: 0 | J86: 0
B87: 0 | C87: 0 | D87: 0 | E87: 0 | F87: 0 | G87: 0 | H87: 0 | I87: 0 | J87: 0
B88: 0 | C88: 0 | D88: 0 | E88: 0 | F88: 0 | G88: 0 | H88: 0 | I88: 0 | J88: 0
B89: 0 | C89: 0 | D89: 0 | E89: 0 | F89: 0 | G89: 0 | H89: 0 | I89: 0 | J89: 0
B90: 0 | C90: 0 | D90: 0 | E90: 0 | F90: 0 | G90: 0 | H90: 0 | I90: 0 | J90: 0
B91: 0 | C91: 0 | D91: 0 | E91: 0 | F91: 0 | G91: 0 | H91: 0 | I91: 0 | J91: 0
B92: 0 | C92: 0 | D92: 0 | E92: 0 | F92: 0 | G92: 0 | H92: 0 | I92: 0 | J92: 0
B93: 0 | C93: 0 | D93: 0 | E93: 0 | F93: 0 | G93: 0 | H93: 0 | I93: 0 | J93: 0
B94: 0 | C94: 0 | D94: 0 | E94: 0 | F94: 0 | G94: 0 | H94: 0 | I94: 0 | J94: 0
B95: LIGHT REPLACEMENT
B96: Compact Fluorescent | C96: 0 | D96: 571.51 | E96: 444.19 | F96: 0 | G96: 0 | H96: 0 | I96: 0 | J96: 0
B97: Fluorescent | C97: 0 | D97: 571.51 | E97: 0 | F97: 0 | G97: 0 | H97: 0 | I97: 0 | J97: 0
B98: HP sodium | C98: 0 | D98: 836.14 | E98: 649.86 | F98: 0 | G98: 0 | H98: 0 | I98: 0 | J98: 0
B99: Incandescent | C99: 0 | D99: 0 | E99: 0 | F99: 0 | G99: 0 | H99: 0 | I99: 0 | J99: 0
B100: Induction | C100: 0 | D100: 0 | E100: 0 | F100: 0 | G100: 0 | H100: 0 | I100: 0 | J100: 0
B101: LED | C101: 0 | D101: 1351.31 | E101: 1050.26 | F101: 954.1 | G101: 955.5 | H101: 957.06 | I101: 958.68 | J101: 985.38
B102: LED HE | C102: 0 | D102: 0 | E102: 0 | F102: 0 | G102: 0 | H102: 0 | I102: 0 | J102: 0
B103: LED HO | C103: 0 | D103: 1351.31 | E103: 1050.26 | F103: 954.1 | G103: 955.5 | H103: 957.06 | I103: 958.68 | J103: 985.38
B104: LP Sodium | C104: 0 | D104: 0 | E104: 0 | F104: 0 | G104: 0 | H104: 0 | I104: 0 | J104: 0
B105: Mercury Vapour | C105: 0 | D105: 0 | E105: 0 | F105: 0 | G105: 0 | H105: 0 | I105: 0 | J105: 0
B106: Metal Halide | C106: 0 | D106: 836.14 | E106: 649.86 | F106: 0 | G106: 0 | H106: 0 | I106: 0 | J106: 0
B107: Twin T5 Fluorescent | C107: 0 | D107: 571.51 | E107: 444.19 | F107: 0 | G107: 0 | H107: 0 | I107: 0 | J107: 0
B108: 0 | C108: 0 | D108: 0 | E108: 0 | F108: 0 | G108: 0 | H108: 0 | I108: 0 | J108: 0
B109: 0 | C109: 0 | D109: 0 | E109: 0 | F109: 0 | G109: 0 | H109: 0 | I109: 0 | J109: 0
B110: 0 | C110: 0 | D110: 0 | E110: 0 | F110: 0 | G110: 0 | H110: 0 | I110: 0 | J110: 0
B111: 0 | C111: 0 | D111: 0 | E111: 0 | F111: 0 | G111: 0 | H111: 0 | I111: 0 | J111: 0
B112: 0 | C112: 0 | D112: 0 | E112: 0 | F112: 0 | G112: 0 | H112: 0 | I112: 0 | J112: 0
B113: 0 | C113: 0 | D113: 0 | E113: 0 | F113: 0 | G113: 0 | H113: 0 | I113: 0 | J113: 0
B114: 0 | C114: 0 | D114: 0 | E114: 0 | F114: 0 | G114: 0 | H114: 0 | I114: 0 | J114: 0
B115: 0 | C115: 0 | D115: 0 | E115: 0 | F115: 0 | G115: 0 | H115: 0 | I115: 0 | J115: 0
B116: 0 | C116: 0 | D116: 0 | E116: 0 | F116: 0 | G116: 0 | H116: 0 | I116: 0 | J116: 0
B117: 0 | C117: 0 | D117: 0 | E117: 0 | F117: 0 | G117: 0 | H117: 0 | I117: 0 | J117: 0
B118: 0 | C118: 0 | D118: 0 | E118: 0 | F118: 0 | G118: 0 | H118: 0 | I118: 0 | J118: 0
B119: 0 | C119: 0 | D119: 0 | E119: 0 | F119: 0 | G119: 0 | H119: 0 | I119: 0 | J119: 0
B120: 0 | C120: 0 | D120: 0 | E120: 0 | F120: 0 | G120: 0 | H120: 0 | I120: 0 | J120: 0
B121: 0 | C121: 0 | D121: 0 | E121: 0 | F121: 0 | G121: 0 | H121: 0 | I121: 0 | J121: 0
B122: 0 | C122: 0 | D122: 0 | E122: 0 | F122: 0 | G122: 0 | H122: 0 | I122: 0 | J122: 0
B123: 0 | C123: 0 | D123: 0 | E123: 0 | F123: 0 | G123: 0 | H123: 0 | I123: 0 | J123: 0
B124: 0 | C124: 0 | D124: 0 | E124: 0 | F124: 0 | G124: 0 | H124: 0 | I124: 0 | J124: 0
B125: 0 | C125: 0 | D125: 0 | E125: 0 | F125: 0 | G125: 0 | H125: 0 | I125: 0 | J125: 0
B126: 0 | C126: 0 | D126: 0 | E126: 0 | F126: 0 | G126: 0 | H126: 0 | I126: 0 | J126: 0
B127: 0 | C127: 0 | D127: 0 | E127: 0 | F127: 0 | G127: 0 | H127: 0 | I127: 0 | J127: 0
B128: 0 | C128: 0 | D128: 0 | E128: 0 | F128: 0 | G128: 0 | H128: 0 | I128: 0 | J128: 0
B129: 0 | C129: 0 | D129: 0 | E129: 0 | F129: 0 | G129: 0 | H129: 0 | I129: 0 | J129: 0
B130: 0 | C130: 0 | D130: 0 | E130: 0 | F130: 0 | G130: 0 | H130: 0 | I130: 0 | J130: 0
B131: 0 | C131: 0 | D131: 0 | E131: 0 | F131: 0 | G131: 0 | H131: 0 | I131: 0 | J131: 0
B132: 0 | C132: 0 | D132: 0 | E132: 0 | F132: 0 | G132: 0 | H132: 0 | I132: 0 | J132: 0
B133: 0 | C133: 0 | D133: 0 | E133: 0 | F133: 0 | G133: 0 | H133: 0 | I133: 0 | J133: 0
B134: 0 | C134: 0 | D134: 0 | E134: 0 | F134: 0 | G134: 0 | H134: 0 | I134: 0 | J134: 0
B135: 0 | C135: 0 | D135: 0 | E135: 0 | F135: 0 | G135: 0 | H135: 0 | I135: 0 | J135: 0
B136: 0 | C136: 0 | D136: 0 | E136: 0 | F136: 0 | G136: 0 | H136: 0 | I136: 0 | J136: 0
B137: 0 | C137: 0 | D137: 0 | E137: 0 | F137: 0 | G137: 0 | H137: 0 | I137: 0 | J137: 0
B138: 0 | C138: 0 | D138: 0 | E138: 0 | F138: 0 | G138: 0 | H138: 0 | I138: 0 | J138: 0
B139: 0 | C139: 0 | D139: 0 | E139: 0 | F139: 0 | G139: 0 | H139: 0 | I139: 0 | J139: 0
B140: 0 | C140: 0 | D140: 0 | E140: 0 | F140: 0 | G140: 0 | H140: 0 | I140: 0 | J140: 0
B141: 0 | C141: 0 | D141: 0 | E141: 0 | F141: 0 | G141: 0 | H141: 0 | I141: 0 | J141: 0
B142: 0 | C142: 0 | D142: 0 | E142: 0 | F142: 0 | G142: 0 | H142: 0 | I142: 0 | J142: 0
B143: 0 | C143: 0 | D143: 0 | E143: 0 | F143: 0 | G143: 0 | H143: 0 | I143: 0 | J143: 0
B144: 0 | C144: 0 | D144: 0 | E144: 0 | F144: 0 | G144: 0 | H144: 0 | I144: 0 | J144: 0
B145: 0 | C145: 0 | D145: 0 | E145: 0 | F145: 0 | G145: 0 | H145: 0 | I145: 0 | J145: 0
B146: 0 | C146: 0 | D146: 0 | E146: 0 | F146: 0 | G146: 0 | H146: 0 | I146: 0 | J146: 0
B147: 0 | C147: 0 | D147: 0 | E147: 0 | F147: 0 | G147: 0 | H147: 0 | I147: 0 | J147: 0
B148: 0 | C148: 0 | D148: 0 | E148: 0 | F148: 0 | G148: 0 | H148: 0 | I148: 0 | J148: 0
B149: 0 | C149: 0 | D149: 0 | E149: 0 | F149: 0 | G149: 0 | H149: 0 | I149: 0 | J149: 0
B150: 0 | C150: 0 | D150: 0 | E150: 0 | F150: 0 | G150: 0 | H150: 0 | I150: 0 | J150: 0
B151: 0 | C151: 0 | D151: 0 | E151: 0 | F151: 0 | G151: 0 | H151: 0 | I151: 0 | J151: 0
B152: 0 | C152: 0 | D152: 0 | E152: 0 | F152: 0 | G152: 0 | H152: 0 | I152: 0 | J152: 0
B153: 0 | C153: 0 | D153: 0 | E153: 0 | F153: 0 | G153: 0 | H153: 0 | I153: 0 | J153: 0
B154: 0 | C154: 0 | D154: 0 | E154: 0 | F154: 0 | G154: 0 | H154: 0 | I154: 0 | J154: 0
B155: 0 | C155: 0 | D155: 0 | E155: 0 | F155: 0 | G155: 0 | H155: 0 | I155: 0 | J155: 0
B156: LIGHT MAINTENANCE
B157: Compact Fluorescent | C157: 0 | D157: 157.84 | E157: 154.94 | F157: 151.05 | G157: 146.4 | H157: 142.02 | I157: 137.77 | J157: 135.63
B158: Fluorescent | C158: 0 | D158: 0 | E158: 0 | F158: 0 | G158: 0 | H158: 0 | I158: 0 | J158: 0
B159: HP sodium | C159: 0 | D159: 230.93 | E159: 226.68 | F159: 221 | G159: 214.18 | H159: 207.78 | I159: 201.56 | J159: 198.44
B160: Incandescent | C160: 0 | D160: 0 | E160: 0 | F160: 0 | G160: 0 | H160: 0 | I160: 0 | J160: 0
B161: Induction | C161: 0 | D161: 0 | E161: 0 | F161: 0 | G161: 0 | H161: 0 | I161: 0 | J161: 0
B162: LED | C162: 0 | D162: 373.21 | E162: 366.34 | F162: 357.16 | G162: 346.15 | H162: 335.8 | I162: 325.74 | J162: 320.7
B163: LED HE | C163: 0 | D163: 0 | E163: 0 | F163: 0 | G163: 0 | H163: 0 | I163: 0 | J163: 0
B164: LED HO | C164: 0 | D164: 373.21 | E164: 366.34 | F164: 357.16 | G164: 346.15 | H164: 335.8 | I164: 325.74 | J164: 320.7
B165: LP Sodium | C165: 0 | D165: 0 | E165: 0 | F165: 0 | G165: 0 | H165: 0 | I165: 0 | J165: 0
B166: Mercury Vapour | C166: 0 | D166: 230.93 | E166: 226.68 | F166: 221 | G166: 214.18 | H166: 207.78 | I166: 201.56 | J166: 0
B167: Metal Halide | C167: 0 | D167: 230.93 | E167: 226.68 | F167: 221 | G167: 214.18 | H167: 207.78 | I167: 201.56 | J167: 198.44
B168: Twin T5 Fluorescent | C168: 0 | D168: 157.84 | E168: 154.94 | F168: 151.05 | G168: 146.4 | H168: 142.02 | I168: 137.77 | J168: 135.63
B169: 0 | C169: 0 | D169: 0 | E169: 0 | F169: 0 | G169: 0 | H169: 0 | I169: 0 | J169: 0
B170: 0 | C170: 0 | D170: 0 | E170: 0 | F170: 0 | G170: 0 | H170: 0 | I170: 0 | J170: 0
B171: 0 | C171: 0 | D171: 0 | E171: 0 | F171: 0 | G171: 0 | H171: 0 | I171: 0 | J171: 0
B172: 0 | C172: 0 | D172: 0 | E172: 0 | F172: 0 | G172: 0 | H172: 0 | I172: 0 | J172: 0
B173: 0 | C173: 0 | D173: 0 | E173: 0 | F173: 0 | G173: 0 | H173: 0 | I173: 0 | J173: 0
B174: 0 | C174: 0 | D174: 0 | E174: 0 | F174: 0 | G174: 0 | H174: 0 | I174: 0 | J174: 0
B175: 0 | C175: 0 | D175: 0 | E175: 0 | F175: 0 | G175: 0 | H175: 0 | I175: 0 | J175: 0
B176: 0 | C176: 0 | D176: 0 | E176: 0 | F176: 0 | G176: 0 | H176: 0 | I176: 0 | J176: 0
B177: 0 | C177: 0 | D177: 0 | E177: 0 | F177: 0 | G177: 0 | H177: 0 | I177: 0 | J177: 0
B178: 0 | C178: 0 | D178: 0 | E178: 0 | F178: 0 | G178: 0 | H178: 0 | I178: 0 | J178: 0
B179: 0 | C179: 0 | D179: 0 | E179: 0 | F179: 0 | G179: 0 | H179: 0 | I179: 0 | J179: 0
B180: 0 | C180: 0 | D180: 0 | E180: 0 | F180: 0 | G180: 0 | H180: 0 | I180: 0 | J180: 0
B181: 0 | C181: 0 | D181: 0 | E181: 0 | F181: 0 | G181: 0 | H181: 0 | I181: 0 | J181: 0
B182: 0 | C182: 0 | D182: 0 | E182: 0 | F182: 0 | G182: 0 | H182: 0 | I182: 0 | J182: 0
B183: 0 | C183: 0 | D183: 0 | E183: 0 | F183: 0 | G183: 0 | H183: 0 | I183: 0 | J183: 0
B184: 0 | C184: 0 | D184: 0 | E184: 0 | F184: 0 | G184: 0 | H184: 0 | I184: 0 | J184: 0
B185: 0 | C185: 0 | D185: 0 | E185: 0 | F185: 0 | G185: 0 | H185: 0 | I185: 0 | J185: 0
B186: 0 | C186: 0 | D186: 0 | E186: 0 | F186: 0 | G186: 0 | H186: 0 | I186: 0 | J186: 0
B187: 0 | C187: 0 | D187: 0 | E187: 0 | F187: 0 | G187: 0 | H187: 0 | I187: 0 | J187: 0
B188: 0 | C188: 0 | D188: 0 | E188: 0 | F188: 0 | G188: 0 | H188: 0 | I188: 0 | J188: 0
B189: 0 | C189: 0 | D189: 0 | E189: 0 | F189: 0 | G189: 0 | H189: 0 | I189: 0 | J189: 0
B190: 0 | C190: 0 | D190: 0 | E190: 0 | F190: 0 | G190: 0 | H190: 0 | I190: 0 | J190: 0
B191: 0 | C191: 0 | D191: 0 | E191: 0 | F191: 0 | G191: 0 | H191: 0 | I191: 0 | J191: 0
B192: 0 | C192: 0 | D192: 0 | E192: 0 | F192: 0 | G192: 0 | H192: 0 | I192: 0 | J192: 0
B193: 0 | C193: 0 | D193: 0 | E193: 0 | F193: 0 | G193: 0 | H193: 0 | I193: 0 | J193: 0
B194: 0 | C194: 0 | D194: 0 | E194: 0 | F194: 0 | G194: 0 | H194: 0 | I194: 0 | J194: 0
B195: 0 | C195: 0 | D195: 0 | E195: 0 | F195: 0 | G195: 0 | H195: 0 | I195: 0 | J195: 0
B196: 0 | C196: 0 | D196: 0 | E196: 0 | F196: 0 | G196: 0 | H196: 0 | I196: 0 | J196: 0
B197: 0 | C197: 0 | D197: 0 | E197: 0 | F197: 0 | G197: 0 | H197: 0 | I197: 0 | J197: 0
B198: 0 | C198: 0 | D198: 0 | E198: 0 | F198: 0 | G198: 0 | H198: 0 | I198: 0 | J198: 0
B199: 0 | C199: 0 | D199: 0 | E199: 0 | F199: 0 | G199: 0 | H199: 0 | I199: 0 | J199: 0
B200: 0 | C200: 0 | D200: 0 | E200: 0 | F200: 0 | G200: 0 | H200: 0 | I200: 0 | J200: 0
B201: 0 | C201: 0 | D201: 0 | E201: 0 | F201: 0 | G201: 0 | H201: 0 | I201: 0 | J201: 0
B202: 0 | C202: 0 | D202: 0 | E202: 0 | F202: 0 | G202: 0 | H202: 0 | I202: 0 | J202: 0
B203: 0 | C203: 0 | D203: 0 | E203: 0 | F203: 0 | G203: 0 | H203: 0 | I203: 0 | J203: 0
B204: 0 | C204: 0 | D204: 0 | E204: 0 | F204: 0 | G204: 0 | H204: 0 | I204: 0 | J204: 0
B205: 0 | C205: 0 | D205: 0 | E205: 0 | F205: 0 | G205: 0 | H205: 0 | I205: 0 | J205: 0
... 11 more rows

Sheet 4.2 Metering
B1: =INDEX(dms_Worksheet_List,MATCH(dms_Model,dms_Model_List)) -> REGULATORY REPORTING STATEMENT
B2: =INDEX(dms_TradingNameFull_List,MATCH(dms_TradingName,dms_TradingName_List)) -> Jemena Electricity
B3: =dms_Header_Span -> 2021-22 to 2025-26
B4: 4.2 METERING
B6: There are TWO tables on this worksheet. Each table has been 'grouped' (and 'sub-grouped') for easy navigation. See the Instructions sheet on how to group or ungroup data.
B8: 4.2.1 - METERING DESCRIPTOR METRIC
E9: VOLUMES (0's)
B10: ASSET CATEGORY | C10: ASSET SUBCATEGORY | E10: =CRCP_y4 -> 2019-20 | F10: =CRCP_y5 -> 2020-21 | G10: =FRCP_y1 -> 2021-22 | H10: =FRCP_y2 -> 2022-23 | I10: =FRCP_y3 -> 2023-24 | J10: =FRCP_y4 -> 2024-25 | K10: =FRCP_y5 -> 2025-26
B11: Meter Type 4 | C11: Single phase meter population | E11: 310948.4655 | F11: 316646.1036 | G11: 322246.353 | H11: 327684.7992 | I11: 333030.6241 | J11: 338430.3726 | K11: 343896.4119
C12: Multi phase meter population | E12: 47693.19128 | F12: 49106.19007 | G12: 50478.16763 | H12: 51818.94384 | I12: 53143.37249 | J12: 54482.99615 | K12: 55840.52776
C13: Current transformer connected meter population | E13: 1979.98376 | F13: 2039.179241 | G13: 2096.663551 | H13: 2153.315357 | I13: 2209.633522 | J13: 2266.692135 | K13: 2324.58648
C14: Direct connect meter population | E14: 356661.673 | F14: 363713.1145 | G14: 370627.8571 | H14: 377350.4277 | I14: 383964.3631 | J14: 390646.6766 | K14: 397412.3532
B15: Meter Type 5 | C15: Single phase meter population | E15: 41 | F15: 41 | G15: 41 | H15: 41 | I15: 41 | J15: 41 | K15: 41
C16: Multi phase meter population | E16: 0 | F16: 0 | G16: 0 | H16: 0 | I16: 0 | J16: 0 | K16: 0
C17: Current transformer connected meter population | E17: 0 | F17: 0 | G17: 0 | H17: 0 | I17: 0 | J17: 0 | K17: 0
C18: Direct connect meter population | E18: 41 | F18: 41 | G18: 41 | H18: 41 | I18: 41 | J18: 41 | K18: 41
B19: Meter Type 6 | C19: Single phase meter population | E19: 4962.967392 | F19: 4796.046711 | G19: 4630.208664 | H19: 4464.080239 | I19: 4296.816007 | J19: 4126.71245 | K19: 3953.58289
C20: Multi phase meter population | E20: 0 | F20: 0 | G20: 0 | H20: 0 | I20: 0 | J20: 0 | K20: 0
C21: Current transformer connected meter population | E21: 0 | F21: 0 | G21: 0 | H21: 0 | I21: 0 | J21: 0 | K21: 0
C22: Direct connect meter population | E22: 4962.967392 | F22: 4796.046711 | G22: 4630.208664 | H22: 4464.080239 | I22: 4296.816007 | J22: 4126.71245 | K22: 3953.58289
B25: 4.2.2 - COST METRICS
B26: EXPENDITURE
E27: =CONCATENATE("EXPENDITURE ($0's, real ",dms_DollarReal,")") -> EXPENDITURE ($0's, real June 2021)
B28: SERVICE SUBCATEGORY | C28: METER TYPE | E28: =CRCP_y4 -> 2019-20 | F28: =CRCP_y5 -> 2020-21 | G28: =FRCP_y1 -> 2021-22 | H28: =FRCP_y2 -> 2022-23 | I28: =FRCP_y3 -> 2023-24 | J28: =FRCP_y4 -> 2024-25 | K28: =FRCP_y5 -> 2025-26
B29: Meter purchase | D29: Meter Type 4 | E29: 2047402.408 | F29: 2649977.596 | G29: 2293247.411 | H29: 2245907.932 | I29: 2257583.303 | J29: 2302120.88 | K29: 2314937.859
D30: Meter Type 5 | E30: 0 | F30: 0 | G30: 0 | H30: 0 | I30: 0 | J30: 0 | K30: 0
D31: Meter Type 6 | E31: 0 | F31: 0 | G31: 0 | H31: 0 | I31: 0 | J31: 0 | K31: 0
B32: Meter testing | D32: Meter Type 4 | E32: 207818.5076 | F32: 230353.6412 | G32: 219540.2872 | H32: 224097.9175 | I32: 228801.2065 | J32: 233624.0379 | K32: 238360.842
D33: Meter Type 5 | E33: 0 | F33: 0 | G33: 0 | H33: 0 | I33: 0 | J33: 0 | K33: 0
D34: Meter Type 6 | E34: 0 | F34: 0 | G34: 0 | H34: 0 | I34: 0 | J34: 0 | K34: 0
B35: Meter investigation | D35: Meter Type 4 | E35: 587534.3464 | F35: 651244.5769 | G35: 620673.59 | H35: 633558.6999 | I35: 646855.6092 | J35: 660490.483 | K35: 673882.1443
D36: Meter Type 5 | E36: 0 | F36: 0 | G36: 0 | H36: 0 | I36: 0 | J36: 0 | K36: 0
D37: Meter Type 6 | E37: 3738.634923 | F37: 4144.039805 | G37: 3949.508609 | H37: 4031.499938 | I37: 4116.111654 | J37: 4202.873927 | K37: 4288.088575
B38: Scheduled meter reading | D38: Meter Type 4 | E38: 0 | F38: 0 | G38: 0 | H38: 0 | I38: 0 | J38: 0 | K38: 0
D39: Meter Type 5 | E39: 0 | F39: 0 | G39: 0 | H39: 0 | I39: 0 | J39: 0 | K39: 0
D40: Meter Type 6 | E40: 176956.887 | F40: 196145.4912 | G40: 186937.95 | H40: 190818.7596 | I40: 194823.5973 | J40: 198930.225 | K40: 202963.6006
B41: Special meter reading | D41: Meter Type 4 | E41: 0 | F41: 0 | G41: 0 | H41: 0 | I41: 0 | J41: 0 | K41: 0
D42: Meter Type 5 | E42: 0 | F42: 0 | G42: 0 | H42: 0 | I42: 0 | J42: 0 | K42: 0
D43: Meter Type 6 | E43: 0 | F43: 0 | G43: 0 | H43: 0 | I43: 0 | J43: 0 | K43: 0
B44: New meter installation | D44: Meter Type 4 | E44: 0 | F44: 0 | G44: 0 | H44: 0 | I44: 0 | J44: 0 | K44: 0
D45: Meter Type 5 | E45: 0 | F45: 0 | G45: 0 | H45: 0 | I45: 0 | J45: 0 | K45: 0
D46: Meter Type 6 | E46: 0 | F46: 0 | G46: 0 | H46: 0 | I46: 0 | J46: 0 | K46: 0
B47: Meter replacement | D47: Meter Type 4 | E47: 201222.4803 | F47: 244388.9712 | G47: 217881.9235 | H47: 222428.6425 | I47: 226993.8956 | J47: 231667.5519 | K47: 236382.6288
D48: Meter Type 5 | E48: 0 | F48: 0 | G48: 0 | H48: 0 | I48: 0 | J48: 0 | K48: 0
D49: Meter Type 6 | E49: 0 | F49: 0 | G49: 0 | H49: 0 | I49: 0 | J49: 0 | K49: 0
B50: Meter maintenance | D50: Meter Type 4 | E50: 332508.42 | F50: 368564.5045 | G50: 351263.2001 | H50: 358555.3824 | I50: 366080.6178 | J50: 373797.1205 | K50: 381375.9798
D51: Meter Type 5 | E51: 0 | F51: 0 | G51: 0 | H51: 0 | I51: 0 | J51: 0 | K51: 0
D52: Meter Type 6 | E52: 0 | F52: 0 | G52: 0 | H52: 0 | I52: 0 | J52: 0 | K52: 0
B53: Remote meter reading | D53: Meter Type 4 | E53: 0 | F53: 0 | G53: 0 | H53: 0 | I53: 0 | J53: 0 | K53: 0
B54: Remote meter re-configuration | D54: Meter Type 4 | E54: 8290.327568 | F54: 9189.302553 | G54: 8757.934587 | H54: 8939.748267 | I54: 9127.37259 | J54: 9319.765718 | K54: 9508.727026
B55: Other metering | D55: Meter Type 4 | E55: 0 | F55: 0 | G55: 0 | H55: 0 | I55: 0 | J55: 0 | K55: 0
D56: Meter Type 5 | E56: 0 | F56: 0 | G56: 0 | H56: 0 | I56: 0 | J56: 0 | K56: 0
D57: Meter Type 6 | E57: 0 | F57: 0 | G57: 0 | H57: 0 | I57: 0 | J57: 0 | K57: 0
D58: Meter Type 7 | E58: 0 | F58: 0 | G58: 0 | H58: 0 | I58: 0 | J58: 0 | K58: 0
B59: IT infrastructure capex | D59: Meter Type 4 | E59: 750403.2294 | F59: 158922.6734 | G59: 1003005.337 | H59: 0 | I59: 0 | J59: 2021277.872 | K59: 2041727.733
B60: IT infrastructure opex | D60: Meter Type 4 | E60: 5763162.958 | F60: 6388100.789 | G60: 6088227.972 | H60: 6214618.861 | I60: 6345049.117 | J60: 6478794.489 | K60: 6610154.173
B61: Communications infrastructure capex | D61: Meter Type 4 | E61: 222113.1198 | F61: 708260.1279 | G61: 1253150.854 | H61: 892063.4978 | I61: 525839.7283 | J61: 526242.4399 | K61: 526647.3464
B62: Communications infrastructure opex | D62: Meter Type 4 | E62: 0 | F62: 0 | G62: 0 | H62: 0 | I62: 0 | J62: 0 | K62: 0
B64: VOLUMES
E65: VOLUMES (0's)
B66: SERVICE SUBCATEGORY | C66: METER TYPE | E66: =CRCP_y4 -> 2019-20 | F66: =CRCP_y5 -> 2020-21 | G66: =FRCP_y1 -> 2021-22 | H66: =FRCP_y2 -> 2022-23 | I66: =FRCP_y3 -> 2023-24 | J66: =FRCP_y4 -> 2024-25 | K66: =FRCP_y5 -> 2025-26
B67: Meter purchase | D67: Meter Type 4 | E67: 8929.990034 | F67: 9831.244782 | G67: 9695.871432 | H67: 9475.165808 | I67: 9520.627047 | J67: 9711.311251 | K67: 9763.375618
D68: Meter Type 5 | E68: 0 | F68: 0 | G68: 0 | H68: 0 | I68: 0 | J68: 0 | K68: 0
D69: Meter Type 6 | E69: 0 | F69: 0 | G69: 0 | H69: 0 | I69: 0 | J69: 0 | K69: 0
B70: Meter testing | D70: Meter Type 4 | E70: 811.5507642 | F70: 825.0984465 | G70: 838.2138529 | H70: 850.7848521 | I70: 863.2967316 | J70: 876.0418082 | K70: 888.7903772
D71: Meter Type 5 | E71: 0 | F71: 0 | G71: 0 | H71: 0 | I71: 0 | J71: 0 | K71: 0
D72: Meter Type 6 | E72: 0 | F72: 0 | G72: 0 | H72: 0 | I72: 0 | J72: 0 | K72: 0
B73: Meter investigation | D73: Meter Type 4 | E73: 2803.351751 | F73: 2850.14971 | G73: 2895.454451 | H73: 2938.878639 | I73: 2982.098608 | J73: 3026.124114 | K73: 3070.161684
D74: Meter Type 5 | E74: 0 | F74: 0 | G74: 0 | H74: 0 | I74: 0 | J74: 0 | K74: 0
D75: Meter Type 6 | E75: 116.3772035 | F75: 118.3199549 | G75: 120.2007175 | H75: 122.0034115 | I75: 123.7976278 | J75: 125.6252847 | K75: 127.4534424
B76: Scheduled meter reading | D76: Meter Type 4 | E76: 0 | F76: 0 | G76: 0 | H76: 0 | I76: 0 | J76: 0 | K76: 0
D77: Meter Type 5 | E77: 0 | F77: 0 | G77: 0 | H77: 0 | I77: 0 | J77: 0 | K77: 0
D78: Meter Type 6 | E78: 19851.86957 | F78: 19184.18684 | G78: 18520.83466 | H78: 17856.32096 | I78: 17187.26403 | J78: 16506.8498 | K78: 15814.33156
B79: Special meter reading | D79: Meter Type 4 | E79: 0 | F79: 0 | G79: 0 | H79: 0 | I79: 0 | J79: 0 | K79: 0
D80: Meter Type 5 | E80: 0 | F80: 0 | G80: 0 | H80: 0 | I80: 0 | J80: 0 | K80: 0
D81: Meter Type 6 | E81: 976.3326453 | F81: 992.631126 | G81: 1016.760407 | H81: 1031.655022 | I81: 1046.826331 | J81: 1062.280394 | K81: 1078.023422
B82: New meter installation | D82: Meter Type 4 | E82: 9798.050807 | F82: 9502.479829 | G82: 9270.393178 | H82: 8966.654506 | I82: 8963.206934 | J82: 9142.545206 | K82: 9179.459445
D83: Meter Type 5 | E83: 0 | F83: 0 | G83: 0 | H83: 0 | I83: 0 | J83: 0 | K83: 0
D84: Meter Type 6 | E84: 0 | F84: 0 | G84: 0 | H84: 0 | I84: 0 | J84: 0 | K84: 0
B85: Meter replacement | D85: Meter Type 4 | E85: 685.1947334 | F85: 700.8937986 | G85: 716.1838349 | H85: 730.9253194 | I85: 745.679972 | J85: 760.7915739 | K85: 775.9885266
D86: Meter Type 5 | E86: 0 | F86: 0 | G86: 0 | H86: 0 | I86: 0 | J86: 0 | K86: 0
D87: Meter Type 6 | E87: 0 | F87: 0 | G87: 0 | H87: 0 | I87: 0 | J87: 0 | K87: 0
B88: Meter maintenance | D88: Meter Type 4 | E88: 3423.286273 | F88: 3256.055598 | G88: 3208.074607 | H88: 3141.011335 | I88: 3153.168316 | J88: 3213.485818 | K88: 3236.397165
D89: Meter Type 5 | E89: 0 | F89: 0 | G89: 0 | H89: 0 | I89: 0 | J89: 0 | K89: 0
D90: Meter Type 6 | E90: 0 | F90: 0 | G90: 0 | H90: 0 | I90: 0 | J90: 0 | K90: 0
B91: Remote meter reading | D91: Meter Type 4 | E91: 4343160.159 | F91: 4415663.022 | G91: 4485852.482 | H91: 4553128.45 | I91: 4620088.028 | J91: 4688295.602 | K91: 4756521.866
B92: Remote meter re-configuration | D92: Meter Type 4 | E92: 3171.021324 | F92: 3223.957001 | G92: 3302.326257 | H92: 3350.702333 | I92: 3399.97708 | J92: 3450.170183 | K92: 3501.30181

Sheet 4.3 Fee-based services
B1: =INDEX(dms_Worksheet_List,MATCH(dms_Model,dms_Model_List)) -> REGULATORY REPORTING STATEMENT
B2: =INDEX(dms_TradingNameFull_List,MATCH(dms_TradingName,dms_TradingName_List)) -> Jemena Electricity
B3: =dms_Header_Span -> 2021-22 to 2025-26
B4: 4.3 ANCILLARY SERVICES - FEE BASED SERVICES
B6: There are TWO tables on this worksheet. The COLUMNS representing each table have been 'grouped' for easy navigation. See the Instructions sheet on how to group or ungroup data.
B8: 4.3.1 - COST METRICS FOR FEE-BASED SERVICES
B9: SERVICE SUBCATEGORY | C9: =CONCATENATE("EXPENDITURE ($0's, real ", dms_DollarReal, ")") -> EXPENDITURE ($0's, real June 2021) | J9: VOLUMES (0's)
C10: =CRCP_y4 -> 2019-20 | D10: =CRCP_y5 -> 2020-21 | E10: =FRCP_y1 -> 2021-22 | F10: =FRCP_y2 -> 2022-23 | G10: =FRCP_y3 -> 2023-24 | H10: =FRCP_y4 -> 2024-25 | I10: =FRCP_y5 -> 2025-26 | J10: =CRCP_y4 -> 2019-20 | K10: =CRCP_y5 -> 2020-21 | L10: =FRCP_y1 -> 2021-22 | M10: =FRCP_y2 -> 2022-23 | N10: =FRCP_y3 -> 2023-24 | O10: =FRCP_y4 -> 2024-25 | P10: =FRCP_y5 -> 2025-26
B11: COMMON FEE-BASED SERVICES
B12: Energisation | C12: 676302.0269 | D12: 644707.0468 | E12: 0 | F12: 0 | G12: 0 | H12: 0 | I12: 0 | J12: 63990.98374 | K12: 65059.22192 | L12: 66640.70792 | M12: 67616.93367 | N12: 68611.29454 | O12: 69624.18777 | P12: 70656.02034
B13: De-energisation | C13: 350298.1964 | D13: 333933.2232 | E13: 0 | F13: 0 | G13: 0 | H13: 0 | I13: 0 | J13: 33144.84549 | K13: 33698.1514 | L13: 34517.29975 | M13: 35022.9468 | N13: 35537.98713 | O13: 36062.6265 | P13: 36597.07572
B14: Re-energisation | C14: 0 | D14: 0 | E14: 0 | F14: 0 | G14: 0 | H14: 0 | I14: 0 | J14: 0 | K14: 0 | L14: 0 | M14: 0 | N14: 0 | O14: 0 | P14: 0
B15: MISCELLANEOUS FEE-BASED SERVICES
B16: Field-based energisation BH | C16: 135321.8812 | D16: 155080.4598 | E16: 178828.9894 | F16: 183304.6281 | G16: 187989.3611 | H16: 192819.0087 | I16: 197792.524 | J16: 3461.408194 | K16: 3519.191466 | L16: 3604.737401 | M16: 3657.543525 | N16: 3711.330616 | O16: 3766.120162 | P16: 3821.934177
B17: Field-based energisation AH | C17: 8959.65785 | D17: 10831.40614 | E17: 13004.75438 | F17: 13330.23059 | G17: 13670.9125 | H17: 14022.13285 | I17: 14383.81551 | J17: 144.2253414 | K17: 146.6329777 | L17: 150.1973917 | M17: 152.3976469 | N17: 154.6387757 | O17: 156.9216734 | P17: 159.2472574
B18: Field-based de-energisation BH | C18: 155056.4314 | D18: 170673.791 | E18: 190409.7912 | F18: 195175.2682 | G18: 200163.3802 | H18: 205305.7914 | I18: 210601.3869 | J18: 2570.597345 | K18: 2613.5098 | L18: 2677.040058 | M18: 2716.25626 | N18: 2756.200972 | O18: 2796.890151 | P18: 2838.340148
B19: Basic connection, single-phase BH | C19: 4498475.195 | D19: 4609680.286 | E19: 4805597.611 | F19: 4913206.937 | G19: 5025340.603 | H19: 5140719.092 | I19: 5259328.862 | J19: 7027.679457 | K19: 7144.99654 | L19: 7318.680018 | M19: 7425.892023 | N19: 7535.09568 | O19: 7646.334616 | P19: 7759.653527
B20: Basic connection, single-phase AH | C20: 91805.61622 | D20: 94075.10789 | E20: 98073.42064 | F20: 100269.5293 | G20: 102557.9715 | H20: 104912.6345 | I20: 107333.2421 | J20: 143.4220297 | K20: 145.8162559 | L20: 149.3608167 | M20: 151.5488168 | N20: 153.7774629 | O20: 156.0476452 | P20: 158.3602761
B21: Basic connection, three-phase BH | C21: 1054790.091 | D21: 1040470.537 | E21: 1042297.913 | F21: 1064310.755 | G21: 1087190.203 | H21: 1110705.383 | I21: 1134854.887 | J21: 1271.704167 | K21: 1292.933454 | L21: 1324.362606 | M21: 1343.763313 | N21: 1363.524423 | O21: 1383.65383 | P21: 1404.159621
B22: Basic connection, three-phase AH | C22: 21526.32839 | D22: 21234.09258 | E22: 21271.38599 | F22: 21720.62766 | G22: 22187.55517 | H22: 22667.4568 | I22: 23160.30381 | J22: 25.95314627 | K22: 26.38639702 | L22: 27.02780828 | M22: 27.42374108 | N22: 27.82702904 | O22: 28.23783326 | P22: 28.6563188
B23: Temporary connection, single-phase BH | C23: 531084.8748 | D23: 551564.6529 | E23: 582496.6802 | F23: 595540.2347 | G23: 609132.1943 | H23: 623117.4657 | I23: 637494.4075 | J23: 851.8399341 | K23: 866.0601867 | L23: 887.1127295 | M23: 900.108124 | N23: 913.3449309 | O23: 926.8284383 | P23: 940.5640639
B24: Temporary connection, single-phase AH | C24: 10838.46683 | D24: 11256.42149 | E24: 11887.68735 | F24: 12153.88234 | G24: 12431.26927 | H24: 12716.68297 | I24: 13010.08995 | J24: 17.38448845 | K24: 17.67469769 | L24: 18.10434142 | M24: 18.36955355 | N24: 18.63969247 | O24: 18.91486609 | P24: 19.19518498
